Workbook

Sheet AER Changes
A2: No. | B2: Sheet | C2: Location | D2: Comment | E2: Notes
B4: SAPN Changes to Draft Decision Model
A5: 1 | B5: Proposed NW Projects (Reg Yr) | C5: Worksheet | D5: Updated 2020-25 capex forecasts
C6: Row 108 | D6: Added new project 'Substation Asbestos Removal' | E6: Incorrectly included in 'Circuit Breakers Planned Refurb' project in Original Proposal
C7: Rows 159/160 | D7: Added new Customer Contribution categories 'Recoverable Works Contribution' and 'Embedded Generation Contribution' | E7: Not separately identified in Original Proposal
C8: Row 118 | D8: Project renamed from 'Protection Compliance (Primary&Backup)' to 'Rural Protection' | E8: Better reflects definition of project
A10: =A5+1 -> 2 | B10: Proposed NW Proj Direct Costs | C10: Row 108 | D10: Added new project 'Substation Asbestos Removal' | E10: Incorrectly included in 'Circuit Breakers Planned Refurb' project in Original Proposal
C11: Rows 159/160 | D11: Added new Customer Contribution categories 'Recoverable Works Contribution' and 'Embedded Generation Contribution' | E11: Not separately identified in Original Proposal
C12: Row 118 | D12: Project renamed from 'Protection Compliance (Primary&Backup)' to 'Rural Protection' | E12: Better reflects definition of project
C13: Columns N:P | D13: Added PTRM Asset Class and Cost Category for each project
A15: =A10+1 -> 3 | B15: Misc Data | C15: Worksheet | D15: Updated RAB Capex Category Proportions and Immediate Expensing of Capex, linked to sheet Network Projects Direct Costs
A17: =A15+1 -> 4 | B17: Lives for Lines & Subs | C17: Worksheet | D17: Worksheet Deleted - due to new code in Misc Data sheet
A19: =A17+1 -> 5 | B19: General Inputs | C19: E9 | D19: Updated 2019/20 forecast CPI | E19: Based on RBA, Statement on Monetary policy, November 2019, Appendix
C20: D34:J40 | D20: Updated Real Price Escalators
C21: Row 37 | D21: Added additional Real Price Escalator - All Industries - for ICT contracted services | E21: refer Attachment 5 - capex, section 5.2.7
C22: B55:F57 | D22: Updated 2020-25 Asset Disposals
A24: =A19+1 -> 6 | B24: Network Projects Direct Costs | C24: Row 108 | D24: Added new project 'Substation Asbestos Removal' | E24: Incorrectly included in 'Circuit Breakers Planned Refurb' project in Original Proposal
C25: Rows 159/160 | D25: Added new Customer Contribution categories 'Recoverable Works Contribution' and 'Embedded Generation Contribution' | E25: Not separately identified in Original Proposal
C26: Row 118 | D26: Project renamed from 'Protection Compliance (Primary&Backup)' to 'Rural Protection' | E26: Better reflects definition of project
C27: Columns N:P | D27: Added PTRM Asset Class and Cost Category for each project
A29: =A24+1 -> 7 | B29: Non Network Base Capex | C29: Worksheet | D29: Updated 2020-25 capex forecasts | E29: rows 58-84 not updated
C30: Rows 87/88 | D30: Updated with 2018/19 Superannuation adjustment, converted to $2017
A32: =A29+1 -> 8 | B32: Direct Capex Plus Ohds | C32: K21:P23 | D32: ICT escalators updated to apply All Industries WPI for contracted services
A34: =A32+1 -> 9 | B34: NW Projects Capex $June2020 | C34: Row 108 | D34: Added new project 'Substation Asbestos Removal' | E34: Incorrectly included in 'Circuit Breakers Planned Refurb' project in Original Proposal
C35: Rows 159/160 | D35: Added new Customer Contribution categories 'Recoverable Works Contribution' and 'Embedded Generation Contribution' | E35: Not separately identified in Original Proposal
C36: Row 118 | D36: Project renamed from 'Protection Compliance (Primary&Backup)' to 'Rural Protection' | E36: Better reflects definition of project
A38: =A34+1 -> 10 | B38: Project Capex - shorter life | C38: Rows 19, 30:32 | D38: Added additional projects assigned to short life asset categories
A40: =A38+1 -> 11 | B40: Capex - shorter life activities | C40: Rows 6:27 | D40: Added additional projects assigned to short life asset categories
D41: Separated grouped projects to recognise different asset categorisation
D42: Amended asset categorisation
B44: Incorrect code identified in Revised Proposal Model
A45: (a) | B45: Non Network Base Capex | C45: Non Network Base Capex'!K63:O63 | D45: Incorrect formula to convert costs in $2018-19 costs to $2017-18
A47: (b) | B47: Capex By Driver | C47: Capex By Driver'!G20 | D47: Incorrect formula to calculate DER Management costs - presentation issue only - does not affect the proposed capex
D48: Refer "[SAPN - 5.1 - Revised Regulatory Proposal Capex model - December 2019 - Rev 1.xlsm]Capex By Driver'!$B$20"
A50: (c) | B50: PTRM Check'!P33:U55 | C50: PTRM Check | D50: The values for "Immediate Expensing of Capex" have not been updated in the PTRM model
B53: Updates for the final decision
A55: 1 | B55: General Inputs | C55: General Inputs'!C9 | D55: CPI Index Dec 2019 - Published in 3rd or 4th week in January 2020
C56: General Inputs'!D34:J39 | D56: Real Price Escalators
A59: 2 | B59: Network Projects Direct Costs | C59: Network Projects Direct Costs'!E6:I160 | D59: Network Projects Direct Costs [$2017-18 ($'000)] | E59: Changes to repex and augex
A61: 3 | B61: Non Network Base Capex | C61: Non Network Base Capex'!D41:H45 | D61: Non-network cost [$2017-18 ($'000)] | E61: Changes to property capex
A64: 4 | B64: Project Capex - shorter life | C64: Project Capex - shorter life'!F9:F21 | D64: Network Projects allocated to Asset Categories with Shorter Life

Sheet Proposed NW Projects (Reg Yr)
A1: INCLUDES NETWORK BUSINESS OVERHEADS | D1: $2017-18 ($'000)
C3: AER RIN ref | D3: Doc/Plan ref | E3: 2020/21 | F3: 2021/22 | G3: 2022/23 | H3: 2023/24 | I3: 2024/25 | J3: Total
A4: Category / Description | C4: (Repex,Augex etc) | D4: (eg AP) | E4: Jul-Jun | F4: =E4 -> Jul-Jun | G4: =F4 -> Jul-Jun | H4: =G4 -> Jul-Jun | I4: =H4 -> Jul-Jun | K4: SEM Reference
A5: Capacity Upgrade
B6: Connection Point Capacity (ETC/NER Code) | C6: Augex | D6: AP.1.1.01 | E6: ='[1]Proposed NW Projects (Reg Yr)'!E6 -> 4334.65995 | F6: ='[1]Proposed NW Projects (Reg Yr)'!F6 -> 5263.828715 | G6: ='[1]Proposed NW Projects (Reg Yr)'!G6 -> 1547.153652 | H6: ='[1]Proposed NW Projects (Reg Yr)'!H6 -> 0 | I6: ='[1]Proposed NW Projects (Reg Yr)'!I6 -> 0 | J6: =SUM(E6:I6) -> 11145.64232 | K6: C-2
B7: LV & Distribution Transformers (QoS BAU) | C7: Augex | D7: AP.1.1.01 | E7: ='[1]Proposed NW Projects (Reg Yr)'!E7 -> 7617.613852 | F7: ='[1]Proposed NW Projects (Reg Yr)'!F7 -> 7788.796186 | G7: ='[1]Proposed NW Projects (Reg Yr)'!G7 -> 7959.97852 | H7: ='[1]Proposed NW Projects (Reg Yr)'!H7 -> 7959.97852 | I7: ='[1]Proposed NW Projects (Reg Yr)'!I7 -> 8131.160854 | J7: 39457.52793 | K7: C-2
B8: Distribution Feeders (11 & 7.6kV) | C8: Augex | D8: AP.1.1.01 | E8: ='[1]Proposed NW Projects (Reg Yr)'!E8 -> 2410.579345 | F8: ='[1]Proposed NW Projects (Reg Yr)'!F8 -> 289.2695214 | G8: ='[1]Proposed NW Projects (Reg Yr)'!G8 -> 74.50881612 | H8: ='[1]Proposed NW Projects (Reg Yr)'!H8 -> 547.8589421 | I8: ='[1]Proposed NW Projects (Reg Yr)'!I8 -> 793.2997481 | J8: 4115.516373 | K8: C-2
B9: Strategic Network Capacity (Other) | C9: Augex | D9: AP.1.1.01 | E9: ='[1]Proposed NW Projects (Reg Yr)'!E9 -> 3593.95466 | F9: ='[1]Proposed NW Projects (Reg Yr)'!F9 -> 3593.95466 | G9: ='[1]Proposed NW Projects (Reg Yr)'!G9 -> 3593.95466 | H9: ='[1]Proposed NW Projects (Reg Yr)'!H9 -> 3593.95466 | I9: ='[1]Proposed NW Projects (Reg Yr)'!I9 -> 3593.95466 | J9: 17969.7733 | K9: C-2
B10: Substation Capacity | C10: Augex | D10: AP.1.1.01 | E10: ='[1]Proposed NW Projects (Reg Yr)'!E10 -> 3133.753149 | F10: ='[1]Proposed NW Projects (Reg Yr)'!F10 -> 2138.84131 | G10: ='[1]Proposed NW Projects (Reg Yr)'!G10 -> 2910.2267 | H10: ='[1]Proposed NW Projects (Reg Yr)'!H10 -> 2108.161209 | I10: ='[1]Proposed NW Projects (Reg Yr)'!I10 -> 701.2594458 | J10: 10992.24181 | K10: C-2
B11: Subtransmission Network | C11: Augex | D11: AP.1.1.01 | E11: ='[1]Proposed NW Projects (Reg Yr)'!E11 -> 0 | F11: ='[1]Proposed NW Projects (Reg Yr)'!F11 -> 499.6473552 | G11: ='[1]Proposed NW Projects (Reg Yr)'!G11 -> 999.2947103 | H11: ='[1]Proposed NW Projects (Reg Yr)'!H11 -> 4028.446683 | I11: ='[1]Proposed NW Projects (Reg Yr)'!I11 -> 5768.68178 | J11: 11296.07053 | K11: C-2
B12: Distribution Line - SWER Replacements | C12: Augex | D12: AP.1.1.01 | E12: ='[1]Proposed NW Projects (Reg Yr)'!E12 -> 613.6020151 | F12: ='[1]Proposed NW Projects (Reg Yr)'!F12 -> 613.6020151 | G12: ='[1]Proposed NW Projects (Reg Yr)'!G12 -> 613.6020151 | H12: ='[1]Proposed NW Projects (Reg Yr)'!H12 -> 613.6020151 | I12: ='[1]Proposed NW Projects (Reg Yr)'!I12 -> 613.6020151 | J12: 3068.010076 | K12: C-2
B13: Voltage Regulation | C13: Augex | D13: AP.1.1.01 | E13: ='[1]Proposed NW Projects (Reg Yr)'!E13 -> 1385.324502 | F13: ='[1]Proposed NW Projects (Reg Yr)'!F13 -> 1385.324502 | G13: ='[1]Proposed NW Projects (Reg Yr)'!G13 -> 1385.324502 | H13: ='[1]Proposed NW Projects (Reg Yr)'!H13 -> 1385.324502 | I13: ='[1]Proposed NW Projects (Reg Yr)'!I13 -> 1385.324502 | J13: 6926.62251 | K13: C-2
B14: Land | C14: Augex | D14: AP.1.1.01 | E14: ='[1]Proposed NW Projects (Reg Yr)'!E14 -> 0 | F14: ='[1]Proposed NW Projects (Reg Yr)'!F14 -> 0 | G14: ='[1]Proposed NW Projects (Reg Yr)'!G14 -> 0 | H14: ='[1]Proposed NW Projects (Reg Yr)'!H14 -> 1358.690176 | I14: ='[1]Proposed NW Projects (Reg Yr)'!I14 -> 1358.690176 | J14: 2717.380353 | K14: C-2
B15: LV Two Way Network (QoS) | C15: Augex | D15: AP.1.1.01 | E15: ='[1]Proposed NW Projects (Reg Yr)'!E15 -> 607.6972849 | F15: ='[1]Proposed NW Projects (Reg Yr)'!F15 -> 1651.909521 | G15: ='[1]Proposed NW Projects (Reg Yr)'!G15 -> 1960.037722 | H15: ='[1]Proposed NW Projects (Reg Yr)'!H15 -> 616.2564015 | I15: ='[1]Proposed NW Projects (Reg Yr)'!I15 -> 0 | J15: 4835.900929 | K15: C-2
B17: Capacity Augmentation (Total) | D17: Total | E17: =SUM(E6:E16) -> 23697.18476 | F17: =SUM(F6:F16) -> 23225.17379 | G17: =SUM(G6:G16) -> 21044.0813 | H17: =SUM(H6:H16) -> 22212.27311 | I17: =SUM(I6:I16) -> 22345.97318 | J17: =SUM(E17:I17) -> 112524.6861
A18: Customer Connect (gross)
B19: Customer Connect < $30k | C19: Connections | D19: AP.7.1.01 | E19: ='[1]Proposed NW Projects (Reg Yr)'!E19 -> 20425.63627 | F19: ='[1]Proposed NW Projects (Reg Yr)'!F19 -> 22301.9918 | G19: ='[1]Proposed NW Projects (Reg Yr)'!G19 -> 22829.78877 | H19: ='[1]Proposed NW Projects (Reg Yr)'!H19 -> 21835.86829 | I19: ='[1]Proposed NW Projects (Reg Yr)'!I19 -> 19867.80907 | J19: =E19+F19+G19+H19+I19 -> 107261.0942 | K19: C-3
B20: Customer Connect > $30k<$100k | C20: Connections | D20: AP.7.1.01 | E20: ='[1]Proposed NW Projects (Reg Yr)'!E20 -> 27207.65959 | F20: ='[1]Proposed NW Projects (Reg Yr)'!F20 -> 29050.61608 | G20: ='[1]Proposed NW Projects (Reg Yr)'!G20 -> 29779.02233 | H20: ='[1]Proposed NW Projects (Reg Yr)'!H20 -> 29193.43338 | I20: ='[1]Proposed NW Projects (Reg Yr)'!I20 -> 28325.71488 | J20: =E20+F20+G20+H20+I20 -> 143556.4463 | K20: C-3
B21: Customer Connect > $100k | C21: Connections | D21: AP.7.1.01 | E21: ='[1]Proposed NW Projects (Reg Yr)'!E21 -> 34200.28739 | F21: ='[1]Proposed NW Projects (Reg Yr)'!F21 -> 32241.18697 | G21: ='[1]Proposed NW Projects (Reg Yr)'!G21 -> 38066.21592 | H21: ='[1]Proposed NW Projects (Reg Yr)'!H21 -> 33724.17487 | I21: ='[1]Proposed NW Projects (Reg Yr)'!I21 -> 33008.55929 | J21: =E21+F21+G21+H21+I21 -> 171240.4244 | K21: C-3
B22: Gifting | C22: Connections | D22: NA | E22: ='[1]Proposed NW Projects (Reg Yr)'!E22 -> 25993 | F22: ='[1]Proposed NW Projects (Reg Yr)'!F22 -> 25993 | G22: ='[1]Proposed NW Projects (Reg Yr)'!G22 -> 25993 | H22: ='[1]Proposed NW Projects (Reg Yr)'!H22 -> 25993 | I22: ='[1]Proposed NW Projects (Reg Yr)'!I22 -> 25993 | J22: =E22+F22+G22+H22+I22 -> 129965 | K22: C-3 | L22: Based on average 2015-2018 - note this nets out
B23: URDs | C23: Connections | D23: AP.7.1.01 | E23: ='[1]Proposed NW Projects (Reg Yr)'!E23 -> 5586.385417 | F23: ='[1]Proposed NW Projects (Reg Yr)'!F23 -> 6118.422123 | G23: ='[1]Proposed NW Projects (Reg Yr)'!G23 -> 6473.11326 | H23: ='[1]Proposed NW Projects (Reg Yr)'!H23 -> 6118.422123 | I23: ='[1]Proposed NW Projects (Reg Yr)'!I23 -> 5521.172209 | J23: =E23+F23+G23+H23+I23 -> 29817.51513 | K23: C-3
B25: Gross Customer Connect (total, incl gifting) | D25: Total | E25: =SUM(E19:E24) -> 113412.9687 | F25: 115705.217 | G25: 123141.1403 | H25: 116864.8987 | I25: 112716.2554 | J25: 581840.48
A26: Reliability & Resilience
B27: Existing Network Protection Mgt - Planned | C27: Augex | D27: Historical | E27: ='[1]Proposed NW Projects (Reg Yr)'!E27 -> 1344.080605 | F27: ='[1]Proposed NW Projects (Reg Yr)'!F27 -> 1344.080605 | G27: ='[1]Proposed NW Projects (Reg Yr)'!G27 -> 1344.080605 | H27: ='[1]Proposed NW Projects (Reg Yr)'!H27 -> 1344.080605 | I27: ='[1]Proposed NW Projects (Reg Yr)'!I27 -> 1344.080605 | J27: =SUM(E27:I27) -> 6720.403023 | K27: C-5
B28: Maintain Underlying Reliability Performance | C28: Augex | D28: AP.2.1.01 | E28: ='[1]Proposed NW Projects (Reg Yr)'!E28 -> 4536.27204 | F28: ='[1]Proposed NW Projects (Reg Yr)'!F28 -> 4536.27204 | G28: ='[1]Proposed NW Projects (Reg Yr)'!G28 -> 4536.27204 | H28: ='[1]Proposed NW Projects (Reg Yr)'!H28 -> 4536.27204 | I28: ='[1]Proposed NW Projects (Reg Yr)'!I28 -> 4536.27204 | J28: =SUM(E28:I28) -> 22681.3602 | K28: C-5
B29: Air Conditioning Relay Rooms | C29: Augex | D29: AP.3.2.14 | E29: ='[1]Proposed NW Projects (Reg Yr)'!E29 -> 168.0100756 | F29: ='[1]Proposed NW Projects (Reg Yr)'!F29 -> 168.0100756 | G29: ='[1]Proposed NW Projects (Reg Yr)'!G29 -> 168.0100756 | H29: ='[1]Proposed NW Projects (Reg Yr)'!H29 -> 168.0100756 | I29: ='[1]Proposed NW Projects (Reg Yr)'!I29 -> 168.0100756 | J29: =SUM(E29:I29) -> 840.0503778 | K29: C-5
B30: Network Hardening | C30: Augex | D30: AP.2.1.05 | E30: ='[1]Proposed NW Projects (Reg Yr)'!E30 -> 2823.039463 | F30: ='[1]Proposed NW Projects (Reg Yr)'!F30 -> 2823.039463 | G30: ='[1]Proposed NW Projects (Reg Yr)'!G30 -> 2823.039463 | H30: ='[1]Proposed NW Projects (Reg Yr)'!H30 -> 2823.039463 | I30: ='[1]Proposed NW Projects (Reg Yr)'!I30 -> 2823.039463 | J30: =SUM(E30:I30) -> 14115.19731 | K30: C-5
B31: Low Reliability Feeders | C31: Augex | D31: AP.2.1.06 | E31: ='[1]Proposed NW Projects (Reg Yr)'!E31 -> 2734.819479 | F31: ='[1]Proposed NW Projects (Reg Yr)'!F31 -> 2734.819479 | G31: ='[1]Proposed NW Projects (Reg Yr)'!G31 -> 2734.819479 | H31: ='[1]Proposed NW Projects (Reg Yr)'!H31 -> 2734.819479 | I31: ='[1]Proposed NW Projects (Reg Yr)'!I31 -> 2734.819479 | J31: =SUM(E31:I31) -> 13674.0974 | K31: C-5
B33: Reliability (total) | D33: total | E33: =SUM(E27:E32) -> 11606.22166 | F33: 11606.22166 | G33: 11606.22166 | H33: 11606.22166 | I33: 11606.22166 | J33: 58031.10831
A34: Asset Replace/Refurbish
B35: Line Repex/Refurb - Planned
B36: Cable replacement planned | C36: Repex | D36: AP.3.1.09 | E36: ='[1]Proposed NW Projects (Reg Yr)'!E36 -> 961.6194899 | F36: ='[1]Proposed NW Projects (Reg Yr)'!F36 -> 961.6194899 | G36: ='[1]Proposed NW Projects (Reg Yr)'!G36 -> 961.6194899 | H36: ='[1]Proposed NW Projects (Reg Yr)'!H36 -> 961.6194899 | I36: ='[1]Proposed NW Projects (Reg Yr)'!I36 -> 961.6194899 | J36: =SUM(E36:I36) -> 4808.09745 | K36: C-1
B37: Conductor Replacement - Planned | C37: Repex | D37: AP.3.1.10 | E37: ='[1]Proposed NW Projects (Reg Yr)'!E37 -> 2236.667263 | F37: ='[1]Proposed NW Projects (Reg Yr)'!F37 -> 2236.667263 | G37: ='[1]Proposed NW Projects (Reg Yr)'!G37 -> 2236.667263 | H37: ='[1]Proposed NW Projects (Reg Yr)'!H37 -> 2236.667263 | I37: ='[1]Proposed NW Projects (Reg Yr)'!I37 -> 2236.667263 | J37: 11183.33631 | K37: C-1
B38: Line Ancillary Equipment - Planned (incl LFIs, fences, gates, signs etc) | C38: Repex | D38: AP.3.1.20 | E38: ='[1]Proposed NW Projects (Reg Yr)'!E38 -> 375.411379 | F38: ='[1]Proposed NW Projects (Reg Yr)'!F38 -> 500.5485053 | G38: ='[1]Proposed NW Projects (Reg Yr)'!G38 -> 500.5485053 | H38: ='[1]Proposed NW Projects (Reg Yr)'!H38 -> 500.5485053 | I38: ='[1]Proposed NW Projects (Reg Yr)'!I38 -> 500.5485053 | J38: 2377.6054 | K38: C-1
B39: Line Regulation - Planned (incl regulators, capacitors) | C39: Repex | D39: AP.3.1.19 | E39: ='[1]Proposed NW Projects (Reg Yr)'!E39 -> 760.2528967 | F39: ='[1]Proposed NW Projects (Reg Yr)'!F39 -> 1013.670529 | G39: ='[1]Proposed NW Projects (Reg Yr)'!G39 -> 1013.670529 | H39: ='[1]Proposed NW Projects (Reg Yr)'!H39 -> 1022.436272 | I39: ='[1]Proposed NW Projects (Reg Yr)'!I39 -> 1031.202015 | J39: 4841.232242 | K39: C-1
B40: Overhead Line Components - Planned (incl insulators, crossarms, taps, pole earths) | C40: Repex | D40: AP.3.1.06 | E40: ='[1]Proposed NW Projects (Reg Yr)'!E40 -> 13636.18887 | F40: ='[1]Proposed NW Projects (Reg Yr)'!F40 -> 13636.18887 | G40: ='[1]Proposed NW Projects (Reg Yr)'!G40 -> 13636.18887 | H40: ='[1]Proposed NW Projects (Reg Yr)'!H40 -> 13636.18887 | I40: ='[1]Proposed NW Projects (Reg Yr)'!I40 -> 13636.18887 | J40: 68180.94433 | K40: C-1
B41: Pole Replacement Maint. Tasks - Planned | C41: Repex | D41: AP.3.1.05 | E41: ='[1]Proposed NW Projects (Reg Yr)'!E41 -> 21679.48402 | F41: ='[1]Proposed NW Projects (Reg Yr)'!F41 -> 21791.63806 | G41: ='[1]Proposed NW Projects (Reg Yr)'!G41 -> 21791.63806 | H41: ='[1]Proposed NW Projects (Reg Yr)'!H41 -> 21791.63806 | I41: ='[1]Proposed NW Projects (Reg Yr)'!I41 -> 21791.63806 | J41: 108846.0363 | K41: C-1
B42: Recloser Refurbishment - Planned | C42: Repex | D42: AP.3.1.13 | E42: ='[1]Proposed NW Projects (Reg Yr)'!E42 -> 473.9597721 | F42: ='[1]Proposed NW Projects (Reg Yr)'!F42 -> 473.9597721 | G42: ='[1]Proposed NW Projects (Reg Yr)'!G42 -> 473.9597721 | H42: ='[1]Proposed NW Projects (Reg Yr)'!H42 -> 473.9597721 | I42: ='[1]Proposed NW Projects (Reg Yr)'!I42 -> 473.9597721 | J42: 2369.798861 | K42: C-1
B43: Recloser Replacement - Planned | C43: Repex | D43: AP.3.1.13 | E43: ='[1]Proposed NW Projects (Reg Yr)'!E43 -> 1350.204655 | F43: ='[1]Proposed NW Projects (Reg Yr)'!F43 -> 1350.204655 | G43: ='[1]Proposed NW Projects (Reg Yr)'!G43 -> 1350.204655 | H43: ='[1]Proposed NW Projects (Reg Yr)'!H43 -> 1350.204655 | I43: ='[1]Proposed NW Projects (Reg Yr)'!I43 -> 1350.204655 | J43: 6751.023273 | K43: C-1
B44: Services Maintenance Tasks - Planned | C44: Repex | D44: AP.3.1.08 | E44: ='[1]Proposed NW Projects (Reg Yr)'!E44 -> 3719.853642 | F44: ='[1]Proposed NW Projects (Reg Yr)'!F44 -> 3719.853642 | G44: ='[1]Proposed NW Projects (Reg Yr)'!G44 -> 3719.853642 | H44: ='[1]Proposed NW Projects (Reg Yr)'!H44 -> 3719.853642 | I44: ='[1]Proposed NW Projects (Reg Yr)'!I44 -> 3719.853642 | J44: 18599.26821 | K44: C-1
B45: Switchgear - Overhead - Planned | C45: Repex | D45: AP.3.1.07 | E45: ='[1]Proposed NW Projects (Reg Yr)'!E45 -> 3055.147025 | F45: ='[1]Proposed NW Projects (Reg Yr)'!F45 -> 3055.147025 | G45: ='[1]Proposed NW Projects (Reg Yr)'!G45 -> 3055.147025 | H45: ='[1]Proposed NW Projects (Reg Yr)'!H45 -> 3055.147025 | I45: ='[1]Proposed NW Projects (Reg Yr)'!I45 -> 3055.147025 | J45: 15275.73512 | K45: C-1
B46: Transformers - Planned | C46: Repex | D46: AP.3.1.01 | E46: ='[1]Proposed NW Projects (Reg Yr)'!E46 -> 2804.329889 | F46: ='[1]Proposed NW Projects (Reg Yr)'!F46 -> 2804.329889 | G46: ='[1]Proposed NW Projects (Reg Yr)'!G46 -> 2804.329889 | H46: ='[1]Proposed NW Projects (Reg Yr)'!H46 -> 2804.329889 | I46: ='[1]Proposed NW Projects (Reg Yr)'!I46 -> 2804.329889 | J46: 14021.64945 | K46: C-1
B47: Poles - Planned plating | C47: Repex | D47: AP.3.1.05 | E47: ='[1]Proposed NW Projects (Reg Yr)'!E47 -> 6967.923126 | F47: ='[1]Proposed NW Projects (Reg Yr)'!F47 -> 6962.792107 | G47: ='[1]Proposed NW Projects (Reg Yr)'!G47 -> 6962.792107 | H47: ='[1]Proposed NW Projects (Reg Yr)'!H47 -> 6962.792107 | I47: ='[1]Proposed NW Projects (Reg Yr)'!I47 -> 6962.792107 | J47: 34819.09155 | K47: C-1
B48: CBD ducts & manholes | C48: Repex | D48: AP.2.1.07 | E48: ='[1]Proposed NW Projects (Reg Yr)'!E48 -> 2534.166521 | F48: ='[1]Proposed NW Projects (Reg Yr)'!F48 -> 2534.166521 | G48: ='[1]Proposed NW Projects (Reg Yr)'!G48 -> 2534.166521 | H48: ='[1]Proposed NW Projects (Reg Yr)'!H48 -> 2534.166521 | I48: ='[1]Proposed NW Projects (Reg Yr)'!I48 -> 2534.166521 | J48: 12670.8326 | K48: C-1
B49: Cables - CBD 11kV PILC cable replacements | C49: Repex | D49: AP.2.1.07 | E49: ='[1]Proposed NW Projects (Reg Yr)'!E49 -> 1329.176161 | F49: ='[1]Proposed NW Projects (Reg Yr)'!F49 -> 1329.176161 | G49: ='[1]Proposed NW Projects (Reg Yr)'!G49 -> 1329.176161 | H49: ='[1]Proposed NW Projects (Reg Yr)'!H49 -> 1329.176161 | I49: ='[1]Proposed NW Projects (Reg Yr)'!I49 -> 1329.176161 | J49: 6645.880806 | K49: C-1
B50: Services - Aluminium neutral screen service line replacements | C50: Repex | D50: AP.3.1.08 | E50: ='[1]Proposed NW Projects (Reg Yr)'!E50 -> 553.2536623 | F50: ='[1]Proposed NW Projects (Reg Yr)'!F50 -> 737.6715497 | G50: ='[1]Proposed NW Projects (Reg Yr)'!G50 -> 737.6715497 | H50: ='[1]Proposed NW Projects (Reg Yr)'!H50 -> 737.6715497 | I50: ='[1]Proposed NW Projects (Reg Yr)'!I50 -> 737.6715497 | J50: 3503.939861 | K50: C-1
K51: C-1
B52: Line Repex/Refurb - Unplanned | K52: C-1
B53: (Distribution) Cable Replacement - Unplanned | C53: Repex | D53: AP.3.1.09 | E53: ='[1]Proposed NW Projects (Reg Yr)'!E53 -> 452.5268188 | F53: ='[1]Proposed NW Projects (Reg Yr)'!F53 -> 452.5268188 | G53: ='[1]Proposed NW Projects (Reg Yr)'!G53 -> 452.5268188 | H53: ='[1]Proposed NW Projects (Reg Yr)'!H53 -> 452.5268188 | I53: ='[1]Proposed NW Projects (Reg Yr)'!I53 -> 452.5268188 | J53: =SUM(E53:I53) -> 2262.634094 | K53: C-1
B54: Line Regulation - Unplanned (incl regulators, capacitors) | C54: Repex | D54: AP.3.1.19 | E54: ='[1]Proposed NW Projects (Reg Yr)'!E54 -> 118.3375315 | F54: ='[1]Proposed NW Projects (Reg Yr)'!F54 -> 118.3375315 | G54: ='[1]Proposed NW Projects (Reg Yr)'!G54 -> 138.0604534 | H54: ='[1]Proposed NW Projects (Reg Yr)'!H54 -> 157.7833753 | I54: ='[1]Proposed NW Projects (Reg Yr)'!I54 -> 157.7833753 | J54: 690.302267 | K54: C-1
B55: Overhead Line Components - Unplanned (incl insulators, X-arms, pole earths) | C55: Repex | D55: AP.3.1.06 | E55: ='[1]Proposed NW Projects (Reg Yr)'!E55 -> 6716.331829 | F55: ='[1]Proposed NW Projects (Reg Yr)'!F55 -> 6716.331829 | G55: ='[1]Proposed NW Projects (Reg Yr)'!G55 -> 6716.331829 | H55: ='[1]Proposed NW Projects (Reg Yr)'!H55 -> 6716.331829 | I55: ='[1]Proposed NW Projects (Reg Yr)'!I55 -> 6716.331829 | J55: 33581.65915 | K55: C-1
B56: Poles - Unplanned | C56: Repex | D56: AP.3.1.05 | E56: ='[1]Proposed NW Projects (Reg Yr)'!E56 -> 2067.865134 | F56: ='[1]Proposed NW Projects (Reg Yr)'!F56 -> 2067.865134 | G56: ='[1]Proposed NW Projects (Reg Yr)'!G56 -> 2067.865134 | H56: ='[1]Proposed NW Projects (Reg Yr)'!H56 -> 2067.865134 | I56: ='[1]Proposed NW Projects (Reg Yr)'!I56 -> 2067.865134 | J56: 10339.32567 | K56: C-1
B57: Recloser Replacement - Unplanned | C57: Repex | D57: AP.3.1.13 | E57: ='[1]Proposed NW Projects (Reg Yr)'!E57 -> 714.563905 | F57: ='[1]Proposed NW Projects (Reg Yr)'!F57 -> 714.563905 | G57: ='[1]Proposed NW Projects (Reg Yr)'!G57 -> 714.563905 | H57: ='[1]Proposed NW Projects (Reg Yr)'!H57 -> 714.563905 | I57: ='[1]Proposed NW Projects (Reg Yr)'!I57 -> 714.563905 | J57: 3572.819525 | K57: C-1
B58: Services Replacement - Unplanned | C58: Repex | D58: AP.3.1.08 | E58: ='[1]Proposed NW Projects (Reg Yr)'!E58 -> 4734.359181 | F58: ='[1]Proposed NW Projects (Reg Yr)'!F58 -> 4734.359181 | G58: ='[1]Proposed NW Projects (Reg Yr)'!G58 -> 4734.359181 | H58: ='[1]Proposed NW Projects (Reg Yr)'!H58 -> 4734.359181 | I58: ='[1]Proposed NW Projects (Reg Yr)'!I58 -> 4734.359181 | J58: 23671.7959 | K58: C-1
B59: Switchgear - Ground Level - Unplanned | C59: Repex | D59: AP.3.1.03 | E59: ='[1]Proposed NW Projects (Reg Yr)'!E59 -> 427.339558 | F59: ='[1]Proposed NW Projects (Reg Yr)'!F59 -> 427.339558 | G59: ='[1]Proposed NW Projects (Reg Yr)'!G59 -> 427.339558 | H59: ='[1]Proposed NW Projects (Reg Yr)'!H59 -> 427.339558 | I59: ='[1]Proposed NW Projects (Reg Yr)'!I59 -> 427.339558 | J59: 2136.69779 | K59: C-1
B60: Switchgear - Overhead - Unplanned | C60: Repex | D60: AP.3.1.07 | E60: ='[1]Proposed NW Projects (Reg Yr)'!E60 -> 3491.596599 | F60: ='[1]Proposed NW Projects (Reg Yr)'!F60 -> 3491.596599 | G60: ='[1]Proposed NW Projects (Reg Yr)'!G60 -> 3491.596599 | H60: ='[1]Proposed NW Projects (Reg Yr)'!H60 -> 3491.596599 | I60: ='[1]Proposed NW Projects (Reg Yr)'!I60 -> 3491.596599 | J60: 17457.983 | K60: C-1
B61: Transformers - Unplanned | C61: Repex | D61: AP.3.1.01 | E61: ='[1]Proposed NW Projects (Reg Yr)'!E61 -> 4575.485609 | F61: ='[1]Proposed NW Projects (Reg Yr)'!F61 -> 4575.485609 | G61: ='[1]Proposed NW Projects (Reg Yr)'!G61 -> 4575.485609 | H61: ='[1]Proposed NW Projects (Reg Yr)'!H61 -> 4575.485609 | I61: ='[1]Proposed NW Projects (Reg Yr)'!I61 -> 4575.485609 | J61: 22877.42805 | K61: C-1
B63: Repex/Refurb - Lines (subtotal) | D63: subtotal | E63: =SUM(E36:E62) -> 85736.04454 | F63: 86406.0402 | G63: 86425.76312 | H63: 86454.25179 | I63: 86463.01753 | J63: 431485.1172
B64: Substations Repex/Refurb
B65: Auxillary DC Supplies excl AC - Battery Banks & Chargers | C65: Repex | D65: AP.3.2.08 | E65: ='[1]Proposed NW Projects (Reg Yr)'!E65 -> 569.9893115 | F65: ='[1]Proposed NW Projects (Reg Yr)'!F65 -> 569.9893115 | G65: ='[1]Proposed NW Projects (Reg Yr)'!G65 -> 569.9893115 | H65: ='[1]Proposed NW Projects (Reg Yr)'!H65 -> 569.9893115 | I65: ='[1]Proposed NW Projects (Reg Yr)'!I65 -> 321.1648489 | J65: =SUM(E65:I65) -> 2601.122095 | K65: C-1
B66: Circuit Breakers Planned Replacement | C66: Repex | D66: AP.3.2.05 | E66: ='[1]Proposed NW Projects (Reg Yr)'!E66 -> 9760.445075 | F66: ='[1]Proposed NW Projects (Reg Yr)'!F66 -> 9760.445075 | G66: ='[1]Proposed NW Projects (Reg Yr)'!G66 -> 10697.3413 | H66: ='[1]Proposed NW Projects (Reg Yr)'!H66 -> 10626.76531 | I66: ='[1]Proposed NW Projects (Reg Yr)'!I66 -> 9689.869089 | J66: 50534.86585 | K66: C-1
B67: Circuit Breakers Planned Refurb | C67: Repex | D67: AP.3.2.02 | E67: ='[1]Proposed NW Projects (Reg Yr)'!E67 -> 654.8328754 | F67: ='[1]Proposed NW Projects (Reg Yr)'!F67 -> 244.6099534 | G67: ='[1]Proposed NW Projects (Reg Yr)'!G67 -> 244.6099534 | H67: ='[1]Proposed NW Projects (Reg Yr)'!H67 -> 244.6099534 | I67: ='[1]Proposed NW Projects (Reg Yr)'!I67 -> 244.6099534 | J67: 1633.272689 | K67: C-1
B68: Mobile Substations | C68: Repex | D68: AP.3.2.13 | E68: ='[1]Proposed NW Projects (Reg Yr)'!E68 -> 262.9722922 | F68: ='[1]Proposed NW Projects (Reg Yr)'!F68 -> 262.9722922 | G68: ='[1]Proposed NW Projects (Reg Yr)'!G68 -> 262.9722922 | H68: ='[1]Proposed NW Projects (Reg Yr)'!H68 -> 262.9722922 | I68: ='[1]Proposed NW Projects (Reg Yr)'!I68 -> 262.9722922 | J68: 1314.861461 | K68: C-1
B69: Substation Insurance Spares & Asset Mgt | C69: Repex | D69: Historical | E69: ='[1]Proposed NW Projects (Reg Yr)'!E69 -> 1402.518892 | F69: ='[1]Proposed NW Projects (Reg Yr)'!F69 -> 1402.518892 | G69: ='[1]Proposed NW Projects (Reg Yr)'!G69 -> 1402.518892 | H69: ='[1]Proposed NW Projects (Reg Yr)'!H69 -> 1402.518892 | I69: ='[1]Proposed NW Projects (Reg Yr)'!I69 -> 1402.518892 | J69: 7012.594458 | K69: C-1
B70: Substation Infrastructure - Civil (incl buildings, structures) | C70: Repex | D70: AP3.2.16 | E70: ='[1]Proposed NW Projects (Reg Yr)'!E70 -> 1314.861461 | F70: ='[1]Proposed NW Projects (Reg Yr)'!F70 -> 1314.861461 | G70: ='[1]Proposed NW Projects (Reg Yr)'!G70 -> 1314.861461 | H70: ='[1]Proposed NW Projects (Reg Yr)'!H70 -> 1314.861461 | I70: ='[1]Proposed NW Projects (Reg Yr)'!I70 -> 1314.861461 | J70: 6574.307305 | K70: C-1
B71: Substation Transformer Repl. | C71: Repex | D71: AP.3.2.01 | E71: ='[1]Proposed NW Projects (Reg Yr)'!E71 -> 4748.197041 | F71: ='[1]Proposed NW Projects (Reg Yr)'!F71 -> 4688.648553 | G71: ='[1]Proposed NW Projects (Reg Yr)'!G71 -> 5359.120425 | H71: ='[1]Proposed NW Projects (Reg Yr)'!H71 -> 4510.003087 | I71: ='[1]Proposed NW Projects (Reg Yr)'!I71 -> 3720.434237 | J71: 23026.40334 | K71: C-1
B72: TF Refurb (18665 & 18977) | C72: Repex | D72: AP.3.2.01 | E72: ='[1]Proposed NW Projects (Reg Yr)'!E72 -> 1380.604534 | F72: ='[1]Proposed NW Projects (Reg Yr)'!F72 -> 1095.717884 | G72: ='[1]Proposed NW Projects (Reg Yr)'!G72 -> 832.7455919 | H72: ='[1]Proposed NW Projects (Reg Yr)'!H72 -> 832.7455919 | I72: ='[1]Proposed NW Projects (Reg Yr)'!I72 -> 832.7455919 | J72: 4974.559194 | K72: C-1
B73: Surge Arrester | C73: Repex | D73: AP.3.2.03 | E73: ='[1]Proposed NW Projects (Reg Yr)'!E73 -> 274.2046472 | F73: ='[1]Proposed NW Projects (Reg Yr)'!F73 -> 300.9563201 | G73: ='[1]Proposed NW Projects (Reg Yr)'!G73 -> 300.9563201 | H73: ='[1]Proposed NW Projects (Reg Yr)'!H73 -> 294.2684019 | I73: ='[1]Proposed NW Projects (Reg Yr)'!I73 -> 187.2617103 | J73: 1357.6474 | K73: C-1
B74: AC Panels + auxilary supply | C74: Repex | D74: AP 3.2.22 | E74: ='[1]Proposed NW Projects (Reg Yr)'!E74 -> 631.1335013 | F74: ='[1]Proposed NW Projects (Reg Yr)'!F74 -> 631.1335013 | G74: ='[1]Proposed NW Projects (Reg Yr)'!G74 -> 631.1335013 | H74: ='[1]Proposed NW Projects (Reg Yr)'!H74 -> 631.1335013 | I74: ='[1]Proposed NW Projects (Reg Yr)'!I74 -> 523.7531486 | J74: 3048.287154 | K74: C-1
B75: Protection Asset Replacement | C75: Repex | D75: AP.3.2.14 | E75: ='[1]Proposed NW Projects (Reg Yr)'!E75 -> 2470.15953 | F75: ='[1]Proposed NW Projects (Reg Yr)'!F75 -> 2514.269521 | G75: ='[1]Proposed NW Projects (Reg Yr)'!G75 -> 2337.829555 | H75: ='[1]Proposed NW Projects (Reg Yr)'!H75 -> 2161.389589 | I75: ='[1]Proposed NW Projects (Reg Yr)'!I75 -> 2205.49958 | J75: 11689.14777 | K75: C-1
B76: Unplanned CB Replacement | C76: Repex | D76: Historical | E76: ='[1]Proposed NW Projects (Reg Yr)'!E76 -> 411.9873216 | F76: ='[1]Proposed NW Projects (Reg Yr)'!F76 -> 411.9873216 | G76: ='[1]Proposed NW Projects (Reg Yr)'!G76 -> 411.9873216 | H76: ='[1]Proposed NW Projects (Reg Yr)'!H76 -> 411.9873216 | I76: ='[1]Proposed NW Projects (Reg Yr)'!I76 -> 411.9873216 | J76: 2059.936608 | K76: C-1
B77: Unplanned Substation Asset Repl - PROTECTION | C77: Repex | D77: Historical | E77: ='[1]Proposed NW Projects (Reg Yr)'!E77 -> 705.7598657 | F77: ='[1]Proposed NW Projects (Reg Yr)'!F77 -> 705.7598657 | G77: ='[1]Proposed NW Projects (Reg Yr)'!G77 -> 705.7598657 | H77: ='[1]Proposed NW Projects (Reg Yr)'!H77 -> 705.7598657 | I77: ='[1]Proposed NW Projects (Reg Yr)'!I77 -> 705.7598657 | J77: 3528.799328 | K77: C-1
B78: Other (sub cables) | C78: Repex | D78: AP 3.02.09 | E78: ='[1]Proposed NW Projects (Reg Yr)'!E78 -> 626.2041296 | F78: ='[1]Proposed NW Projects (Reg Yr)'!F78 -> 222.5416611 | G78: ='[1]Proposed NW Projects (Reg Yr)'!G78 -> 231.7456913 | H78: ='[1]Proposed NW Projects (Reg Yr)'!H78 -> 231.7456913 | I78: ='[1]Proposed NW Projects (Reg Yr)'!I78 -> 194.9295704 | J78: 1507.166744 | K78: C-1
B79: Northfield 66kV GIS Switchboard replacement (1/3rd) | C79: Repex | D79: AP 3.02.06 | E79: ='[1]Proposed NW Projects (Reg Yr)'!E79 -> 1102.74979 | F79: ='[1]Proposed NW Projects (Reg Yr)'!F79 -> 3705.239295 | G79: ='[1]Proposed NW Projects (Reg Yr)'!G79 -> 4410.99916 | H79: ='[1]Proposed NW Projects (Reg Yr)'!H79 -> 1764.399664 | I79: ='[1]Proposed NW Projects (Reg Yr)'!I79 -> 0 | J79: 10983.38791 | K79: C-1
B81: Repex/Refurb - Substations (subtotal) | D81: subtotal | E81: =SUM(E65:E80) -> 26316.62027 | F81: 27831.65091 | G81: 29714.57064 | H81: 25965.14993 | I81: 22018.36756 | J81: 131846.3593
B82: Telecom'n Repex/Refurb | K82: C-1
B83: 48V DC Systems | C83: Repex | D83: AP.3.3.02 | E83: ='[1]Proposed NW Projects (Reg Yr)'!E83 -> 233.4560614 | F83: ='[1]Proposed NW Projects (Reg Yr)'!F83 -> 217.1036994 | G83: ='[1]Proposed NW Projects (Reg Yr)'!G83 -> 217.1036994 | H83: ='[1]Proposed NW Projects (Reg Yr)'!H83 -> 217.1036994 | I83: ='[1]Proposed NW Projects (Reg Yr)'!I83 -> 229.6289129 | J83: =SUM(E83:I83) -> 1114.396073 | K83: C-1
B84: UPAX/Business Telephone Network | C84: Non-network | D84: AP.3.3.07 | E84: ='[1]Proposed NW Projects (Reg Yr)'!E84 -> 727.8148615 | F84: ='[1]Proposed NW Projects (Reg Yr)'!F84 -> 132.3299748 | G84: ='[1]Proposed NW Projects (Reg Yr)'!G84 -> 242.6049538 | H84: ='[1]Proposed NW Projects (Reg Yr)'!H84 -> 529.3198992 | I84: ='[1]Proposed NW Projects (Reg Yr)'!I84 -> 419.0449202 | J84: 2051.11461 | K84: C-1
B85: Data Network | C85: Repex | D85: AP.3.3.12 | E85: ='[1]Proposed NW Projects (Reg Yr)'!E85 -> 1166.584462 | F85: ='[1]Proposed NW Projects (Reg Yr)'!F85 -> 1166.584462 | G85: ='[1]Proposed NW Projects (Reg Yr)'!G85 -> 816.9222536 | H85: ='[1]Proposed NW Projects (Reg Yr)'!H85 -> 987.0564027 | I85: ='[1]Proposed NW Projects (Reg Yr)'!I85 -> 987.0564027 | J85: 5124.203983 | K85: C-1
B86: Microwave Radio | C86: Repex | D86: AP.3.3.01 | E86: ='[1]Proposed NW Projects (Reg Yr)'!E86 -> 100.8975526 | F86: ='[1]Proposed NW Projects (Reg Yr)'!F86 -> 212.2327831 | G86: ='[1]Proposed NW Projects (Reg Yr)'!G86 -> 222.670461 | H86: ='[1]Proposed NW Projects (Reg Yr)'!H86 -> 222.670461 | I86: ='[1]Proposed NW Projects (Reg Yr)'!I86 -> 222.670461 | J86: 981.1417186 | K86: C-1
B87: Minor Works - Unplanned | C87: Repex | D87: Historic | E87: ='[1]Proposed NW Projects (Reg Yr)'!E87 -> 626.2606715 | F87: ='[1]Proposed NW Projects (Reg Yr)'!F87 -> 626.2606715 | G87: ='[1]Proposed NW Projects (Reg Yr)'!G87 -> 661.052931 | H87: ='[1]Proposed NW Projects (Reg Yr)'!H87 -> 695.8451905 | I87: ='[1]Proposed NW Projects (Reg Yr)'!I87 -> 695.8451905 | J87: 3305.264655 | K87: C-1
B88: Misc Radio Systems | C88: Repex | D88: AP.3.3.05 | E88: ='[1]Proposed NW Projects (Reg Yr)'!E88 -> 505.8794535 | F88: ='[1]Proposed NW Projects (Reg Yr)'!F88 -> 135.6898121 | G88: ='[1]Proposed NW Projects (Reg Yr)'!G88 -> 135.6898121 | H88: ='[1]Proposed NW Projects (Reg Yr)'!H88 -> 135.6898121 | I88: ='[1]Proposed NW Projects (Reg Yr)'!I88 -> 135.6898121 | J88: 1048.638702 | K88: C-1
B89: Network Tel Planning Labour Capitalisation | C89: Repex | D89: Historic | E89: ='[1]Proposed NW Projects (Reg Yr)'!E89 -> 487.0916334 | F89: ='[1]Proposed NW Projects (Reg Yr)'!F89 -> 487.0916334 | G89: ='[1]Proposed NW Projects (Reg Yr)'!G89 -> 487.0916334 | H89: ='[1]Proposed NW Projects (Reg Yr)'!H89 -> 487.0916334 | I89: ='[1]Proposed NW Projects (Reg Yr)'!I89 -> 487.0916334 | J89: 2435.458167 | K89: C-1
B90: Optical Fibre Network | C90: Repex | D90: AP.3.3.04 | E90: ='[1]Proposed NW Projects (Reg Yr)'!E90 -> 347.9225953 | F90: ='[1]Proposed NW Projects (Reg Yr)'!F90 -> 347.9225953 | G90: ='[1]Proposed NW Projects (Reg Yr)'!G90 -> 347.9225953 | H90: ='[1]Proposed NW Projects (Reg Yr)'!H90 -> 347.9225953 | I90: ='[1]Proposed NW Projects (Reg Yr)'!I90 -> 347.9225953 | J90: 1739.612976 | K90: C-1
B91: Pilot Cable Network (incl CBD) stage 2 | C91: Repex | D91: AP.3.3.03 | E91: ='[1]Proposed NW Projects (Reg Yr)'!E91 -> 34.79225953 | F91: ='[1]Proposed NW Projects (Reg Yr)'!F91 -> 34.79225953 | G91: ='[1]Proposed NW Projects (Reg Yr)'!G91 -> 34.79225953 | H91: ='[1]Proposed NW Projects (Reg Yr)'!H91 -> 34.79225953 | I91: ='[1]Proposed NW Projects (Reg Yr)'!I91 -> 34.79225953 | J91: 173.9612976 | K91: C-1
B92: SDH Network | C92: Repex | D92: AP.3.3.10 | E92: ='[1]Proposed NW Projects (Reg Yr)'!E92 -> 46.62162776 | F92: ='[1]Proposed NW Projects (Reg Yr)'!F92 -> 266.8566306 | G92: ='[1]Proposed NW Projects (Reg Yr)'!G92 -> 266.8566306 | H92: ='[1]Proposed NW Projects (Reg Yr)'!H92 -> 46.62162776 | I92: ='[1]Proposed NW Projects (Reg Yr)'!I92 -> 46.62162776 | J92: 673.5781444 | K92: C-1
B93: TNOC Management Systems | C93: Non-network | D93: AP.3.3.08 | E93: ='[1]Proposed NW Projects (Reg Yr)'!E93 -> 308.7699412 | F93: ='[1]Proposed NW Projects (Reg Yr)'!F93 -> 749.8698573 | G93: ='[1]Proposed NW Projects (Reg Yr)'!G93 -> 816.0348447 | H93: ='[1]Proposed NW Projects (Reg Yr)'!H93 -> 374.9349286 | I93: ='[1]Proposed NW Projects (Reg Yr)'!I93 -> 374.9349286 | J93: 2624.5445 | K93: C-1
B94: OT Cyber Security | C94: Non-network | D94: New | E94: ='[1]Proposed NW Projects (Reg Yr)'!E94 -> 529.3198992 | F94: ='[1]Proposed NW Projects (Reg Yr)'!F94 -> 1411.519731 | G94: ='[1]Proposed NW Projects (Reg Yr)'!G94 -> 1455.629723 | H94: ='[1]Proposed NW Projects (Reg Yr)'!H94 -> 661.6498741 | I94: ='[1]Proposed NW Projects (Reg Yr)'!I94 -> 617.5398825 | J94: 4675.65911 | K94: C-1
B95: Other | C95: Repex | E95: ='[1]Proposed NW Projects (Reg Yr)'!E95 -> 352.8799328 | F95: ='[1]Proposed NW Projects (Reg Yr)'!F95 -> 352.8799328 | G95: ='[1]Proposed NW Projects (Reg Yr)'!G95 -> 352.8799328 | H95: ='[1]Proposed NW Projects (Reg Yr)'!H95 -> 352.8799328 | I95: ='[1]Proposed NW Projects (Reg Yr)'!I95 -> 352.8799328 | J95: 1764.399664 | K95: C-1
D96: Non-network | E96: =-(E94+E93+E84) -> -1565.904702 | F96: =-(F94+F93+F84) -> -2293.719563 | G96: =-(G94+G93+G84) -> -2514.269521 | H96: =-(H94+H93+H84) -> -1565.904702 | I96: =-(I94+I93+I84) -> -1411.519731 | J96: -9351.31822 | K96: C-1
B97: Repex / Refurb - Telecom'n (subtotal) | D97: subtotal | E97: =SUM(E83:E96) -> 3902.38625 | F97: 3847.41448 | G97: 3542.982209 | H97: 3527.673614 | I97: 3540.198828 | J97: 18360.65538
B98: Replacement & Refurbishment (Total) | D98: Total | E98: =SUM(E63,E81,E97,) -> 115955.0511 | F98: 118085.1056 | G98: 119683.316 | H98: 115947.0753 | I98: 112021.5839 | J98: 581692.1319
A99: Environment
B100: Environmental Management - Lines (incl oil containment, EMF) | C100: Augex | D100: AP.4.1.03 | E100: ='[1]Proposed NW Projects (Reg Yr)'!E100 -> 175.3148615 | F100: ='[1]Proposed NW Projects (Reg Yr)'!F100 -> 175.3148615 | G100: ='[1]Proposed NW Projects (Reg Yr)'!G100 -> 175.3148615 | H100: ='[1]Proposed NW Projects (Reg Yr)'!H100 -> 175.3148615 | I100: ='[1]Proposed NW Projects (Reg Yr)'!I100 -> 175.3148615 | J100: =SUM(E100:I100) -> 876.5743073 | K100: C-6
B101: Oil Containment - Substation | C101: Augex | D101: AP.4.1.01 | E101: ='[1]Proposed NW Projects (Reg Yr)'!E101 -> 1490.176322 | F101: ='[1]Proposed NW Projects (Reg Yr)'!F101 -> 1490.176322 | G101: ='[1]Proposed NW Projects (Reg Yr)'!G101 -> 1490.176322 | H101: ='[1]Proposed NW Projects (Reg Yr)'!H101 -> 1490.176322 | I101: ='[1]Proposed NW Projects (Reg Yr)'!I101 -> 1490.176322 | J101: =SUM(E101:I101) -> 7450.881612 | K101: C-6
B102: Environmental Management - Subs (eg noise abatement) | C102: Augex | D102: AP.4.1.05 | E102: ='[1]Proposed NW Projects (Reg Yr)'!E102 -> 149.8942065 | F102: ='[1]Proposed NW Projects (Reg Yr)'!F102 -> 149.8942065 | G102: ='[1]Proposed NW Projects (Reg Yr)'!G102 -> 149.8942065 | H102: ='[1]Proposed NW Projects (Reg Yr)'!H102 -> 149.8942065 | I102: ='[1]Proposed NW Projects (Reg Yr)'!I102 -> 149.8942065 | J102: =SUM(E102:I102) -> 749.4710327 | K102: C-6
B104: Environment (Total) | D104: Total | E104: =SUM(E100:E103) -> 1815.38539 | F104: 1815.38539 | G104: 1815.38539 | H104: 1815.38539 | I104: 1815.38539 | J104: 9076.926952
A105: Safety
B106: Elizabeth Transformer Stations | C106: Repex | D106: AP.5.1.02 | E106: ='[1]Proposed NW Projects (Reg Yr)'!E106 -> 432.8085642 | F106: ='[1]Proposed NW Projects (Reg Yr)'!F106 -> 438.2871537 | G106: ='[1]Proposed NW Projects (Reg Yr)'!G106 -> 438.2871537 | H106: ='[1]Proposed NW Projects (Reg Yr)'!H106 -> 438.2871537 | I106: ='[1]Proposed NW Projects (Reg Yr)'!I106 -> 438.2871537 | J106: =SUM(E106:I106) -> 2185.957179 | K106: C-8
B107: Line Clearance Rectification - Distribution | C107: Repex | D107: AP.5.1.06 | E107: ='[1]Proposed NW Projects (Reg Yr)'!E107 -> 2886.334364 | F107: ='[1]Proposed NW Projects (Reg Yr)'!F107 -> 2886.334364 | G107: ='[1]Proposed NW Projects (Reg Yr)'!G107 -> 2886.334364 | H107: ='[1]Proposed NW Projects (Reg Yr)'!H107 -> 2886.334364 | I107: ='[1]Proposed NW Projects (Reg Yr)'!I107 -> 2886.334364 | J107: 14431.67182 | K107: C-8
B108: Substation Asbestos Removal | C108: Repex | E108: ='[1]Proposed NW Projects (Reg Yr)'!E108 -> 144.99873 | F108: ='[1]Proposed NW Projects (Reg Yr)'!F108 -> 214.1178554 | G108: ='[1]Proposed NW Projects (Reg Yr)'!G108 -> 214.1178554 | H108: ='[1]Proposed NW Projects (Reg Yr)'!H108 -> 214.1178554 | I108: ='[1]Proposed NW Projects (Reg Yr)'!I108 -> 214.1178554 | J108: 1001.470152 | K108: C-8
B109: Substation Lighting | C109: Augex | D109: AP.5.1.05 | E109: ='[1]Proposed NW Projects (Reg Yr)'!E109 -> 105.1889169 | F109: ='[1]Proposed NW Projects (Reg Yr)'!F109 -> 105.1889169 | G109: ='[1]Proposed NW Projects (Reg Yr)'!G109 -> 105.1889169 | H109: ='[1]Proposed NW Projects (Reg Yr)'!H109 -> 105.1889169 | I109: ='[1]Proposed NW Projects (Reg Yr)'!I109 -> 105.1889169 | J109: 525.9445844 | K109: C-7
B110: Substation Security & Fencing | C110: Augex | D110: AP.5.1.03 | E110: ='[1]Proposed NW Projects (Reg Yr)'!E110 -> 2103.778338 | F110: ='[1]Proposed NW Projects (Reg Yr)'!F110 -> 2103.778338 | G110: ='[1]Proposed NW Projects (Reg Yr)'!G110 -> 2103.778338 | H110: ='[1]Proposed NW Projects (Reg Yr)'!H110 -> 2103.778338 | I110: ='[1]Proposed NW Projects (Reg Yr)'!I110 -> 2103.778338 | J110: 10518.89169 | K110: C-7
B111: CBD Maintenance Projects (CBD Safety) | C111: Repex | D111: AP.2.1.07 | E111: ='[1]Proposed NW Projects (Reg Yr)'!E111 -> 372.4647691 | F111: ='[1]Proposed NW Projects (Reg Yr)'!F111 -> 372.4647691 | G111: ='[1]Proposed NW Projects (Reg Yr)'!G111 -> 372.4647691 | H111: ='[1]Proposed NW Projects (Reg Yr)'!H111 -> 372.4647691 | I111: ='[1]Proposed NW Projects (Reg Yr)'!I111 -> 372.4647691 | J111: 1862.323846 | K111: C-8
B112: Emergency Switching Communication (Mobile Radio) | C112: Repex | D112: AP.3.3.06 | E112: ='[1]Proposed NW Projects (Reg Yr)'!E112 -> 608.8645417 | F112: ='[1]Proposed NW Projects (Reg Yr)'!F112 -> 608.8645417 | G112: ='[1]Proposed NW Projects (Reg Yr)'!G112 -> 260.9419464 | H112: ='[1]Proposed NW Projects (Reg Yr)'!H112 -> 695.8451905 | I112: ='[1]Proposed NW Projects (Reg Yr)'!I112 -> 626.2606715 | J112: 2800.776892 | K112: C-8
B113: Substation Infrastructure - Earth systems (Earth Grid Upgrades) | C113: Augex | D113: AP.3.2.10 | E113: ='[1]Proposed NW Projects (Reg Yr)'!E113 -> 1078.186398 | F113: ='[1]Proposed NW Projects (Reg Yr)'!F113 -> 1078.186398 | G113: ='[1]Proposed NW Projects (Reg Yr)'!G113 -> 1078.186398 | H113: ='[1]Proposed NW Projects (Reg Yr)'!H113 -> 1078.186398 | I113: ='[1]Proposed NW Projects (Reg Yr)'!I113 -> 1078.186398 | J113: 5390.93199 | K113: C-7
B114: Distribution Earthing | C114: Repex | D114: AP.3.1.18 | E114: ='[1]Proposed NW Projects (Reg Yr)'!E114 -> 79.06488663 | F114: ='[1]Proposed NW Projects (Reg Yr)'!F114 -> 105.4198488 | G114: ='[1]Proposed NW Projects (Reg Yr)'!G114 -> 105.4198488 | H114: ='[1]Proposed NW Projects (Reg Yr)'!H114 -> 105.4198488 | I114: ='[1]Proposed NW Projects (Reg Yr)'!I114 -> 105.4198488 | J114: 500.744282 | K114: C-8
B115: Telco Structures | C115: Repex | D115: AP.3.3.13 | E115: ='[1]Proposed NW Projects (Reg Yr)'!E115 -> 291.1259446 | F115: ='[1]Proposed NW Projects (Reg Yr)'!F115 -> 291.1259446 | G115: ='[1]Proposed NW Projects (Reg Yr)'!G115 -> 291.1259446 | H115: ='[1]Proposed NW Projects (Reg Yr)'!H115 -> 291.1259446 | I115: ='[1]Proposed NW Projects (Reg Yr)'!I115 -> 807.2128463 | J115: 1971.716625 | K115: C-8
B116: Switchgear - Ground Level - Planned | C116: Repex | D116: AP.3.1.03 | E116: ='[1]Proposed NW Projects (Reg Yr)'!E116 -> 3133.823425 | F116: ='[1]Proposed NW Projects (Reg Yr)'!F116 -> 3133.823425 | G116: ='[1]Proposed NW Projects (Reg Yr)'!G116 -> 3133.823425 | H116: ='[1]Proposed NW Projects (Reg Yr)'!H116 -> 3133.823425 | I116: ='[1]Proposed NW Projects (Reg Yr)'!I116 -> 3133.823425 | J116: 15669.11713 | K116: C-8
B117: Instrument Transformers (CTs & VTs) | C117: Repex | D117: AP.3.2.02 | E117: ='[1]Proposed NW Projects (Reg Yr)'!E117 -> 512.3576826 | F117: ='[1]Proposed NW Projects (Reg Yr)'!F117 -> 604.3979849 | G117: ='[1]Proposed NW Projects (Reg Yr)'!G117 -> 568.8967254 | H117: ='[1]Proposed NW Projects (Reg Yr)'!H117 -> 568.8967254 | I117: ='[1]Proposed NW Projects (Reg Yr)'!I117 -> 568.8967254 | J117: 2823.445844 | K117: C-8
B118: Rural Protection | C118: Augex | D118: AP.3.2.14 | E118: ='[1]Proposed NW Projects (Reg Yr)'!E118 -> 942.5423006 | F118: ='[1]Proposed NW Projects (Reg Yr)'!F118 -> 1250.959362 | G118: ='[1]Proposed NW Projects (Reg Yr)'!G118 -> 1250.959362 | H118: ='[1]Proposed NW Projects (Reg Yr)'!H118 -> 1244.342863 | I118: ='[1]Proposed NW Projects (Reg Yr)'!I118 -> 942.5423006 | J118: 5631.346188 | K118: C-7
B119: Network Protection Substation Audits | C119: Augex | D119: Historic | E119: ='[1]Proposed NW Projects (Reg Yr)'!E119 -> 262.9722922 | F119: ='[1]Proposed NW Projects (Reg Yr)'!F119 -> 262.9722922 | G119: ='[1]Proposed NW Projects (Reg Yr)'!G119 -> 262.9722922 | H119: ='[1]Proposed NW Projects (Reg Yr)'!H119 -> 262.9722922 | I119: ='[1]Proposed NW Projects (Reg Yr)'!I119 -> 262.9722922 | J119: 1314.861461 | K119: C-7
B120: CBD 33kV Substation Migration to 11kV | C120: Augex | D120: AP.2.1.07 | E120: ='[1]Proposed NW Projects (Reg Yr)'!E120 -> 1409.866667 | F120: ='[1]Proposed NW Projects (Reg Yr)'!F120 -> 1409.866667 | G120: ='[1]Proposed NW Projects (Reg Yr)'!G120 -> 1409.866667 | H120: ='[1]Proposed NW Projects (Reg Yr)'!H120 -> 1409.866667 | I120: ='[1]Proposed NW Projects (Reg Yr)'!I120 -> 1409.866667 | J120: 7049.333333 | K120: C-7
B121: Planned & Unplanned Disconnector Repl | C121: Repex | D121: AP.3.2.17 | E121: ='[1]Proposed NW Projects (Reg Yr)'!E121 -> 403.2241814 | F121: ='[1]Proposed NW Projects (Reg Yr)'!F121 -> 403.2241814 | G121: ='[1]Proposed NW Projects (Reg Yr)'!G121 -> 391.3904282 | H121: ='[1]Proposed NW Projects (Reg Yr)'!H121 -> 379.5566751 | I121: ='[1]Proposed NW Projects (Reg Yr)'!I121 -> 379.5566751 | J121: 1956.952141 | K121: C-8
B122: Substations rebuilds at BHP Ardrossan, Quorn & Burra substations. Kleins Point & Walkers Flat substation rebuilds + Wilmington (19672) | C122: Repex | D122: AP.3.2.12 | E122: ='[1]Proposed NW Projects (Reg Yr)'!E122 -> 1758.8201 | F122: ='[1]Proposed NW Projects (Reg Yr)'!F122 -> 1758.8201 | G122: ='[1]Proposed NW Projects (Reg Yr)'!G122 -> 1758.8201 | H122: ='[1]Proposed NW Projects (Reg Yr)'!H122 -> 1758.8201 | I122: ='[1]Proposed NW Projects (Reg Yr)'!I122 -> 1758.8201 | J122: 8794.100499 | K122: C-8
B123: CBD Pilot Cable replacement program | E123: ='[1]Proposed NW Projects (Reg Yr)'!E123 -> 524.0601929 | F123: ='[1]Proposed NW Projects (Reg Yr)'!F123 -> 0 | G123: ='[1]Proposed NW Projects (Reg Yr)'!G123 -> 0 | H123: ='[1]Proposed NW Projects (Reg Yr)'!H123 -> 0 | I123: ='[1]Proposed NW Projects (Reg Yr)'!I123 -> 0 | J123: 524.0601929 | K123: C-8
B125: Bushfire
B126: Bushfire Risk Reduction | C126: Augex | D126: B Case | E126: ='[1]Proposed NW Projects (Reg Yr)'!E126 -> 2134.458438 | F126: ='[1]Proposed NW Projects (Reg Yr)'!F126 -> 2101.586902 | G126: ='[1]Proposed NW Projects (Reg Yr)'!G126 -> 2121.309824 | H126: ='[1]Proposed NW Projects (Reg Yr)'!H126 -> 2095.012594 | I126: ='[1]Proposed NW Projects (Reg Yr)'!I126 -> 2081.86398 | J126: =SUM(E126:I126) -> 10534.23174 | K126: C-18
B128: Repex Sub-total | C128: Repex | E128: =SUM(E106:E108,E111:E112,E114:E117,E121:E123) -> 11147.94738 | F128: =SUM(F106:F108,F111:F112,F114:F117,F121:F123) -> 10816.88017 | G128: 10421.62256 | H128: 10844.69205 | I128: 11291.19443 | J128: =SUM(E128:I128) -> 54522.3366 | K128: C-8
B129: Augex Sub-total | C129: Augex | E129: =SUM(E109:E110,E113,E118:E120,) -> 5902.534912 | F129: =SUM(F109:F110,F113,F118:F120,) -> 6210.951973 | G129: =SUM(G109:G110,G113,G118:G120,) -> 6210.951973 | H129: =SUM(H109:H110,H113,H118:H120,) -> 6204.335474 | I129: =SUM(I109:I110,I113,I118:I120,) -> 5902.534912 | J129: =SUM(E129:I129) -> 30431.30924 | K129: C-7
B131: Safety (Total) | D131: Total | E131: =E126+E128+E129+E130 -> 19184.94073 | F131: 19129.41904 | G131: 18753.88436 | H131: 19144.04012 | I131: 19275.59333 | J131: 95487.87758
A132: Network ("Strategic" category)
B133: Substations CM equip | C133: Augex | D133: AMP 3.0.01 | E133: ='[1]Proposed NW Projects (Reg Yr)'!E133 -> 262.9722922 | F133: ='[1]Proposed NW Projects (Reg Yr)'!F133 -> 262.9722922 | G133: ='[1]Proposed NW Projects (Reg Yr)'!G133 -> 262.9722922 | H133: ='[1]Proposed NW Projects (Reg Yr)'!H133 -> 262.9722922 | I133: ='[1]Proposed NW Projects (Reg Yr)'!I133 -> 262.9722922 | J133: =SUM(E133:I133) -> 1314.861461 | K133: C-15
B135: Network - Strategic (Total) | D135: Total | E135: =SUM(E133:E134) -> 262.9722922 | F135: 262.9722922 | G135: 262.9722922 | H135: 262.9722922 | I135: 262.9722922 | J135: 1314.861461
A136: Network Control
B137: SCADA to remaining substations | C137: Augex | D137: AP.2.1.02 | E137: ='[1]Proposed NW Projects (Reg Yr)'!E137 -> 0 | F137: ='[1]Proposed NW Projects (Reg Yr)'!F137 -> 0 | G137: ='[1]Proposed NW Projects (Reg Yr)'!G137 -> 0 | H137: ='[1]Proposed NW Projects (Reg Yr)'!H137 -> 0 | I137: ='[1]Proposed NW Projects (Reg Yr)'!I137 -> 0 | J137: =SUM(E137:I137) -> 0 | K137: C-15
B138: Network Data Capture | C138: Augex | D138: Historic | E138: ='[1]Proposed NW Projects (Reg Yr)'!E138 -> 525.9445844 | F138: ='[1]Proposed NW Projects (Reg Yr)'!F138 -> 525.9445844 | G138: ='[1]Proposed NW Projects (Reg Yr)'!G138 -> 525.9445844 | H138: ='[1]Proposed NW Projects (Reg Yr)'!H138 -> 525.9445844 | I138: ='[1]Proposed NW Projects (Reg Yr)'!I138 -> 525.9445844 | J138: 2629.722922 | K138: C-15
B139: SCADA Improvement Project (inc TDU & RTU) | C139: Augex | D139: AP.2.1.02 | E139: ='[1]Proposed NW Projects (Reg Yr)'!E139 -> 760.8664987 | F139: ='[1]Proposed NW Projects (Reg Yr)'!F139 -> 760.8664987 | G139: ='[1]Proposed NW Projects (Reg Yr)'!G139 -> 760.8664987 | H139: ='[1]Proposed NW Projects (Reg Yr)'!H139 -> 760.8664987 | I139: ='[1]Proposed NW Projects (Reg Yr)'!I139 -> 760.8664987 | J139: 3804.332494 | K139: C-15
B140: SCADA Data Concentrator | C140: Augex | D140: AP.2.1.02 | E140: ='[1]Proposed NW Projects (Reg Yr)'!E140 -> 0 | F140: ='[1]Proposed NW Projects (Reg Yr)'!F140 -> 234.4836272 | G140: ='[1]Proposed NW Projects (Reg Yr)'!G140 -> 234.4836272 | H140: ='[1]Proposed NW Projects (Reg Yr)'!H140 -> 0 | I140: ='[1]Proposed NW Projects (Reg Yr)'!I140 -> 0 | J140: 468.9672544 | K140: C-15
B141: Low Voltage Management | C141: Augex | D141: B Case | E141: ='[1]Proposed NW Projects (Reg Yr)'!E141 -> 5585.207137 | F141: ='[1]Proposed NW Projects (Reg Yr)'!F141 -> 8352.22691 | G141: ='[1]Proposed NW Projects (Reg Yr)'!G141 -> 6159.519228 | H141: ='[1]Proposed NW Projects (Reg Yr)'!H141 -> 5623.58283 | I141: ='[1]Proposed NW Projects (Reg Yr)'!I141 -> 3654.512804 | J141: 29375.04891 | K141: C-15
B142: OMS Replacement Project | C142: Non-network | D142: AP.2.1.02 | E142: ='[1]Proposed NW Projects (Reg Yr)'!E142 -> 0 | F142: ='[1]Proposed NW Projects (Reg Yr)'!F142 -> 0 | G142: ='[1]Proposed NW Projects (Reg Yr)'!G142 -> 0 | H142: ='[1]Proposed NW Projects (Reg Yr)'!H142 -> 0 | I142: ='[1]Proposed NW Projects (Reg Yr)'!I142 -> 0 | J142: 0
B143: ADMS/OMS Hardware Upgrade | C143: Non-network | D143: AP.2.1.02 | E143: ='[1]Proposed NW Projects (Reg Yr)'!E143 -> 1635.598489 | F143: ='[1]Proposed NW Projects (Reg Yr)'!F143 -> 10.58639798 | G143: ='[1]Proposed NW Projects (Reg Yr)'!G143 -> 10.58639798 | H143: ='[1]Proposed NW Projects (Reg Yr)'!H143 -> 1635.598489 | I143: ='[1]Proposed NW Projects (Reg Yr)'!I143 -> 1635.598489 | J143: 4927.968262
B144: ADMS/OMS Software Upgrade | C144: Non-network | D144: AP.2.1.02 | E144: ='[1]Proposed NW Projects (Reg Yr)'!E144 -> 1470.18602 | F144: ='[1]Proposed NW Projects (Reg Yr)'!F144 -> 0 | G144: ='[1]Proposed NW Projects (Reg Yr)'!G144 -> 0 | H144: ='[1]Proposed NW Projects (Reg Yr)'!H144 -> 1630.30529 | I144: ='[1]Proposed NW Projects (Reg Yr)'!I144 -> 3260.610579 | J144: 6361.101889
D145: Non-network | E145: =-(E144+E143+E142) -> -3105.784509 | F145: -10.58639798 | G145: -10.58639798 | H145: -3265.903778 | I145: -4896.209068 | J145: -11289.07015
B147: Network Control (Total) | D147: Total | E147: =SUM(E137:E146) -> 6872.01822 | F147: 9873.52162 | G147: 7680.813938 | H147: 6910.393913 | I147: 4941.323887 | J147: 36278.07158
A148: PLEC
B149: PLEC - Non-Specific (gross) | C149: Augex | E149: ='[1]Proposed NW Projects (Reg Yr)'!E149 -> 10080.60453 | F149: ='[1]Proposed NW Projects (Reg Yr)'!F149 -> 10080.60453 | G149: ='[1]Proposed NW Projects (Reg Yr)'!G149 -> 10080.60453 | H149: ='[1]Proposed NW Projects (Reg Yr)'!H149 -> 10080.60453 | I149: ='[1]Proposed NW Projects (Reg Yr)'!I149 -> 10080.60453 | J149: =SUM(E149:I149) -> 50403.02267 | K149: C-10
B151: PLEC (Total) | D151: Total | E151: =SUM(E149:E150) -> 10080.60453 | F151: 10080.60453 | G151: 10080.60453 | H151: 10080.60453 | I151: 10080.60453 | J151: 50403.02267
A152: Customer Contributions
B153: Customer Connect <$30k | C153: Connections | D153: AP.7.1.01 | E153: ='[1]Proposed NW Projects (Reg Yr)'!E153 -> 5035.744982 | F153: ='[1]Proposed NW Projects (Reg Yr)'!F153 -> 5498.342465 | G153: ='[1]Proposed NW Projects (Reg Yr)'!G153 -> 5628.465753 | H153: ='[1]Proposed NW Projects (Reg Yr)'!H153 -> 5383.424178 | I153: ='[1]Proposed NW Projects (Reg Yr)'!I153 -> 4898.218027 | J153: =SUM(E153:I153) -> 26444.19541 | K153: C-4
B154: Customer Connect >$30k<$100k | C154: Connections | D154: AP.7.1.01 | E154: ='[1]Proposed NW Projects (Reg Yr)'!E154 -> 6984.837227 | F154: ='[1]Proposed NW Projects (Reg Yr)'!F154 -> 7457.966898 | G154: ='[1]Proposed NW Projects (Reg Yr)'!G154 -> 7644.965678 | H154: ='[1]Proposed NW Projects (Reg Yr)'!H154 -> 7494.631412 | I154: ='[1]Proposed NW Projects (Reg Yr)'!I154 -> 7271.867948 | J154: 36854.26916 | K154: C-4
B155: Customer Projects >$100k | C155: Connections | D155: AP.7.1.01 | E155: ='[1]Proposed NW Projects (Reg Yr)'!E155 -> 21501.06484 | F155: ='[1]Proposed NW Projects (Reg Yr)'!F155 -> 20269.41598 | G155: ='[1]Proposed NW Projects (Reg Yr)'!G155 -> 23931.49997 | H155: ='[1]Proposed NW Projects (Reg Yr)'!H155 -> 21201.74203 | I155: ='[1]Proposed NW Projects (Reg Yr)'!I155 -> 20751.84824 | J155: 107655.5711 | K155: C-4
B156: URDs | C156: Connections | D156: AP.7.1.01 | E156: ='[1]Proposed NW Projects (Reg Yr)'!E156 -> -2571.363707 | F156: ='[1]Proposed NW Projects (Reg Yr)'!F156 -> -1726.820897 | G156: ='[1]Proposed NW Projects (Reg Yr)'!G156 -> -1163.792357 | H156: ='[1]Proposed NW Projects (Reg Yr)'!H156 -> -1726.820897 | I156: ='[1]Proposed NW Projects (Reg Yr)'!I156 -> -2674.881649 | J156: -9863.679505 | K156: C-4
B157: PLEC | C157: Augex | D157: AP.7.1.01 | E157: ='[1]Proposed NW Projects (Reg Yr)'!E157 -> 2347.547559 | F157: ='[1]Proposed NW Projects (Reg Yr)'!F157 -> 2347.547559 | G157: ='[1]Proposed NW Projects (Reg Yr)'!G157 -> 2347.547559 | H157: ='[1]Proposed NW Projects (Reg Yr)'!H157 -> 2347.547559 | I157: ='[1]Proposed NW Projects (Reg Yr)'!I157 -> 2347.547559 | J157: 11737.73779 | K157: C-4
B158: Gifting | C158: Connections | D158: NA | E158: =E22 -> 25993 | F158: =F22 -> 25993 | G158: =G22 -> 25993 | H158: =H22 -> 25993 | I158: =I22 -> 25993 | J158: 129965 | K158: C-4
B159: Recoverable Works Contribution | C159: Repex | D159: NA | E159: ='[1]Proposed NW Projects (Reg Yr)'!E159 -> 3408.923293 | F159: ='[1]Proposed NW Projects (Reg Yr)'!F159 -> 3408.923293 | G159: ='[1]Proposed NW Projects (Reg Yr)'!G159 -> 3408.923293 | H159: ='[1]Proposed NW Projects (Reg Yr)'!H159 -> 3408.923293 | I159: ='[1]Proposed NW Projects (Reg Yr)'!I159 -> 3408.923293 | J159: 17044.61647 | K159: C-4
B160: Embedded Generation Contribution | C160: Connections | D160: NA | E160: ='[1]Proposed NW Projects (Reg Yr)'!E160 -> 3643.485544 | F160: ='[1]Proposed NW Projects (Reg Yr)'!F160 -> 3643.485544 | G160: ='[1]Proposed NW Projects (Reg Yr)'!G160 -> 3643.485544 | H160: ='[1]Proposed NW Projects (Reg Yr)'!H160 -> 3643.485544 | I160: ='[1]Proposed NW Projects (Reg Yr)'!I160 -> 3643.485544 | J160: 18217.42772 | K160: C-4
B161: Customer Contributions (Total) | D161: Total | E161: =SUM(E153:E160) -> 66343.23974 | F161: 66891.86084 | G161: 71434.09544 | H161: 67745.93312 | I161: 65640.00896 | J161: 338055.1381
A162: Network
B163: Total (gross) - incl Gifting | E163: =SUM(E151,E147,E135,E131,E104,E98,E33,E25,E17) -> 302887.3473 | F163: 309783.6209 | G163: 314068.4197 | H163: 304843.865 | I163: 295065.9136 | J163: 1526649.167
B164: Total (net) | E164: =E163-E161 -> 236544.1076 | F164: =F163-F161 -> 242891.7601 | G164: =G163-G161 -> 242634.3243 | H164: =H163-H161 -> 237097.9319 | I164: =I163-I161 -> 229425.9047 | J164: =SUM(E164:I164) -> 1188594.028

Sheet Proposed NW Proj Direct Costs
A1: EXCLUDES OVERHEADS | C1: Direct Costs | D1: $2017-18 ($'000) | L1: Network Business Overheads Rate
C3: AER RIN ref | D3: Doc/Plan ref | E3: 2020/21 | F3: 2021/22 | G3: 2022/23 | H3: 2023/24 | I3: 2024/25 | J3: Total | L3: 0.05072810203
A4: Category / Description | C4: (Repex,Augex etc) | D4: (eg AP) | E4: Jul-Jun | F4: =E4 -> Jul-Jun | G4: Jul-Jun | H4: Jul-Jun | I4: Jul-Jun | K4: SEM Reference | N4: PTRM Asset class | O4: Cost category | P4: Asset Class (Revised Proposal Model)
A5: Capacity Upgrade
B6: Connection Point Capacity (ETC/NER Code) | C6: Augex | D6: AP.1.1.01 | E6: ='Proposed NW Projects (Reg Yr)'!E6/(1+$L$3) -> 4125.386902 | F6: ='Proposed NW Projects (Reg Yr)'!F6/(1+$L$3) -> 5009.696329 | G6: ='Proposed NW Projects (Reg Yr)'!G6/(1+$L$3) -> 1472.458621 | H6: ='Proposed NW Projects (Reg Yr)'!H6/(1+$L$3) -> 0 | I6: ='Proposed NW Projects (Reg Yr)'!I6/(1+$L$3) -> 0 | J6: =SUM(E6:I6) -> 10607.54185 | K6: C-2 | N6: Substations | O6: Capacity Augmentation | P6: Substations - Sub-transmission
B7: LV & Distribution Transformers (QoS BAU) | C7: Augex | D7: AP.1.1.01 | E7: ='Proposed NW Projects (Reg Yr)'!E7/(1+$L$3) -> 7249.843073 | F7: ='Proposed NW Projects (Reg Yr)'!F7/(1+$L$3) -> 7412.760895 | G7: ='Proposed NW Projects (Reg Yr)'!G7/(1+$L$3) -> 7575.678717 | H7: ='Proposed NW Projects (Reg Yr)'!H7/(1+$L$3) -> 7575.678717 | I7: ='Proposed NW Projects (Reg Yr)'!I7/(1+$L$3) -> 7738.596539 | J7: 37552.55794 | K7: C-2 | N7: Distribution Transformers | O7: Capacity Augmentation | P7: Distribution Transformers
B8: Distribution Feeders (11 & 7.6kV) | C8: Augex | D8: AP.1.1.01 | E8: ='Proposed NW Projects (Reg Yr)'!E8/(1+$L$3) -> 2294.198985 | F8: ='Proposed NW Projects (Reg Yr)'!F8/(1+$L$3) -> 275.3038782 | G8: ='Proposed NW Projects (Reg Yr)'!G8/(1+$L$3) -> 70.91160499 | H8: ='Proposed NW Projects (Reg Yr)'!H8/(1+$L$3) -> 521.4088602 | I8: ='Proposed NW Projects (Reg Yr)'!I8/(1+$L$3) -> 755.0000296 | J8: 3916.823358 | K8: C-2 | N8: Distribution Lines | O8: Capacity Augmentation | P8: Distribution Lines
B9: Strategic Network Capacity (Other) | C9: Augex | D9: AP.1.1.01 | E9: ='Proposed NW Projects (Reg Yr)'!E9/(1+$L$3) -> 3420.442123 | F9: ='Proposed NW Projects (Reg Yr)'!F9/(1+$L$3) -> 3420.442123 | G9: ='Proposed NW Projects (Reg Yr)'!G9/(1+$L$3) -> 3420.442123 | H9: ='Proposed NW Projects (Reg Yr)'!H9/(1+$L$3) -> 3420.442123 | I9: ='Proposed NW Projects (Reg Yr)'!I9/(1+$L$3) -> 3420.442123 | J9: 17102.21061 | K9: C-2 | N9: Distribution Lines | O9: Capacity Augmentation | P9: Distribution Lines
B10: Substation Capacity | C10: Augex | D10: AP.1.1.01 | E10: ='Proposed NW Projects (Reg Yr)'!E10/(1+$L$3) -> 2982.45868 | F10: ='Proposed NW Projects (Reg Yr)'!F10/(1+$L$3) -> 2035.58019 | G10: ='Proposed NW Projects (Reg Yr)'!G10/(1+$L$3) -> 2769.723865 | H10: ='Proposed NW Projects (Reg Yr)'!H10/(1+$L$3) -> 2006.381294 | I10: ='Proposed NW Projects (Reg Yr)'!I10/(1+$L$3) -> 667.4033411 | J10: 10461.54737 | K10: C-2 | N10: Substations | O10: Capacity Augmentation | P10: Substations - Distribution
B11: Subtransmission Network | C11: Augex | D11: AP.1.1.01 | E11: ='Proposed NW Projects (Reg Yr)'!E11/(1+$L$3) -> 0 | F11: ='Proposed NW Projects (Reg Yr)'!F11/(1+$L$3) -> 475.5248805 | G11: ='Proposed NW Projects (Reg Yr)'!G11/(1+$L$3) -> 951.049761 | H11: ='Proposed NW Projects (Reg Yr)'!H11/(1+$L$3) -> 3833.957306 | I11: ='Proposed NW Projects (Reg Yr)'!I11/(1+$L$3) -> 5490.175592 | J11: 10750.70754 | K11: C-2 | N11: Sub-transmission lines | O11: Capacity Augmentation | P11: Sub-transmission lines
B12: Distribution Line - SWER Replacements | C12: Augex | D12: AP.1.1.01 | E12: ='Proposed NW Projects (Reg Yr)'!E12/(1+$L$3) -> 583.9779234 | F12: ='Proposed NW Projects (Reg Yr)'!F12/(1+$L$3) -> 583.9779234 | G12: ='Proposed NW Projects (Reg Yr)'!G12/(1+$L$3) -> 583.9779234 | H12: ='Proposed NW Projects (Reg Yr)'!H12/(1+$L$3) -> 583.9779234 | I12: ='Proposed NW Projects (Reg Yr)'!I12/(1+$L$3) -> 583.9779234 | J12: 2919.889617 | K12: C-2 | N12: Distribution Lines | O12: Capacity Augmentation | P12: Distribution Lines
B13: Voltage Regulation | C13: Augex | D13: AP.1.1.01 | E13: ='Proposed NW Projects (Reg Yr)'!E13/(1+$L$3) -> 1318.44242 | F13: ='Proposed NW Projects (Reg Yr)'!F13/(1+$L$3) -> 1318.44242 | G13: ='Proposed NW Projects (Reg Yr)'!G13/(1+$L$3) -> 1318.44242 | H13: ='Proposed NW Projects (Reg Yr)'!H13/(1+$L$3) -> 1318.44242 | I13: ='Proposed NW Projects (Reg Yr)'!I13/(1+$L$3) -> 1318.44242 | J13: 6592.212102 | K13: C-2 | N13: Substations | O13: Capacity Augmentation | P13: Substations - Distribution
B14: Land | C14: Augex | D14: AP.1.1.01 | E14: ='Proposed NW Projects (Reg Yr)'!E14/(1+$L$3) -> 0 | F14: ='Proposed NW Projects (Reg Yr)'!F14/(1+$L$3) -> 0 | G14: ='Proposed NW Projects (Reg Yr)'!G14/(1+$L$3) -> 0 | H14: ='Proposed NW Projects (Reg Yr)'!H14/(1+$L$3) -> 1293.093973 | I14: ='Proposed NW Projects (Reg Yr)'!I14/(1+$L$3) -> 1293.093973 | J14: =SUM(E14:I14) -> 2586.187947 | K14: C-2 | N14: Substation Land | O14: Capacity Augmentation | P14: Substation Land
B15: LV Two Way Network (QoS) | C15: Augex | D15: AP.1.1.01 | E15: ='Proposed NW Projects (Reg Yr)'!E15/(1+$L$3) -> 578.3582676 | F15: ='Proposed NW Projects (Reg Yr)'!F15/(1+$L$3) -> 1572.156981 | G15: ='Proposed NW Projects (Reg Yr)'!G15/(1+$L$3) -> 1865.40906 | H15: ='Proposed NW Projects (Reg Yr)'!H15/(1+$L$3) -> 586.5041587 | I15: ='Proposed NW Projects (Reg Yr)'!I15/(1+$L$3) -> 0 | J15: 4602.428468 | K15: C-2 | N15: Electronic network assets | O15: Capacity Augmentation | P15: Electronic network assets
B17: Capacity Augmentation (Total) | D17: Total | E17: =SUM(E6:E16) -> 22553.10837 | F17: =SUM(F6:F16) -> 22103.88562 | G17: =SUM(G6:G16) -> 20028.0941 | H17: =SUM(H6:H16) -> 21139.88678 | I17: =SUM(I6:I16) -> 21267.13194 | J17: =SUM(E17:I17) -> 107092.1068 | K17: =K15 -> C-2
A18: Customer Connect (gross)
B19: Customer Connect < $30k | C19: Connections | D19: AP.7.1.01 | E19: ='Proposed NW Projects (Reg Yr)'!E19/(1+$L$3) -> 19439.50698 | F19: ='Proposed NW Projects (Reg Yr)'!F19/(1+$L$3) -> 21225.27394 | G19: ='Proposed NW Projects (Reg Yr)'!G19/(1+$L$3) -> 21727.5894 | H19: ='Proposed NW Projects (Reg Yr)'!H19/(1+$L$3) -> 20781.6544 | I19: ='Proposed NW Projects (Reg Yr)'!I19/(1+$L$3) -> 18908.61111 | J19: =E19+F19+G19+H19+I19 -> 102082.6358 | K19: C-3 | N19: LVS | O19: Connections | P19: LVS
B20: Customer Connect > $30k<$100k | C20: Connections | D20: AP.7.1.01 | E20: ='Proposed NW Projects (Reg Yr)'!E20/(1+$L$3) -> 25894.101 | F20: ='Proposed NW Projects (Reg Yr)'!F20/(1+$L$3) -> 27648.08138 | G20: ='Proposed NW Projects (Reg Yr)'!G20/(1+$L$3) -> 28341.32091 | H20: ='Proposed NW Projects (Reg Yr)'!H20/(1+$L$3) -> 27784.00361 | I20: ='Proposed NW Projects (Reg Yr)'!I20/(1+$L$3) -> 26958.17769 | J20: =E20+F20+G20+H20+I20 -> 136625.6846 | K20: C-3 | N20: Distribution Lines | O20: Connections | P20: Distribution Lines
B21: Customer Connect > $100k | C21: Connections | D21: AP.7.1.01 | E21: ='Proposed NW Projects (Reg Yr)'!E21/(1+$L$3) -> 32549.13171 | F21: ='Proposed NW Projects (Reg Yr)'!F21/(1+$L$3) -> 30684.61471 | G21: ='Proposed NW Projects (Reg Yr)'!G21/(1+$L$3) -> 36228.41708 | H21: ='Proposed NW Projects (Reg Yr)'!H21/(1+$L$3) -> 32096.00544 | I21: ='Proposed NW Projects (Reg Yr)'!I21/(1+$L$3) -> 31414.93906 | J21: =E21+F21+G21+H21+I21 -> 162973.108 | K21: C-3 | N21: Distribution Lines | O21: Connections | P21: Distribution Lines
B22: Gifting | C22: Connections | D22: NA | E22: ='Proposed NW Projects (Reg Yr)'!E22/(1+$L$3) -> 24738.08395 | F22: ='Proposed NW Projects (Reg Yr)'!F22/(1+$L$3) -> 24738.08395 | G22: ='Proposed NW Projects (Reg Yr)'!G22/(1+$L$3) -> 24738.08395 | H22: ='Proposed NW Projects (Reg Yr)'!H22/(1+$L$3) -> 24738.08395 | I22: ='Proposed NW Projects (Reg Yr)'!I22/(1+$L$3) -> 24738.08395 | J22: =E22+F22+G22+H22+I22 -> 123690.4198 | K22: C-3 | N22: Distribution Lines | O22: Connections | P22: Distribution Lines
B23: URDs | C23: Connections | D23: AP.7.1.01 | E23: ='Proposed NW Projects (Reg Yr)'!E23/(1+$L$3) -> 5316.680315 | F23: ='Proposed NW Projects (Reg Yr)'!F23/(1+$L$3) -> 5823.030821 | G23: ='Proposed NW Projects (Reg Yr)'!G23/(1+$L$3) -> 6160.597825 | H23: ='Proposed NW Projects (Reg Yr)'!H23/(1+$L$3) -> 5823.030821 | I23: ='Proposed NW Projects (Reg Yr)'!I23/(1+$L$3) -> 5254.615536 | J23: =E23+F23+G23+H23+I23 -> 28377.95532 | K23: C-3 | N23: Distribution Lines | O23: Connections | P23: Distribution Lines - Underground
B25: Gross Customer Connect (total, incl gifting) | D25: Total | E25: =SUM(E19:E24) -> 107937.504 | F25: 110119.0848 | G25: 117196.0092 | H25: 111222.7782 | I25: 107274.4273 | J25: =SUM(J19:J24) -> 553749.8035 | K25: =K23 -> C-3
A26: Reliability & Resilience
B27: Existing Network Protection Mgt - Planned | C27: Augex | D27: Historical | E27: ='Proposed NW Projects (Reg Yr)'!E27/(1+$L$3) -> 1279.189737 | F27: ='Proposed NW Projects (Reg Yr)'!F27/(1+$L$3) -> 1279.189737 | G27: ='Proposed NW Projects (Reg Yr)'!G27/(1+$L$3) -> 1279.189737 | H27: ='Proposed NW Projects (Reg Yr)'!H27/(1+$L$3) -> 1279.189737 | I27: ='Proposed NW Projects (Reg Yr)'!I27/(1+$L$3) -> 1279.189737 | J27: =SUM(E27:I27) -> 6395.948685 | K27: C-5 | N27: Distribution Lines-Refurbish and Shorter Life | O27: Reliability | P27: Distribution Lines-Refurbish and Shorter Life
B28: Maintain Underlying Reliability Performance | C28: Augex | D28: AP.2.1.01 | E28: ='Proposed NW Projects (Reg Yr)'!E28/(1+$L$3) -> 4317.265363 | F28: ='Proposed NW Projects (Reg Yr)'!F28/(1+$L$3) -> 4317.265363 | G28: ='Proposed NW Projects (Reg Yr)'!G28/(1+$L$3) -> 4317.265363 | H28: ='Proposed NW Projects (Reg Yr)'!H28/(1+$L$3) -> 4317.265363 | I28: ='Proposed NW Projects (Reg Yr)'!I28/(1+$L$3) -> 4317.265363 | J28: =SUM(E28:I28) -> 21586.32681 | K28: C-5 | N28: Sub-transmission lines | O28: Reliability | P28: Sub-transmission lines
B29: Air Conditioning Relay Rooms | C29: Augex | D29: AP.3.2.14 | E29: ='Proposed NW Projects (Reg Yr)'!E29/(1+$L$3) -> 159.8987171 | F29: ='Proposed NW Projects (Reg Yr)'!F29/(1+$L$3) -> 159.8987171 | G29: ='Proposed NW Projects (Reg Yr)'!G29/(1+$L$3) -> 159.8987171 | H29: ='Proposed NW Projects (Reg Yr)'!H29/(1+$L$3) -> 159.8987171 | I29: ='Proposed NW Projects (Reg Yr)'!I29/(1+$L$3) -> 159.8987171 | J29: =SUM(E29:I29) -> 799.4935857 | K29: C-5 | N29: Electronic network assets | O29: Reliability | P29: Electronic network assets
B30: Network Hardening | C30: Augex | D30: AP.2.1.05 | E30: ='Proposed NW Projects (Reg Yr)'!E30/(1+$L$3) -> 2686.74594 | F30: ='Proposed NW Projects (Reg Yr)'!F30/(1+$L$3) -> 2686.74594 | G30: ='Proposed NW Projects (Reg Yr)'!G30/(1+$L$3) -> 2686.74594 | H30: ='Proposed NW Projects (Reg Yr)'!H30/(1+$L$3) -> 2686.74594 | I30: ='Proposed NW Projects (Reg Yr)'!I30/(1+$L$3) -> 2686.74594 | J30: =SUM(E30:I30) -> 13433.7297 | K30: C-5 | N30: Sub-transmission lines | O30: Reliability | P30: Sub-transmission lines
B31: Low Reliability Feeders | C31: Augex | D31: AP.2.1.06 | E31: ='Proposed NW Projects (Reg Yr)'!E31/(1+$L$3) -> 2602.78513 | F31: ='Proposed NW Projects (Reg Yr)'!F31/(1+$L$3) -> 2602.78513 | G31: ='Proposed NW Projects (Reg Yr)'!G31/(1+$L$3) -> 2602.78513 | H31: ='Proposed NW Projects (Reg Yr)'!H31/(1+$L$3) -> 2602.78513 | I31: ='Proposed NW Projects (Reg Yr)'!I31/(1+$L$3) -> 2602.78513 | J31: =SUM(E31:I31) -> 13013.92565 | K31: C-5 | N31: Distribution Lines | O31: Reliability | P31: Distribution Lines
B33: Reliability (total) | D33: total | E33: =SUM(E27:E32) -> 11045.88489 | F33: 11045.88489 | G33: 11045.88489 | H33: 11045.88489 | I33: 11045.88489 | J33: 55229.42443 | K33: =K31 -> C-5
A34: Asset Replace/Refurbish
B35: Line Repex/Refurb - Planned
B36: Cable replacement planned | C36: Repex | D36: AP.3.1.09 | E36: ='Proposed NW Projects (Reg Yr)'!E36/(1+$L$3) -> 915.1934626 | F36: ='Proposed NW Projects (Reg Yr)'!F36/(1+$L$3) -> 915.1934626 | G36: ='Proposed NW Projects (Reg Yr)'!G36/(1+$L$3) -> 915.1934626 | H36: ='Proposed NW Projects (Reg Yr)'!H36/(1+$L$3) -> 915.1934626 | I36: ='Proposed NW Projects (Reg Yr)'!I36/(1+$L$3) -> 915.1934626 | J36: =SUM(E36:I36) -> 4575.967313 | K36: C-1 | N36: Distribution Lines | O36: Asset Replacement and Refurbishment | P36: Distribution Lines - Underground
B37: Conductor Replacement - Planned | C37: Repex | D37: AP.3.1.10 | E37: ='Proposed NW Projects (Reg Yr)'!E37/(1+$L$3) -> 2128.683204 | F37: ='Proposed NW Projects (Reg Yr)'!F37/(1+$L$3) -> 2128.683204 | G37: ='Proposed NW Projects (Reg Yr)'!G37/(1+$L$3) -> 2128.683204 | H37: ='Proposed NW Projects (Reg Yr)'!H37/(1+$L$3) -> 2128.683204 | I37: ='Proposed NW Projects (Reg Yr)'!I37/(1+$L$3) -> 2128.683204 | J37: 10643.41602 | K37: C-1 | N37: Distribution Lines | O37: Asset Replacement and Refurbishment | P37: Distribution Lines
B38: Line Ancillary Equipment - Planned (incl LFIs, fences, gates, signs etc) | C38: Repex | D38: AP.3.1.20 | E38: ='Proposed NW Projects (Reg Yr)'!E38/(1+$L$3) -> 357.286893 | F38: ='Proposed NW Projects (Reg Yr)'!F38/(1+$L$3) -> 476.382524 | G38: ='Proposed NW Projects (Reg Yr)'!G38/(1+$L$3) -> 476.382524 | H38: ='Proposed NW Projects (Reg Yr)'!H38/(1+$L$3) -> 476.382524 | I38: ='Proposed NW Projects (Reg Yr)'!I38/(1+$L$3) -> 476.382524 | J38: 2262.816989 | K38: C-1 | N38: Distribution Lines | O38: Asset Replacement and Refurbishment | P38: Distribution Lines
B39: Line Regulation - Planned (incl regulators, capacitors) | C39: Repex | D39: AP.3.1.19 | E39: ='Proposed NW Projects (Reg Yr)'!E39/(1+$L$3) -> 723.5486471 | F39: ='Proposed NW Projects (Reg Yr)'!F39/(1+$L$3) -> 964.7315295 | G39: ='Proposed NW Projects (Reg Yr)'!G39/(1+$L$3) -> 964.7315295 | H39: ='Proposed NW Projects (Reg Yr)'!H39/(1+$L$3) -> 973.0740713 | I39: ='Proposed NW Projects (Reg Yr)'!I39/(1+$L$3) -> 981.416613 | J39: 4607.50239 | K39: C-1 | N39: Distribution Lines | O39: Asset Replacement and Refurbishment | P39: Distribution Lines
B40: Overhead Line Components - Planned (incl insulators, crossarms, taps, pole earths) | C40: Repex | D40: AP.3.1.06 | E40: ='Proposed NW Projects (Reg Yr)'!E40/(1+$L$3) -> 12977.8473 | F40: ='Proposed NW Projects (Reg Yr)'!F40/(1+$L$3) -> 12977.8473 | G40: ='Proposed NW Projects (Reg Yr)'!G40/(1+$L$3) -> 12977.8473 | H40: ='Proposed NW Projects (Reg Yr)'!H40/(1+$L$3) -> 12977.8473 | I40: ='Proposed NW Projects (Reg Yr)'!I40/(1+$L$3) -> 12977.8473 | J40: 64889.23652 | K40: C-1 | N40: Distribution Lines | O40: Asset Replacement and Refurbishment | P40: Distribution Lines
B41: Pole Replacement Maint. Tasks - Planned | C41: Repex | D41: AP.3.1.05 | E41: ='Proposed NW Projects (Reg Yr)'!E41/(1+$L$3) -> 20632.82022 | F41: ='Proposed NW Projects (Reg Yr)'!F41/(1+$L$3) -> 20739.55957 | G41: ='Proposed NW Projects (Reg Yr)'!G41/(1+$L$3) -> 20739.55957 | H41: ='Proposed NW Projects (Reg Yr)'!H41/(1+$L$3) -> 20739.55957 | I41: ='Proposed NW Projects (Reg Yr)'!I41/(1+$L$3) -> 20739.55957 | J41: 103591.0585 | K41: C-1 | N41: Distribution Lines | O41: Asset Replacement and Refurbishment | P41: Distribution Lines
B42: Recloser Refurbishment - Planned | C42: Repex | D42: AP.3.1.13 | E42: ='Proposed NW Projects (Reg Yr)'!E42/(1+$L$3) -> 451.0774683 | F42: ='Proposed NW Projects (Reg Yr)'!F42/(1+$L$3) -> 451.0774683 | G42: ='Proposed NW Projects (Reg Yr)'!G42/(1+$L$3) -> 451.0774683 | H42: ='Proposed NW Projects (Reg Yr)'!H42/(1+$L$3) -> 451.0774683 | I42: ='Proposed NW Projects (Reg Yr)'!I42/(1+$L$3) -> 451.0774683 | J42: 2255.387342 | K42: C-1 | N42: Distribution Lines-Refurbish and Shorter Life | O42: Asset Replacement and Refurbishment | P42: Distribution Lines-Refurbish and Shorter Life
B43: Recloser Replacement - Planned | C43: Repex | D43: AP.3.1.13 | E43: ='Proposed NW Projects (Reg Yr)'!E43/(1+$L$3) -> 1285.018124 | F43: ='Proposed NW Projects (Reg Yr)'!F43/(1+$L$3) -> 1285.018124 | G43: ='Proposed NW Projects (Reg Yr)'!G43/(1+$L$3) -> 1285.018124 | H43: ='Proposed NW Projects (Reg Yr)'!H43/(1+$L$3) -> 1285.018124 | I43: ='Proposed NW Projects (Reg Yr)'!I43/(1+$L$3) -> 1285.018124 | J43: 6425.09062 | K43: C-1 | N43: Distribution Lines | O43: Asset Replacement and Refurbishment | P43: Distribution Lines
B44: Services Maintenance Tasks - Planned | C44: Repex | D44: AP.3.1.08 | E44: ='Proposed NW Projects (Reg Yr)'!E44/(1+$L$3) -> 3540.262828 | F44: ='Proposed NW Projects (Reg Yr)'!F44/(1+$L$3) -> 3540.262828 | G44: ='Proposed NW Projects (Reg Yr)'!G44/(1+$L$3) -> 3540.262828 | H44: ='Proposed NW Projects (Reg Yr)'!H44/(1+$L$3) -> 3540.262828 | I44: ='Proposed NW Projects (Reg Yr)'!I44/(1+$L$3) -> 3540.262828 | J44: 17701.31414 | K44: C-1 | N44: Distribution Lines | O44: Asset Replacement and Refurbishment | P44: Distribution Lines
B45: Switchgear - Overhead - Planned | C45: Repex | D45: AP.3.1.07 | E45: ='Proposed NW Projects (Reg Yr)'!E45/(1+$L$3) -> 2907.647581 | F45: ='Proposed NW Projects (Reg Yr)'!F45/(1+$L$3) -> 2907.647581 | G45: ='Proposed NW Projects (Reg Yr)'!G45/(1+$L$3) -> 2907.647581 | H45: ='Proposed NW Projects (Reg Yr)'!H45/(1+$L$3) -> 2907.647581 | I45: ='Proposed NW Projects (Reg Yr)'!I45/(1+$L$3) -> 2907.647581 | J45: 14538.23791 | K45: C-1 | N45: Distribution Lines | O45: Asset Replacement and Refurbishment | P45: Distribution Lines
B46: Transformers - Planned | C46: Repex | D46: AP.3.1.01 | E46: ='Proposed NW Projects (Reg Yr)'!E46/(1+$L$3) -> 2668.939647 | F46: ='Proposed NW Projects (Reg Yr)'!F46/(1+$L$3) -> 2668.939647 | G46: ='Proposed NW Projects (Reg Yr)'!G46/(1+$L$3) -> 2668.939647 | H46: ='Proposed NW Projects (Reg Yr)'!H46/(1+$L$3) -> 2668.939647 | I46: ='Proposed NW Projects (Reg Yr)'!I46/(1+$L$3) -> 2668.939647 | J46: 13344.69823 | K46: C-1 | N46: Distribution Lines | O46: Asset Replacement and Refurbishment | P46: Distribution Lines
B47: Poles - Planned plating | C47: Repex | D47: AP.3.1.05 | E47: ='Proposed NW Projects (Reg Yr)'!E47/(1+$L$3) -> 6631.518766 | F47: ='Proposed NW Projects (Reg Yr)'!F47/(1+$L$3) -> 6626.635467 | G47: ='Proposed NW Projects (Reg Yr)'!G47/(1+$L$3) -> 6626.635467 | H47: ='Proposed NW Projects (Reg Yr)'!H47/(1+$L$3) -> 6626.635467 | I47: ='Proposed NW Projects (Reg Yr)'!I47/(1+$L$3) -> 6626.635467 | J47: 33138.06063 | K47: C-1 | N47: Distribution Lines-Refurbish and Shorter Life | O47: Asset Replacement and Refurbishment | P47: Distribution Lines-Refurbish and Shorter Life
B48: CBD ducts & manholes | C48: Repex | D48: AP.2.1.07 | E48: ='Proposed NW Projects (Reg Yr)'!E48/(1+$L$3) -> 2411.819495 | F48: ='Proposed NW Projects (Reg Yr)'!F48/(1+$L$3) -> 2411.819495 | G48: ='Proposed NW Projects (Reg Yr)'!G48/(1+$L$3) -> 2411.819495 | H48: ='Proposed NW Projects (Reg Yr)'!H48/(1+$L$3) -> 2411.819495 | I48: ='Proposed NW Projects (Reg Yr)'!I48/(1+$L$3) -> 2411.819495 | J48: 12059.09748 | K48: C-1 | N48: Distribution Lines | O48: Asset Replacement and Refurbishment | P48: Distribution Lines - Underground
B49: Cables - CBD 11kV PILC cable replacements | C49: Repex | D49: AP.2.1.07 | E49: ='Proposed NW Projects (Reg Yr)'!E49/(1+$L$3) -> 1265.004865 | F49: ='Proposed NW Projects (Reg Yr)'!F49/(1+$L$3) -> 1265.004865 | G49: ='Proposed NW Projects (Reg Yr)'!G49/(1+$L$3) -> 1265.004865 | H49: ='Proposed NW Projects (Reg Yr)'!H49/(1+$L$3) -> 1265.004865 | I49: ='Proposed NW Projects (Reg Yr)'!I49/(1+$L$3) -> 1265.004865 | J49: 6325.024327 | K49: C-1 | N49: Distribution Lines | O49: Asset Replacement and Refurbishment | P49: Distribution Lines - Underground
B50: Services - Aluminium neutral screen service line replacements | C50: Repex | D50: AP.3.1.08 | E50: ='Proposed NW Projects (Reg Yr)'!E50/(1+$L$3) -> 526.5431287 | F50: ='Proposed NW Projects (Reg Yr)'!F50/(1+$L$3) -> 702.057505 | G50: ='Proposed NW Projects (Reg Yr)'!G50/(1+$L$3) -> 702.057505 | H50: ='Proposed NW Projects (Reg Yr)'!H50/(1+$L$3) -> 702.057505 | I50: ='Proposed NW Projects (Reg Yr)'!I50/(1+$L$3) -> 702.057505 | J50: 3334.773149 | K50: C-1 | N50: Distribution Lines | O50: Asset Replacement and Refurbishment | P50: Distribution Lines
B52: Line Repex/Refurb - Unplanned
B53: (Distribution) Cable Replacement - Unplanned | C53: Repex | D53: AP.3.1.09 | E53: ='Proposed NW Projects (Reg Yr)'!E53/(1+$L$3) -> 430.6792765 | F53: ='Proposed NW Projects (Reg Yr)'!F53/(1+$L$3) -> 430.6792765 | G53: ='Proposed NW Projects (Reg Yr)'!G53/(1+$L$3) -> 430.6792765 | H53: ='Proposed NW Projects (Reg Yr)'!H53/(1+$L$3) -> 430.6792765 | I53: ='Proposed NW Projects (Reg Yr)'!I53/(1+$L$3) -> 430.6792765 | J53: =SUM(E53:I53) -> 2153.396383 | K53: C-1 | N53: Distribution Lines | O53: Asset Replacement and Refurbishment | P53: Distribution Lines - Underground
B54: Line Regulation - Unplanned (incl regulators, capacitors) | C54: Repex | D54: AP.3.1.19 | E54: ='Proposed NW Projects (Reg Yr)'!E54/(1+$L$3) -> 112.6243138 | F54: ='Proposed NW Projects (Reg Yr)'!F54/(1+$L$3) -> 112.6243138 | G54: ='Proposed NW Projects (Reg Yr)'!G54/(1+$L$3) -> 131.3950328 | H54: ='Proposed NW Projects (Reg Yr)'!H54/(1+$L$3) -> 150.1657517 | I54: ='Proposed NW Projects (Reg Yr)'!I54/(1+$L$3) -> 150.1657517 | J54: 656.9751639 | K54: C-1 | N54: Distribution Lines | O54: Asset Replacement and Refurbishment | P54: Distribution Lines
B55: Overhead Line Components - Unplanned (incl insulators, X-arms, pole earths) | C55: Repex | D55: AP.3.1.06 | E55: ='Proposed NW Projects (Reg Yr)'!E55/(1+$L$3) -> 6392.074045 | F55: ='Proposed NW Projects (Reg Yr)'!F55/(1+$L$3) -> 6392.074045 | G55: ='Proposed NW Projects (Reg Yr)'!G55/(1+$L$3) -> 6392.074045 | H55: ='Proposed NW Projects (Reg Yr)'!H55/(1+$L$3) -> 6392.074045 | I55: ='Proposed NW Projects (Reg Yr)'!I55/(1+$L$3) -> 6392.074045 | J55: 31960.37022 | K55: C-1 | N55: Distribution Lines | O55: Asset Replacement and Refurbishment | P55: Distribution Lines
B56: Poles - Unplanned | C56: Repex | D56: AP.3.1.05 | E56: ='Proposed NW Projects (Reg Yr)'!E56/(1+$L$3) -> 1968.030673 | F56: ='Proposed NW Projects (Reg Yr)'!F56/(1+$L$3) -> 1968.030673 | G56: ='Proposed NW Projects (Reg Yr)'!G56/(1+$L$3) -> 1968.030673 | H56: ='Proposed NW Projects (Reg Yr)'!H56/(1+$L$3) -> 1968.030673 | I56: ='Proposed NW Projects (Reg Yr)'!I56/(1+$L$3) -> 1968.030673 | J56: 9840.153365 | K56: C-1 | N56: Distribution Lines | O56: Asset Replacement and Refurbishment | P56: Distribution Lines
B57: Recloser Replacement - Unplanned | C57: Repex | D57: AP.3.1.13 | E57: ='Proposed NW Projects (Reg Yr)'!E57/(1+$L$3) -> 680.0654742 | F57: ='Proposed NW Projects (Reg Yr)'!F57/(1+$L$3) -> 680.0654742 | G57: ='Proposed NW Projects (Reg Yr)'!G57/(1+$L$3) -> 680.0654742 | H57: ='Proposed NW Projects (Reg Yr)'!H57/(1+$L$3) -> 680.0654742 | I57: ='Proposed NW Projects (Reg Yr)'!I57/(1+$L$3) -> 680.0654742 | J57: 3400.327371 | K57: C-1 | N57: Distribution Lines | O57: Asset Replacement and Refurbishment | P57: Distribution Lines
B58: Services Replacement - Unplanned | C58: Repex | D58: AP.3.1.08 | E58: ='Proposed NW Projects (Reg Yr)'!E58/(1+$L$3) -> 4505.789054 | F58: ='Proposed NW Projects (Reg Yr)'!F58/(1+$L$3) -> 4505.789054 | G58: ='Proposed NW Projects (Reg Yr)'!G58/(1+$L$3) -> 4505.789054 | H58: ='Proposed NW Projects (Reg Yr)'!H58/(1+$L$3) -> 4505.789054 | I58: ='Proposed NW Projects (Reg Yr)'!I58/(1+$L$3) -> 4505.789054 | J58: 22528.94527 | K58: C-1 | N58: Distribution Lines | O58: Asset Replacement and Refurbishment | P58: Distribution Lines
B59: Switchgear - Ground Level - Unplanned | C59: Repex | D59: AP.3.1.03 | E59: ='Proposed NW Projects (Reg Yr)'!E59/(1+$L$3) -> 406.7080315 | F59: ='Proposed NW Projects (Reg Yr)'!F59/(1+$L$3) -> 406.7080315 | G59: ='Proposed NW Projects (Reg Yr)'!G59/(1+$L$3) -> 406.7080315 | H59: ='Proposed NW Projects (Reg Yr)'!H59/(1+$L$3) -> 406.7080315 | I59: ='Proposed NW Projects (Reg Yr)'!I59/(1+$L$3) -> 406.7080315 | J59: 2033.540157 | K59: C-1 | N59: Distribution Lines | O59: Asset Replacement and Refurbishment | P59: Distribution Lines
B60: Switchgear - Overhead - Unplanned | C60: Repex | D60: AP.3.1.07 | E60: ='Proposed NW Projects (Reg Yr)'!E60/(1+$L$3) -> 3323.025807 | F60: ='Proposed NW Projects (Reg Yr)'!F60/(1+$L$3) -> 3323.025807 | G60: ='Proposed NW Projects (Reg Yr)'!G60/(1+$L$3) -> 3323.025807 | H60: ='Proposed NW Projects (Reg Yr)'!H60/(1+$L$3) -> 3323.025807 | I60: ='Proposed NW Projects (Reg Yr)'!I60/(1+$L$3) -> 3323.025807 | J60: 16615.12904 | K60: C-1 | N60: Distribution Lines | O60: Asset Replacement and Refurbishment | P60: Distribution Lines
B61: Transformers - Unplanned | C61: Repex | D61: AP.3.1.01 | E61: ='Proposed NW Projects (Reg Yr)'!E61/(1+$L$3) -> 4354.585739 | F61: ='Proposed NW Projects (Reg Yr)'!F61/(1+$L$3) -> 4354.585739 | G61: ='Proposed NW Projects (Reg Yr)'!G61/(1+$L$3) -> 4354.585739 | H61: ='Proposed NW Projects (Reg Yr)'!H61/(1+$L$3) -> 4354.585739 | I61: ='Proposed NW Projects (Reg Yr)'!I61/(1+$L$3) -> 4354.585739 | J61: 21772.9287 | K61: C-1 | N61: Distribution Lines | O61: Asset Replacement and Refurbishment | P61: Distribution Lines
B63: Repex/Refurb - Lines (subtotal) | D63: subtotal | E63: =SUM(E36:E62) -> 81596.79404 | F63: 82234.44299 | G63: 82253.21371 | H63: 82280.32697 | I63: 82288.66951 | J63: 410653.4472 | K63: =K61 -> C-1
B64: Substations Repex/Refurb
B65: Auxillary DC Supplies excl AC - Battery Banks & Chargers | C65: Repex | D65: AP.3.2.08 | E65: ='Proposed NW Projects (Reg Yr)'!E65/(1+$L$3) -> 542.4707975 | F65: ='Proposed NW Projects (Reg Yr)'!F65/(1+$L$3) -> 542.4707975 | G65: ='Proposed NW Projects (Reg Yr)'!G65/(1+$L$3) -> 542.4707975 | H65: ='Proposed NW Projects (Reg Yr)'!H65/(1+$L$3) -> 542.4707975 | I65: ='Proposed NW Projects (Reg Yr)'!I65/(1+$L$3) -> 305.6593311 | J65: =SUM(E65:I65) -> 2475.542521 | K65: C-1 | N65: Electronic network assets | O65: Asset Replacement and Refurbishment | P65: Electronic network assets
B66: Circuit Breakers Planned Replacement | C66: Repex | D66: AP.3.2.05 | E66: ='Proposed NW Projects (Reg Yr)'!E66/(1+$L$3) -> 9289.220548 | F66: ='Proposed NW Projects (Reg Yr)'!F66/(1+$L$3) -> 9289.220548 | G66: ='Proposed NW Projects (Reg Yr)'!G66/(1+$L$3) -> 10180.88436 | H66: ='Proposed NW Projects (Reg Yr)'!H66/(1+$L$3) -> 10113.71571 | I66: ='Proposed NW Projects (Reg Yr)'!I66/(1+$L$3) -> 9222.051899 | J66: 48095.09306 | K66: C-1 | N66: Substations | O66: Asset Replacement and Refurbishment | P66: Substations - Distribution
B67: Circuit Breakers Planned Refurb | C67: Repex | D67: AP.3.2.02 | E67: ='Proposed NW Projects (Reg Yr)'!E67/(1+$L$3) -> 623.218199 | F67: ='Proposed NW Projects (Reg Yr)'!F67/(1+$L$3) -> 232.8004295 | G67: ='Proposed NW Projects (Reg Yr)'!G67/(1+$L$3) -> 232.8004295 | H67: ='Proposed NW Projects (Reg Yr)'!H67/(1+$L$3) -> 232.8004295 | I67: ='Proposed NW Projects (Reg Yr)'!I67/(1+$L$3) -> 232.8004295 | J67: 1554.419917 | K67: C-1 | N67: Substations-Refurbish and Shorter Life | O67: Asset Replacement and Refurbishment | P67: Substations-Refurbish and Shorter Life
B68: Mobile Substations | C68: Repex | D68: AP.3.2.13 | E68: ='Proposed NW Projects (Reg Yr)'!E68/(1+$L$3) -> 250.2762529 | F68: ='Proposed NW Projects (Reg Yr)'!F68/(1+$L$3) -> 250.2762529 | G68: ='Proposed NW Projects (Reg Yr)'!G68/(1+$L$3) -> 250.2762529 | H68: ='Proposed NW Projects (Reg Yr)'!H68/(1+$L$3) -> 250.2762529 | I68: ='Proposed NW Projects (Reg Yr)'!I68/(1+$L$3) -> 250.2762529 | J68: 1251.381264 | K68: C-1 | N68: Substations | O68: Asset Replacement and Refurbishment | P68: Substations - Distribution
B69: Substation Insurance Spares & Asset Mgt | C69: Repex | D69: Historical | E69: ='Proposed NW Projects (Reg Yr)'!E69/(1+$L$3) -> 1334.806682 | F69: ='Proposed NW Projects (Reg Yr)'!F69/(1+$L$3) -> 1334.806682 | G69: ='Proposed NW Projects (Reg Yr)'!G69/(1+$L$3) -> 1334.806682 | H69: ='Proposed NW Projects (Reg Yr)'!H69/(1+$L$3) -> 1334.806682 | I69: ='Proposed NW Projects (Reg Yr)'!I69/(1+$L$3) -> 1334.806682 | J69: 6674.033411 | K69: C-1 | N69: Substations | O69: Asset Replacement and Refurbishment | P69: Substations - Distribution
B70: Substation Infrastructure - Civil (incl buildings, structures) | C70: Repex | D70: AP3.2.16 | E70: ='Proposed NW Projects (Reg Yr)'!E70/(1+$L$3) -> 1251.381264 | F70: ='Proposed NW Projects (Reg Yr)'!F70/(1+$L$3) -> 1251.381264 | G70: ='Proposed NW Projects (Reg Yr)'!G70/(1+$L$3) -> 1251.381264 | H70: ='Proposed NW Projects (Reg Yr)'!H70/(1+$L$3) -> 1251.381264 | I70: ='Proposed NW Projects (Reg Yr)'!I70/(1+$L$3) -> 1251.381264 | J70: 6256.906322 | K70: C-1 | N70: Substations | O70: Asset Replacement and Refurbishment | P70: Substations - Distribution
B71: Substation Transformer Repl. | C71: Repex | D71: AP.3.2.01 | E71: ='Proposed NW Projects (Reg Yr)'!E71/(1+$L$3) -> 4518.958837 | F71: ='Proposed NW Projects (Reg Yr)'!F71/(1+$L$3) -> 4462.285289 | G71: ='Proposed NW Projects (Reg Yr)'!G71/(1+$L$3) -> 5100.38745 | H71: ='Proposed NW Projects (Reg Yr)'!H71/(1+$L$3) -> 4292.264648 | I71: ='Proposed NW Projects (Reg Yr)'!I71/(1+$L$3) -> 3540.815393 | J71: 21914.71162 | K71: C-1 | N71: Substations | O71: Asset Replacement and Refurbishment | P71: Substations - Distribution
B72: TF Refurb (18665 & 18977) | C72: Repex | D72: AP.3.2.01 | E72: ='Proposed NW Projects (Reg Yr)'!E72/(1+$L$3) -> 1313.950328 | F72: ='Proposed NW Projects (Reg Yr)'!F72/(1+$L$3) -> 1042.81772 | G72: ='Proposed NW Projects (Reg Yr)'!G72/(1+$L$3) -> 792.5414675 | H72: ='Proposed NW Projects (Reg Yr)'!H72/(1+$L$3) -> 792.5414675 | I72: ='Proposed NW Projects (Reg Yr)'!I72/(1+$L$3) -> 792.5414675 | J72: 4734.392451 | K72: C-1 | N72: Substations-Refurbish and Shorter Life | O72: Asset Replacement and Refurbishment | P72: Substations-Refurbish and Shorter Life
B73: Surge Arrester | C73: Repex | D73: AP.3.2.03 | E73: ='Proposed NW Projects (Reg Yr)'!E73/(1+$L$3) -> 260.966321 | F73: ='Proposed NW Projects (Reg Yr)'!F73/(1+$L$3) -> 286.4264499 | G73: ='Proposed NW Projects (Reg Yr)'!G73/(1+$L$3) -> 286.4264499 | H73: ='Proposed NW Projects (Reg Yr)'!H73/(1+$L$3) -> 280.0614177 | I73: ='Proposed NW Projects (Reg Yr)'!I73/(1+$L$3) -> 178.2209022 | J73: 1292.101541 | K73: C-1 | N73: Substations | O73: Asset Replacement and Refurbishment | P73: Substations - Distribution
B74: AC Panels + auxilary supply | C74: Repex | D74: AP 3.2.22 | E74: ='Proposed NW Projects (Reg Yr)'!E74/(1+$L$3) -> 600.663007 | F74: ='Proposed NW Projects (Reg Yr)'!F74/(1+$L$3) -> 600.663007 | G74: ='Proposed NW Projects (Reg Yr)'!G74/(1+$L$3) -> 600.663007 | H74: ='Proposed NW Projects (Reg Yr)'!H74/(1+$L$3) -> 600.663007 | I74: ='Proposed NW Projects (Reg Yr)'!I74/(1+$L$3) -> 498.4668704 | J74: 2901.118898 | K74: C-1 | N74: Substations-Refurbish and Shorter Life | O74: Asset Replacement and Refurbishment | P74: Substations-Refurbish and Shorter Life
B75: Protection Asset Replacement | C75: Repex | D75: AP.3.2.14 | E75: ='Proposed NW Projects (Reg Yr)'!E75/(1+$L$3) -> 2350.902698 | F75: ='Proposed NW Projects (Reg Yr)'!F75/(1+$L$3) -> 2392.883103 | G75: ='Proposed NW Projects (Reg Yr)'!G75/(1+$L$3) -> 2224.961482 | H75: ='Proposed NW Projects (Reg Yr)'!H75/(1+$L$3) -> 2057.039861 | I75: ='Proposed NW Projects (Reg Yr)'!I75/(1+$L$3) -> 2099.020266 | J75: 11124.80741 | K75: C-1 | N75: Electronic network assets | O75: Asset Replacement and Refurbishment | P75: Electronic network assets
B76: Unplanned CB Replacement | C76: Repex | D76: Historical | E76: ='Proposed NW Projects (Reg Yr)'!E76/(1+$L$3) -> 392.0969857 | F76: ='Proposed NW Projects (Reg Yr)'!F76/(1+$L$3) -> 392.0969857 | G76: ='Proposed NW Projects (Reg Yr)'!G76/(1+$L$3) -> 392.0969857 | H76: ='Proposed NW Projects (Reg Yr)'!H76/(1+$L$3) -> 392.0969857 | I76: ='Proposed NW Projects (Reg Yr)'!I76/(1+$L$3) -> 392.0969857 | J76: 1960.484928 | K76: C-1 | N76: Substations | O76: Asset Replacement and Refurbishment | P76: Substations - Distribution
B77: Unplanned Substation Asset Repl - PROTECTION | C77: Repex | D77: Historical | E77: ='Proposed NW Projects (Reg Yr)'!E77/(1+$L$3) -> 671.6864851 | F77: ='Proposed NW Projects (Reg Yr)'!F77/(1+$L$3) -> 671.6864851 | G77: ='Proposed NW Projects (Reg Yr)'!G77/(1+$L$3) -> 671.6864851 | H77: ='Proposed NW Projects (Reg Yr)'!H77/(1+$L$3) -> 671.6864851 | I77: ='Proposed NW Projects (Reg Yr)'!I77/(1+$L$3) -> 671.6864851 | J77: 3358.432426 | K77: C-1 | N77: Substations-Refurbish and Shorter Life | O77: Asset Replacement and Refurbishment | P77: Substations-Refurbish and Shorter Life
B78: Other (sub cables) | C78: Repex | D78: AP 3.02.09 | E78: ='Proposed NW Projects (Reg Yr)'!E78/(1+$L$3) -> 595.9716204 | F78: ='Proposed NW Projects (Reg Yr)'!F78/(1+$L$3) -> 211.7975722 | G78: ='Proposed NW Projects (Reg Yr)'!G78/(1+$L$3) -> 220.5572411 | H78: ='Proposed NW Projects (Reg Yr)'!H78/(1+$L$3) -> 220.5572411 | I78: ='Proposed NW Projects (Reg Yr)'!I78/(1+$L$3) -> 185.5185657 | J78: 1434.402241 | K78: C-1 | N78: Substations | O78: Asset Replacement and Refurbishment | P78: Substations - Distribution
B79: Northfield 66kV GIS Switchboard replacement (1/3rd) | C79: Repex | D79: AP 3.02.06 | E79: ='Proposed NW Projects (Reg Yr)'!E79/(1+$L$3) -> 1049.510133 | F79: ='Proposed NW Projects (Reg Yr)'!F79/(1+$L$3) -> 3526.354047 | G79: ='Proposed NW Projects (Reg Yr)'!G79/(1+$L$3) -> 4198.040532 | H79: ='Proposed NW Projects (Reg Yr)'!H79/(1+$L$3) -> 1679.216213 | I79: ='Proposed NW Projects (Reg Yr)'!I79/(1+$L$3) -> 0 | J79: 10453.12092 | K79: C-1 | N79: Substations | O79: Asset Replacement and Refurbishment | P79: Substations - Sub-Transmission
B81: Repex/Refurb - Substations (subtotal) | D81: subtotal | E81: =SUM(E65:E80) -> 25046.08016 | F81: 26487.96663 | G81: 28279.98088 | H81: 24711.57846 | I81: 20955.34279 | J81: 125480.9489 | K81: =K79 -> C-1
B82: Telecom'n Repex/Refurb
B83: 48V DC Systems | C83: Repex | D83: AP.3.3.02 | E83: ='Proposed NW Projects (Reg Yr)'!E83/(1+$L$3) -> 222.1850362 | F83: ='Proposed NW Projects (Reg Yr)'!F83/(1+$L$3) -> 206.6221499 | G83: ='Proposed NW Projects (Reg Yr)'!G83/(1+$L$3) -> 206.6221499 | H83: ='Proposed NW Projects (Reg Yr)'!H83/(1+$L$3) -> 206.6221499 | I83: ='Proposed NW Projects (Reg Yr)'!I83/(1+$L$3) -> 218.5426586 | J83: =SUM(E83:I83) -> 1060.594145 | K83: C-1 | N83: Communications | O83: Asset Replacement and Refurbishment | P83: Communications
B84: UPAX/Business Telephone Network | C84: Non-network | D84: AP.3.3.07 | E84: ='Proposed NW Projects (Reg Yr)'!E84/(1+$L$3) -> 692.6766878 | F84: ='Proposed NW Projects (Reg Yr)'!F84/(1+$L$3) -> 125.941216 | G84: ='Proposed NW Projects (Reg Yr)'!G84/(1+$L$3) -> 230.8922293 | H84: ='Proposed NW Projects (Reg Yr)'!H84/(1+$L$3) -> 503.7648638 | I84: ='Proposed NW Projects (Reg Yr)'!I84/(1+$L$3) -> 398.8138505 | J84: 1952.088847 | K84: C-1
B85: Data Network | C85: Repex | D85: AP.3.3.12 | E85: ='Proposed NW Projects (Reg Yr)'!E85/(1+$L$3) -> 1110.262931 | F85: ='Proposed NW Projects (Reg Yr)'!F85/(1+$L$3) -> 1110.262931 | G85: ='Proposed NW Projects (Reg Yr)'!G85/(1+$L$3) -> 777.4820642 | H85: ='Proposed NW Projects (Reg Yr)'!H85/(1+$L$3) -> 939.4023067 | I85: ='Proposed NW Projects (Reg Yr)'!I85/(1+$L$3) -> 939.4023067 | J85: 4876.812539 | K85: C-1 | N85: Communications | O85: Asset Replacement and Refurbishment | P85: Communications
B86: Microwave Radio | C86: Repex | D86: AP.3.3.01 | E86: ='Proposed NW Projects (Reg Yr)'!E86/(1+$L$3) -> 96.02631968 | F86: ='Proposed NW Projects (Reg Yr)'!F86/(1+$L$3) -> 201.9863966 | G86: ='Proposed NW Projects (Reg Yr)'!G86/(1+$L$3) -> 211.9201538 | H86: ='Proposed NW Projects (Reg Yr)'!H86/(1+$L$3) -> 211.9201538 | I86: ='Proposed NW Projects (Reg Yr)'!I86/(1+$L$3) -> 211.9201538 | J86: 933.7731776 | K86: C-1 | N86: Communications | O86: Asset Replacement and Refurbishment | P86: Communications
B87: Minor Works - Unplanned | C87: Repex | D87: Historic | E87: ='Proposed NW Projects (Reg Yr)'!E87/(1+$L$3) -> 596.0254325 | F87: ='Proposed NW Projects (Reg Yr)'!F87/(1+$L$3) -> 596.0254325 | G87: ='Proposed NW Projects (Reg Yr)'!G87/(1+$L$3) -> 629.1379565 | H87: ='Proposed NW Projects (Reg Yr)'!H87/(1+$L$3) -> 662.2504806 | I87: ='Proposed NW Projects (Reg Yr)'!I87/(1+$L$3) -> 662.2504806 | J87: 3145.689783 | K87: C-1 | N87: Communications | O87: Asset Replacement and Refurbishment | P87: Communications
B88: Misc Radio Systems | C88: Repex | D88: AP.3.3.05 | E88: ='Proposed NW Projects (Reg Yr)'!E88/(1+$L$3) -> 481.4560994 | F88: ='Proposed NW Projects (Reg Yr)'!F88/(1+$L$3) -> 129.1388437 | G88: ='Proposed NW Projects (Reg Yr)'!G88/(1+$L$3) -> 129.1388437 | H88: ='Proposed NW Projects (Reg Yr)'!H88/(1+$L$3) -> 129.1388437 | I88: ='Proposed NW Projects (Reg Yr)'!I88/(1+$L$3) -> 129.1388437 | J88: 998.0114742 | K88: C-1 | N88: Communications | O88: Asset Replacement and Refurbishment | P88: Communications
B89: Network Tel Planning Labour Capitalisation | C89: Repex | D89: Historic | E89: ='Proposed NW Projects (Reg Yr)'!E89/(1+$L$3) -> 463.5753364 | F89: ='Proposed NW Projects (Reg Yr)'!F89/(1+$L$3) -> 463.5753364 | G89: ='Proposed NW Projects (Reg Yr)'!G89/(1+$L$3) -> 463.5753364 | H89: ='Proposed NW Projects (Reg Yr)'!H89/(1+$L$3) -> 463.5753364 | I89: ='Proposed NW Projects (Reg Yr)'!I89/(1+$L$3) -> 463.5753364 | J89: 2317.876682 | K89: C-1 | N89: Communications | O89: Asset Replacement and Refurbishment | P89: Communications
B90: Optical Fibre Network | C90: Repex | D90: AP.3.3.04 | E90: ='Proposed NW Projects (Reg Yr)'!E90/(1+$L$3) -> 331.1252403 | F90: ='Proposed NW Projects (Reg Yr)'!F90/(1+$L$3) -> 331.1252403 | G90: ='Proposed NW Projects (Reg Yr)'!G90/(1+$L$3) -> 331.1252403 | H90: ='Proposed NW Projects (Reg Yr)'!H90/(1+$L$3) -> 331.1252403 | I90: ='Proposed NW Projects (Reg Yr)'!I90/(1+$L$3) -> 331.1252403 | J90: 1655.626201 | K90: C-1 | N90: Communications | O90: Asset Replacement and Refurbishment | P90: Communications
B91: Pilot Cable Network (incl CBD) stage 2 | C91: Repex | D91: AP.3.3.03 | E91: ='Proposed NW Projects (Reg Yr)'!E91/(1+$L$3) -> 33.11252403 | F91: ='Proposed NW Projects (Reg Yr)'!F91/(1+$L$3) -> 33.11252403 | G91: ='Proposed NW Projects (Reg Yr)'!G91/(1+$L$3) -> 33.11252403 | H91: ='Proposed NW Projects (Reg Yr)'!H91/(1+$L$3) -> 33.11252403 | I91: ='Proposed NW Projects (Reg Yr)'!I91/(1+$L$3) -> 33.11252403 | J91: 165.5626201 | K91: C-1 | N91: Communications | O91: Asset Replacement and Refurbishment | P91: Communications
B92: SDH Network | C92: Repex | D92: AP.3.3.10 | E92: ='Proposed NW Projects (Reg Yr)'!E92/(1+$L$3) -> 44.3707822 | F92: ='Proposed NW Projects (Reg Yr)'!F92/(1+$L$3) -> 253.9730593 | G92: ='Proposed NW Projects (Reg Yr)'!G92/(1+$L$3) -> 253.9730593 | H92: ='Proposed NW Projects (Reg Yr)'!H92/(1+$L$3) -> 44.3707822 | I92: ='Proposed NW Projects (Reg Yr)'!I92/(1+$L$3) -> 44.3707822 | J92: 641.0584652 | K92: C-1 | N92: Communications | O92: Asset Replacement and Refurbishment | P92: Communications
B93: TNOC Management Systems | C93: Non-network | D93: AP.3.3.08 | E93: ='Proposed NW Projects (Reg Yr)'!E93/(1+$L$3) -> 293.8628372 | F93: ='Proposed NW Projects (Reg Yr)'!F93/(1+$L$3) -> 713.6668904 | G93: ='Proposed NW Projects (Reg Yr)'!G93/(1+$L$3) -> 776.6374984 | H93: ='Proposed NW Projects (Reg Yr)'!H93/(1+$L$3) -> 356.8334452 | I93: ='Proposed NW Projects (Reg Yr)'!I93/(1+$L$3) -> 356.8334452 | J93: 2497.834117 | K93: C-1
B94: OT Cyber Security | C94: Non-network | D94: New | E94: ='Proposed NW Projects (Reg Yr)'!E94/(1+$L$3) -> 503.7648638 | F94: ='Proposed NW Projects (Reg Yr)'!F94/(1+$L$3) -> 1343.37297 | G94: ='Proposed NW Projects (Reg Yr)'!G94/(1+$L$3) -> 1385.353376 | H94: ='Proposed NW Projects (Reg Yr)'!H94/(1+$L$3) -> 629.7060798 | I94: ='Proposed NW Projects (Reg Yr)'!I94/(1+$L$3) -> 587.7256745 | J94: 4449.922964 | K94: C-1
B95: Other | C95: Repex | E95: ='Proposed NW Projects (Reg Yr)'!E95/(1+$L$3) -> 335.8432426 | F95: ='Proposed NW Projects (Reg Yr)'!F95/(1+$L$3) -> 335.8432426 | G95: ='Proposed NW Projects (Reg Yr)'!G95/(1+$L$3) -> 335.8432426 | H95: ='Proposed NW Projects (Reg Yr)'!H95/(1+$L$3) -> 335.8432426 | I95: ='Proposed NW Projects (Reg Yr)'!I95/(1+$L$3) -> 335.8432426 | J95: 1679.216213 | K95: C-1 | N95: Communications | O95: Asset Replacement and Refurbishment | P95: Communications
D96: Non-network | E96: =-(E94+E93+E84) -> -1490.304389 | F96: =-(F94+F93+F84) -> -2182.981077 | G96: =-(G94+G93+G84) -> -2392.883103 | H96: =-(H94+H93+H84) -> -1490.304389 | I96: =-(I94+I93+I84) -> -1343.37297 | J96: -8899.845928 | K96: C-1 | N96: Communications | O96: Asset Replacement and Refurbishment | P96: Communications
B97: Repex / Refurb - Telecom'n (subtotal) | D97: subtotal | E97: =SUM(E83:E96) -> 3713.982944 | F97: 3661.665156 | G97: 3371.930571 | H97: 3357.36106 | I97: 3369.281569 | J97: 17474.2213
B98: Replacement & Refurbishment (Total) | D98: Total | E98: =SUM(E63,E81,E97,) -> 110356.8571 | F98: 112384.0748 | G98: 113905.1252 | H98: 110349.2665 | I98: 106613.2939 | J98: 553608.6174 | K98: =K96 -> C-1
A99: Environment
B100: Environmental Management - Lines (incl oil containment, EMF) | C100: Augex | D100: AP.4.1.03 | E100: ='Proposed NW Projects (Reg Yr)'!E100/(1+$L$3) -> 166.8508353 | F100: ='Proposed NW Projects (Reg Yr)'!F100/(1+$L$3) -> 166.8508353 | G100: ='Proposed NW Projects (Reg Yr)'!G100/(1+$L$3) -> 166.8508353 | H100: ='Proposed NW Projects (Reg Yr)'!H100/(1+$L$3) -> 166.8508353 | I100: ='Proposed NW Projects (Reg Yr)'!I100/(1+$L$3) -> 166.8508353 | J100: =SUM(E100:I100) -> 834.2541763 | K100: C-6 | N100: Substations | O100: Environmental | P100: Substations - Distribution
B101: Oil Containment - Substation | C101: Augex | D101: AP.4.1.01 | E101: ='Proposed NW Projects (Reg Yr)'!E101/(1+$L$3) -> 1418.2321 | F101: ='Proposed NW Projects (Reg Yr)'!F101/(1+$L$3) -> 1418.2321 | G101: ='Proposed NW Projects (Reg Yr)'!G101/(1+$L$3) -> 1418.2321 | H101: ='Proposed NW Projects (Reg Yr)'!H101/(1+$L$3) -> 1418.2321 | I101: ='Proposed NW Projects (Reg Yr)'!I101/(1+$L$3) -> 1418.2321 | J101: =SUM(E101:I101) -> 7091.160499 | K101: C-6 | N101: Substations | O101: Environmental | P101: Substations - Distribution
B102: Environmental Management - Subs (eg noise abatement) | C102: Augex | D102: AP.4.1.05 | E102: ='Proposed NW Projects (Reg Yr)'!E102/(1+$L$3) -> 142.6574642 | F102: ='Proposed NW Projects (Reg Yr)'!F102/(1+$L$3) -> 142.6574642 | G102: ='Proposed NW Projects (Reg Yr)'!G102/(1+$L$3) -> 142.6574642 | H102: ='Proposed NW Projects (Reg Yr)'!H102/(1+$L$3) -> 142.6574642 | I102: ='Proposed NW Projects (Reg Yr)'!I102/(1+$L$3) -> 142.6574642 | J102: =SUM(E102:I102) -> 713.2873208 | K102: C-6 | N102: Substations | O102: Environmental | P102: Substations - Distribution
B104: Environment (Total) | D104: Total | E104: =SUM(E100:E103) -> 1727.740399 | F104: 1727.740399 | G104: 1727.740399 | H104: 1727.740399 | I104: 1727.740399 | J104: 8638.701996 | K104: =K102 -> C-6
A105: Safety
B106: Elizabeth Transformer Stations | C106: Repex | D106: AP.5.1.02 | E106: ='Proposed NW Projects (Reg Yr)'!E106/(1+$L$3) -> 411.9129996 | F106: ='Proposed NW Projects (Reg Yr)'!F106/(1+$L$3) -> 417.1270882 | G106: ='Proposed NW Projects (Reg Yr)'!G106/(1+$L$3) -> 417.1270882 | H106: ='Proposed NW Projects (Reg Yr)'!H106/(1+$L$3) -> 417.1270882 | I106: ='Proposed NW Projects (Reg Yr)'!I106/(1+$L$3) -> 417.1270882 | J106: =SUM(E106:I106) -> 2080.421352 | K106: C-8 | N106: Distribution Lines | O106: Safety Repex | P106: Distribution Lines
B107: Line Clearance Rectification - Distribution | C107: Repex | D107: AP.5.1.06 | E107: ='Proposed NW Projects (Reg Yr)'!E107/(1+$L$3) -> 2746.985027 | F107: ='Proposed NW Projects (Reg Yr)'!F107/(1+$L$3) -> 2746.985027 | G107: ='Proposed NW Projects (Reg Yr)'!G107/(1+$L$3) -> 2746.985027 | H107: ='Proposed NW Projects (Reg Yr)'!H107/(1+$L$3) -> 2746.985027 | I107: ='Proposed NW Projects (Reg Yr)'!I107/(1+$L$3) -> 2746.985027 | J107: 13734.92514 | K107: C-8 | N107: Distribution Lines | O107: Safety Repex | P107: Distribution Lines
B108: ='Proposed NW Projects (Reg Yr)'!B108 -> Substation Asbestos Removal | C108: ='Proposed NW Projects (Reg Yr)'!C108 -> Repex | E108: ='Proposed NW Projects (Reg Yr)'!E108/(1+$L$3) -> 137.9983363 | F108: ='Proposed NW Projects (Reg Yr)'!F108/(1+$L$3) -> 203.7804595 | G108: ='Proposed NW Projects (Reg Yr)'!G108/(1+$L$3) -> 203.7804595 | H108: ='Proposed NW Projects (Reg Yr)'!H108/(1+$L$3) -> 203.7804595 | I108: ='Proposed NW Projects (Reg Yr)'!I108/(1+$L$3) -> 203.7804595 | J108: =SUM(E108:I108) -> 953.1201742 | K108: ='Proposed NW Projects (Reg Yr)'!K108 -> C-8 | N108: Substations | O108: Safety Repex | P108: Substations - Distribution
B109: Substation Lighting | C109: Augex | D109: AP.5.1.05 | E109: ='Proposed NW Projects (Reg Yr)'!E109/(1+$L$3) -> 100.1105012 | F109: ='Proposed NW Projects (Reg Yr)'!F109/(1+$L$3) -> 100.1105012 | G109: ='Proposed NW Projects (Reg Yr)'!G109/(1+$L$3) -> 100.1105012 | H109: ='Proposed NW Projects (Reg Yr)'!H109/(1+$L$3) -> 100.1105012 | I109: ='Proposed NW Projects (Reg Yr)'!I109/(1+$L$3) -> 100.1105012 | J109: 500.5525058 | K109: C-7 | N109: Substations | O109: Safety Augex | P109: Substations - Distribution
B110: Substation Security & Fencing | C110: Augex | D110: AP.5.1.03 | E110: ='Proposed NW Projects (Reg Yr)'!E110/(1+$L$3) -> 2002.210023 | F110: ='Proposed NW Projects (Reg Yr)'!F110/(1+$L$3) -> 2002.210023 | G110: ='Proposed NW Projects (Reg Yr)'!G110/(1+$L$3) -> 2002.210023 | H110: ='Proposed NW Projects (Reg Yr)'!H110/(1+$L$3) -> 2002.210023 | I110: ='Proposed NW Projects (Reg Yr)'!I110/(1+$L$3) -> 2002.210023 | J110: 10011.05012 | K110: C-7 | N110: Substations | O110: Safety Augex | P110: Substations - Distribution
B111: CBD Maintenance Projects (CBD Safety) | C111: Repex | D111: AP.2.1.07 | E111: ='Proposed NW Projects (Reg Yr)'!E111/(1+$L$3) -> 354.4825425 | F111: ='Proposed NW Projects (Reg Yr)'!F111/(1+$L$3) -> 354.4825425 | G111: ='Proposed NW Projects (Reg Yr)'!G111/(1+$L$3) -> 354.4825425 | H111: ='Proposed NW Projects (Reg Yr)'!H111/(1+$L$3) -> 354.4825425 | I111: ='Proposed NW Projects (Reg Yr)'!I111/(1+$L$3) -> 354.4825425 | J111: 1772.412713 | K111: C-8 | N111: Distribution Lines | O111: Safety Repex | P111: Distribution Lines
B112: Emergency Switching Communication (Mobile Radio) | C112: Repex | D112: AP.3.3.06 | E112: ='Proposed NW Projects (Reg Yr)'!E112/(1+$L$3) -> 579.4691705 | F112: ='Proposed NW Projects (Reg Yr)'!F112/(1+$L$3) -> 579.4691705 | G112: ='Proposed NW Projects (Reg Yr)'!G112/(1+$L$3) -> 248.3439302 | H112: ='Proposed NW Projects (Reg Yr)'!H112/(1+$L$3) -> 662.2504806 | I112: ='Proposed NW Projects (Reg Yr)'!I112/(1+$L$3) -> 596.0254325 | J112: 2665.558184 | K112: C-8 | N112: Communications | O112: Safety Repex | P112: Communications
B113: Substation Infrastructure - Earth systems (Earth Grid Upgrades) | C113: Augex | D113: AP.3.2.10 | E113: ='Proposed NW Projects (Reg Yr)'!E113/(1+$L$3) -> 1026.132637 | F113: ='Proposed NW Projects (Reg Yr)'!F113/(1+$L$3) -> 1026.132637 | G113: ='Proposed NW Projects (Reg Yr)'!G113/(1+$L$3) -> 1026.132637 | H113: ='Proposed NW Projects (Reg Yr)'!H113/(1+$L$3) -> 1026.132637 | I113: ='Proposed NW Projects (Reg Yr)'!I113/(1+$L$3) -> 1026.132637 | J113: 5130.663184 | K113: C-7 | N113: Substations | O113: Safety Augex | P113: Substations - Distribution
B114: Distribution Earthing | C114: Repex | D114: AP.3.1.18 | E114: ='Proposed NW Projects (Reg Yr)'!E114/(1+$L$3) -> 75.24771297 | F114: ='Proposed NW Projects (Reg Yr)'!F114/(1+$L$3) -> 100.330284 | G114: ='Proposed NW Projects (Reg Yr)'!G114/(1+$L$3) -> 100.330284 | H114: ='Proposed NW Projects (Reg Yr)'!H114/(1+$L$3) -> 100.330284 | I114: ='Proposed NW Projects (Reg Yr)'!I114/(1+$L$3) -> 100.330284 | J114: 476.5688488 | K114: C-8 | N114: Distribution Lines-Refurbish and Shorter Life | O114: Safety Repex | P114: Distribution Lines-Refurbish and Shorter Life
B115: Telco Structures | C115: Repex | D115: AP.3.3.13 | E115: ='Proposed NW Projects (Reg Yr)'!E115/(1+$L$3) -> 277.0706751 | F115: ='Proposed NW Projects (Reg Yr)'!F115/(1+$L$3) -> 277.0706751 | G115: ='Proposed NW Projects (Reg Yr)'!G115/(1+$L$3) -> 277.0706751 | H115: ='Proposed NW Projects (Reg Yr)'!H115/(1+$L$3) -> 277.0706751 | I115: ='Proposed NW Projects (Reg Yr)'!I115/(1+$L$3) -> 768.2414173 | J115: 1876.524118 | K115: C-8 | N115: Distribution Lines | O115: Safety Repex | P115: Distribution Lines
B116: Switchgear - Ground Level - Planned | C116: Repex | D116: AP.3.1.03 | E116: ='Proposed NW Projects (Reg Yr)'!E116/(1+$L$3) -> 2982.525564 | F116: ='Proposed NW Projects (Reg Yr)'!F116/(1+$L$3) -> 2982.525564 | G116: ='Proposed NW Projects (Reg Yr)'!G116/(1+$L$3) -> 2982.525564 | H116: ='Proposed NW Projects (Reg Yr)'!H116/(1+$L$3) -> 2982.525564 | I116: ='Proposed NW Projects (Reg Yr)'!I116/(1+$L$3) -> 2982.525564 | J116: 14912.62782 | K116: C-8 | N116: Distribution Lines | O116: Safety Repex | P116: Distribution Lines
B117: Instrument Transformers (CTs & VTs) | C117: Repex | D117: AP.3.2.02 | E117: ='Proposed NW Projects (Reg Yr)'!E117/(1+$L$3) -> 487.6215661 | F117: ='Proposed NW Projects (Reg Yr)'!F117/(1+$L$3) -> 575.2182546 | G117: ='Proposed NW Projects (Reg Yr)'!G117/(1+$L$3) -> 541.4309604 | H117: ='Proposed NW Projects (Reg Yr)'!H117/(1+$L$3) -> 541.4309604 | I117: ='Proposed NW Projects (Reg Yr)'!I117/(1+$L$3) -> 541.4309604 | J117: 2687.132702 | K117: C-8 | N117: Distribution Lines | O117: Safety Repex | P117: Distribution Lines
B118: Rural Protection | C118: Augex | D118: AP.3.2.14 | E118: ='Proposed NW Projects (Reg Yr)'!E118/(1+$L$3) -> 897.0373009 | F118: ='Proposed NW Projects (Reg Yr)'!F118/(1+$L$3) -> 1190.564295 | G118: ='Proposed NW Projects (Reg Yr)'!G118/(1+$L$3) -> 1190.564295 | H118: ='Proposed NW Projects (Reg Yr)'!H118/(1+$L$3) -> 1184.267234 | I118: ='Proposed NW Projects (Reg Yr)'!I118/(1+$L$3) -> 897.0373009 | J118: 5359.470426 | K118: C-7 | N118: Distribution Lines | O118: Safety Augex | P118: Distribution Lines
B119: Network Protection Substation Audits | C119: Augex | D119: Historic | E119: ='Proposed NW Projects (Reg Yr)'!E119/(1+$L$3) -> 250.2762529 | F119: ='Proposed NW Projects (Reg Yr)'!F119/(1+$L$3) -> 250.2762529 | G119: ='Proposed NW Projects (Reg Yr)'!G119/(1+$L$3) -> 250.2762529 | H119: ='Proposed NW Projects (Reg Yr)'!H119/(1+$L$3) -> 250.2762529 | I119: ='Proposed NW Projects (Reg Yr)'!I119/(1+$L$3) -> 250.2762529 | J119: 1251.381264 | K119: C-7 | N119: Substations-Refurbish and Shorter Life | O119: Safety Augex | P119: Substations-Refurbish and Shorter Life
B120: CBD 33kV Substation Migration to 11kV | C120: Augex | D120: AP.2.1.07 | E120: ='Proposed NW Projects (Reg Yr)'!E120/(1+$L$3) -> 1341.799714 | F120: ='Proposed NW Projects (Reg Yr)'!F120/(1+$L$3) -> 1341.799714 | G120: ='Proposed NW Projects (Reg Yr)'!G120/(1+$L$3) -> 1341.799714 | H120: ='Proposed NW Projects (Reg Yr)'!H120/(1+$L$3) -> 1341.799714 | I120: ='Proposed NW Projects (Reg Yr)'!I120/(1+$L$3) -> 1341.799714 | J120: 6708.998569 | K120: C-7 | N120: Substations | O120: Safety Augex | P120: Substations - Distribution
B121: Planned & Unplanned Disconnector Repl | C121: Repex | D121: AP.3.2.17 | E121: ='Proposed NW Projects (Reg Yr)'!E121/(1+$L$3) -> 383.7569211 | F121: ='Proposed NW Projects (Reg Yr)'!F121/(1+$L$3) -> 383.7569211 | G121: ='Proposed NW Projects (Reg Yr)'!G121/(1+$L$3) -> 372.4944897 | H121: ='Proposed NW Projects (Reg Yr)'!H121/(1+$L$3) -> 361.2320584 | I121: ='Proposed NW Projects (Reg Yr)'!I121/(1+$L$3) -> 361.2320584 | J121: 1862.472449 | K121: C-8 | N121: Substations | O121: Safety Repex | P121: Substations - Distribution
B122: Substations rebuilds at BHP Ardrossan, Quorn & Burra substations. Kleins Point & Walkers Flat substation rebuilds + Wilmington (19672) | C122: Repex | D122: AP.3.2.12 | E122: ='Proposed NW Projects (Reg Yr)'!E122/(1+$L$3) -> 1673.906024 | F122: ='Proposed NW Projects (Reg Yr)'!F122/(1+$L$3) -> 1673.906024 | G122: ='Proposed NW Projects (Reg Yr)'!G122/(1+$L$3) -> 1673.906024 | H122: ='Proposed NW Projects (Reg Yr)'!H122/(1+$L$3) -> 1673.906024 | I122: ='Proposed NW Projects (Reg Yr)'!I122/(1+$L$3) -> 1673.906024 | J122: 8369.530121 | K122: C-8 | N122: Substations | O122: Safety Repex | P122: Substations - Distribution
B123: CBD Pilot Cable replacement program | E123: ='Proposed NW Projects (Reg Yr)'!E123/(1+$L$3) -> 498.7590909 | F123: ='Proposed NW Projects (Reg Yr)'!F123/(1+$L$3) -> 0 | G123: ='Proposed NW Projects (Reg Yr)'!G123/(1+$L$3) -> 0 | H123: ='Proposed NW Projects (Reg Yr)'!H123/(1+$L$3) -> 0 | I123: ='Proposed NW Projects (Reg Yr)'!I123/(1+$L$3) -> 0 | J123: 498.7590909 | K123: C-8 | N123: Communications | O123: Safety Repex | P123: Communications
B125: Bushfire
B126: Bushfire Risk Reduction | C126: Augex | D126: B Case | E126: ='Proposed NW Projects (Reg Yr)'!E126/(1+$L$3) -> 2031.408919 | F126: ='Proposed NW Projects (Reg Yr)'!F126/(1+$L$3) -> 2000.124388 | G126: ='Proposed NW Projects (Reg Yr)'!G126/(1+$L$3) -> 2018.895107 | H126: ='Proposed NW Projects (Reg Yr)'!H126/(1+$L$3) -> 1993.867481 | I126: ='Proposed NW Projects (Reg Yr)'!I126/(1+$L$3) -> 1981.353669 | J126: =SUM(E126:I126) -> 10025.64956 | K126: C-18 | N126: Distribution Lines | O126: Safety (Bushfire) | P126: Distribution Lines
B128: Repex Sub-total | C128: Repex | E128: =SUM(E106:E108,E111:E112,E114:E117,E121:E123) -> 10609.73563 | F128: =SUM(F106:F108,F111:F112,F114:F117,F121:F123) -> 10294.65201 | G128: 9918.477045 | H128: 10321.12116 | I128: 10746.06686 | J128: 51890.05271 | K128: =K123 -> C-8
B129: Augex Sub-total | C129: Augex | E129: =SUM(E109:E110,E113,E118:E120,) -> 5617.566429 | F129: =SUM(F109:F110,F113,F118:F120,) -> 5911.093423 | G129: 5911.093423 | H129: 5904.796362 | I129: 5617.566429 | J129: 28962.11607 | K129: =K120 -> C-7
B131: Safety (Total) | D131: Total | E131: =E126+E128+E129+E130 -> 18258.71098 | F131: 18205.86982 | G131: 17848.46557 | H131: 18219.78501 | I131: 18344.98696 | J131: 90877.81834
A132: Network ("Strategic" category)
B133: Substations CM equip | C133: Augex | D133: AMP 3.0.01 | E133: ='Proposed NW Projects (Reg Yr)'!E133/(1+$L$3) -> 250.2762529 | F133: ='Proposed NW Projects (Reg Yr)'!F133/(1+$L$3) -> 250.2762529 | G133: ='Proposed NW Projects (Reg Yr)'!G133/(1+$L$3) -> 250.2762529 | H133: ='Proposed NW Projects (Reg Yr)'!H133/(1+$L$3) -> 250.2762529 | I133: ='Proposed NW Projects (Reg Yr)'!I133/(1+$L$3) -> 250.2762529 | J133: =SUM(E133:I133) -> 1251.381264 | K133: C-15 | N133: Substations | O133: Strategic - Network Security | P133: Substations - Distribution
B135: Network - Strategic (Total) | D135: Total | E135: =SUM(E133:E134) -> 250.2762529 | F135: 250.2762529 | G135: 250.2762529 | H135: 250.2762529 | I135: 250.2762529 | J135: 1251.381264 | K135: =K133 -> C-15
A136: Network Control
B137: SCADA to remaining substations | C137: Augex | D137: AP.2.1.02 | E137: ='Proposed NW Projects (Reg Yr)'!E137/(1+$L$3) -> 0 | F137: ='Proposed NW Projects (Reg Yr)'!F137/(1+$L$3) -> 0 | G137: ='Proposed NW Projects (Reg Yr)'!G137/(1+$L$3) -> 0 | H137: ='Proposed NW Projects (Reg Yr)'!H137/(1+$L$3) -> 0 | I137: ='Proposed NW Projects (Reg Yr)'!I137/(1+$L$3) -> 0 | J137: =SUM(E137:I137) -> 0 | K137: C-15 | N137: Electronic network assets | O137: Strategic - Network Security | P137: Electronic network assets
B138: Network Data Capture | C138: Augex | D138: Historic | E138: ='Proposed NW Projects (Reg Yr)'!E138/(1+$L$3) -> 500.5525058 | F138: ='Proposed NW Projects (Reg Yr)'!F138/(1+$L$3) -> 500.5525058 | G138: ='Proposed NW Projects (Reg Yr)'!G138/(1+$L$3) -> 500.5525058 | H138: ='Proposed NW Projects (Reg Yr)'!H138/(1+$L$3) -> 500.5525058 | I138: ='Proposed NW Projects (Reg Yr)'!I138/(1+$L$3) -> 500.5525058 | J138: 2502.762529 | K138: C-15 | N138: Substations | O138: Strategic - Network Security | P138: Substations - Distribution
B139: SCADA Improvement Project (inc TDU & RTU) | C139: Augex | D139: AP.2.1.02 | E139: ='Proposed NW Projects (Reg Yr)'!E139/(1+$L$3) -> 724.1326251 | F139: ='Proposed NW Projects (Reg Yr)'!F139/(1+$L$3) -> 724.1326251 | G139: ='Proposed NW Projects (Reg Yr)'!G139/(1+$L$3) -> 724.1326251 | H139: ='Proposed NW Projects (Reg Yr)'!H139/(1+$L$3) -> 724.1326251 | I139: ='Proposed NW Projects (Reg Yr)'!I139/(1+$L$3) -> 724.1326251 | J139: 3620.663125 | K139: C-15 | N139: Electronic network assets | O139: Strategic - Network Security | P139: Electronic network assets
B140: SCADA Data Concentrator | C140: Augex | D140: AP.2.1.02 | E140: ='Proposed NW Projects (Reg Yr)'!E140/(1+$L$3) -> 0 | F140: ='Proposed NW Projects (Reg Yr)'!F140/(1+$L$3) -> 223.1629922 | G140: ='Proposed NW Projects (Reg Yr)'!G140/(1+$L$3) -> 223.1629922 | H140: ='Proposed NW Projects (Reg Yr)'!H140/(1+$L$3) -> 0 | I140: ='Proposed NW Projects (Reg Yr)'!I140/(1+$L$3) -> 0 | J140: 446.3259843 | K140: C-15 | N140: Electronic network assets | O140: Strategic - Network Security | P140: Electronic network assets
B141: Low Voltage Management | C141: Augex | D141: B Case | E141: ='Proposed NW Projects (Reg Yr)'!E141/(1+$L$3) -> 5315.558922 | F141: ='Proposed NW Projects (Reg Yr)'!F141/(1+$L$3) -> 7948.989747 | G141: ='Proposed NW Projects (Reg Yr)'!G141/(1+$L$3) -> 5862.143799 | H141: ='Proposed NW Projects (Reg Yr)'!H141/(1+$L$3) -> 5352.081874 | I141: ='Proposed NW Projects (Reg Yr)'!I141/(1+$L$3) -> 3478.076581 | J141: 27956.85092 | K141: C-15 | N141: Electronic network assets | O141: Strategic - Network Security | P141: Electronic network assets
B142: OMS Replacement Project | C142: Non-network | D142: AP.2.1.02 | E142: ='Proposed NW Projects (Reg Yr)'!E142/(1+$L$3) -> 0 | F142: ='Proposed NW Projects (Reg Yr)'!F142/(1+$L$3) -> 0 | G142: ='Proposed NW Projects (Reg Yr)'!G142/(1+$L$3) -> 0 | H142: ='Proposed NW Projects (Reg Yr)'!H142/(1+$L$3) -> 0 | I142: ='Proposed NW Projects (Reg Yr)'!I142/(1+$L$3) -> 0 | J142: 0
B143: ADMS/OMS Hardware Upgrade | C143: Non-network | D143: AP.2.1.02 | E143: ='Proposed NW Projects (Reg Yr)'!E143/(1+$L$3) -> 1556.633429 | F143: ='Proposed NW Projects (Reg Yr)'!F143/(1+$L$3) -> 10.07529728 | G143: ='Proposed NW Projects (Reg Yr)'!G143/(1+$L$3) -> 10.07529728 | H143: ='Proposed NW Projects (Reg Yr)'!H143/(1+$L$3) -> 1556.633429 | I143: ='Proposed NW Projects (Reg Yr)'!I143/(1+$L$3) -> 1556.633429 | J143: 4690.050882
B144: ADMS/OMS Software Upgrade | C144: Non-network | D144: AP.2.1.02 | E144: ='Proposed NW Projects (Reg Yr)'!E144/(1+$L$3) -> 1399.206909 | F144: ='Proposed NW Projects (Reg Yr)'!F144/(1+$L$3) -> 0 | G144: ='Proposed NW Projects (Reg Yr)'!G144/(1+$L$3) -> 0 | H144: ='Proposed NW Projects (Reg Yr)'!H144/(1+$L$3) -> 1551.595781 | I144: ='Proposed NW Projects (Reg Yr)'!I144/(1+$L$3) -> 3103.191561 | J144: 6053.994251
D145: Non-network | E145: =-(E144+E143+E142) -> -2955.840339 | F145: -10.07529728 | G145: -10.07529728 | H145: -3108.22921 | I145: -4659.82499 | J145: -10744.04513 | N145: Communications | O145: Strategic - Network Security | P145: Communications
B147: Network Control (Total) | D147: Total | E147: =SUM(E137:E146) -> 6540.244052 | F147: 9396.83787 | G147: 7309.991922 | H147: 6576.767005 | I147: 4702.761712 | J147: 34526.60256 | K147: =K141 -> C-15
A148: PLEC
B149: PLEC - Non-Specific (gross) | C149: Augex | E149: ='Proposed NW Projects (Reg Yr)'!E149/(1+$L$3) -> 9593.923028 | F149: ='Proposed NW Projects (Reg Yr)'!F149/(1+$L$3) -> 9593.923028 | G149: ='Proposed NW Projects (Reg Yr)'!G149/(1+$L$3) -> 9593.923028 | H149: ='Proposed NW Projects (Reg Yr)'!H149/(1+$L$3) -> 9593.923028 | I149: ='Proposed NW Projects (Reg Yr)'!I149/(1+$L$3) -> 9593.923028 | J149: =SUM(E149:I149) -> 47969.61514 | K149: C-10 | N149: Distribution Lines | O149: PLEC (Undergrounding) | P149: Distribution Lines - Underground
B151: PLEC (Total) | D151: Total | E151: =SUM(E149:E150) -> 9593.923028 | F151: 9593.923028 | G151: 9593.923028 | H151: 9593.923028 | I151: 9593.923028 | J151: =SUM(J149:J150) -> 47969.61514 | K151: =K149 -> C-10
A152: Customer Contributions
B153: Customer Connect <$30k | C153: Connections | D153: AP.7.1.01 | E153: ='Proposed NW Projects (Reg Yr)'!E153/(1+$L$3) -> 4792.62425 | F153: ='Proposed NW Projects (Reg Yr)'!F153/(1+$L$3) -> 5232.88799 | G153: ='Proposed NW Projects (Reg Yr)'!G153/(1+$L$3) -> 5356.729055 | H153: ='Proposed NW Projects (Reg Yr)'!H153/(1+$L$3) -> 5123.517842 | I153: ='Proposed NW Projects (Reg Yr)'!I153/(1+$L$3) -> 4661.736959 | J153: =SUM(E153:I153) -> 25167.4961 | K153: C-4 | N153: LVS | O153: Contributions | P153: LVS
B154: Customer Connect >$30k<$100k | C154: Connections | D154: AP.7.1.01 | E154: ='Proposed NW Projects (Reg Yr)'!E154/(1+$L$3) -> 6647.616271 | F154: ='Proposed NW Projects (Reg Yr)'!F154/(1+$L$3) -> 7097.903715 | G154: ='Proposed NW Projects (Reg Yr)'!G154/(1+$L$3) -> 7275.87438 | H154: ='Proposed NW Projects (Reg Yr)'!H154/(1+$L$3) -> 7132.798102 | I154: ='Proposed NW Projects (Reg Yr)'!I154/(1+$L$3) -> 6920.789436 | J154: 35074.9819 | K154: C-4 | N154: Distribution Lines | O154: Contributions | P154: Distribution Lines
B155: Customer Projects >$100k | C155: Connections | D155: AP.7.1.01 | E155: ='Proposed NW Projects (Reg Yr)'!E155/(1+$L$3) -> 20463.01493 | F155: ='Proposed NW Projects (Reg Yr)'!F155/(1+$L$3) -> 19290.82884 | G155: ='Proposed NW Projects (Reg Yr)'!G155/(1+$L$3) -> 22776.11108 | H155: ='Proposed NW Projects (Reg Yr)'!H155/(1+$L$3) -> 20178.14313 | I155: ='Proposed NW Projects (Reg Yr)'!I155/(1+$L$3) -> 19749.96976 | J155: 102458.0677 | K155: C-4 | N155: Distribution Lines | O155: Contributions | P155: Distribution Lines
B156: URDs | C156: Connections | D156: AP.7.1.01 | E156: ='Proposed NW Projects (Reg Yr)'!E156/(1+$L$3) -> -2447.220838 | F156: ='Proposed NW Projects (Reg Yr)'!F156/(1+$L$3) -> -1643.45171 | G156: ='Proposed NW Projects (Reg Yr)'!G156/(1+$L$3) -> -1107.605625 | H156: ='Proposed NW Projects (Reg Yr)'!H156/(1+$L$3) -> -1643.45171 | I156: ='Proposed NW Projects (Reg Yr)'!I156/(1+$L$3) -> -2545.741038 | J156: -9387.470923 | K156: C-4 | N156: Distribution Lines | O156: Contributions | P156: Distribution Lines - Underground
B157: PLEC | C157: Augex | D157: AP.7.1.01 | E157: ='Proposed NW Projects (Reg Yr)'!E157/(1+$L$3) -> 2234.21031 | F157: ='Proposed NW Projects (Reg Yr)'!F157/(1+$L$3) -> 2234.21031 | G157: ='Proposed NW Projects (Reg Yr)'!G157/(1+$L$3) -> 2234.21031 | H157: ='Proposed NW Projects (Reg Yr)'!H157/(1+$L$3) -> 2234.21031 | I157: ='Proposed NW Projects (Reg Yr)'!I157/(1+$L$3) -> 2234.21031 | J157: 11171.05155 | K157: C-4 | N157: Distribution Lines | O157: Contributions | P157: Distribution Lines - Underground
B158: Gifting | C158: Connections | D158: NA | E158: =E22 -> 24738.08395 | F158: =F22 -> 24738.08395 | G158: =G22 -> 24738.08395 | H158: =H22 -> 24738.08395 | I158: =I22 -> 24738.08395 | J158: 123690.4198 | K158: C-4 | N158: Distribution Lines | O158: Contributions | P158: Distribution Lines
B159: ='Proposed NW Projects (Reg Yr)'!B159 -> Recoverable Works Contribution | C159: Repex | D159: ='Proposed NW Projects (Reg Yr)'!D159 -> NA | E159: ='Proposed NW Projects (Reg Yr)'!E159/(1+$L$3) -> 3244.343886 | F159: ='Proposed NW Projects (Reg Yr)'!F159/(1+$L$3) -> 3244.343886 | G159: ='Proposed NW Projects (Reg Yr)'!G159/(1+$L$3) -> 3244.343886 | H159: ='Proposed NW Projects (Reg Yr)'!H159/(1+$L$3) -> 3244.343886 | I159: ='Proposed NW Projects (Reg Yr)'!I159/(1+$L$3) -> 3244.343886 | J159: =SUM(E159:I159) -> 16221.71943 | K159: ='Proposed NW Projects (Reg Yr)'!K159 -> C-4 | N159: Distribution Lines | O159: Contributions | P159: Distribution Lines
B160: ='Proposed NW Projects (Reg Yr)'!B160 -> Embedded Generation Contribution | C160: Connections | D160: ='Proposed NW Projects (Reg Yr)'!D160 -> NA | E160: ='Proposed NW Projects (Reg Yr)'!E160/(1+$L$3) -> 3467.581705 | F160: ='Proposed NW Projects (Reg Yr)'!F160/(1+$L$3) -> 3467.581705 | G160: ='Proposed NW Projects (Reg Yr)'!G160/(1+$L$3) -> 3467.581705 | H160: ='Proposed NW Projects (Reg Yr)'!H160/(1+$L$3) -> 3467.581705 | I160: ='Proposed NW Projects (Reg Yr)'!I160/(1+$L$3) -> 3467.581705 | J160: 17337.90853 | K160: ='Proposed NW Projects (Reg Yr)'!K160 -> C-4 | N160: Distribution Lines | O160: Contributions | P160: Distribution Lines
B161: Customer Contributions (Total) | D161: Total | E161: =SUM(E153:E160) -> 63140.25447 | F161: 63662.38869 | G161: 67985.32875 | H161: 64475.22722 | I161: 62470.97497 | J161: 321734.1741 | K161: =K158 -> C-4
A162: Network
B163: Total (gross) - incl Gifting | E163: =SUM(E151,E147,E135,E131,E104,E98,E33,E25,E17) -> 288264.2491 | F163: 294827.5775 | G163: 298905.5105 | H163: 290126.3081 | I163: 280820.4264 | J163: 1452944.071
B164: Total (net) | E164: =E163-E161 -> 225123.9946 | F164: 231165.1888 | G164: =G163-G161 -> 230920.1817 | H164: 225651.0808 | I164: =I163-I161 -> 218349.4514 | J164: =SUM(E164:I164) -> 1131209.897
H167: =B163 -> Total (gross) - incl Gifting | I167: Check | J167: =L$3-('Proposed NW Projects (Reg Yr)'!J163/J163-1) -> -2.220446049e-16
H168: =B164 -> Total (net) | I168: Check | J168: =L$3-('Proposed NW Projects (Reg Yr)'!J164/J164-1) -> -2.220446049e-16

Sheet Misc Data
AF1: =AH2 -> RAB Capex Category Proportions
K2: RAB Capex Category Proportions | AH2: =$K$2 -> RAB Capex Category Proportions | BE2: =$K$2 -> RAB Capex Category Proportions | CB2: =$K$2 -> RAB Capex Category Proportions | CY2: =$K$2 -> RAB Capex Category Proportions
D3: Direct Base Costs Split | K3: 2020/21 | L3: =K3 -> 2020/21 | M3: =L3 -> 2020/21 | N3: 2020/21 | O3: 2020/21 | P3: 2020/21 | Q3: 2020/21 | R3: 2020/21 | S3: 2020/21 | T3: 2020/21 | U3: 2020/21 | V3: 2020/21 | W3: 2020/21 | X3: 2020/21 | Y3: 2020/21 | Z3: 2020/21 | AA3: 2020/21 | AB3: 2020/21 | AC3: 2020/21 | AD3: =AE3 -> 2020/21 | AE3: =AC3 -> 2020/21 | AF3: =AD3 -> 2020/21 | AH3: 2021/22 | AI3: =AH3 -> 2021/22 | AJ3: =AI3 -> 2021/22 | AK3: 2021/22 | AL3: 2021/22 | AM3: 2021/22 | AN3: 2021/22 | AO3: 2021/22 | AP3: 2021/22 | AQ3: 2021/22 | AR3: 2021/22 | AS3: 2021/22 | AT3: 2021/22 | AU3: 2021/22 | AV3: 2021/22 | AW3: 2021/22 | AX3: 2021/22 | AY3: 2021/22 | AZ3: 2021/22 | BA3: =BB3 -> 2021/22 | BB3: =AZ3 -> 2021/22 | BC3: =BA3 -> 2021/22 | BE3: 2022/23 | BF3: =BE3 -> 2022/23 | BG3: =BF3 -> 2022/23 | BH3: 2022/23 | BI3: 2022/23 | BJ3: 2022/23 | BK3: 2022/23 | BL3: 2022/23 | BM3: 2022/23 | BN3: 2022/23 | BO3: 2022/23 | BP3: 2022/23 | BQ3: 2022/23 | BR3: 2022/23 | BS3: 2022/23 | BT3: 2022/23 | BU3: 2022/23 | BV3: 2022/23 | BW3: 2022/23 | BX3: =BY3 -> 2022/23 | BY3: =BW3 -> 2022/23 | BZ3: =BX3 -> 2022/23 | CB3: 2023/24 | CC3: =CB3 -> 2023/24 | CD3: =CC3 -> 2023/24 | CE3: 2023/24 | CF3: 2023/24 | CG3: 2023/24 | CH3: 2023/24 | CI3: 2023/24 | CJ3: 2023/24 | CK3: 2023/24 | CL3: 2023/24 | CM3: 2023/24 | CN3: 2023/24 | CO3: 2023/24 | CP3: 2023/24 | CQ3: 2023/24 | CR3: 2023/24 | CS3: 2023/24 | CT3: 2023/24 | CU3: =CV3 -> 2023/24 | CV3: =CT3 -> 2023/24 | CW3: =CU3 -> 2023/24 | CY3: 2024/25 | CZ3: =CY3 -> 2024/25 | DA3: =CZ3 -> 2024/25 | DB3: 2024/25 | DC3: 2024/25 | DD3: 2024/25 | DE3: 2024/25 | DF3: 2024/25 | DG3: 2024/25 | DH3: 2024/25 | DI3: 2024/25 | DJ3: 2024/25 | DK3: 2024/25 | DL3: 2024/25 | DM3: 2024/25 | DN3: 2024/25 | DO3: 2024/25 | DP3: 2024/25 | DQ3: 2024/25 | DR3: =DS3 -> 2024/25 | DS3: =DQ3 -> 2024/25 | DT3: =DR3 -> 2024/25
D4: Labour | E4: Materials | F4: Contracts | G4: Services Other | H4: Business Overheads | I4: Other | J4: Check | K4: Sub-transmission lines | L4: Distribution Lines | M4: Substations | N4: Distribution Transformers | O4: LVS | P4: Communications | Q4: Contributions | R4: Land | S4: Substation Land | T4: Easements | U4: Buildings | V4: Heavy Vehicles - 15 year | W4: Heavy Vehicles - 10 year | X4: Light Vehicles | Y4: IT Assets | Z4: Plant & Tools/Office Furniture | AA4: Distribution Lines-Refurbish and Shorter Life | AB4: Substations-Refurbish and Shorter Life | AC4: Electronic network assets | AD4: Buildings - capital works | AE4: in-house software | AF4: Check | AH4: =$K$4 -> Sub-transmission lines | AI4: =$L$4 -> Distribution Lines | AJ4: =$M$4 -> Substations | AK4: =$N$4 -> Distribution Transformers | AL4: =$O$4 -> LVS | AM4: =$P$4 -> Communications | AN4: =$Q$4 -> Contributions | AO4: =$R$4 -> Land | AP4: =$S$4 -> Substation Land | AQ4: =$T$4 -> Easements | AR4: =$U$4 -> Buildings | AS4: =$V$4 -> Heavy Vehicles - 15 year | AT4: =$W$4 -> Heavy Vehicles - 10 year | AU4: =$X$4 -> Light Vehicles | AV4: =$Y$4 -> IT Assets | AW4: =$Z$4 -> Plant & Tools/Office Furniture | AX4: =$AA$4 -> Distribution Lines-Refurbish and Shorter Life | AY4: =$AB$4 -> Substations-Refurbish and Shorter Life | AZ4: =$AC$4 -> Electronic network assets | BA4: =$AD$4 -> Buildings - capital works | BB4: =$AE$4 -> in-house software | BC4: Check | BE4: =$K$4 -> Sub-transmission lines | BF4: =$L$4 -> Distribution Lines | BG4: =$M$4 -> Substations | BH4: =$N$4 -> Distribution Transformers | BI4: =$O$4 -> LVS | BJ4: =$P$4 -> Communications | BK4: =$Q$4 -> Contributions | BL4: =$R$4 -> Land | BM4: =$S$4 -> Substation Land | BN4: =$T$4 -> Easements | BO4: =$U$4 -> Buildings | BP4: =$V$4 -> Heavy Vehicles - 15 year | BQ4: =$W$4 -> Heavy Vehicles - 10 year | BR4: =$X$4 -> Light Vehicles | BS4: =$Y$4 -> IT Assets | BT4: =$Z$4 -> Plant & Tools/Office Furniture | BU4: =$AA$4 -> Distribution Lines-Refurbish and Shorter Life | BV4: =$AB$4 -> Substations-Refurbish and Shorter Life | BW4: =$AC$4 -> Electronic network assets | BX4: =$AD$4 -> Buildings - capital works | BY4: =$AE$4 -> in-house software | BZ4: Check | CB4: =$K$4 -> Sub-transmission lines | CC4: =$L$4 -> Distribution Lines | CD4: =$M$4 -> Substations | CE4: =$N$4 -> Distribution Transformers | CF4: =$O$4 -> LVS | CG4: =$P$4 -> Communications | CH4: =$Q$4 -> Contributions | CI4: =$R$4 -> Land | CJ4: =$S$4 -> Substation Land | CK4: =$T$4 -> Easements | CL4: =$U$4 -> Buildings | CM4: =$V$4 -> Heavy Vehicles - 15 year | CN4: =$W$4 -> Heavy Vehicles - 10 year | CO4: =$X$4 -> Light Vehicles | CP4: =$Y$4 -> IT Assets | CQ4: =$Z$4 -> Plant & Tools/Office Furniture | CR4: =$AA$4 -> Distribution Lines-Refurbish and Shorter Life | CS4: =$AB$4 -> Substations-Refurbish and Shorter Life | CT4: =$AC$4 -> Electronic network assets | CU4: =$AD$4 -> Buildings - capital works | CV4: =$AE$4 -> in-house software | CW4: Check | CY4: =$K$4 -> Sub-transmission lines | CZ4: =$L$4 -> Distribution Lines | DA4: =$M$4 -> Substations | DB4: =$N$4 -> Distribution Transformers | DC4: =$O$4 -> LVS | DD4: =$P$4 -> Communications | DE4: =$Q$4 -> Contributions | DF4: =$R$4 -> Land | DG4: =$S$4 -> Substation Land | DH4: =$T$4 -> Easements | DI4: =$U$4 -> Buildings | DJ4: =$V$4 -> Heavy Vehicles - 15 year | DK4: =$W$4 -> Heavy Vehicles - 10 year | DL4: =$X$4 -> Light Vehicles | DM4: =$Y$4 -> IT Assets | DN4: =$Z$4 -> Plant & Tools/Office Furniture | DO4: =$AA$4 -> Distribution Lines-Refurbish and Shorter Life | DP4: =$AB$4 -> Substations-Refurbish and Shorter Life | DQ4: =$AC$4 -> Electronic network assets | DR4: =$AD$4 -> Buildings - capital works | DS4: =$AE$4 -> in-house software | DT4: Check
D5: % | E5: % | F5: % | G5: % | H5: % | I5: % | J5: =IF(SUM(J6:J24)>0.00001,"Error","Ok") -> Ok | AF5: =IF(SUM(AF6:AF24)>0.00001,"Error","Ok") -> Ok | BC5: =IF(SUM(BC6:BC24)>0.00001,"Error","Ok") -> Ok | BZ5: =IF(SUM(BZ6:BZ24)>0.00001,"Error","Ok") -> Ok | CW5: =IF(SUM(CW6:CW24)>0.00001,"Error","Ok") -> Ok | DT5: =IF(SUM(DT6:DT24)>0.00001,"Error","Ok") -> Ok
A6: C-1 | B6: Repex | C6: Asset Replacement and Refurbishment | D6: 0.41 | E6: 0.25 | F6: 0.12 | G6: 0.17 | H6: 0.05 | I6: 0 | J6: =ABS(1-SUM(D6:I6)) -> 0 | K6: =SUMIFS('Network Projects Direct Costs'!$E$6:$E$164,'Network Projects Direct Costs'!$O$6:$O$164,'Misc Data'!$C6,'Network Projects Direct Costs'!$N$6:$N$164,'Misc Data'!K$4)/SUMIFS('Network Projects Direct Costs'!$E$6:$E$164,'Network Projects Direct Costs'!$O$6:$O$164,'Misc Data'!$C6) -> 0 | L6: =SUMIFS('Network Projects Direct Costs'!$E$6:$E$164,'Network Projects Direct Costs'!$O$6:$O$164,'Misc Data'!$C6,'Network Projects Direct Costs'!$N$6:$N$164,'Misc Data'!L$4)/SUMIFS('Network Projects Direct Costs'!$E$6:$E$164,'Network Projects Direct Costs'!$O$6:$O$164,'Misc Data'!$C6) -> 0.6656007835 | M6: =SUMIFS('Network Projects Direct Costs'!$E$6:$E$164,'Network Projects Direct Costs'!$O$6:$O$164,'Misc Data'!$C6,'Network Projects Direct Costs'!$N$6:$N$164,'Misc Data'!M$4)/SUMIFS('Network Projects Direct Costs'!$E$6:$E$164,'Network Projects Direct Costs'!$O$6:$O$164,'Misc Data'!$C6) -> 0.1800190774 | N6: =SUMIFS('Network Projects Direct Costs'!$E$6:$E$164,'Network Projects Direct Costs'!$O$6:$O$164,'Misc Data'!$C6,'Network Projects Direct Costs'!$N$6:$N$164,'Misc Data'!N$4)/SUMIFS('Network Projects Direct Costs'!$E$6:$E$164,'Network Projects Direct Costs'!$O$6:$O$164,'Misc Data'!$C6) -> 0 | O6: =SUMIFS('Network Projects Direct Costs'!$E$6:$E$164,'Network Projects Direct Costs'!$O$6:$O$164,'Misc Data'!$C6,'Network Projects Direct Costs'!$N$6:$N$164,'Misc Data'!O$4)/SUMIFS('Network Projects Direct Costs'!$E$6:$E$164,'Network Projects Direct Costs'!$O$6:$O$164,'Misc Data'!$C6) -> 0 | P6: =SUMIFS('Network Projects Direct Costs'!$E$6:$E$164,'Network Projects Direct Costs'!$O$6:$O$164,'Misc Data'!$C6,'Network Projects Direct Costs'!$N$6:$N$164,'Misc Data'!P$4)/SUMIFS('Network Projects Direct Costs'!$E$6:$E$164,'Network Projects Direct Costs'!$O$6:$O$164,'Misc Data'!$C6) -> 0.03736446828 | Q6: =SUMIFS('Network Projects Direct Costs'!$E$6:$E$164,'Network Projects Direct Costs'!$O$6:$O$164,'Misc Data'!$C6,'Network Projects Direct Costs'!$N$6:$N$164,'Misc Data'!Q$4)/SUMIFS('Network Projects Direct Costs'!$E$6:$E$164,'Network Projects Direct Costs'!$O$6:$O$164,'Misc Data'!$C6) -> 0 | R6: =SUMIFS('Network Projects Direct Costs'!$E$6:$E$164,'Network Projects Direct Costs'!$O$6:$O$164,'Misc Data'!$C6,'Network Projects Direct Costs'!$N$6:$N$164,'Misc Data'!R$4)/SUMIFS('Network Projects Direct Costs'!$E$6:$E$164,'Network Projects Direct Costs'!$O$6:$O$164,'Misc Data'!$C6) -> 0 | S6: =SUMIFS('Network Projects Direct Costs'!$E$6:$E$164,'Network Projects Direct Costs'!$O$6:$O$164,'Misc Data'!$C6,'Network Projects Direct Costs'!$N$6:$N$164,'Misc Data'!S$4)/SUMIFS('Network Projects Direct Costs'!$E$6:$E$164,'Network Projects Direct Costs'!$O$6:$O$164,'Misc Data'!$C6) -> 0 | T6: =SUMIFS('Network Projects Direct Costs'!$E$6:$E$164,'Network Projects Direct Costs'!$O$6:$O$164,'Misc Data'!$C6,'Network Projects Direct Costs'!$N$6:$N$164,'Misc Data'!T$4)/SUMIFS('Network Projects Direct Costs'!$E$6:$E$164,'Network Projects Direct Costs'!$O$6:$O$164,'Misc Data'!$C6) -> 0 | U6: =SUMIFS('Network Projects Direct Costs'!$E$6:$E$164,'Network Projects Direct Costs'!$O$6:$O$164,'Misc Data'!$C6,'Network Projects Direct Costs'!$N$6:$N$164,'Misc Data'!U$4)/SUMIFS('Network Projects Direct Costs'!$E$6:$E$164,'Network Projects Direct Costs'!$O$6:$O$164,'Misc Data'!$C6) -> 0 | V6: =SUMIFS('Network Projects Direct Costs'!$E$6:$E$164,'Network Projects Direct Costs'!$O$6:$O$164,'Misc Data'!$C6,'Network Projects Direct Costs'!$N$6:$N$164,'Misc Data'!V$4)/SUMIFS('Network Projects Direct Costs'!$E$6:$E$164,'Network Projects Direct Costs'!$O$6:$O$164,'Misc Data'!$C6) -> 0 | W6: =SUMIFS('Network Projects Direct Costs'!$E$6:$E$164,'Network Projects Direct Costs'!$O$6:$O$164,'Misc Data'!$C6,'Network Projects Direct Costs'!$N$6:$N$164,'Misc Data'!W$4)/SUMIFS('Network Projects Direct Costs'!$E$6:$E$164,'Network Projects Direct Costs'!$O$6:$O$164,'Misc Data'!$C6) -> 0 | X6: =SUMIFS('Network Projects Direct Costs'!$E$6:$E$164,'Network Projects Direct Costs'!$O$6:$O$164,'Misc Data'!$C6,'Network Projects Direct Costs'!$N$6:$N$164,'Misc Data'!X$4)/SUMIFS('Network Projects Direct Costs'!$E$6:$E$164,'Network Projects Direct Costs'!$O$6:$O$164,'Misc Data'!$C6) -> 0 | Y6: =SUMIFS('Network Projects Direct Costs'!$E$6:$E$164,'Network Projects Direct Costs'!$O$6:$O$164,'Misc Data'!$C6,'Network Projects Direct Costs'!$N$6:$N$164,'Misc Data'!Y$4)/SUMIFS('Network Projects Direct Costs'!$E$6:$E$164,'Network Projects Direct Costs'!$O$6:$O$164,'Misc Data'!$C6) -> 0 | Z6: =SUMIFS('Network Projects Direct Costs'!$E$6:$E$164,'Network Projects Direct Costs'!$O$6:$O$164,'Misc Data'!$C6,'Network Projects Direct Costs'!$N$6:$N$164,'Misc Data'!Z$4)/SUMIFS('Network Projects Direct Costs'!$E$6:$E$164,'Network Projects Direct Costs'!$O$6:$O$164,'Misc Data'!$C6) -> 0 | AA6: =SUMIFS('Network Projects Direct Costs'!$E$6:$E$164,'Network Projects Direct Costs'!$O$6:$O$164,'Misc Data'!$C6,'Network Projects Direct Costs'!$N$6:$N$164,'Misc Data'!AA$4)/SUMIFS('Network Projects Direct Costs'!$E$6:$E$164,'Network Projects Direct Costs'!$O$6:$O$164,'Misc Data'!$C6) -> 0.05561762461 | AB6: =SUMIFS('Network Projects Direct Costs'!$E$6:$E$164,'Network Projects Direct Costs'!$O$6:$O$164,'Misc Data'!$C6,'Network Projects Direct Costs'!$N$6:$N$164,'Misc Data'!AB$4)/SUMIFS('Network Projects Direct Costs'!$E$6:$E$164,'Network Projects Direct Costs'!$O$6:$O$164,'Misc Data'!$C6) -> 0.03228930666 | AC6: =SUMIFS('Network Projects Direct Costs'!$E$6:$E$164,'Network Projects Direct Costs'!$O$6:$O$164,'Misc Data'!$C6,'Network Projects Direct Costs'!$N$6:$N$164,'Misc Data'!AC$4)/SUMIFS('Network Projects Direct Costs'!$E$6:$E$164,'Network Projects Direct Costs'!$O$6:$O$164,'Misc Data'!$C6) -> 0.02910873954 | AD6: =SUMIFS('Network Projects Direct Costs'!$E$6:$E$164,'Network Projects Direct Costs'!$O$6:$O$164,'Misc Data'!$C6,'Network Projects Direct Costs'!$N$6:$N$164,'Misc Data'!AD$4)/SUMIFS('Network Projects Direct Costs'!$E$6:$E$164,'Network Projects Direct Costs'!$O$6:$O$164,'Misc Data'!$C6) -> 0 | AE6: =SUMIFS('Network Projects Direct Costs'!$E$6:$E$164,'Network Projects Direct Costs'!$O$6:$O$164,'Misc Data'!$C6,'Network Projects Direct Costs'!$N$6:$N$164,'Misc Data'!AE$4)/SUMIFS('Network Projects Direct Costs'!$E$6:$E$164,'Network Projects Direct Costs'!$O$6:$O$164,'Misc Data'!$C6) -> 0 | AF6: =ABS(1-SUM(K6:AE6)) -> 2.220446049e-16 | AH6: =SUMIFS('Network Projects Direct Costs'!$F$6:$F$164,'Network Projects Direct Costs'!$O$6:$O$164,'Misc Data'!$C6,'Network Projects Direct Costs'!$N$6:$N$164,'Misc Data'!AH$4)/SUMIFS('Network Projects Direct Costs'!$F$6:$F$164,'Network Projects Direct Costs'!$O$6:$O$164,'Misc Data'!$C6) -> 0 | AI6: =SUMIFS('Network Projects Direct Costs'!$F$6:$F$164,'Network Projects Direct Costs'!$O$6:$O$164,'Misc Data'!$C6,'Network Projects Direct Costs'!$N$6:$N$164,'Misc Data'!AI$4)/SUMIFS('Network Projects Direct Costs'!$F$6:$F$164,'Network Projects Direct Costs'!$O$6:$O$164,'Misc Data'!$C6) -> 0.6750288712 | AJ6: =SUMIFS('Network Projects Direct Costs'!$F$6:$F$164,'Network Projects Direct Costs'!$O$6:$O$164,'Misc Data'!$C6,'Network Projects Direct Costs'!$N$6:$N$164,'Misc Data'!AJ$4)/SUMIFS('Network Projects Direct Costs'!$F$6:$F$164,'Network Projects Direct Costs'!$O$6:$O$164,'Misc Data'!$C6) -> 0.1766817243 | AK6: =SUMIFS('Network Projects Direct Costs'!$F$6:$F$164,'Network Projects Direct Costs'!$O$6:$O$164,'Misc Data'!$C6,'Network Projects Direct Costs'!$N$6:$N$164,'Misc Data'!AK$4)/SUMIFS('Network Projects Direct Costs'!$F$6:$F$164,'Network Projects Direct Costs'!$O$6:$O$164,'Misc Data'!$C6) -> 0 | AL6: =SUMIFS('Network Projects Direct Costs'!$F$6:$F$164,'Network Projects Direct Costs'!$O$6:$O$164,'Misc Data'!$C6,'Network Projects Direct Costs'!$N$6:$N$164,'Misc Data'!AL$4)/SUMIFS('Network Projects Direct Costs'!$F$6:$F$164,'Network Projects Direct Costs'!$O$6:$O$164,'Misc Data'!$C6) -> 0 | AM6: =SUMIFS('Network Projects Direct Costs'!$F$6:$F$164,'Network Projects Direct Costs'!$O$6:$O$164,'Misc Data'!$C6,'Network Projects Direct Costs'!$N$6:$N$164,'Misc Data'!AM$4)/SUMIFS('Network Projects Direct Costs'!$F$6:$F$164,'Network Projects Direct Costs'!$O$6:$O$164,'Misc Data'!$C6) -> 0.03701444907 | AN6: =SUMIFS('Network Projects Direct Costs'!$F$6:$F$164,'Network Projects Direct Costs'!$O$6:$O$164,'Misc Data'!$C6,'Network Projects Direct Costs'!$N$6:$N$164,'Misc Data'!AN$4)/SUMIFS('Network Projects Direct Costs'!$F$6:$F$164,'Network Projects Direct Costs'!$O$6:$O$164,'Misc Data'!$C6) -> 0 | AO6: =SUMIFS('Network Projects Direct Costs'!$F$6:$F$164,'Network Projects Direct Costs'!$O$6:$O$164,'Misc Data'!$C6,'Network Projects Direct Costs'!$N$6:$N$164,'Misc Data'!AO$4)/SUMIFS('Network Projects Direct Costs'!$F$6:$F$164,'Network Projects Direct Costs'!$O$6:$O$164,'Misc Data'!$C6) -> 0 | AP6: =SUMIFS('Network Projects Direct Costs'!$F$6:$F$164,'Network Projects Direct Costs'!$O$6:$O$164,'Misc Data'!$C6,'Network Projects Direct Costs'!$N$6:$N$164,'Misc Data'!AP$4)/SUMIFS('Network Projects Direct Costs'!$F$6:$F$164,'Network Projects Direct Costs'!$O$6:$O$164,'Misc Data'!$C6) -> 0 | AQ6: =SUMIFS('Network Projects Direct Costs'!$F$6:$F$164,'Network Projects Direct Costs'!$O$6:$O$164,'Misc Data'!$C6,'Network Projects Direct Costs'!$N$6:$N$164,'Misc Data'!AQ$4)/SUMIFS('Network Projects Direct Costs'!$F$6:$F$164,'Network Projects Direct Costs'!$O$6:$O$164,'Misc Data'!$C6) -> 0 | AR6: =SUMIFS('Network Projects Direct Costs'!$F$6:$F$164,'Network Projects Direct Costs'!$O$6:$O$164,'Misc Data'!$C6,'Network Projects Direct Costs'!$N$6:$N$164,'Misc Data'!AR$4)/SUMIFS('Network Projects Direct Costs'!$F$6:$F$164,'Network Projects Direct Costs'!$O$6:$O$164,'Misc Data'!$C6) -> 0 | AS6: =SUMIFS('Network Projects Direct Costs'!$F$6:$F$164,'Network Projects Direct Costs'!$O$6:$O$164,'Misc Data'!$C6,'Network Projects Direct Costs'!$N$6:$N$164,'Misc Data'!AS$4)/SUMIFS('Network Projects Direct Costs'!$F$6:$F$164,'Network Projects Direct Costs'!$O$6:$O$164,'Misc Data'!$C6) -> 0 | AT6: =SUMIFS('Network Projects Direct Costs'!$F$6:$F$164,'Network Projects Direct Costs'!$O$6:$O$164,'Misc Data'!$C6,'Network Projects Direct Costs'!$N$6:$N$164,'Misc Data'!AT$4)/SUMIFS('Network Projects Direct Costs'!$F$6:$F$164,'Network Projects Direct Costs'!$O$6:$O$164,'Misc Data'!$C6) -> 0 | AU6: =SUMIFS('Network Projects Direct Costs'!$F$6:$F$164,'Network Projects Direct Costs'!$O$6:$O$164,'Misc Data'!$C6,'Network Projects Direct Costs'!$N$6:$N$164,'Misc Data'!AU$4)/SUMIFS('Network Projects Direct Costs'!$F$6:$F$164,'Network Projects Direct Costs'!$O$6:$O$164,'Misc Data'!$C6) -> 0 | AV6: =SUMIFS('Network Projects Direct Costs'!$F$6:$F$164,'Network Projects Direct Costs'!$O$6:$O$164,'Misc Data'!$C6,'Network Projects Direct Costs'!$N$6:$N$164,'Misc Data'!AV$4)/SUMIFS('Network Projects Direct Costs'!$F$6:$F$164,'Network Projects Direct Costs'!$O$6:$O$164,'Misc Data'!$C6) -> 0 | AW6: =SUMIFS('Network Projects Direct Costs'!$F$6:$F$164,'Network Projects Direct Costs'!$O$6:$O$164,'Misc Data'!$C6,'Network Projects Direct Costs'!$N$6:$N$164,'Misc Data'!AW$4)/SUMIFS('Network Projects Direct Costs'!$F$6:$F$164,'Network Projects Direct Costs'!$O$6:$O$164,'Misc Data'!$C6) -> 0 | AX6: =SUMIFS('Network Projects Direct Costs'!$F$6:$F$164,'Network Projects Direct Costs'!$O$6:$O$164,'Misc Data'!$C6,'Network Projects Direct Costs'!$N$6:$N$164,'Misc Data'!AX$4)/SUMIFS('Network Projects Direct Costs'!$F$6:$F$164,'Network Projects Direct Costs'!$O$6:$O$164,'Misc Data'!$C6) -> 0.05584604059 | AY6: =SUMIFS('Network Projects Direct Costs'!$F$6:$F$164,'Network Projects Direct Costs'!$O$6:$O$164,'Misc Data'!$C6,'Network Projects Direct Costs'!$N$6:$N$164,'Misc Data'!AY$4)/SUMIFS('Network Projects Direct Costs'!$F$6:$F$164,'Network Projects Direct Costs'!$O$6:$O$164,'Misc Data'!$C6) -> 0.02575648359 | AZ6: =SUMIFS('Network Projects Direct Costs'!$F$6:$F$164,'Network Projects Direct Costs'!$O$6:$O$164,'Misc Data'!$C6,'Network Projects Direct Costs'!$N$6:$N$164,'Misc Data'!AZ$4)/SUMIFS('Network Projects Direct Costs'!$F$6:$F$164,'Network Projects Direct Costs'!$O$6:$O$164,'Misc Data'!$C6) -> 0.02967243121 | BA6: =SUMIFS('Network Projects Direct Costs'!$F$6:$F$164,'Network Projects Direct Costs'!$O$6:$O$164,'Misc Data'!$C6,'Network Projects Direct Costs'!$N$6:$N$164,'Misc Data'!BA$4)/SUMIFS('Network Projects Direct Costs'!$F$6:$F$164,'Network Projects Direct Costs'!$O$6:$O$164,'Misc Data'!$C6) -> 0 | BB6: =SUMIFS('Network Projects Direct Costs'!$F$6:$F$164,'Network Projects Direct Costs'!$O$6:$O$164,'Misc Data'!$C6,'Network Projects Direct Costs'!$N$6:$N$164,'Misc Data'!BB$4)/SUMIFS('Network Projects Direct Costs'!$F$6:$F$164,'Network Projects Direct Costs'!$O$6:$O$164,'Misc Data'!$C6) -> 0 | BC6: =ABS(1-SUM(AH6:BB6)) -> 2.220446049e-16 | BE6: =SUMIFS('Network Projects Direct Costs'!$G$6:$G$164,'Network Projects Direct Costs'!$O$6:$O$164,'Misc Data'!$C6,'Network Projects Direct Costs'!$N$6:$N$164,'Misc Data'!BE$4)/SUMIFS('Network Projects Direct Costs'!$G$6:$G$164,'Network Projects Direct Costs'!$O$6:$O$164,'Misc Data'!$C6) -> 0 | BF6: =SUMIFS('Network Projects Direct Costs'!$G$6:$G$164,'Network Projects Direct Costs'!$O$6:$O$164,'Misc Data'!$C6,'Network Projects Direct Costs'!$N$6:$N$164,'Misc Data'!BF$4)/SUMIFS('Network Projects Direct Costs'!$G$6:$G$164,'Network Projects Direct Costs'!$O$6:$O$164,'Misc Data'!$C6) -> 0.6694706016 | BG6: =SUMIFS('Network Projects Direct Costs'!$G$6:$G$164,'Network Projects Direct Costs'!$O$6:$O$164,'Misc Data'!$C6,'Network Projects Direct Costs'!$N$6:$N$164,'Misc Data'!BG$4)/SUMIFS('Network Projects Direct Costs'!$G$6:$G$164,'Network Projects Direct Costs'!$O$6:$O$164,'Misc Data'!$C6) -> 0.1905976688 | BH6: =SUMIFS('Network Projects Direct Costs'!$G$6:$G$164,'Network Projects Direct Costs'!$O$6:$O$164,'Misc Data'!$C6,'Network Projects Direct Costs'!$N$6:$N$164,'Misc Data'!BH$4)/SUMIFS('Network Projects Direct Costs'!$G$6:$G$164,'Network Projects Direct Costs'!$O$6:$O$164,'Misc Data'!$C6) -> 0 | BI6: =SUMIFS('Network Projects Direct Costs'!$G$6:$G$164,'Network Projects Direct Costs'!$O$6:$O$164,'Misc Data'!$C6,'Network Projects Direct Costs'!$N$6:$N$164,'Misc Data'!BI$4)/SUMIFS('Network Projects Direct Costs'!$G$6:$G$164,'Network Projects Direct Costs'!$O$6:$O$164,'Misc Data'!$C6) -> 0 | BJ6: =SUMIFS('Network Projects Direct Costs'!$G$6:$G$164,'Network Projects Direct Costs'!$O$6:$O$164,'Misc Data'!$C6,'Network Projects Direct Costs'!$N$6:$N$164,'Misc Data'!BJ$4)/SUMIFS('Network Projects Direct Costs'!$G$6:$G$164,'Network Projects Direct Costs'!$O$6:$O$164,'Misc Data'!$C6) -> 0.03379546203 | BK6: =SUMIFS('Network Projects Direct Costs'!$G$6:$G$164,'Network Projects Direct Costs'!$O$6:$O$164,'Misc Data'!$C6,'Network Projects Direct Costs'!$N$6:$N$164,'Misc Data'!BK$4)/SUMIFS('Network Projects Direct Costs'!$G$6:$G$164,'Network Projects Direct Costs'!$O$6:$O$164,'Misc Data'!$C6) -> 0 | BL6: =SUMIFS('Network Projects Direct Costs'!$G$6:$G$164,'Network Projects Direct Costs'!$O$6:$O$164,'Misc Data'!$C6,'Network Projects Direct Costs'!$N$6:$N$164,'Misc Data'!BL$4)/SUMIFS('Network Projects Direct Costs'!$G$6:$G$164,'Network Projects Direct Costs'!$O$6:$O$164,'Misc Data'!$C6) -> 0 | BM6: =SUMIFS('Network Projects Direct Costs'!$G$6:$G$164,'Network Projects Direct Costs'!$O$6:$O$164,'Misc Data'!$C6,'Network Projects Direct Costs'!$N$6:$N$164,'Misc Data'!BM$4)/SUMIFS('Network Projects Direct Costs'!$G$6:$G$164,'Network Projects Direct Costs'!$O$6:$O$164,'Misc Data'!$C6) -> 0 | BN6: =SUMIFS('Network Projects Direct Costs'!$G$6:$G$164,'Network Projects Direct Costs'!$O$6:$O$164,'Misc Data'!$C6,'Network Projects Direct Costs'!$N$6:$N$164,'Misc Data'!BN$4)/SUMIFS('Network Projects Direct Costs'!$G$6:$G$164,'Network Projects Direct Costs'!$O$6:$O$164,'Misc Data'!$C6) -> 0 | BO6: =SUMIFS('Network Projects Direct Costs'!$G$6:$G$164,'Network Projects Direct Costs'!$O$6:$O$164,'Misc Data'!$C6,'Network Projects Direct Costs'!$N$6:$N$164,'Misc Data'!BO$4)/SUMIFS('Network Projects Direct Costs'!$G$6:$G$164,'Network Projects Direct Costs'!$O$6:$O$164,'Misc Data'!$C6) -> 0 | BP6: =SUMIFS('Network Projects Direct Costs'!$G$6:$G$164,'Network Projects Direct Costs'!$O$6:$O$164,'Misc Data'!$C6,'Network Projects Direct Costs'!$N$6:$N$164,'Misc Data'!BP$4)/SUMIFS('Network Projects Direct Costs'!$G$6:$G$164,'Network Projects Direct Costs'!$O$6:$O$164,'Misc Data'!$C6) -> 0 | BQ6: =SUMIFS('Network Projects Direct Costs'!$G$6:$G$164,'Network Projects Direct Costs'!$O$6:$O$164,'Misc Data'!$C6,'Network Projects Direct Costs'!$N$6:$N$164,'Misc Data'!BQ$4)/SUMIFS('Network Projects Direct Costs'!$G$6:$G$164,'Network Projects Direct Costs'!$O$6:$O$164,'Misc Data'!$C6) -> 0 | BR6: =SUMIFS('Network Projects Direct Costs'!$G$6:$G$164,'Network Projects Direct Costs'!$O$6:$O$164,'Misc Data'!$C6,'Network Projects Direct Costs'!$N$6:$N$164,'Misc Data'!BR$4)/SUMIFS('Network Projects Direct Costs'!$G$6:$G$164,'Network Projects Direct Costs'!$O$6:$O$164,'Misc Data'!$C6) -> 0 | BS6: =SUMIFS('Network Projects Direct Costs'!$G$6:$G$164,'Network Projects Direct Costs'!$O$6:$O$164,'Misc Data'!$C6,'Network Projects Direct Costs'!$N$6:$N$164,'Misc Data'!BS$4)/SUMIFS('Network Projects Direct Costs'!$G$6:$G$164,'Network Projects Direct Costs'!$O$6:$O$164,'Misc Data'!$C6) -> 0 | BT6: =SUMIFS('Network Projects Direct Costs'!$G$6:$G$164,'Network Projects Direct Costs'!$O$6:$O$164,'Misc Data'!$C6,'Network Projects Direct Costs'!$N$6:$N$164,'Misc Data'!BT$4)/SUMIFS('Network Projects Direct Costs'!$G$6:$G$164,'Network Projects Direct Costs'!$O$6:$O$164,'Misc Data'!$C6) -> 0 | BU6: =SUMIFS('Network Projects Direct Costs'!$G$6:$G$164,'Network Projects Direct Costs'!$O$6:$O$164,'Misc Data'!$C6,'Network Projects Direct Costs'!$N$6:$N$164,'Misc Data'!BU$4)/SUMIFS('Network Projects Direct Costs'!$G$6:$G$164,'Network Projects Direct Costs'!$O$6:$O$164,'Misc Data'!$C6) -> 0.05537063317 | BV6: =SUMIFS('Network Projects Direct Costs'!$G$6:$G$164,'Network Projects Direct Costs'!$O$6:$O$164,'Misc Data'!$C6,'Network Projects Direct Costs'!$N$6:$N$164,'Misc Data'!BV$4)/SUMIFS('Network Projects Direct Costs'!$G$6:$G$164,'Network Projects Direct Costs'!$O$6:$O$164,'Misc Data'!$C6) -> 0.02302880812 | BW6: =SUMIFS('Network Projects Direct Costs'!$G$6:$G$164,'Network Projects Direct Costs'!$O$6:$O$164,'Misc Data'!$C6,'Network Projects Direct Costs'!$N$6:$N$164,'Misc Data'!BW$4)/SUMIFS('Network Projects Direct Costs'!$G$6:$G$164,'Network Projects Direct Costs'!$O$6:$O$164,'Misc Data'!$C6) -> 0.0277368263 | BX6: =SUMIFS('Network Projects Direct Costs'!$G$6:$G$164,'Network Projects Direct Costs'!$O$6:$O$164,'Misc Data'!$C6,'Network Projects Direct Costs'!$N$6:$N$164,'Misc Data'!BX$4)/SUMIFS('Network Projects Direct Costs'!$G$6:$G$164,'Network Projects Direct Costs'!$O$6:$O$164,'Misc Data'!$C6) -> 0 | BY6: =SUMIFS('Network Projects Direct Costs'!$G$6:$G$164,'Network Projects Direct Costs'!$O$6:$O$164,'Misc Data'!$C6,'Network Projects Direct Costs'!$N$6:$N$164,'Misc Data'!BY$4)/SUMIFS('Network Projects Direct Costs'!$G$6:$G$164,'Network Projects Direct Costs'!$O$6:$O$164,'Misc Data'!$C6) -> 0 | BZ6: =ABS(1-SUM(BE6:BY6)) -> 2.220446049e-16 | CB6: =SUMIFS('Network Projects Direct Costs'!$H$6:$H$164,'Network Projects Direct Costs'!$O$6:$O$164,'Misc Data'!$C6,'Network Projects Direct Costs'!$N$6:$N$164,'Misc Data'!CB$4)/SUMIFS('Network Projects Direct Costs'!$H$6:$H$164,'Network Projects Direct Costs'!$O$6:$O$164,'Misc Data'!$C6) -> 0 | CC6: =SUMIFS('Network Projects Direct Costs'!$H$6:$H$164,'Network Projects Direct Costs'!$O$6:$O$164,'Misc Data'!$C6,'Network Projects Direct Costs'!$N$6:$N$164,'Misc Data'!CC$4)/SUMIFS('Network Projects Direct Costs'!$H$6:$H$164,'Network Projects Direct Costs'!$O$6:$O$164,'Misc Data'!$C6) -> 0.6767766038 | CD6: =SUMIFS('Network Projects Direct Costs'!$H$6:$H$164,'Network Projects Direct Costs'!$O$6:$O$164,'Misc Data'!$C6,'Network Projects Direct Costs'!$N$6:$N$164,'Misc Data'!CD$4)/SUMIFS('Network Projects Direct Costs'!$H$6:$H$164,'Network Projects Direct Costs'!$O$6:$O$164,'Misc Data'!$C6) -> 0.1836702166 | CE6: =SUMIFS('Network Projects Direct Costs'!$H$6:$H$164,'Network Projects Direct Costs'!$O$6:$O$164,'Misc Data'!$C6,'Network Projects Direct Costs'!$N$6:$N$164,'Misc Data'!CE$4)/SUMIFS('Network Projects Direct Costs'!$H$6:$H$164,'Network Projects Direct Costs'!$O$6:$O$164,'Misc Data'!$C6) -> 0 | CF6: =SUMIFS('Network Projects Direct Costs'!$H$6:$H$164,'Network Projects Direct Costs'!$O$6:$O$164,'Misc Data'!$C6,'Network Projects Direct Costs'!$N$6:$N$164,'Misc Data'!CF$4)/SUMIFS('Network Projects Direct Costs'!$H$6:$H$164,'Network Projects Direct Costs'!$O$6:$O$164,'Misc Data'!$C6) -> 0 | CG6: =SUMIFS('Network Projects Direct Costs'!$H$6:$H$164,'Network Projects Direct Costs'!$O$6:$O$164,'Misc Data'!$C6,'Network Projects Direct Costs'!$N$6:$N$164,'Misc Data'!CG$4)/SUMIFS('Network Projects Direct Costs'!$H$6:$H$164,'Network Projects Direct Costs'!$O$6:$O$164,'Misc Data'!$C6) -> 0.03400285557 | CH6: =SUMIFS('Network Projects Direct Costs'!$H$6:$H$164,'Network Projects Direct Costs'!$O$6:$O$164,'Misc Data'!$C6,'Network Projects Direct Costs'!$N$6:$N$164,'Misc Data'!CH$4)/SUMIFS('Network Projects Direct Costs'!$H$6:$H$164,'Network Projects Direct Costs'!$O$6:$O$164,'Misc Data'!$C6) -> 0 | CI6: =SUMIFS('Network Projects Direct Costs'!$H$6:$H$164,'Network Projects Direct Costs'!$O$6:$O$164,'Misc Data'!$C6,'Network Projects Direct Costs'!$N$6:$N$164,'Misc Data'!CI$4)/SUMIFS('Network Projects Direct Costs'!$H$6:$H$164,'Network Projects Direct Costs'!$O$6:$O$164,'Misc Data'!$C6) -> 0 | CJ6: =SUMIFS('Network Projects Direct Costs'!$H$6:$H$164,'Network Projects Direct Costs'!$O$6:$O$164,'Misc Data'!$C6,'Network Projects Direct Costs'!$N$6:$N$164,'Misc Data'!CJ$4)/SUMIFS('Network Projects Direct Costs'!$H$6:$H$164,'Network Projects Direct Costs'!$O$6:$O$164,'Misc Data'!$C6) -> 0 | CK6: =SUMIFS('Network Projects Direct Costs'!$H$6:$H$164,'Network Projects Direct Costs'!$O$6:$O$164,'Misc Data'!$C6,'Network Projects Direct Costs'!$N$6:$N$164,'Misc Data'!CK$4)/SUMIFS('Network Projects Direct Costs'!$H$6:$H$164,'Network Projects Direct Costs'!$O$6:$O$164,'Misc Data'!$C6) -> 0 | CL6: =SUMIFS('Network Projects Direct Costs'!$H$6:$H$164,'Network Projects Direct Costs'!$O$6:$O$164,'Misc Data'!$C6,'Network Projects Direct Costs'!$N$6:$N$164,'Misc Data'!CL$4)/SUMIFS('Network Projects Direct Costs'!$H$6:$H$164,'Network Projects Direct Costs'!$O$6:$O$164,'Misc Data'!$C6) -> 0 | CM6: =SUMIFS('Network Projects Direct Costs'!$H$6:$H$164,'Network Projects Direct Costs'!$O$6:$O$164,'Misc Data'!$C6,'Network Projects Direct Costs'!$N$6:$N$164,'Misc Data'!CM$4)/SUMIFS('Network Projects Direct Costs'!$H$6:$H$164,'Network Projects Direct Costs'!$O$6:$O$164,'Misc Data'!$C6) -> 0 | CN6: =SUMIFS('Network Projects Direct Costs'!$H$6:$H$164,'Network Projects Direct Costs'!$O$6:$O$164,'Misc Data'!$C6,'Network Projects Direct Costs'!$N$6:$N$164,'Misc Data'!CN$4)/SUMIFS('Network Projects Direct Costs'!$H$6:$H$164,'Network Projects Direct Costs'!$O$6:$O$164,'Misc Data'!$C6) -> 0 | CO6: =SUMIFS('Network Projects Direct Costs'!$H$6:$H$164,'Network Projects Direct Costs'!$O$6:$O$164,'Misc Data'!$C6,'Network Projects Direct Costs'!$N$6:$N$164,'Misc Data'!CO$4)/SUMIFS('Network Projects Direct Costs'!$H$6:$H$164,'Network Projects Direct Costs'!$O$6:$O$164,'Misc Data'!$C6) -> 0 | CP6: =SUMIFS('Network Projects Direct Costs'!$H$6:$H$164,'Network Projects Direct Costs'!$O$6:$O$164,'Misc Data'!$C6,'Network Projects Direct Costs'!$N$6:$N$164,'Misc Data'!CP$4)/SUMIFS('Network Projects Direct Costs'!$H$6:$H$164,'Network Projects Direct Costs'!$O$6:$O$164,'Misc Data'!$C6) -> 0 | CQ6: =SUMIFS('Network Projects Direct Costs'!$H$6:$H$164,'Network Projects Direct Costs'!$O$6:$O$164,'Misc Data'!$C6,'Network Projects Direct Costs'!$N$6:$N$164,'Misc Data'!CQ$4)/SUMIFS('Network Projects Direct Costs'!$H$6:$H$164,'Network Projects Direct Costs'!$O$6:$O$164,'Misc Data'!$C6) -> 0 | CR6: =SUMIFS('Network Projects Direct Costs'!$H$6:$H$164,'Network Projects Direct Costs'!$O$6:$O$164,'Misc Data'!$C6,'Network Projects Direct Costs'!$N$6:$N$164,'Misc Data'!CR$4)/SUMIFS('Network Projects Direct Costs'!$H$6:$H$164,'Network Projects Direct Costs'!$O$6:$O$164,'Misc Data'!$C6) -> 0.05595218708 | CS6: =SUMIFS('Network Projects Direct Costs'!$H$6:$H$164,'Network Projects Direct Costs'!$O$6:$O$164,'Misc Data'!$C6,'Network Projects Direct Costs'!$N$6:$N$164,'Misc Data'!CS$4)/SUMIFS('Network Projects Direct Costs'!$H$6:$H$164,'Network Projects Direct Costs'!$O$6:$O$164,'Misc Data'!$C6) -> 0.02327067808 | CT6: =SUMIFS('Network Projects Direct Costs'!$H$6:$H$164,'Network Projects Direct Costs'!$O$6:$O$164,'Misc Data'!$C6,'Network Projects Direct Costs'!$N$6:$N$164,'Misc Data'!CT$4)/SUMIFS('Network Projects Direct Costs'!$H$6:$H$164,'Network Projects Direct Costs'!$O$6:$O$164,'Misc Data'!$C6) -> 0.02632745894 | CU6: =SUMIFS('Network Projects Direct Costs'!$H$6:$H$164,'Network Projects Direct Costs'!$O$6:$O$164,'Misc Data'!$C6,'Network Projects Direct Costs'!$N$6:$N$164,'Misc Data'!CU$4)/SUMIFS('Network Projects Direct Costs'!$H$6:$H$164,'Network Projects Direct Costs'!$O$6:$O$164,'Misc Data'!$C6) -> 0 | CV6: =SUMIFS('Network Projects Direct Costs'!$H$6:$H$164,'Network Projects Direct Costs'!$O$6:$O$164,'Misc Data'!$C6,'Network Projects Direct Costs'!$N$6:$N$164,'Misc Data'!CV$4)/SUMIFS('Network Projects Direct Costs'!$H$6:$H$164,'Network Projects Direct Costs'!$O$6:$O$164,'Misc Data'!$C6) -> 0 | CW6: =ABS(1-SUM(CB6:CV6)) -> 0 | CY6: =SUMIFS('Network Projects Direct Costs'!$I$6:$I$164,'Network Projects Direct Costs'!$O$6:$O$164,'Misc Data'!$C6,'Network Projects Direct Costs'!$N$6:$N$164,'Misc Data'!CY$4)/SUMIFS('Network Projects Direct Costs'!$I$6:$I$164,'Network Projects Direct Costs'!$O$6:$O$164,'Misc Data'!$C6) -> 0 | CZ6: =SUMIFS('Network Projects Direct Costs'!$I$6:$I$164,'Network Projects Direct Costs'!$O$6:$O$164,'Misc Data'!$C6,'Network Projects Direct Costs'!$N$6:$N$164,'Misc Data'!CZ$4)/SUMIFS('Network Projects Direct Costs'!$I$6:$I$164,'Network Projects Direct Costs'!$O$6:$O$164,'Misc Data'!$C6) -> 0.6912604126 | DA6: =SUMIFS('Network Projects Direct Costs'!$I$6:$I$164,'Network Projects Direct Costs'!$O$6:$O$164,'Misc Data'!$C6,'Network Projects Direct Costs'!$N$6:$N$164,'Misc Data'!DA$4)/SUMIFS('Network Projects Direct Costs'!$I$6:$I$164,'Network Projects Direct Costs'!$O$6:$O$164,'Misc Data'!$C6) -> 0.1691665465 | DB6: =SUMIFS('Network Projects Direct Costs'!$I$6:$I$164,'Network Projects Direct Costs'!$O$6:$O$164,'Misc Data'!$C6,'Network Projects Direct Costs'!$N$6:$N$164,'Misc Data'!DB$4)/SUMIFS('Network Projects Direct Costs'!$I$6:$I$164,'Network Projects Direct Costs'!$O$6:$O$164,'Misc Data'!$C6) -> 0 | DC6: =SUMIFS('Network Projects Direct Costs'!$I$6:$I$164,'Network Projects Direct Costs'!$O$6:$O$164,'Misc Data'!$C6,'Network Projects Direct Costs'!$N$6:$N$164,'Misc Data'!DC$4)/SUMIFS('Network Projects Direct Costs'!$I$6:$I$164,'Network Projects Direct Costs'!$O$6:$O$164,'Misc Data'!$C6) -> 0 | DD6: =SUMIFS('Network Projects Direct Costs'!$I$6:$I$164,'Network Projects Direct Costs'!$O$6:$O$164,'Misc Data'!$C6,'Network Projects Direct Costs'!$N$6:$N$164,'Misc Data'!DD$4)/SUMIFS('Network Projects Direct Costs'!$I$6:$I$164,'Network Projects Direct Costs'!$O$6:$O$164,'Misc Data'!$C6) -> 0.03484951845 | DE6: =SUMIFS('Network Projects Direct Costs'!$I$6:$I$164,'Network Projects Direct Costs'!$O$6:$O$164,'Misc Data'!$C6,'Network Projects Direct Costs'!$N$6:$N$164,'Misc Data'!DE$4)/SUMIFS('Network Projects Direct Costs'!$I$6:$I$164,'Network Projects Direct Costs'!$O$6:$O$164,'Misc Data'!$C6) -> 0 | DF6: =SUMIFS('Network Projects Direct Costs'!$I$6:$I$164,'Network Projects Direct Costs'!$O$6:$O$164,'Misc Data'!$C6,'Network Projects Direct Costs'!$N$6:$N$164,'Misc Data'!DF$4)/SUMIFS('Network Projects Direct Costs'!$I$6:$I$164,'Network Projects Direct Costs'!$O$6:$O$164,'Misc Data'!$C6) -> 0 | DG6: =SUMIFS('Network Projects Direct Costs'!$I$6:$I$164,'Network Projects Direct Costs'!$O$6:$O$164,'Misc Data'!$C6,'Network Projects Direct Costs'!$N$6:$N$164,'Misc Data'!DG$4)/SUMIFS('Network Projects Direct Costs'!$I$6:$I$164,'Network Projects Direct Costs'!$O$6:$O$164,'Misc Data'!$C6) -> 0 | DH6: =SUMIFS('Network Projects Direct Costs'!$I$6:$I$164,'Network Projects Direct Costs'!$O$6:$O$164,'Misc Data'!$C6,'Network Projects Direct Costs'!$N$6:$N$164,'Misc Data'!DH$4)/SUMIFS('Network Projects Direct Costs'!$I$6:$I$164,'Network Projects Direct Costs'!$O$6:$O$164,'Misc Data'!$C6) -> 0 | DI6: =SUMIFS('Network Projects Direct Costs'!$I$6:$I$164,'Network Projects Direct Costs'!$O$6:$O$164,'Misc Data'!$C6,'Network Projects Direct Costs'!$N$6:$N$164,'Misc Data'!DI$4)/SUMIFS('Network Projects Direct Costs'!$I$6:$I$164,'Network Projects Direct Costs'!$O$6:$O$164,'Misc Data'!$C6) -> 0 | DJ6: =SUMIFS('Network Projects Direct Costs'!$I$6:$I$164,'Network Projects Direct Costs'!$O$6:$O$164,'Misc Data'!$C6,'Network Projects Direct Costs'!$N$6:$N$164,'Misc Data'!DJ$4)/SUMIFS('Network Projects Direct Costs'!$I$6:$I$164,'Network Projects Direct Costs'!$O$6:$O$164,'Misc Data'!$C6) -> 0 | DK6: =SUMIFS('Network Projects Direct Costs'!$I$6:$I$164,'Network Projects Direct Costs'!$O$6:$O$164,'Misc Data'!$C6,'Network Projects Direct Costs'!$N$6:$N$164,'Misc Data'!DK$4)/SUMIFS('Network Projects Direct Costs'!$I$6:$I$164,'Network Projects Direct Costs'!$O$6:$O$164,'Misc Data'!$C6) -> 0 | DL6: =SUMIFS('Network Projects Direct Costs'!$I$6:$I$164,'Network Projects Direct Costs'!$O$6:$O$164,'Misc Data'!$C6,'Network Projects Direct Costs'!$N$6:$N$164,'Misc Data'!DL$4)/SUMIFS('Network Projects Direct Costs'!$I$6:$I$164,'Network Projects Direct Costs'!$O$6:$O$164,'Misc Data'!$C6) -> 0 | DM6: =SUMIFS('Network Projects Direct Costs'!$I$6:$I$164,'Network Projects Direct Costs'!$O$6:$O$164,'Misc Data'!$C6,'Network Projects Direct Costs'!$N$6:$N$164,'Misc Data'!DM$4)/SUMIFS('Network Projects Direct Costs'!$I$6:$I$164,'Network Projects Direct Costs'!$O$6:$O$164,'Misc Data'!$C6) -> 0 | DN6: =SUMIFS('Network Projects Direct Costs'!$I$6:$I$164,'Network Projects Direct Costs'!$O$6:$O$164,'Misc Data'!$C6,'Network Projects Direct Costs'!$N$6:$N$164,'Misc Data'!DN$4)/SUMIFS('Network Projects Direct Costs'!$I$6:$I$164,'Network Projects Direct Costs'!$O$6:$O$164,'Misc Data'!$C6) -> 0 | DO6: =SUMIFS('Network Projects Direct Costs'!$I$6:$I$164,'Network Projects Direct Costs'!$O$6:$O$164,'Misc Data'!$C6,'Network Projects Direct Costs'!$N$6:$N$164,'Misc Data'!DO$4)/SUMIFS('Network Projects Direct Costs'!$I$6:$I$164,'Network Projects Direct Costs'!$O$6:$O$164,'Misc Data'!$C6) -> 0.05714249521 | DP6: =SUMIFS('Network Projects Direct Costs'!$I$6:$I$164,'Network Projects Direct Costs'!$O$6:$O$164,'Misc Data'!$C6,'Network Projects Direct Costs'!$N$6:$N$164,'Misc Data'!DP$4)/SUMIFS('Network Projects Direct Costs'!$I$6:$I$164,'Network Projects Direct Costs'!$O$6:$O$164,'Misc Data'!$C6) -> 0.02270868455 | DQ6: =SUMIFS('Network Projects Direct Costs'!$I$6:$I$164,'Network Projects Direct Costs'!$O$6:$O$164,'Misc Data'!$C6,'Network Projects Direct Costs'!$N$6:$N$164,'Misc Data'!DQ$4)/SUMIFS('Network Projects Direct Costs'!$I$6:$I$164,'Network Projects Direct Costs'!$O$6:$O$164,'Misc Data'!$C6) -> 0.02487234275 | DR6: =SUMIFS('Network Projects Direct Costs'!$I$6:$I$164,'Network Projects Direct Costs'!$O$6:$O$164,'Misc Data'!$C6,'Network Projects Direct Costs'!$N$6:$N$164,'Misc Data'!DR$4)/SUMIFS('Network Projects Direct Costs'!$I$6:$I$164,'Network Projects Direct Costs'!$O$6:$O$164,'Misc Data'!$C6) -> 0 | DS6: =SUMIFS('Network Projects Direct Costs'!$I$6:$I$164,'Network Projects Direct Costs'!$O$6:$O$164,'Misc Data'!$C6,'Network Projects Direct Costs'!$N$6:$N$164,'Misc Data'!DS$4)/SUMIFS('Network Projects Direct Costs'!$I$6:$I$164,'Network Projects Direct Costs'!$O$6:$O$164,'Misc Data'!$C6) -> 0 | DT6: =ABS(1-SUM(CY6:DS6)) -> 0
A7: C-2 | B7: Augex | C7: Capacity Augmentation | D7: 0.4 | E7: 0.2 | F7: 0.03 | G7: 0.34 | H7: 0.03 | I7: 0 | J7: =ABS(1-SUM(D7:I7)) -> 0 | K7: =SUMIFS('Network Projects Direct Costs'!$E$6:$E$164,'Network Projects Direct Costs'!$O$6:$O$164,'Misc Data'!$C7,'Network Projects Direct Costs'!$N$6:$N$164,'Misc Data'!K$4)/SUMIFS('Network Projects Direct Costs'!$E$6:$E$164,'Network Projects Direct Costs'!$O$6:$O$164,'Misc Data'!$C7) -> 0 | L7: =SUMIFS('Network Projects Direct Costs'!$E$6:$E$164,'Network Projects Direct Costs'!$O$6:$O$164,'Misc Data'!$C7,'Network Projects Direct Costs'!$N$6:$N$164,'Misc Data'!L$4)/SUMIFS('Network Projects Direct Costs'!$E$6:$E$164,'Network Projects Direct Costs'!$O$6:$O$164,'Misc Data'!$C7) -> 0.2792794202 | M7: =SUMIFS('Network Projects Direct Costs'!$E$6:$E$164,'Network Projects Direct Costs'!$O$6:$O$164,'Misc Data'!$C7,'Network Projects Direct Costs'!$N$6:$N$164,'Misc Data'!M$4)/SUMIFS('Network Projects Direct Costs'!$E$6:$E$164,'Network Projects Direct Costs'!$O$6:$O$164,'Misc Data'!$C7) -> 0.3736198072 | N7: =SUMIFS('Network Projects Direct Costs'!$E$6:$E$164,'Network Projects Direct Costs'!$O$6:$O$164,'Misc Data'!$C7,'Network Projects Direct Costs'!$N$6:$N$164,'Misc Data'!N$4)/SUMIFS('Network Projects Direct Costs'!$E$6:$E$164,'Network Projects Direct Costs'!$O$6:$O$164,'Misc Data'!$C7) -> 0.3214564907 | O7: =SUMIFS('Network Projects Direct Costs'!$E$6:$E$164,'Network Projects Direct Costs'!$O$6:$O$164,'Misc Data'!$C7,'Network Projects Direct Costs'!$N$6:$N$164,'Misc Data'!O$4)/SUMIFS('Network Projects Direct Costs'!$E$6:$E$164,'Network Projects Direct Costs'!$O$6:$O$164,'Misc Data'!$C7) -> 0 | P7: =SUMIFS('Network Projects Direct Costs'!$E$6:$E$164,'Network Projects Direct Costs'!$O$6:$O$164,'Misc Data'!$C7,'Network Projects Direct Costs'!$N$6:$N$164,'Misc Data'!P$4)/SUMIFS('Network Projects Direct Costs'!$E$6:$E$164,'Network Projects Direct Costs'!$O$6:$O$164,'Misc Data'!$C7) -> 0 | Q7: =SUMIFS('Network Projects Direct Costs'!$E$6:$E$164,'Network Projects Direct Costs'!$O$6:$O$164,'Misc Data'!$C7,'Network Projects Direct Costs'!$N$6:$N$164,'Misc Data'!Q$4)/SUMIFS('Network Projects Direct Costs'!$E$6:$E$164,'Network Projects Direct Costs'!$O$6:$O$164,'Misc Data'!$C7) -> 0 | R7: =SUMIFS('Network Projects Direct Costs'!$E$6:$E$164,'Network Projects Direct Costs'!$O$6:$O$164,'Misc Data'!$C7,'Network Projects Direct Costs'!$N$6:$N$164,'Misc Data'!R$4)/SUMIFS('Network Projects Direct Costs'!$E$6:$E$164,'Network Projects Direct Costs'!$O$6:$O$164,'Misc Data'!$C7) -> 0 | S7: =SUMIFS('Network Projects Direct Costs'!$E$6:$E$164,'Network Projects Direct Costs'!$O$6:$O$164,'Misc Data'!$C7,'Network Projects Direct Costs'!$N$6:$N$164,'Misc Data'!S$4)/SUMIFS('Network Projects Direct Costs'!$E$6:$E$164,'Network Projects Direct Costs'!$O$6:$O$164,'Misc Data'!$C7) -> 0 | T7: =SUMIFS('Network Projects Direct Costs'!$E$6:$E$164,'Network Projects Direct Costs'!$O$6:$O$164,'Misc Data'!$C7,'Network Projects Direct Costs'!$N$6:$N$164,'Misc Data'!T$4)/SUMIFS('Network Projects Direct Costs'!$E$6:$E$164,'Network Projects Direct Costs'!$O$6:$O$164,'Misc Data'!$C7) -> 0 | U7: =SUMIFS('Network Projects Direct Costs'!$E$6:$E$164,'Network Projects Direct Costs'!$O$6:$O$164,'Misc Data'!$C7,'Network Projects Direct Costs'!$N$6:$N$164,'Misc Data'!U$4)/SUMIFS('Network Projects Direct Costs'!$E$6:$E$164,'Network Projects Direct Costs'!$O$6:$O$164,'Misc Data'!$C7) -> 0 | V7: =SUMIFS('Network Projects Direct Costs'!$E$6:$E$164,'Network Projects Direct Costs'!$O$6:$O$164,'Misc Data'!$C7,'Network Projects Direct Costs'!$N$6:$N$164,'Misc Data'!V$4)/SUMIFS('Network Projects Direct Costs'!$E$6:$E$164,'Network Projects Direct Costs'!$O$6:$O$164,'Misc Data'!$C7) -> 0 | W7: =SUMIFS('Network Projects Direct Costs'!$E$6:$E$164,'Network Projects Direct Costs'!$O$6:$O$164,'Misc Data'!$C7,'Network Projects Direct Costs'!$N$6:$N$164,'Misc Data'!W$4)/SUMIFS('Network Projects Direct Costs'!$E$6:$E$164,'Network Projects Direct Costs'!$O$6:$O$164,'Misc Data'!$C7) -> 0 | X7: =SUMIFS('Network Projects Direct Costs'!$E$6:$E$164,'Network Projects Direct Costs'!$O$6:$O$164,'Misc Data'!$C7,'Network Projects Direct Costs'!$N$6:$N$164,'Misc Data'!X$4)/SUMIFS('Network Projects Direct Costs'!$E$6:$E$164,'Network Projects Direct Costs'!$O$6:$O$164,'Misc Data'!$C7) -> 0 | Y7: =SUMIFS('Network Projects Direct Costs'!$E$6:$E$164,'Network Projects Direct Costs'!$O$6:$O$164,'Misc Data'!$C7,'Network Projects Direct Costs'!$N$6:$N$164,'Misc Data'!Y$4)/SUMIFS('Network Projects Direct Costs'!$E$6:$E$164,'Network Projects Direct Costs'!$O$6:$O$164,'Misc Data'!$C7) -> 0 | Z7: =SUMIFS('Network Projects Direct Costs'!$E$6:$E$164,'Network Projects Direct Costs'!$O$6:$O$164,'Misc Data'!$C7,'Network Projects Direct Costs'!$N$6:$N$164,'Misc Data'!Z$4)/SUMIFS('Network Projects Direct Costs'!$E$6:$E$164,'Network Projects Direct Costs'!$O$6:$O$164,'Misc Data'!$C7) -> 0 | AA7: =SUMIFS('Network Projects Direct Costs'!$E$6:$E$164,'Network Projects Direct Costs'!$O$6:$O$164,'Misc Data'!$C7,'Network Projects Direct Costs'!$N$6:$N$164,'Misc Data'!AA$4)/SUMIFS('Network Projects Direct Costs'!$E$6:$E$164,'Network Projects Direct Costs'!$O$6:$O$164,'Misc Data'!$C7) -> 0 | AB7: =SUMIFS('Network Projects Direct Costs'!$E$6:$E$164,'Network Projects Direct Costs'!$O$6:$O$164,'Misc Data'!$C7,'Network Projects Direct Costs'!$N$6:$N$164,'Misc Data'!AB$4)/SUMIFS('Network Projects Direct Costs'!$E$6:$E$164,'Network Projects Direct Costs'!$O$6:$O$164,'Misc Data'!$C7) -> 0 | AC7: =SUMIFS('Network Projects Direct Costs'!$E$6:$E$164,'Network Projects Direct Costs'!$O$6:$O$164,'Misc Data'!$C7,'Network Projects Direct Costs'!$N$6:$N$164,'Misc Data'!AC$4)/SUMIFS('Network Projects Direct Costs'!$E$6:$E$164,'Network Projects Direct Costs'!$O$6:$O$164,'Misc Data'!$C7) -> 0.02564428184 | AD7: =SUMIFS('Network Projects Direct Costs'!$E$6:$E$164,'Network Projects Direct Costs'!$O$6:$O$164,'Misc Data'!$C7,'Network Projects Direct Costs'!$N$6:$N$164,'Misc Data'!AD$4)/SUMIFS('Network Projects Direct Costs'!$E$6:$E$164,'Network Projects Direct Costs'!$O$6:$O$164,'Misc Data'!$C7) -> 0 | AE7: =SUMIFS('Network Projects Direct Costs'!$E$6:$E$164,'Network Projects Direct Costs'!$O$6:$O$164,'Misc Data'!$C7,'Network Projects Direct Costs'!$N$6:$N$164,'Misc Data'!AE$4)/SUMIFS('Network Projects Direct Costs'!$E$6:$E$164,'Network Projects Direct Costs'!$O$6:$O$164,'Misc Data'!$C7) -> 0 | AF7: =ABS(1-SUM(K7:AE7)) -> 0 | AH7: =SUMIFS('Network Projects Direct Costs'!$F$6:$F$164,'Network Projects Direct Costs'!$O$6:$O$164,'Misc Data'!$C7,'Network Projects Direct Costs'!$N$6:$N$164,'Misc Data'!AH$4)/SUMIFS('Network Projects Direct Costs'!$F$6:$F$164,'Network Projects Direct Costs'!$O$6:$O$164,'Misc Data'!$C7) -> 0.02151318047 | AI7: =SUMIFS('Network Projects Direct Costs'!$F$6:$F$164,'Network Projects Direct Costs'!$O$6:$O$164,'Misc Data'!$C7,'Network Projects Direct Costs'!$N$6:$N$164,'Misc Data'!AI$4)/SUMIFS('Network Projects Direct Costs'!$F$6:$F$164,'Network Projects Direct Costs'!$O$6:$O$164,'Misc Data'!$C7) -> 0.1936186243 | AJ7: =SUMIFS('Network Projects Direct Costs'!$F$6:$F$164,'Network Projects Direct Costs'!$O$6:$O$164,'Misc Data'!$C7,'Network Projects Direct Costs'!$N$6:$N$164,'Misc Data'!AJ$4)/SUMIFS('Network Projects Direct Costs'!$F$6:$F$164,'Network Projects Direct Costs'!$O$6:$O$164,'Misc Data'!$C7) -> 0.3783822936 | AK7: =SUMIFS('Network Projects Direct Costs'!$F$6:$F$164,'Network Projects Direct Costs'!$O$6:$O$164,'Misc Data'!$C7,'Network Projects Direct Costs'!$N$6:$N$164,'Misc Data'!AK$4)/SUMIFS('Network Projects Direct Costs'!$F$6:$F$164,'Network Projects Direct Costs'!$O$6:$O$164,'Misc Data'!$C7) -> 0.335360082 | AL7: =SUMIFS('Network Projects Direct Costs'!$F$6:$F$164,'Network Projects Direct Costs'!$O$6:$O$164,'Misc Data'!$C7,'Network Projects Direct Costs'!$N$6:$N$164,'Misc Data'!AL$4)/SUMIFS('Network Projects Direct Costs'!$F$6:$F$164,'Network Projects Direct Costs'!$O$6:$O$164,'Misc Data'!$C7) -> 0 | AM7: =SUMIFS('Network Projects Direct Costs'!$F$6:$F$164,'Network Projects Direct Costs'!$O$6:$O$164,'Misc Data'!$C7,'Network Projects Direct Costs'!$N$6:$N$164,'Misc Data'!AM$4)/SUMIFS('Network Projects Direct Costs'!$F$6:$F$164,'Network Projects Direct Costs'!$O$6:$O$164,'Misc Data'!$C7) -> 0 | AN7: =SUMIFS('Network Projects Direct Costs'!$F$6:$F$164,'Network Projects Direct Costs'!$O$6:$O$164,'Misc Data'!$C7,'Network Projects Direct Costs'!$N$6:$N$164,'Misc Data'!AN$4)/SUMIFS('Network Projects Direct Costs'!$F$6:$F$164,'Network Projects Direct Costs'!$O$6:$O$164,'Misc Data'!$C7) -> 0 | AO7: =SUMIFS('Network Projects Direct Costs'!$F$6:$F$164,'Network Projects Direct Costs'!$O$6:$O$164,'Misc Data'!$C7,'Network Projects Direct Costs'!$N$6:$N$164,'Misc Data'!AO$4)/SUMIFS('Network Projects Direct Costs'!$F$6:$F$164,'Network Projects Direct Costs'!$O$6:$O$164,'Misc Data'!$C7) -> 0 | AP7: =SUMIFS('Network Projects Direct Costs'!$F$6:$F$164,'Network Projects Direct Costs'!$O$6:$O$164,'Misc Data'!$C7,'Network Projects Direct Costs'!$N$6:$N$164,'Misc Data'!AP$4)/SUMIFS('Network Projects Direct Costs'!$F$6:$F$164,'Network Projects Direct Costs'!$O$6:$O$164,'Misc Data'!$C7) -> 0 | AQ7: =SUMIFS('Network Projects Direct Costs'!$F$6:$F$164,'Network Projects Direct Costs'!$O$6:$O$164,'Misc Data'!$C7,'Network Projects Direct Costs'!$N$6:$N$164,'Misc Data'!AQ$4)/SUMIFS('Network Projects Direct Costs'!$F$6:$F$164,'Network Projects Direct Costs'!$O$6:$O$164,'Misc Data'!$C7) -> 0 | AR7: =SUMIFS('Network Projects Direct Costs'!$F$6:$F$164,'Network Projects Direct Costs'!$O$6:$O$164,'Misc Data'!$C7,'Network Projects Direct Costs'!$N$6:$N$164,'Misc Data'!AR$4)/SUMIFS('Network Projects Direct Costs'!$F$6:$F$164,'Network Projects Direct Costs'!$O$6:$O$164,'Misc Data'!$C7) -> 0 | AS7: =SUMIFS('Network Projects Direct Costs'!$F$6:$F$164,'Network Projects Direct Costs'!$O$6:$O$164,'Misc Data'!$C7,'Network Projects Direct Costs'!$N$6:$N$164,'Misc Data'!AS$4)/SUMIFS('Network Projects Direct Costs'!$F$6:$F$164,'Network Projects Direct Costs'!$O$6:$O$164,'Misc Data'!$C7) -> 0 | AT7: =SUMIFS('Network Projects Direct Costs'!$F$6:$F$164,'Network Projects Direct Costs'!$O$6:$O$164,'Misc Data'!$C7,'Network Projects Direct Costs'!$N$6:$N$164,'Misc Data'!AT$4)/SUMIFS('Network Projects Direct Costs'!$F$6:$F$164,'Network Projects Direct Costs'!$O$6:$O$164,'Misc Data'!$C7) -> 0 | AU7: =SUMIFS('Network Projects Direct Costs'!$F$6:$F$164,'Network Projects Direct Costs'!$O$6:$O$164,'Misc Data'!$C7,'Network Projects Direct Costs'!$N$6:$N$164,'Misc Data'!AU$4)/SUMIFS('Network Projects Direct Costs'!$F$6:$F$164,'Network Projects Direct Costs'!$O$6:$O$164,'Misc Data'!$C7) -> 0 | AV7: =SUMIFS('Network Projects Direct Costs'!$F$6:$F$164,'Network Projects Direct Costs'!$O$6:$O$164,'Misc Data'!$C7,'Network Projects Direct Costs'!$N$6:$N$164,'Misc Data'!AV$4)/SUMIFS('Network Projects Direct Costs'!$F$6:$F$164,'Network Projects Direct Costs'!$O$6:$O$164,'Misc Data'!$C7) -> 0 | AW7: =SUMIFS('Network Projects Direct Costs'!$F$6:$F$164,'Network Projects Direct Costs'!$O$6:$O$164,'Misc Data'!$C7,'Network Projects Direct Costs'!$N$6:$N$164,'Misc Data'!AW$4)/SUMIFS('Network Projects Direct Costs'!$F$6:$F$164,'Network Projects Direct Costs'!$O$6:$O$164,'Misc Data'!$C7) -> 0 | AX7: =SUMIFS('Network Projects Direct Costs'!$F$6:$F$164,'Network Projects Direct Costs'!$O$6:$O$164,'Misc Data'!$C7,'Network Projects Direct Costs'!$N$6:$N$164,'Misc Data'!AX$4)/SUMIFS('Network Projects Direct Costs'!$F$6:$F$164,'Network Projects Direct Costs'!$O$6:$O$164,'Misc Data'!$C7) -> 0 | AY7: =SUMIFS('Network Projects Direct Costs'!$F$6:$F$164,'Network Projects Direct Costs'!$O$6:$O$164,'Misc Data'!$C7,'Network Projects Direct Costs'!$N$6:$N$164,'Misc Data'!AY$4)/SUMIFS('Network Projects Direct Costs'!$F$6:$F$164,'Network Projects Direct Costs'!$O$6:$O$164,'Misc Data'!$C7) -> 0 | AZ7: =SUMIFS('Network Projects Direct Costs'!$F$6:$F$164,'Network Projects Direct Costs'!$O$6:$O$164,'Misc Data'!$C7,'Network Projects Direct Costs'!$N$6:$N$164,'Misc Data'!AZ$4)/SUMIFS('Network Projects Direct Costs'!$F$6:$F$164,'Network Projects Direct Costs'!$O$6:$O$164,'Misc Data'!$C7) -> 0.0711258196 | BA7: =SUMIFS('Network Projects Direct Costs'!$F$6:$F$164,'Network Projects Direct Costs'!$O$6:$O$164,'Misc Data'!$C7,'Network Projects Direct Costs'!$N$6:$N$164,'Misc Data'!BA$4)/SUMIFS('Network Projects Direct Costs'!$F$6:$F$164,'Network Projects Direct Costs'!$O$6:$O$164,'Misc Data'!$C7) -> 0 | BB7: =SUMIFS('Network Projects Direct Costs'!$F$6:$F$164,'Network Projects Direct Costs'!$O$6:$O$164,'Misc Data'!$C7,'Network Projects Direct Costs'!$N$6:$N$164,'Misc Data'!BB$4)/SUMIFS('Network Projects Direct Costs'!$F$6:$F$164,'Network Projects Direct Costs'!$O$6:$O$164,'Misc Data'!$C7) -> 0 | BC7: =ABS(1-SUM(AH7:BB7)) -> 0 | BE7: =SUMIFS('Network Projects Direct Costs'!$G$6:$G$164,'Network Projects Direct Costs'!$O$6:$O$164,'Misc Data'!$C7,'Network Projects Direct Costs'!$N$6:$N$164,'Misc Data'!BE$4)/SUMIFS('Network Projects Direct Costs'!$G$6:$G$164,'Network Projects Direct Costs'!$O$6:$O$164,'Misc Data'!$C7) -> 0.04748578454 | BF7: =SUMIFS('Network Projects Direct Costs'!$G$6:$G$164,'Network Projects Direct Costs'!$O$6:$O$164,'Misc Data'!$C7,'Network Projects Direct Costs'!$N$6:$N$164,'Misc Data'!BF$4)/SUMIFS('Network Projects Direct Costs'!$G$6:$G$164,'Network Projects Direct Costs'!$O$6:$O$164,'Misc Data'!$C7) -> 0.2034807522 | BG7: =SUMIFS('Network Projects Direct Costs'!$G$6:$G$164,'Network Projects Direct Costs'!$O$6:$O$164,'Misc Data'!$C7,'Network Projects Direct Costs'!$N$6:$N$164,'Misc Data'!BG$4)/SUMIFS('Network Projects Direct Costs'!$G$6:$G$164,'Network Projects Direct Costs'!$O$6:$O$164,'Misc Data'!$C7) -> 0.2776412414 | BH7: =SUMIFS('Network Projects Direct Costs'!$G$6:$G$164,'Network Projects Direct Costs'!$O$6:$O$164,'Misc Data'!$C7,'Network Projects Direct Costs'!$N$6:$N$164,'Misc Data'!BH$4)/SUMIFS('Network Projects Direct Costs'!$G$6:$G$164,'Network Projects Direct Costs'!$O$6:$O$164,'Misc Data'!$C7) -> 0.3782526026 | BI7: =SUMIFS('Network Projects Direct Costs'!$G$6:$G$164,'Network Projects Direct Costs'!$O$6:$O$164,'Misc Data'!$C7,'Network Projects Direct Costs'!$N$6:$N$164,'Misc Data'!BI$4)/SUMIFS('Network Projects Direct Costs'!$G$6:$G$164,'Network Projects Direct Costs'!$O$6:$O$164,'Misc Data'!$C7) -> 0 | BJ7: =SUMIFS('Network Projects Direct Costs'!$G$6:$G$164,'Network Projects Direct Costs'!$O$6:$O$164,'Misc Data'!$C7,'Network Projects Direct Costs'!$N$6:$N$164,'Misc Data'!BJ$4)/SUMIFS('Network Projects Direct Costs'!$G$6:$G$164,'Network Projects Direct Costs'!$O$6:$O$164,'Misc Data'!$C7) -> 0 | BK7: =SUMIFS('Network Projects Direct Costs'!$G$6:$G$164,'Network Projects Direct Costs'!$O$6:$O$164,'Misc Data'!$C7,'Network Projects Direct Costs'!$N$6:$N$164,'Misc Data'!BK$4)/SUMIFS('Network Projects Direct Costs'!$G$6:$G$164,'Network Projects Direct Costs'!$O$6:$O$164,'Misc Data'!$C7) -> 0 | BL7: =SUMIFS('Network Projects Direct Costs'!$G$6:$G$164,'Network Projects Direct Costs'!$O$6:$O$164,'Misc Data'!$C7,'Network Projects Direct Costs'!$N$6:$N$164,'Misc Data'!BL$4)/SUMIFS('Network Projects Direct Costs'!$G$6:$G$164,'Network Projects Direct Costs'!$O$6:$O$164,'Misc Data'!$C7) -> 0 | BM7: =SUMIFS('Network Projects Direct Costs'!$G$6:$G$164,'Network Projects Direct Costs'!$O$6:$O$164,'Misc Data'!$C7,'Network Projects Direct Costs'!$N$6:$N$164,'Misc Data'!BM$4)/SUMIFS('Network Projects Direct Costs'!$G$6:$G$164,'Network Projects Direct Costs'!$O$6:$O$164,'Misc Data'!$C7) -> 0 | BN7: =SUMIFS('Network Projects Direct Costs'!$G$6:$G$164,'Network Projects Direct Costs'!$O$6:$O$164,'Misc Data'!$C7,'Network Projects Direct Costs'!$N$6:$N$164,'Misc Data'!BN$4)/SUMIFS('Network Projects Direct Costs'!$G$6:$G$164,'Network Projects Direct Costs'!$O$6:$O$164,'Misc Data'!$C7) -> 0 | BO7: =SUMIFS('Network Projects Direct Costs'!$G$6:$G$164,'Network Projects Direct Costs'!$O$6:$O$164,'Misc Data'!$C7,'Network Projects Direct Costs'!$N$6:$N$164,'Misc Data'!BO$4)/SUMIFS('Network Projects Direct Costs'!$G$6:$G$164,'Network Projects Direct Costs'!$O$6:$O$164,'Misc Data'!$C7) -> 0 | BP7: =SUMIFS('Network Projects Direct Costs'!$G$6:$G$164,'Network Projects Direct Costs'!$O$6:$O$164,'Misc Data'!$C7,'Network Projects Direct Costs'!$N$6:$N$164,'Misc Data'!BP$4)/SUMIFS('Network Projects Direct Costs'!$G$6:$G$164,'Network Projects Direct Costs'!$O$6:$O$164,'Misc Data'!$C7) -> 0 | BQ7: =SUMIFS('Network Projects Direct Costs'!$G$6:$G$164,'Network Projects Direct Costs'!$O$6:$O$164,'Misc Data'!$C7,'Network Projects Direct Costs'!$N$6:$N$164,'Misc Data'!BQ$4)/SUMIFS('Network Projects Direct Costs'!$G$6:$G$164,'Network Projects Direct Costs'!$O$6:$O$164,'Misc Data'!$C7) -> 0 | BR7: =SUMIFS('Network Projects Direct Costs'!$G$6:$G$164,'Network Projects Direct Costs'!$O$6:$O$164,'Misc Data'!$C7,'Network Projects Direct Costs'!$N$6:$N$164,'Misc Data'!BR$4)/SUMIFS('Network Projects Direct Costs'!$G$6:$G$164,'Network Projects Direct Costs'!$O$6:$O$164,'Misc Data'!$C7) -> 0 | BS7: =SUMIFS('Network Projects Direct Costs'!$G$6:$G$164,'Network Projects Direct Costs'!$O$6:$O$164,'Misc Data'!$C7,'Network Projects Direct Costs'!$N$6:$N$164,'Misc Data'!BS$4)/SUMIFS('Network Projects Direct Costs'!$G$6:$G$164,'Network Projects Direct Costs'!$O$6:$O$164,'Misc Data'!$C7) -> 0 | BT7: =SUMIFS('Network Projects Direct Costs'!$G$6:$G$164,'Network Projects Direct Costs'!$O$6:$O$164,'Misc Data'!$C7,'Network Projects Direct Costs'!$N$6:$N$164,'Misc Data'!BT$4)/SUMIFS('Network Projects Direct Costs'!$G$6:$G$164,'Network Projects Direct Costs'!$O$6:$O$164,'Misc Data'!$C7) -> 0 | BU7: =SUMIFS('Network Projects Direct Costs'!$G$6:$G$164,'Network Projects Direct Costs'!$O$6:$O$164,'Misc Data'!$C7,'Network Projects Direct Costs'!$N$6:$N$164,'Misc Data'!BU$4)/SUMIFS('Network Projects Direct Costs'!$G$6:$G$164,'Network Projects Direct Costs'!$O$6:$O$164,'Misc Data'!$C7) -> 0 | BV7: =SUMIFS('Network Projects Direct Costs'!$G$6:$G$164,'Network Projects Direct Costs'!$O$6:$O$164,'Misc Data'!$C7,'Network Projects Direct Costs'!$N$6:$N$164,'Misc Data'!BV$4)/SUMIFS('Network Projects Direct Costs'!$G$6:$G$164,'Network Projects Direct Costs'!$O$6:$O$164,'Misc Data'!$C7) -> 0 | BW7: =SUMIFS('Network Projects Direct Costs'!$G$6:$G$164,'Network Projects Direct Costs'!$O$6:$O$164,'Misc Data'!$C7,'Network Projects Direct Costs'!$N$6:$N$164,'Misc Data'!BW$4)/SUMIFS('Network Projects Direct Costs'!$G$6:$G$164,'Network Projects Direct Costs'!$O$6:$O$164,'Misc Data'!$C7) -> 0.09313961935 | BX7: =SUMIFS('Network Projects Direct Costs'!$G$6:$G$164,'Network Projects Direct Costs'!$O$6:$O$164,'Misc Data'!$C7,'Network Projects Direct Costs'!$N$6:$N$164,'Misc Data'!BX$4)/SUMIFS('Network Projects Direct Costs'!$G$6:$G$164,'Network Projects Direct Costs'!$O$6:$O$164,'Misc Data'!$C7) -> 0 | BY7: =SUMIFS('Network Projects Direct Costs'!$G$6:$G$164,'Network Projects Direct Costs'!$O$6:$O$164,'Misc Data'!$C7,'Network Projects Direct Costs'!$N$6:$N$164,'Misc Data'!BY$4)/SUMIFS('Network Projects Direct Costs'!$G$6:$G$164,'Network Projects Direct Costs'!$O$6:$O$164,'Misc Data'!$C7) -> 0 | BZ7: =ABS(1-SUM(BE7:BY7)) -> 0 | CB7: =SUMIFS('Network Projects Direct Costs'!$H$6:$H$164,'Network Projects Direct Costs'!$O$6:$O$164,'Misc Data'!$C7,'Network Projects Direct Costs'!$N$6:$N$164,'Misc Data'!CB$4)/SUMIFS('Network Projects Direct Costs'!$H$6:$H$164,'Network Projects Direct Costs'!$O$6:$O$164,'Misc Data'!$C7) -> 0.181361298 | CC7: =SUMIFS('Network Projects Direct Costs'!$H$6:$H$164,'Network Projects Direct Costs'!$O$6:$O$164,'Misc Data'!$C7,'Network Projects Direct Costs'!$N$6:$N$164,'Misc Data'!CC$4)/SUMIFS('Network Projects Direct Costs'!$H$6:$H$164,'Network Projects Direct Costs'!$O$6:$O$164,'Misc Data'!$C7) -> 0.2140895528 | CD7: =SUMIFS('Network Projects Direct Costs'!$H$6:$H$164,'Network Projects Direct Costs'!$O$6:$O$164,'Misc Data'!$C7,'Network Projects Direct Costs'!$N$6:$N$164,'Misc Data'!CD$4)/SUMIFS('Network Projects Direct Costs'!$H$6:$H$164,'Network Projects Direct Costs'!$O$6:$O$164,'Misc Data'!$C7) -> 0.1572772716 | CE7: =SUMIFS('Network Projects Direct Costs'!$H$6:$H$164,'Network Projects Direct Costs'!$O$6:$O$164,'Misc Data'!$C7,'Network Projects Direct Costs'!$N$6:$N$164,'Misc Data'!CE$4)/SUMIFS('Network Projects Direct Costs'!$H$6:$H$164,'Network Projects Direct Costs'!$O$6:$O$164,'Misc Data'!$C7) -> 0.3583594745 | CF7: =SUMIFS('Network Projects Direct Costs'!$H$6:$H$164,'Network Projects Direct Costs'!$O$6:$O$164,'Misc Data'!$C7,'Network Projects Direct Costs'!$N$6:$N$164,'Misc Data'!CF$4)/SUMIFS('Network Projects Direct Costs'!$H$6:$H$164,'Network Projects Direct Costs'!$O$6:$O$164,'Misc Data'!$C7) -> 0 | CG7: =SUMIFS('Network Projects Direct Costs'!$H$6:$H$164,'Network Projects Direct Costs'!$O$6:$O$164,'Misc Data'!$C7,'Network Projects Direct Costs'!$N$6:$N$164,'Misc Data'!CG$4)/SUMIFS('Network Projects Direct Costs'!$H$6:$H$164,'Network Projects Direct Costs'!$O$6:$O$164,'Misc Data'!$C7) -> 0 | CH7: =SUMIFS('Network Projects Direct Costs'!$H$6:$H$164,'Network Projects Direct Costs'!$O$6:$O$164,'Misc Data'!$C7,'Network Projects Direct Costs'!$N$6:$N$164,'Misc Data'!CH$4)/SUMIFS('Network Projects Direct Costs'!$H$6:$H$164,'Network Projects Direct Costs'!$O$6:$O$164,'Misc Data'!$C7) -> 0 | CI7: =SUMIFS('Network Projects Direct Costs'!$H$6:$H$164,'Network Projects Direct Costs'!$O$6:$O$164,'Misc Data'!$C7,'Network Projects Direct Costs'!$N$6:$N$164,'Misc Data'!CI$4)/SUMIFS('Network Projects Direct Costs'!$H$6:$H$164,'Network Projects Direct Costs'!$O$6:$O$164,'Misc Data'!$C7) -> 0 | CJ7: =SUMIFS('Network Projects Direct Costs'!$H$6:$H$164,'Network Projects Direct Costs'!$O$6:$O$164,'Misc Data'!$C7,'Network Projects Direct Costs'!$N$6:$N$164,'Misc Data'!CJ$4)/SUMIFS('Network Projects Direct Costs'!$H$6:$H$164,'Network Projects Direct Costs'!$O$6:$O$164,'Misc Data'!$C7) -> 0.06116844366 | CK7: =SUMIFS('Network Projects Direct Costs'!$H$6:$H$164,'Network Projects Direct Costs'!$O$6:$O$164,'Misc Data'!$C7,'Network Projects Direct Costs'!$N$6:$N$164,'Misc Data'!CK$4)/SUMIFS('Network Projects Direct Costs'!$H$6:$H$164,'Network Projects Direct Costs'!$O$6:$O$164,'Misc Data'!$C7) -> 0 | CL7: =SUMIFS('Network Projects Direct Costs'!$H$6:$H$164,'Network Projects Direct Costs'!$O$6:$O$164,'Misc Data'!$C7,'Network Projects Direct Costs'!$N$6:$N$164,'Misc Data'!CL$4)/SUMIFS('Network Projects Direct Costs'!$H$6:$H$164,'Network Projects Direct Costs'!$O$6:$O$164,'Misc Data'!$C7) -> 0 | CM7: =SUMIFS('Network Projects Direct Costs'!$H$6:$H$164,'Network Projects Direct Costs'!$O$6:$O$164,'Misc Data'!$C7,'Network Projects Direct Costs'!$N$6:$N$164,'Misc Data'!CM$4)/SUMIFS('Network Projects Direct Costs'!$H$6:$H$164,'Network Projects Direct Costs'!$O$6:$O$164,'Misc Data'!$C7) -> 0 | CN7: =SUMIFS('Network Projects Direct Costs'!$H$6:$H$164,'Network Projects Direct Costs'!$O$6:$O$164,'Misc Data'!$C7,'Network Projects Direct Costs'!$N$6:$N$164,'Misc Data'!CN$4)/SUMIFS('Network Projects Direct Costs'!$H$6:$H$164,'Network Projects Direct Costs'!$O$6:$O$164,'Misc Data'!$C7) -> 0 | CO7: =SUMIFS('Network Projects Direct Costs'!$H$6:$H$164,'Network Projects Direct Costs'!$O$6:$O$164,'Misc Data'!$C7,'Network Projects Direct Costs'!$N$6:$N$164,'Misc Data'!CO$4)/SUMIFS('Network Projects Direct Costs'!$H$6:$H$164,'Network Projects Direct Costs'!$O$6:$O$164,'Misc Data'!$C7) -> 0 | CP7: =SUMIFS('Network Projects Direct Costs'!$H$6:$H$164,'Network Projects Direct Costs'!$O$6:$O$164,'Misc Data'!$C7,'Network Projects Direct Costs'!$N$6:$N$164,'Misc Data'!CP$4)/SUMIFS('Network Projects Direct Costs'!$H$6:$H$164,'Network Projects Direct Costs'!$O$6:$O$164,'Misc Data'!$C7) -> 0 | CQ7: =SUMIFS('Network Projects Direct Costs'!$H$6:$H$164,'Network Projects Direct Costs'!$O$6:$O$164,'Misc Data'!$C7,'Network Projects Direct Costs'!$N$6:$N$164,'Misc Data'!CQ$4)/SUMIFS('Network Projects Direct Costs'!$H$6:$H$164,'Network Projects Direct Costs'!$O$6:$O$164,'Misc Data'!$C7) -> 0 | CR7: =SUMIFS('Network Projects Direct Costs'!$H$6:$H$164,'Network Projects Direct Costs'!$O$6:$O$164,'Misc Data'!$C7,'Network Projects Direct Costs'!$N$6:$N$164,'Misc Data'!CR$4)/SUMIFS('Network Projects Direct Costs'!$H$6:$H$164,'Network Projects Direct Costs'!$O$6:$O$164,'Misc Data'!$C7) -> 0 | CS7: =SUMIFS('Network Projects Direct Costs'!$H$6:$H$164,'Network Projects Direct Costs'!$O$6:$O$164,'Misc Data'!$C7,'Network Projects Direct Costs'!$N$6:$N$164,'Misc Data'!CS$4)/SUMIFS('Network Projects Direct Costs'!$H$6:$H$164,'Network Projects Direct Costs'!$O$6:$O$164,'Misc Data'!$C7) -> 0 | CT7: =SUMIFS('Network Projects Direct Costs'!$H$6:$H$164,'Network Projects Direct Costs'!$O$6:$O$164,'Misc Data'!$C7,'Network Projects Direct Costs'!$N$6:$N$164,'Misc Data'!CT$4)/SUMIFS('Network Projects Direct Costs'!$H$6:$H$164,'Network Projects Direct Costs'!$O$6:$O$164,'Misc Data'!$C7) -> 0.02774395932 | CU7: =SUMIFS('Network Projects Direct Costs'!$H$6:$H$164,'Network Projects Direct Costs'!$O$6:$O$164,'Misc Data'!$C7,'Network Projects Direct Costs'!$N$6:$N$164,'Misc Data'!CU$4)/SUMIFS('Network Projects Direct Costs'!$H$6:$H$164,'Network Projects Direct Costs'!$O$6:$O$164,'Misc Data'!$C7) -> 0 | CV7: =SUMIFS('Network Projects Direct Costs'!$H$6:$H$164,'Network Projects Direct Costs'!$O$6:$O$164,'Misc Data'!$C7,'Network Projects Direct Costs'!$N$6:$N$164,'Misc Data'!CV$4)/SUMIFS('Network Projects Direct Costs'!$H$6:$H$164,'Network Projects Direct Costs'!$O$6:$O$164,'Misc Data'!$C7) -> 0 | CW7: =ABS(1-SUM(CB7:CV7)) -> 2.220446049e-16 | CY7: =SUMIFS('Network Projects Direct Costs'!$I$6:$I$164,'Network Projects Direct Costs'!$O$6:$O$164,'Misc Data'!$C7,'Network Projects Direct Costs'!$N$6:$N$164,'Misc Data'!CY$4)/SUMIFS('Network Projects Direct Costs'!$I$6:$I$164,'Network Projects Direct Costs'!$O$6:$O$164,'Misc Data'!$C7) -> 0.258153079 | CZ7: =SUMIFS('Network Projects Direct Costs'!$I$6:$I$164,'Network Projects Direct Costs'!$O$6:$O$164,'Misc Data'!$C7,'Network Projects Direct Costs'!$N$6:$N$164,'Misc Data'!CZ$4)/SUMIFS('Network Projects Direct Costs'!$I$6:$I$164,'Network Projects Direct Costs'!$O$6:$O$164,'Misc Data'!$C7) -> 0.2237922861 | DA7: =SUMIFS('Network Projects Direct Costs'!$I$6:$I$164,'Network Projects Direct Costs'!$O$6:$O$164,'Misc Data'!$C7,'Network Projects Direct Costs'!$N$6:$N$164,'Misc Data'!DA$4)/SUMIFS('Network Projects Direct Costs'!$I$6:$I$164,'Network Projects Direct Costs'!$O$6:$O$164,'Misc Data'!$C7) -> 0.09337628444 | DB7: =SUMIFS('Network Projects Direct Costs'!$I$6:$I$164,'Network Projects Direct Costs'!$O$6:$O$164,'Misc Data'!$C7,'Network Projects Direct Costs'!$N$6:$N$164,'Misc Data'!DB$4)/SUMIFS('Network Projects Direct Costs'!$I$6:$I$164,'Network Projects Direct Costs'!$O$6:$O$164,'Misc Data'!$C7) -> 0.3638758889 | DC7: =SUMIFS('Network Projects Direct Costs'!$I$6:$I$164,'Network Projects Direct Costs'!$O$6:$O$164,'Misc Data'!$C7,'Network Projects Direct Costs'!$N$6:$N$164,'Misc Data'!DC$4)/SUMIFS('Network Projects Direct Costs'!$I$6:$I$164,'Network Projects Direct Costs'!$O$6:$O$164,'Misc Data'!$C7) -> 0 | DD7: =SUMIFS('Network Projects Direct Costs'!$I$6:$I$164,'Network Projects Direct Costs'!$O$6:$O$164,'Misc Data'!$C7,'Network Projects Direct Costs'!$N$6:$N$164,'Misc Data'!DD$4)/SUMIFS('Network Projects Direct Costs'!$I$6:$I$164,'Network Projects Direct Costs'!$O$6:$O$164,'Misc Data'!$C7) -> 0 | DE7: =SUMIFS('Network Projects Direct Costs'!$I$6:$I$164,'Network Projects Direct Costs'!$O$6:$O$164,'Misc Data'!$C7,'Network Projects Direct Costs'!$N$6:$N$164,'Misc Data'!DE$4)/SUMIFS('Network Projects Direct Costs'!$I$6:$I$164,'Network Projects Direct Costs'!$O$6:$O$164,'Misc Data'!$C7) -> 0 | DF7: =SUMIFS('Network Projects Direct Costs'!$I$6:$I$164,'Network Projects Direct Costs'!$O$6:$O$164,'Misc Data'!$C7,'Network Projects Direct Costs'!$N$6:$N$164,'Misc Data'!DF$4)/SUMIFS('Network Projects Direct Costs'!$I$6:$I$164,'Network Projects Direct Costs'!$O$6:$O$164,'Misc Data'!$C7) -> 0 | DG7: =SUMIFS('Network Projects Direct Costs'!$I$6:$I$164,'Network Projects Direct Costs'!$O$6:$O$164,'Misc Data'!$C7,'Network Projects Direct Costs'!$N$6:$N$164,'Misc Data'!DG$4)/SUMIFS('Network Projects Direct Costs'!$I$6:$I$164,'Network Projects Direct Costs'!$O$6:$O$164,'Misc Data'!$C7) -> 0.0608024616 | DH7: =SUMIFS('Network Projects Direct Costs'!$I$6:$I$164,'Network Projects Direct Costs'!$O$6:$O$164,'Misc Data'!$C7,'Network Projects Direct Costs'!$N$6:$N$164,'Misc Data'!DH$4)/SUMIFS('Network Projects Direct Costs'!$I$6:$I$164,'Network Projects Direct Costs'!$O$6:$O$164,'Misc Data'!$C7) -> 0 | DI7: =SUMIFS('Network Projects Direct Costs'!$I$6:$I$164,'Network Projects Direct Costs'!$O$6:$O$164,'Misc Data'!$C7,'Network Projects Direct Costs'!$N$6:$N$164,'Misc Data'!DI$4)/SUMIFS('Network Projects Direct Costs'!$I$6:$I$164,'Network Projects Direct Costs'!$O$6:$O$164,'Misc Data'!$C7) -> 0 | DJ7: =SUMIFS('Network Projects Direct Costs'!$I$6:$I$164,'Network Projects Direct Costs'!$O$6:$O$164,'Misc Data'!$C7,'Network Projects Direct Costs'!$N$6:$N$164,'Misc Data'!DJ$4)/SUMIFS('Network Projects Direct Costs'!$I$6:$I$164,'Network Projects Direct Costs'!$O$6:$O$164,'Misc Data'!$C7) -> 0 | DK7: =SUMIFS('Network Projects Direct Costs'!$I$6:$I$164,'Network Projects Direct Costs'!$O$6:$O$164,'Misc Data'!$C7,'Network Projects Direct Costs'!$N$6:$N$164,'Misc Data'!DK$4)/SUMIFS('Network Projects Direct Costs'!$I$6:$I$164,'Network Projects Direct Costs'!$O$6:$O$164,'Misc Data'!$C7) -> 0 | DL7: =SUMIFS('Network Projects Direct Costs'!$I$6:$I$164,'Network Projects Direct Costs'!$O$6:$O$164,'Misc Data'!$C7,'Network Projects Direct Costs'!$N$6:$N$164,'Misc Data'!DL$4)/SUMIFS('Network Projects Direct Costs'!$I$6:$I$164,'Network Projects Direct Costs'!$O$6:$O$164,'Misc Data'!$C7) -> 0 | DM7: =SUMIFS('Network Projects Direct Costs'!$I$6:$I$164,'Network Projects Direct Costs'!$O$6:$O$164,'Misc Data'!$C7,'Network Projects Direct Costs'!$N$6:$N$164,'Misc Data'!DM$4)/SUMIFS('Network Projects Direct Costs'!$I$6:$I$164,'Network Projects Direct Costs'!$O$6:$O$164,'Misc Data'!$C7) -> 0 | DN7: =SUMIFS('Network Projects Direct Costs'!$I$6:$I$164,'Network Projects Direct Costs'!$O$6:$O$164,'Misc Data'!$C7,'Network Projects Direct Costs'!$N$6:$N$164,'Misc Data'!DN$4)/SUMIFS('Network Projects Direct Costs'!$I$6:$I$164,'Network Projects Direct Costs'!$O$6:$O$164,'Misc Data'!$C7) -> 0 | DO7: =SUMIFS('Network Projects Direct Costs'!$I$6:$I$164,'Network Projects Direct Costs'!$O$6:$O$164,'Misc Data'!$C7,'Network Projects Direct Costs'!$N$6:$N$164,'Misc Data'!DO$4)/SUMIFS('Network Projects Direct Costs'!$I$6:$I$164,'Network Projects Direct Costs'!$O$6:$O$164,'Misc Data'!$C7) -> 0 | DP7: =SUMIFS('Network Projects Direct Costs'!$I$6:$I$164,'Network Projects Direct Costs'!$O$6:$O$164,'Misc Data'!$C7,'Network Projects Direct Costs'!$N$6:$N$164,'Misc Data'!DP$4)/SUMIFS('Network Projects Direct Costs'!$I$6:$I$164,'Network Projects Direct Costs'!$O$6:$O$164,'Misc Data'!$C7) -> 0 | DQ7: =SUMIFS('Network Projects Direct Costs'!$I$6:$I$164,'Network Projects Direct Costs'!$O$6:$O$164,'Misc Data'!$C7,'Network Projects Direct Costs'!$N$6:$N$164,'Misc Data'!DQ$4)/SUMIFS('Network Projects Direct Costs'!$I$6:$I$164,'Network Projects Direct Costs'!$O$6:$O$164,'Misc Data'!$C7) -> 0 | DR7: =SUMIFS('Network Projects Direct Costs'!$I$6:$I$164,'Network Projects Direct Costs'!$O$6:$O$164,'Misc Data'!$C7,'Network Projects Direct Costs'!$N$6:$N$164,'Misc Data'!DR$4)/SUMIFS('Network Projects Direct Costs'!$I$6:$I$164,'Network Projects Direct Costs'!$O$6:$O$164,'Misc Data'!$C7) -> 0 | DS7: =SUMIFS('Network Projects Direct Costs'!$I$6:$I$164,'Network Projects Direct Costs'!$O$6:$O$164,'Misc Data'!$C7,'Network Projects Direct Costs'!$N$6:$N$164,'Misc Data'!DS$4)/SUMIFS('Network Projects Direct Costs'!$I$6:$I$164,'Network Projects Direct Costs'!$O$6:$O$164,'Misc Data'!$C7) -> 0 | DT7: =ABS(1-SUM(CY7:DS7)) -> 0
A8: C-3 | B8: Connections | C8: Connections | D8: 0.47 | E8: 0.24 | F8: 0.03 | G8: 0.21 | H8: 0.05 | I8: 0 | J8: 0 | K8: =SUMIFS('Network Projects Direct Costs'!$E$6:$E$164,'Network Projects Direct Costs'!$O$6:$O$164,'Misc Data'!$C8,'Network Projects Direct Costs'!$N$6:$N$164,'Misc Data'!K$4)/SUMIFS('Network Projects Direct Costs'!$E$6:$E$164,'Network Projects Direct Costs'!$O$6:$O$164,'Misc Data'!$C8) -> 0 | L8: =SUMIFS('Network Projects Direct Costs'!$E$6:$E$164,'Network Projects Direct Costs'!$O$6:$O$164,'Misc Data'!$C8,'Network Projects Direct Costs'!$N$6:$N$164,'Misc Data'!L$4)/SUMIFS('Network Projects Direct Costs'!$E$6:$E$164,'Network Projects Direct Costs'!$O$6:$O$164,'Misc Data'!$C8) -> 0.8199003473 | M8: =SUMIFS('Network Projects Direct Costs'!$E$6:$E$164,'Network Projects Direct Costs'!$O$6:$O$164,'Misc Data'!$C8,'Network Projects Direct Costs'!$N$6:$N$164,'Misc Data'!M$4)/SUMIFS('Network Projects Direct Costs'!$E$6:$E$164,'Network Projects Direct Costs'!$O$6:$O$164,'Misc Data'!$C8) -> 0 | N8: =SUMIFS('Network Projects Direct Costs'!$E$6:$E$164,'Network Projects Direct Costs'!$O$6:$O$164,'Misc Data'!$C8,'Network Projects Direct Costs'!$N$6:$N$164,'Misc Data'!N$4)/SUMIFS('Network Projects Direct Costs'!$E$6:$E$164,'Network Projects Direct Costs'!$O$6:$O$164,'Misc Data'!$C8) -> 0 | O8: =SUMIFS('Network Projects Direct Costs'!$E$6:$E$164,'Network Projects Direct Costs'!$O$6:$O$164,'Misc Data'!$C8,'Network Projects Direct Costs'!$N$6:$N$164,'Misc Data'!O$4)/SUMIFS('Network Projects Direct Costs'!$E$6:$E$164,'Network Projects Direct Costs'!$O$6:$O$164,'Misc Data'!$C8) -> 0.1800996527 | P8: =SUMIFS('Network Projects Direct Costs'!$E$6:$E$164,'Network Projects Direct Costs'!$O$6:$O$164,'Misc Data'!$C8,'Network Projects Direct Costs'!$N$6:$N$164,'Misc Data'!P$4)/SUMIFS('Network Projects Direct Costs'!$E$6:$E$164,'Network Projects Direct Costs'!$O$6:$O$164,'Misc Data'!$C8) -> 0 | Q8: =SUMIFS('Network Projects Direct Costs'!$E$6:$E$164,'Network Projects Direct Costs'!$O$6:$O$164,'Misc Data'!$C8,'Network Projects Direct Costs'!$N$6:$N$164,'Misc Data'!Q$4)/SUMIFS('Network Projects Direct Costs'!$E$6:$E$164,'Network Projects Direct Costs'!$O$6:$O$164,'Misc Data'!$C8) -> 0 | R8: =SUMIFS('Network Projects Direct Costs'!$E$6:$E$164,'Network Projects Direct Costs'!$O$6:$O$164,'Misc Data'!$C8,'Network Projects Direct Costs'!$N$6:$N$164,'Misc Data'!R$4)/SUMIFS('Network Projects Direct Costs'!$E$6:$E$164,'Network Projects Direct Costs'!$O$6:$O$164,'Misc Data'!$C8) -> 0 | S8: =SUMIFS('Network Projects Direct Costs'!$E$6:$E$164,'Network Projects Direct Costs'!$O$6:$O$164,'Misc Data'!$C8,'Network Projects Direct Costs'!$N$6:$N$164,'Misc Data'!S$4)/SUMIFS('Network Projects Direct Costs'!$E$6:$E$164,'Network Projects Direct Costs'!$O$6:$O$164,'Misc Data'!$C8) -> 0 | T8: =SUMIFS('Network Projects Direct Costs'!$E$6:$E$164,'Network Projects Direct Costs'!$O$6:$O$164,'Misc Data'!$C8,'Network Projects Direct Costs'!$N$6:$N$164,'Misc Data'!T$4)/SUMIFS('Network Projects Direct Costs'!$E$6:$E$164,'Network Projects Direct Costs'!$O$6:$O$164,'Misc Data'!$C8) -> 0 | U8: =SUMIFS('Network Projects Direct Costs'!$E$6:$E$164,'Network Projects Direct Costs'!$O$6:$O$164,'Misc Data'!$C8,'Network Projects Direct Costs'!$N$6:$N$164,'Misc Data'!U$4)/SUMIFS('Network Projects Direct Costs'!$E$6:$E$164,'Network Projects Direct Costs'!$O$6:$O$164,'Misc Data'!$C8) -> 0 | V8: =SUMIFS('Network Projects Direct Costs'!$E$6:$E$164,'Network Projects Direct Costs'!$O$6:$O$164,'Misc Data'!$C8,'Network Projects Direct Costs'!$N$6:$N$164,'Misc Data'!V$4)/SUMIFS('Network Projects Direct Costs'!$E$6:$E$164,'Network Projects Direct Costs'!$O$6:$O$164,'Misc Data'!$C8) -> 0 | W8: =SUMIFS('Network Projects Direct Costs'!$E$6:$E$164,'Network Projects Direct Costs'!$O$6:$O$164,'Misc Data'!$C8,'Network Projects Direct Costs'!$N$6:$N$164,'Misc Data'!W$4)/SUMIFS('Network Projects Direct Costs'!$E$6:$E$164,'Network Projects Direct Costs'!$O$6:$O$164,'Misc Data'!$C8) -> 0 | X8: =SUMIFS('Network Projects Direct Costs'!$E$6:$E$164,'Network Projects Direct Costs'!$O$6:$O$164,'Misc Data'!$C8,'Network Projects Direct Costs'!$N$6:$N$164,'Misc Data'!X$4)/SUMIFS('Network Projects Direct Costs'!$E$6:$E$164,'Network Projects Direct Costs'!$O$6:$O$164,'Misc Data'!$C8) -> 0 | Y8: =SUMIFS('Network Projects Direct Costs'!$E$6:$E$164,'Network Projects Direct Costs'!$O$6:$O$164,'Misc Data'!$C8,'Network Projects Direct Costs'!$N$6:$N$164,'Misc Data'!Y$4)/SUMIFS('Network Projects Direct Costs'!$E$6:$E$164,'Network Projects Direct Costs'!$O$6:$O$164,'Misc Data'!$C8) -> 0 | Z8: =SUMIFS('Network Projects Direct Costs'!$E$6:$E$164,'Network Projects Direct Costs'!$O$6:$O$164,'Misc Data'!$C8,'Network Projects Direct Costs'!$N$6:$N$164,'Misc Data'!Z$4)/SUMIFS('Network Projects Direct Costs'!$E$6:$E$164,'Network Projects Direct Costs'!$O$6:$O$164,'Misc Data'!$C8) -> 0 | AA8: =SUMIFS('Network Projects Direct Costs'!$E$6:$E$164,'Network Projects Direct Costs'!$O$6:$O$164,'Misc Data'!$C8,'Network Projects Direct Costs'!$N$6:$N$164,'Misc Data'!AA$4)/SUMIFS('Network Projects Direct Costs'!$E$6:$E$164,'Network Projects Direct Costs'!$O$6:$O$164,'Misc Data'!$C8) -> 0 | AB8: =SUMIFS('Network Projects Direct Costs'!$E$6:$E$164,'Network Projects Direct Costs'!$O$6:$O$164,'Misc Data'!$C8,'Network Projects Direct Costs'!$N$6:$N$164,'Misc Data'!AB$4)/SUMIFS('Network Projects Direct Costs'!$E$6:$E$164,'Network Projects Direct Costs'!$O$6:$O$164,'Misc Data'!$C8) -> 0 | AC8: =SUMIFS('Network Projects Direct Costs'!$E$6:$E$164,'Network Projects Direct Costs'!$O$6:$O$164,'Misc Data'!$C8,'Network Projects Direct Costs'!$N$6:$N$164,'Misc Data'!AC$4)/SUMIFS('Network Projects Direct Costs'!$E$6:$E$164,'Network Projects Direct Costs'!$O$6:$O$164,'Misc Data'!$C8) -> 0 | AD8: =SUMIFS('Network Projects Direct Costs'!$E$6:$E$164,'Network Projects Direct Costs'!$O$6:$O$164,'Misc Data'!$C8,'Network Projects Direct Costs'!$N$6:$N$164,'Misc Data'!AD$4)/SUMIFS('Network Projects Direct Costs'!$E$6:$E$164,'Network Projects Direct Costs'!$O$6:$O$164,'Misc Data'!$C8) -> 0 | AE8: =SUMIFS('Network Projects Direct Costs'!$E$6:$E$164,'Network Projects Direct Costs'!$O$6:$O$164,'Misc Data'!$C8,'Network Projects Direct Costs'!$N$6:$N$164,'Misc Data'!AE$4)/SUMIFS('Network Projects Direct Costs'!$E$6:$E$164,'Network Projects Direct Costs'!$O$6:$O$164,'Misc Data'!$C8) -> 0 | AF8: 0 | AH8: =SUMIFS('Network Projects Direct Costs'!$F$6:$F$164,'Network Projects Direct Costs'!$O$6:$O$164,'Misc Data'!$C8,'Network Projects Direct Costs'!$N$6:$N$164,'Misc Data'!AH$4)/SUMIFS('Network Projects Direct Costs'!$F$6:$F$164,'Network Projects Direct Costs'!$O$6:$O$164,'Misc Data'!$C8) -> 0 | AI8: =SUMIFS('Network Projects Direct Costs'!$F$6:$F$164,'Network Projects Direct Costs'!$O$6:$O$164,'Misc Data'!$C8,'Network Projects Direct Costs'!$N$6:$N$164,'Misc Data'!AI$4)/SUMIFS('Network Projects Direct Costs'!$F$6:$F$164,'Network Projects Direct Costs'!$O$6:$O$164,'Misc Data'!$C8) -> 0.8072516315 | AJ8: =SUMIFS('Network Projects Direct Costs'!$F$6:$F$164,'Network Projects Direct Costs'!$O$6:$O$164,'Misc Data'!$C8,'Network Projects Direct Costs'!$N$6:$N$164,'Misc Data'!AJ$4)/SUMIFS('Network Projects Direct Costs'!$F$6:$F$164,'Network Projects Direct Costs'!$O$6:$O$164,'Misc Data'!$C8) -> 0 | AK8: =SUMIFS('Network Projects Direct Costs'!$F$6:$F$164,'Network Projects Direct Costs'!$O$6:$O$164,'Misc Data'!$C8,'Network Projects Direct Costs'!$N$6:$N$164,'Misc Data'!AK$4)/SUMIFS('Network Projects Direct Costs'!$F$6:$F$164,'Network Projects Direct Costs'!$O$6:$O$164,'Misc Data'!$C8) -> 0 | AL8: =SUMIFS('Network Projects Direct Costs'!$F$6:$F$164,'Network Projects Direct Costs'!$O$6:$O$164,'Misc Data'!$C8,'Network Projects Direct Costs'!$N$6:$N$164,'Misc Data'!AL$4)/SUMIFS('Network Projects Direct Costs'!$F$6:$F$164,'Network Projects Direct Costs'!$O$6:$O$164,'Misc Data'!$C8) -> 0.1927483685 | AM8: =SUMIFS('Network Projects Direct Costs'!$F$6:$F$164,'Network Projects Direct Costs'!$O$6:$O$164,'Misc Data'!$C8,'Network Projects Direct Costs'!$N$6:$N$164,'Misc Data'!AM$4)/SUMIFS('Network Projects Direct Costs'!$F$6:$F$164,'Network Projects Direct Costs'!$O$6:$O$164,'Misc Data'!$C8) -> 0 | AN8: =SUMIFS('Network Projects Direct Costs'!$F$6:$F$164,'Network Projects Direct Costs'!$O$6:$O$164,'Misc Data'!$C8,'Network Projects Direct Costs'!$N$6:$N$164,'Misc Data'!AN$4)/SUMIFS('Network Projects Direct Costs'!$F$6:$F$164,'Network Projects Direct Costs'!$O$6:$O$164,'Misc Data'!$C8) -> 0 | AO8: =SUMIFS('Network Projects Direct Costs'!$F$6:$F$164,'Network Projects Direct Costs'!$O$6:$O$164,'Misc Data'!$C8,'Network Projects Direct Costs'!$N$6:$N$164,'Misc Data'!AO$4)/SUMIFS('Network Projects Direct Costs'!$F$6:$F$164,'Network Projects Direct Costs'!$O$6:$O$164,'Misc Data'!$C8) -> 0 | AP8: =SUMIFS('Network Projects Direct Costs'!$F$6:$F$164,'Network Projects Direct Costs'!$O$6:$O$164,'Misc Data'!$C8,'Network Projects Direct Costs'!$N$6:$N$164,'Misc Data'!AP$4)/SUMIFS('Network Projects Direct Costs'!$F$6:$F$164,'Network Projects Direct Costs'!$O$6:$O$164,'Misc Data'!$C8) -> 0 | AQ8: =SUMIFS('Network Projects Direct Costs'!$F$6:$F$164,'Network Projects Direct Costs'!$O$6:$O$164,'Misc Data'!$C8,'Network Projects Direct Costs'!$N$6:$N$164,'Misc Data'!AQ$4)/SUMIFS('Network Projects Direct Costs'!$F$6:$F$164,'Network Projects Direct Costs'!$O$6:$O$164,'Misc Data'!$C8) -> 0 | AR8: =SUMIFS('Network Projects Direct Costs'!$F$6:$F$164,'Network Projects Direct Costs'!$O$6:$O$164,'Misc Data'!$C8,'Network Projects Direct Costs'!$N$6:$N$164,'Misc Data'!AR$4)/SUMIFS('Network Projects Direct Costs'!$F$6:$F$164,'Network Projects Direct Costs'!$O$6:$O$164,'Misc Data'!$C8) -> 0 | AS8: =SUMIFS('Network Projects Direct Costs'!$F$6:$F$164,'Network Projects Direct Costs'!$O$6:$O$164,'Misc Data'!$C8,'Network Projects Direct Costs'!$N$6:$N$164,'Misc Data'!AS$4)/SUMIFS('Network Projects Direct Costs'!$F$6:$F$164,'Network Projects Direct Costs'!$O$6:$O$164,'Misc Data'!$C8) -> 0 | AT8: =SUMIFS('Network Projects Direct Costs'!$F$6:$F$164,'Network Projects Direct Costs'!$O$6:$O$164,'Misc Data'!$C8,'Network Projects Direct Costs'!$N$6:$N$164,'Misc Data'!AT$4)/SUMIFS('Network Projects Direct Costs'!$F$6:$F$164,'Network Projects Direct Costs'!$O$6:$O$164,'Misc Data'!$C8) -> 0 | AU8: =SUMIFS('Network Projects Direct Costs'!$F$6:$F$164,'Network Projects Direct Costs'!$O$6:$O$164,'Misc Data'!$C8,'Network Projects Direct Costs'!$N$6:$N$164,'Misc Data'!AU$4)/SUMIFS('Network Projects Direct Costs'!$F$6:$F$164,'Network Projects Direct Costs'!$O$6:$O$164,'Misc Data'!$C8) -> 0 | AV8: =SUMIFS('Network Projects Direct Costs'!$F$6:$F$164,'Network Projects Direct Costs'!$O$6:$O$164,'Misc Data'!$C8,'Network Projects Direct Costs'!$N$6:$N$164,'Misc Data'!AV$4)/SUMIFS('Network Projects Direct Costs'!$F$6:$F$164,'Network Projects Direct Costs'!$O$6:$O$164,'Misc Data'!$C8) -> 0 | AW8: =SUMIFS('Network Projects Direct Costs'!$F$6:$F$164,'Network Projects Direct Costs'!$O$6:$O$164,'Misc Data'!$C8,'Network Projects Direct Costs'!$N$6:$N$164,'Misc Data'!AW$4)/SUMIFS('Network Projects Direct Costs'!$F$6:$F$164,'Network Projects Direct Costs'!$O$6:$O$164,'Misc Data'!$C8) -> 0 | AX8: =SUMIFS('Network Projects Direct Costs'!$F$6:$F$164,'Network Projects Direct Costs'!$O$6:$O$164,'Misc Data'!$C8,'Network Projects Direct Costs'!$N$6:$N$164,'Misc Data'!AX$4)/SUMIFS('Network Projects Direct Costs'!$F$6:$F$164,'Network Projects Direct Costs'!$O$6:$O$164,'Misc Data'!$C8) -> 0 | AY8: =SUMIFS('Network Projects Direct Costs'!$F$6:$F$164,'Network Projects Direct Costs'!$O$6:$O$164,'Misc Data'!$C8,'Network Projects Direct Costs'!$N$6:$N$164,'Misc Data'!AY$4)/SUMIFS('Network Projects Direct Costs'!$F$6:$F$164,'Network Projects Direct Costs'!$O$6:$O$164,'Misc Data'!$C8) -> 0 | AZ8: =SUMIFS('Network Projects Direct Costs'!$F$6:$F$164,'Network Projects Direct Costs'!$O$6:$O$164,'Misc Data'!$C8,'Network Projects Direct Costs'!$N$6:$N$164,'Misc Data'!AZ$4)/SUMIFS('Network Projects Direct Costs'!$F$6:$F$164,'Network Projects Direct Costs'!$O$6:$O$164,'Misc Data'!$C8) -> 0 | BA8: =SUMIFS('Network Projects Direct Costs'!$F$6:$F$164,'Network Projects Direct Costs'!$O$6:$O$164,'Misc Data'!$C8,'Network Projects Direct Costs'!$N$6:$N$164,'Misc Data'!BA$4)/SUMIFS('Network Projects Direct Costs'!$F$6:$F$164,'Network Projects Direct Costs'!$O$6:$O$164,'Misc Data'!$C8) -> 0 | BB8: =SUMIFS('Network Projects Direct Costs'!$F$6:$F$164,'Network Projects Direct Costs'!$O$6:$O$164,'Misc Data'!$C8,'Network Projects Direct Costs'!$N$6:$N$164,'Misc Data'!BB$4)/SUMIFS('Network Projects Direct Costs'!$F$6:$F$164,'Network Projects Direct Costs'!$O$6:$O$164,'Misc Data'!$C8) -> 0 | BC8: 0 | BE8: =SUMIFS('Network Projects Direct Costs'!$G$6:$G$164,'Network Projects Direct Costs'!$O$6:$O$164,'Misc Data'!$C8,'Network Projects Direct Costs'!$N$6:$N$164,'Misc Data'!BE$4)/SUMIFS('Network Projects Direct Costs'!$G$6:$G$164,'Network Projects Direct Costs'!$O$6:$O$164,'Misc Data'!$C8) -> 0 | BF8: =SUMIFS('Network Projects Direct Costs'!$G$6:$G$164,'Network Projects Direct Costs'!$O$6:$O$164,'Misc Data'!$C8,'Network Projects Direct Costs'!$N$6:$N$164,'Misc Data'!BF$4)/SUMIFS('Network Projects Direct Costs'!$G$6:$G$164,'Network Projects Direct Costs'!$O$6:$O$164,'Misc Data'!$C8) -> 0.814604699 | BG8: =SUMIFS('Network Projects Direct Costs'!$G$6:$G$164,'Network Projects Direct Costs'!$O$6:$O$164,'Misc Data'!$C8,'Network Projects Direct Costs'!$N$6:$N$164,'Misc Data'!BG$4)/SUMIFS('Network Projects Direct Costs'!$G$6:$G$164,'Network Projects Direct Costs'!$O$6:$O$164,'Misc Data'!$C8) -> 0 | BH8: =SUMIFS('Network Projects Direct Costs'!$G$6:$G$164,'Network Projects Direct Costs'!$O$6:$O$164,'Misc Data'!$C8,'Network Projects Direct Costs'!$N$6:$N$164,'Misc Data'!BH$4)/SUMIFS('Network Projects Direct Costs'!$G$6:$G$164,'Network Projects Direct Costs'!$O$6:$O$164,'Misc Data'!$C8) -> 0 | BI8: =SUMIFS('Network Projects Direct Costs'!$G$6:$G$164,'Network Projects Direct Costs'!$O$6:$O$164,'Misc Data'!$C8,'Network Projects Direct Costs'!$N$6:$N$164,'Misc Data'!BI$4)/SUMIFS('Network Projects Direct Costs'!$G$6:$G$164,'Network Projects Direct Costs'!$O$6:$O$164,'Misc Data'!$C8) -> 0.185395301 | BJ8: =SUMIFS('Network Projects Direct Costs'!$G$6:$G$164,'Network Projects Direct Costs'!$O$6:$O$164,'Misc Data'!$C8,'Network Projects Direct Costs'!$N$6:$N$164,'Misc Data'!BJ$4)/SUMIFS('Network Projects Direct Costs'!$G$6:$G$164,'Network Projects Direct Costs'!$O$6:$O$164,'Misc Data'!$C8) -> 0 | BK8: =SUMIFS('Network Projects Direct Costs'!$G$6:$G$164,'Network Projects Direct Costs'!$O$6:$O$164,'Misc Data'!$C8,'Network Projects Direct Costs'!$N$6:$N$164,'Misc Data'!BK$4)/SUMIFS('Network Projects Direct Costs'!$G$6:$G$164,'Network Projects Direct Costs'!$O$6:$O$164,'Misc Data'!$C8) -> 0 | BL8: =SUMIFS('Network Projects Direct Costs'!$G$6:$G$164,'Network Projects Direct Costs'!$O$6:$O$164,'Misc Data'!$C8,'Network Projects Direct Costs'!$N$6:$N$164,'Misc Data'!BL$4)/SUMIFS('Network Projects Direct Costs'!$G$6:$G$164,'Network Projects Direct Costs'!$O$6:$O$164,'Misc Data'!$C8) -> 0 | BM8: =SUMIFS('Network Projects Direct Costs'!$G$6:$G$164,'Network Projects Direct Costs'!$O$6:$O$164,'Misc Data'!$C8,'Network Projects Direct Costs'!$N$6:$N$164,'Misc Data'!BM$4)/SUMIFS('Network Projects Direct Costs'!$G$6:$G$164,'Network Projects Direct Costs'!$O$6:$O$164,'Misc Data'!$C8) -> 0 | BN8: =SUMIFS('Network Projects Direct Costs'!$G$6:$G$164,'Network Projects Direct Costs'!$O$6:$O$164,'Misc Data'!$C8,'Network Projects Direct Costs'!$N$6:$N$164,'Misc Data'!BN$4)/SUMIFS('Network Projects Direct Costs'!$G$6:$G$164,'Network Projects Direct Costs'!$O$6:$O$164,'Misc Data'!$C8) -> 0 | BO8: =SUMIFS('Network Projects Direct Costs'!$G$6:$G$164,'Network Projects Direct Costs'!$O$6:$O$164,'Misc Data'!$C8,'Network Projects Direct Costs'!$N$6:$N$164,'Misc Data'!BO$4)/SUMIFS('Network Projects Direct Costs'!$G$6:$G$164,'Network Projects Direct Costs'!$O$6:$O$164,'Misc Data'!$C8) -> 0 | BP8: =SUMIFS('Network Projects Direct Costs'!$G$6:$G$164,'Network Projects Direct Costs'!$O$6:$O$164,'Misc Data'!$C8,'Network Projects Direct Costs'!$N$6:$N$164,'Misc Data'!BP$4)/SUMIFS('Network Projects Direct Costs'!$G$6:$G$164,'Network Projects Direct Costs'!$O$6:$O$164,'Misc Data'!$C8) -> 0 | BQ8: =SUMIFS('Network Projects Direct Costs'!$G$6:$G$164,'Network Projects Direct Costs'!$O$6:$O$164,'Misc Data'!$C8,'Network Projects Direct Costs'!$N$6:$N$164,'Misc Data'!BQ$4)/SUMIFS('Network Projects Direct Costs'!$G$6:$G$164,'Network Projects Direct Costs'!$O$6:$O$164,'Misc Data'!$C8) -> 0 | BR8: =SUMIFS('Network Projects Direct Costs'!$G$6:$G$164,'Network Projects Direct Costs'!$O$6:$O$164,'Misc Data'!$C8,'Network Projects Direct Costs'!$N$6:$N$164,'Misc Data'!BR$4)/SUMIFS('Network Projects Direct Costs'!$G$6:$G$164,'Network Projects Direct Costs'!$O$6:$O$164,'Misc Data'!$C8) -> 0 | BS8: =SUMIFS('Network Projects Direct Costs'!$G$6:$G$164,'Network Projects Direct Costs'!$O$6:$O$164,'Misc Data'!$C8,'Network Projects Direct Costs'!$N$6:$N$164,'Misc Data'!BS$4)/SUMIFS('Network Projects Direct Costs'!$G$6:$G$164,'Network Projects Direct Costs'!$O$6:$O$164,'Misc Data'!$C8) -> 0 | BT8: =SUMIFS('Network Projects Direct Costs'!$G$6:$G$164,'Network Projects Direct Costs'!$O$6:$O$164,'Misc Data'!$C8,'Network Projects Direct Costs'!$N$6:$N$164,'Misc Data'!BT$4)/SUMIFS('Network Projects Direct Costs'!$G$6:$G$164,'Network Projects Direct Costs'!$O$6:$O$164,'Misc Data'!$C8) -> 0 | BU8: =SUMIFS('Network Projects Direct Costs'!$G$6:$G$164,'Network Projects Direct Costs'!$O$6:$O$164,'Misc Data'!$C8,'Network Projects Direct Costs'!$N$6:$N$164,'Misc Data'!BU$4)/SUMIFS('Network Projects Direct Costs'!$G$6:$G$164,'Network Projects Direct Costs'!$O$6:$O$164,'Misc Data'!$C8) -> 0 | BV8: =SUMIFS('Network Projects Direct Costs'!$G$6:$G$164,'Network Projects Direct Costs'!$O$6:$O$164,'Misc Data'!$C8,'Network Projects Direct Costs'!$N$6:$N$164,'Misc Data'!BV$4)/SUMIFS('Network Projects Direct Costs'!$G$6:$G$164,'Network Projects Direct Costs'!$O$6:$O$164,'Misc Data'!$C8) -> 0 | BW8: =SUMIFS('Network Projects Direct Costs'!$G$6:$G$164,'Network Projects Direct Costs'!$O$6:$O$164,'Misc Data'!$C8,'Network Projects Direct Costs'!$N$6:$N$164,'Misc Data'!BW$4)/SUMIFS('Network Projects Direct Costs'!$G$6:$G$164,'Network Projects Direct Costs'!$O$6:$O$164,'Misc Data'!$C8) -> 0 | BX8: =SUMIFS('Network Projects Direct Costs'!$G$6:$G$164,'Network Projects Direct Costs'!$O$6:$O$164,'Misc Data'!$C8,'Network Projects Direct Costs'!$N$6:$N$164,'Misc Data'!BX$4)/SUMIFS('Network Projects Direct Costs'!$G$6:$G$164,'Network Projects Direct Costs'!$O$6:$O$164,'Misc Data'!$C8) -> 0 | BY8: =SUMIFS('Network Projects Direct Costs'!$G$6:$G$164,'Network Projects Direct Costs'!$O$6:$O$164,'Misc Data'!$C8,'Network Projects Direct Costs'!$N$6:$N$164,'Misc Data'!BY$4)/SUMIFS('Network Projects Direct Costs'!$G$6:$G$164,'Network Projects Direct Costs'!$O$6:$O$164,'Misc Data'!$C8) -> 0 | BZ8: 0 | CB8: =SUMIFS('Network Projects Direct Costs'!$H$6:$H$164,'Network Projects Direct Costs'!$O$6:$O$164,'Misc Data'!$C8,'Network Projects Direct Costs'!$N$6:$N$164,'Misc Data'!CB$4)/SUMIFS('Network Projects Direct Costs'!$H$6:$H$164,'Network Projects Direct Costs'!$O$6:$O$164,'Misc Data'!$C8) -> 0 | CC8: =SUMIFS('Network Projects Direct Costs'!$H$6:$H$164,'Network Projects Direct Costs'!$O$6:$O$164,'Misc Data'!$C8,'Network Projects Direct Costs'!$N$6:$N$164,'Misc Data'!CC$4)/SUMIFS('Network Projects Direct Costs'!$H$6:$H$164,'Network Projects Direct Costs'!$O$6:$O$164,'Misc Data'!$C8) -> 0.8131528925 | CD8: =SUMIFS('Network Projects Direct Costs'!$H$6:$H$164,'Network Projects Direct Costs'!$O$6:$O$164,'Misc Data'!$C8,'Network Projects Direct Costs'!$N$6:$N$164,'Misc Data'!CD$4)/SUMIFS('Network Projects Direct Costs'!$H$6:$H$164,'Network Projects Direct Costs'!$O$6:$O$164,'Misc Data'!$C8) -> 0 | CE8: =SUMIFS('Network Projects Direct Costs'!$H$6:$H$164,'Network Projects Direct Costs'!$O$6:$O$164,'Misc Data'!$C8,'Network Projects Direct Costs'!$N$6:$N$164,'Misc Data'!CE$4)/SUMIFS('Network Projects Direct Costs'!$H$6:$H$164,'Network Projects Direct Costs'!$O$6:$O$164,'Misc Data'!$C8) -> 0 | CF8: =SUMIFS('Network Projects Direct Costs'!$H$6:$H$164,'Network Projects Direct Costs'!$O$6:$O$164,'Misc Data'!$C8,'Network Projects Direct Costs'!$N$6:$N$164,'Misc Data'!CF$4)/SUMIFS('Network Projects Direct Costs'!$H$6:$H$164,'Network Projects Direct Costs'!$O$6:$O$164,'Misc Data'!$C8) -> 0.1868471075 | CG8: =SUMIFS('Network Projects Direct Costs'!$H$6:$H$164,'Network Projects Direct Costs'!$O$6:$O$164,'Misc Data'!$C8,'Network Projects Direct Costs'!$N$6:$N$164,'Misc Data'!CG$4)/SUMIFS('Network Projects Direct Costs'!$H$6:$H$164,'Network Projects Direct Costs'!$O$6:$O$164,'Misc Data'!$C8) -> 0 | CH8: =SUMIFS('Network Projects Direct Costs'!$H$6:$H$164,'Network Projects Direct Costs'!$O$6:$O$164,'Misc Data'!$C8,'Network Projects Direct Costs'!$N$6:$N$164,'Misc Data'!CH$4)/SUMIFS('Network Projects Direct Costs'!$H$6:$H$164,'Network Projects Direct Costs'!$O$6:$O$164,'Misc Data'!$C8) -> 0 | CI8: =SUMIFS('Network Projects Direct Costs'!$H$6:$H$164,'Network Projects Direct Costs'!$O$6:$O$164,'Misc Data'!$C8,'Network Projects Direct Costs'!$N$6:$N$164,'Misc Data'!CI$4)/SUMIFS('Network Projects Direct Costs'!$H$6:$H$164,'Network Projects Direct Costs'!$O$6:$O$164,'Misc Data'!$C8) -> 0 | CJ8: =SUMIFS('Network Projects Direct Costs'!$H$6:$H$164,'Network Projects Direct Costs'!$O$6:$O$164,'Misc Data'!$C8,'Network Projects Direct Costs'!$N$6:$N$164,'Misc Data'!CJ$4)/SUMIFS('Network Projects Direct Costs'!$H$6:$H$164,'Network Projects Direct Costs'!$O$6:$O$164,'Misc Data'!$C8) -> 0 | CK8: =SUMIFS('Network Projects Direct Costs'!$H$6:$H$164,'Network Projects Direct Costs'!$O$6:$O$164,'Misc Data'!$C8,'Network Projects Direct Costs'!$N$6:$N$164,'Misc Data'!CK$4)/SUMIFS('Network Projects Direct Costs'!$H$6:$H$164,'Network Projects Direct Costs'!$O$6:$O$164,'Misc Data'!$C8) -> 0 | CL8: =SUMIFS('Network Projects Direct Costs'!$H$6:$H$164,'Network Projects Direct Costs'!$O$6:$O$164,'Misc Data'!$C8,'Network Projects Direct Costs'!$N$6:$N$164,'Misc Data'!CL$4)/SUMIFS('Network Projects Direct Costs'!$H$6:$H$164,'Network Projects Direct Costs'!$O$6:$O$164,'Misc Data'!$C8) -> 0 | CM8: =SUMIFS('Network Projects Direct Costs'!$H$6:$H$164,'Network Projects Direct Costs'!$O$6:$O$164,'Misc Data'!$C8,'Network Projects Direct Costs'!$N$6:$N$164,'Misc Data'!CM$4)/SUMIFS('Network Projects Direct Costs'!$H$6:$H$164,'Network Projects Direct Costs'!$O$6:$O$164,'Misc Data'!$C8) -> 0 | CN8: =SUMIFS('Network Projects Direct Costs'!$H$6:$H$164,'Network Projects Direct Costs'!$O$6:$O$164,'Misc Data'!$C8,'Network Projects Direct Costs'!$N$6:$N$164,'Misc Data'!CN$4)/SUMIFS('Network Projects Direct Costs'!$H$6:$H$164,'Network Projects Direct Costs'!$O$6:$O$164,'Misc Data'!$C8) -> 0 | CO8: =SUMIFS('Network Projects Direct Costs'!$H$6:$H$164,'Network Projects Direct Costs'!$O$6:$O$164,'Misc Data'!$C8,'Network Projects Direct Costs'!$N$6:$N$164,'Misc Data'!CO$4)/SUMIFS('Network Projects Direct Costs'!$H$6:$H$164,'Network Projects Direct Costs'!$O$6:$O$164,'Misc Data'!$C8) -> 0 | CP8: =SUMIFS('Network Projects Direct Costs'!$H$6:$H$164,'Network Projects Direct Costs'!$O$6:$O$164,'Misc Data'!$C8,'Network Projects Direct Costs'!$N$6:$N$164,'Misc Data'!CP$4)/SUMIFS('Network Projects Direct Costs'!$H$6:$H$164,'Network Projects Direct Costs'!$O$6:$O$164,'Misc Data'!$C8) -> 0 | CQ8: =SUMIFS('Network Projects Direct Costs'!$H$6:$H$164,'Network Projects Direct Costs'!$O$6:$O$164,'Misc Data'!$C8,'Network Projects Direct Costs'!$N$6:$N$164,'Misc Data'!CQ$4)/SUMIFS('Network Projects Direct Costs'!$H$6:$H$164,'Network Projects Direct Costs'!$O$6:$O$164,'Misc Data'!$C8) -> 0 | CR8: =SUMIFS('Network Projects Direct Costs'!$H$6:$H$164,'Network Projects Direct Costs'!$O$6:$O$164,'Misc Data'!$C8,'Network Projects Direct Costs'!$N$6:$N$164,'Misc Data'!CR$4)/SUMIFS('Network Projects Direct Costs'!$H$6:$H$164,'Network Projects Direct Costs'!$O$6:$O$164,'Misc Data'!$C8) -> 0 | CS8: =SUMIFS('Network Projects Direct Costs'!$H$6:$H$164,'Network Projects Direct Costs'!$O$6:$O$164,'Misc Data'!$C8,'Network Projects Direct Costs'!$N$6:$N$164,'Misc Data'!CS$4)/SUMIFS('Network Projects Direct Costs'!$H$6:$H$164,'Network Projects Direct Costs'!$O$6:$O$164,'Misc Data'!$C8) -> 0 | CT8: =SUMIFS('Network Projects Direct Costs'!$H$6:$H$164,'Network Projects Direct Costs'!$O$6:$O$164,'Misc Data'!$C8,'Network Projects Direct Costs'!$N$6:$N$164,'Misc Data'!CT$4)/SUMIFS('Network Projects Direct Costs'!$H$6:$H$164,'Network Projects Direct Costs'!$O$6:$O$164,'Misc Data'!$C8) -> 0 | CU8: =SUMIFS('Network Projects Direct Costs'!$H$6:$H$164,'Network Projects Direct Costs'!$O$6:$O$164,'Misc Data'!$C8,'Network Projects Direct Costs'!$N$6:$N$164,'Misc Data'!CU$4)/SUMIFS('Network Projects Direct Costs'!$H$6:$H$164,'Network Projects Direct Costs'!$O$6:$O$164,'Misc Data'!$C8) -> 0 | CV8: =SUMIFS('Network Projects Direct Costs'!$H$6:$H$164,'Network Projects Direct Costs'!$O$6:$O$164,'Misc Data'!$C8,'Network Projects Direct Costs'!$N$6:$N$164,'Misc Data'!CV$4)/SUMIFS('Network Projects Direct Costs'!$H$6:$H$164,'Network Projects Direct Costs'!$O$6:$O$164,'Misc Data'!$C8) -> 0 | CW8: 0 | CY8: =SUMIFS('Network Projects Direct Costs'!$I$6:$I$164,'Network Projects Direct Costs'!$O$6:$O$164,'Misc Data'!$C8,'Network Projects Direct Costs'!$N$6:$N$164,'Misc Data'!CY$4)/SUMIFS('Network Projects Direct Costs'!$I$6:$I$164,'Network Projects Direct Costs'!$O$6:$O$164,'Misc Data'!$C8) -> 0 | CZ8: =SUMIFS('Network Projects Direct Costs'!$I$6:$I$164,'Network Projects Direct Costs'!$O$6:$O$164,'Misc Data'!$C8,'Network Projects Direct Costs'!$N$6:$N$164,'Misc Data'!CZ$4)/SUMIFS('Network Projects Direct Costs'!$I$6:$I$164,'Network Projects Direct Costs'!$O$6:$O$164,'Misc Data'!$C8) -> 0.8237360797 | DA8: =SUMIFS('Network Projects Direct Costs'!$I$6:$I$164,'Network Projects Direct Costs'!$O$6:$O$164,'Misc Data'!$C8,'Network Projects Direct Costs'!$N$6:$N$164,'Misc Data'!DA$4)/SUMIFS('Network Projects Direct Costs'!$I$6:$I$164,'Network Projects Direct Costs'!$O$6:$O$164,'Misc Data'!$C8) -> 0 | DB8: =SUMIFS('Network Projects Direct Costs'!$I$6:$I$164,'Network Projects Direct Costs'!$O$6:$O$164,'Misc Data'!$C8,'Network Projects Direct Costs'!$N$6:$N$164,'Misc Data'!DB$4)/SUMIFS('Network Projects Direct Costs'!$I$6:$I$164,'Network Projects Direct Costs'!$O$6:$O$164,'Misc Data'!$C8) -> 0 | DC8: =SUMIFS('Network Projects Direct Costs'!$I$6:$I$164,'Network Projects Direct Costs'!$O$6:$O$164,'Misc Data'!$C8,'Network Projects Direct Costs'!$N$6:$N$164,'Misc Data'!DC$4)/SUMIFS('Network Projects Direct Costs'!$I$6:$I$164,'Network Projects Direct Costs'!$O$6:$O$164,'Misc Data'!$C8) -> 0.1762639203 | DD8: =SUMIFS('Network Projects Direct Costs'!$I$6:$I$164,'Network Projects Direct Costs'!$O$6:$O$164,'Misc Data'!$C8,'Network Projects Direct Costs'!$N$6:$N$164,'Misc Data'!DD$4)/SUMIFS('Network Projects Direct Costs'!$I$6:$I$164,'Network Projects Direct Costs'!$O$6:$O$164,'Misc Data'!$C8) -> 0 | DE8: =SUMIFS('Network Projects Direct Costs'!$I$6:$I$164,'Network Projects Direct Costs'!$O$6:$O$164,'Misc Data'!$C8,'Network Projects Direct Costs'!$N$6:$N$164,'Misc Data'!DE$4)/SUMIFS('Network Projects Direct Costs'!$I$6:$I$164,'Network Projects Direct Costs'!$O$6:$O$164,'Misc Data'!$C8) -> 0 | DF8: =SUMIFS('Network Projects Direct Costs'!$I$6:$I$164,'Network Projects Direct Costs'!$O$6:$O$164,'Misc Data'!$C8,'Network Projects Direct Costs'!$N$6:$N$164,'Misc Data'!DF$4)/SUMIFS('Network Projects Direct Costs'!$I$6:$I$164,'Network Projects Direct Costs'!$O$6:$O$164,'Misc Data'!$C8) -> 0 | DG8: =SUMIFS('Network Projects Direct Costs'!$I$6:$I$164,'Network Projects Direct Costs'!$O$6:$O$164,'Misc Data'!$C8,'Network Projects Direct Costs'!$N$6:$N$164,'Misc Data'!DG$4)/SUMIFS('Network Projects Direct Costs'!$I$6:$I$164,'Network Projects Direct Costs'!$O$6:$O$164,'Misc Data'!$C8) -> 0 | DH8: =SUMIFS('Network Projects Direct Costs'!$I$6:$I$164,'Network Projects Direct Costs'!$O$6:$O$164,'Misc Data'!$C8,'Network Projects Direct Costs'!$N$6:$N$164,'Misc Data'!DH$4)/SUMIFS('Network Projects Direct Costs'!$I$6:$I$164,'Network Projects Direct Costs'!$O$6:$O$164,'Misc Data'!$C8) -> 0 | DI8: =SUMIFS('Network Projects Direct Costs'!$I$6:$I$164,'Network Projects Direct Costs'!$O$6:$O$164,'Misc Data'!$C8,'Network Projects Direct Costs'!$N$6:$N$164,'Misc Data'!DI$4)/SUMIFS('Network Projects Direct Costs'!$I$6:$I$164,'Network Projects Direct Costs'!$O$6:$O$164,'Misc Data'!$C8) -> 0 | DJ8: =SUMIFS('Network Projects Direct Costs'!$I$6:$I$164,'Network Projects Direct Costs'!$O$6:$O$164,'Misc Data'!$C8,'Network Projects Direct Costs'!$N$6:$N$164,'Misc Data'!DJ$4)/SUMIFS('Network Projects Direct Costs'!$I$6:$I$164,'Network Projects Direct Costs'!$O$6:$O$164,'Misc Data'!$C8) -> 0 | DK8: =SUMIFS('Network Projects Direct Costs'!$I$6:$I$164,'Network Projects Direct Costs'!$O$6:$O$164,'Misc Data'!$C8,'Network Projects Direct Costs'!$N$6:$N$164,'Misc Data'!DK$4)/SUMIFS('Network Projects Direct Costs'!$I$6:$I$164,'Network Projects Direct Costs'!$O$6:$O$164,'Misc Data'!$C8) -> 0 | DL8: =SUMIFS('Network Projects Direct Costs'!$I$6:$I$164,'Network Projects Direct Costs'!$O$6:$O$164,'Misc Data'!$C8,'Network Projects Direct Costs'!$N$6:$N$164,'Misc Data'!DL$4)/SUMIFS('Network Projects Direct Costs'!$I$6:$I$164,'Network Projects Direct Costs'!$O$6:$O$164,'Misc Data'!$C8) -> 0 | DM8: =SUMIFS('Network Projects Direct Costs'!$I$6:$I$164,'Network Projects Direct Costs'!$O$6:$O$164,'Misc Data'!$C8,'Network Projects Direct Costs'!$N$6:$N$164,'Misc Data'!DM$4)/SUMIFS('Network Projects Direct Costs'!$I$6:$I$164,'Network Projects Direct Costs'!$O$6:$O$164,'Misc Data'!$C8) -> 0 | DN8: =SUMIFS('Network Projects Direct Costs'!$I$6:$I$164,'Network Projects Direct Costs'!$O$6:$O$164,'Misc Data'!$C8,'Network Projects Direct Costs'!$N$6:$N$164,'Misc Data'!DN$4)/SUMIFS('Network Projects Direct Costs'!$I$6:$I$164,'Network Projects Direct Costs'!$O$6:$O$164,'Misc Data'!$C8) -> 0 | DO8: =SUMIFS('Network Projects Direct Costs'!$I$6:$I$164,'Network Projects Direct Costs'!$O$6:$O$164,'Misc Data'!$C8,'Network Projects Direct Costs'!$N$6:$N$164,'Misc Data'!DO$4)/SUMIFS('Network Projects Direct Costs'!$I$6:$I$164,'Network Projects Direct Costs'!$O$6:$O$164,'Misc Data'!$C8) -> 0 | DP8: =SUMIFS('Network Projects Direct Costs'!$I$6:$I$164,'Network Projects Direct Costs'!$O$6:$O$164,'Misc Data'!$C8,'Network Projects Direct Costs'!$N$6:$N$164,'Misc Data'!DP$4)/SUMIFS('Network Projects Direct Costs'!$I$6:$I$164,'Network Projects Direct Costs'!$O$6:$O$164,'Misc Data'!$C8) -> 0 | DQ8: =SUMIFS('Network Projects Direct Costs'!$I$6:$I$164,'Network Projects Direct Costs'!$O$6:$O$164,'Misc Data'!$C8,'Network Projects Direct Costs'!$N$6:$N$164,'Misc Data'!DQ$4)/SUMIFS('Network Projects Direct Costs'!$I$6:$I$164,'Network Projects Direct Costs'!$O$6:$O$164,'Misc Data'!$C8) -> 0 | DR8: =SUMIFS('Network Projects Direct Costs'!$I$6:$I$164,'Network Projects Direct Costs'!$O$6:$O$164,'Misc Data'!$C8,'Network Projects Direct Costs'!$N$6:$N$164,'Misc Data'!DR$4)/SUMIFS('Network Projects Direct Costs'!$I$6:$I$164,'Network Projects Direct Costs'!$O$6:$O$164,'Misc Data'!$C8) -> 0 | DS8: =SUMIFS('Network Projects Direct Costs'!$I$6:$I$164,'Network Projects Direct Costs'!$O$6:$O$164,'Misc Data'!$C8,'Network Projects Direct Costs'!$N$6:$N$164,'Misc Data'!DS$4)/SUMIFS('Network Projects Direct Costs'!$I$6:$I$164,'Network Projects Direct Costs'!$O$6:$O$164,'Misc Data'!$C8) -> 0 | DT8: 0
A9: C-4 | B9: Connections | C9: Contributions | D9: 0.5 | E9: 0.25 | F9: 0.03 | G9: 0.22 | H9: 0 | I9: 0 | J9: 0 | K9: =SUMIFS('Network Projects Direct Costs'!$E$6:$E$164,'Network Projects Direct Costs'!$O$6:$O$164,'Misc Data'!$C9,'Network Projects Direct Costs'!$N$6:$N$164,'Misc Data'!K$4)/SUMIFS('Network Projects Direct Costs'!$E$6:$E$164,'Network Projects Direct Costs'!$O$6:$O$164,'Misc Data'!$C9) -> 0 | L9: =SUMIFS('Network Projects Direct Costs'!$E$6:$E$164,'Network Projects Direct Costs'!$O$6:$O$164,'Misc Data'!$C9,'Network Projects Direct Costs'!$N$6:$N$164,'Misc Data'!L$4)/SUMIFS('Network Projects Direct Costs'!$E$6:$E$164,'Network Projects Direct Costs'!$O$6:$O$164,'Misc Data'!$C9) -> 0.9240955823 | M9: =SUMIFS('Network Projects Direct Costs'!$E$6:$E$164,'Network Projects Direct Costs'!$O$6:$O$164,'Misc Data'!$C9,'Network Projects Direct Costs'!$N$6:$N$164,'Misc Data'!M$4)/SUMIFS('Network Projects Direct Costs'!$E$6:$E$164,'Network Projects Direct Costs'!$O$6:$O$164,'Misc Data'!$C9) -> 0 | N9: =SUMIFS('Network Projects Direct Costs'!$E$6:$E$164,'Network Projects Direct Costs'!$O$6:$O$164,'Misc Data'!$C9,'Network Projects Direct Costs'!$N$6:$N$164,'Misc Data'!N$4)/SUMIFS('Network Projects Direct Costs'!$E$6:$E$164,'Network Projects Direct Costs'!$O$6:$O$164,'Misc Data'!$C9) -> 0 | O9: =SUMIFS('Network Projects Direct Costs'!$E$6:$E$164,'Network Projects Direct Costs'!$O$6:$O$164,'Misc Data'!$C9,'Network Projects Direct Costs'!$N$6:$N$164,'Misc Data'!O$4)/SUMIFS('Network Projects Direct Costs'!$E$6:$E$164,'Network Projects Direct Costs'!$O$6:$O$164,'Misc Data'!$C9) -> 0.07590441772 | P9: =SUMIFS('Network Projects Direct Costs'!$E$6:$E$164,'Network Projects Direct Costs'!$O$6:$O$164,'Misc Data'!$C9,'Network Projects Direct Costs'!$N$6:$N$164,'Misc Data'!P$4)/SUMIFS('Network Projects Direct Costs'!$E$6:$E$164,'Network Projects Direct Costs'!$O$6:$O$164,'Misc Data'!$C9) -> 0 | Q9: =SUMIFS('Network Projects Direct Costs'!$E$6:$E$164,'Network Projects Direct Costs'!$O$6:$O$164,'Misc Data'!$C9,'Network Projects Direct Costs'!$N$6:$N$164,'Misc Data'!Q$4)/SUMIFS('Network Projects Direct Costs'!$E$6:$E$164,'Network Projects Direct Costs'!$O$6:$O$164,'Misc Data'!$C9) -> 0 | R9: =SUMIFS('Network Projects Direct Costs'!$E$6:$E$164,'Network Projects Direct Costs'!$O$6:$O$164,'Misc Data'!$C9,'Network Projects Direct Costs'!$N$6:$N$164,'Misc Data'!R$4)/SUMIFS('Network Projects Direct Costs'!$E$6:$E$164,'Network Projects Direct Costs'!$O$6:$O$164,'Misc Data'!$C9) -> 0 | S9: =SUMIFS('Network Projects Direct Costs'!$E$6:$E$164,'Network Projects Direct Costs'!$O$6:$O$164,'Misc Data'!$C9,'Network Projects Direct Costs'!$N$6:$N$164,'Misc Data'!S$4)/SUMIFS('Network Projects Direct Costs'!$E$6:$E$164,'Network Projects Direct Costs'!$O$6:$O$164,'Misc Data'!$C9) -> 0 | T9: =SUMIFS('Network Projects Direct Costs'!$E$6:$E$164,'Network Projects Direct Costs'!$O$6:$O$164,'Misc Data'!$C9,'Network Projects Direct Costs'!$N$6:$N$164,'Misc Data'!T$4)/SUMIFS('Network Projects Direct Costs'!$E$6:$E$164,'Network Projects Direct Costs'!$O$6:$O$164,'Misc Data'!$C9) -> 0 | U9: =SUMIFS('Network Projects Direct Costs'!$E$6:$E$164,'Network Projects Direct Costs'!$O$6:$O$164,'Misc Data'!$C9,'Network Projects Direct Costs'!$N$6:$N$164,'Misc Data'!U$4)/SUMIFS('Network Projects Direct Costs'!$E$6:$E$164,'Network Projects Direct Costs'!$O$6:$O$164,'Misc Data'!$C9) -> 0 | V9: =SUMIFS('Network Projects Direct Costs'!$E$6:$E$164,'Network Projects Direct Costs'!$O$6:$O$164,'Misc Data'!$C9,'Network Projects Direct Costs'!$N$6:$N$164,'Misc Data'!V$4)/SUMIFS('Network Projects Direct Costs'!$E$6:$E$164,'Network Projects Direct Costs'!$O$6:$O$164,'Misc Data'!$C9) -> 0 | W9: =SUMIFS('Network Projects Direct Costs'!$E$6:$E$164,'Network Projects Direct Costs'!$O$6:$O$164,'Misc Data'!$C9,'Network Projects Direct Costs'!$N$6:$N$164,'Misc Data'!W$4)/SUMIFS('Network Projects Direct Costs'!$E$6:$E$164,'Network Projects Direct Costs'!$O$6:$O$164,'Misc Data'!$C9) -> 0 | X9: =SUMIFS('Network Projects Direct Costs'!$E$6:$E$164,'Network Projects Direct Costs'!$O$6:$O$164,'Misc Data'!$C9,'Network Projects Direct Costs'!$N$6:$N$164,'Misc Data'!X$4)/SUMIFS('Network Projects Direct Costs'!$E$6:$E$164,'Network Projects Direct Costs'!$O$6:$O$164,'Misc Data'!$C9) -> 0 | Y9: =SUMIFS('Network Projects Direct Costs'!$E$6:$E$164,'Network Projects Direct Costs'!$O$6:$O$164,'Misc Data'!$C9,'Network Projects Direct Costs'!$N$6:$N$164,'Misc Data'!Y$4)/SUMIFS('Network Projects Direct Costs'!$E$6:$E$164,'Network Projects Direct Costs'!$O$6:$O$164,'Misc Data'!$C9) -> 0 | Z9: =SUMIFS('Network Projects Direct Costs'!$E$6:$E$164,'Network Projects Direct Costs'!$O$6:$O$164,'Misc Data'!$C9,'Network Projects Direct Costs'!$N$6:$N$164,'Misc Data'!Z$4)/SUMIFS('Network Projects Direct Costs'!$E$6:$E$164,'Network Projects Direct Costs'!$O$6:$O$164,'Misc Data'!$C9) -> 0 | AA9: =SUMIFS('Network Projects Direct Costs'!$E$6:$E$164,'Network Projects Direct Costs'!$O$6:$O$164,'Misc Data'!$C9,'Network Projects Direct Costs'!$N$6:$N$164,'Misc Data'!AA$4)/SUMIFS('Network Projects Direct Costs'!$E$6:$E$164,'Network Projects Direct Costs'!$O$6:$O$164,'Misc Data'!$C9) -> 0 | AB9: =SUMIFS('Network Projects Direct Costs'!$E$6:$E$164,'Network Projects Direct Costs'!$O$6:$O$164,'Misc Data'!$C9,'Network Projects Direct Costs'!$N$6:$N$164,'Misc Data'!AB$4)/SUMIFS('Network Projects Direct Costs'!$E$6:$E$164,'Network Projects Direct Costs'!$O$6:$O$164,'Misc Data'!$C9) -> 0 | AC9: =SUMIFS('Network Projects Direct Costs'!$E$6:$E$164,'Network Projects Direct Costs'!$O$6:$O$164,'Misc Data'!$C9,'Network Projects Direct Costs'!$N$6:$N$164,'Misc Data'!AC$4)/SUMIFS('Network Projects Direct Costs'!$E$6:$E$164,'Network Projects Direct Costs'!$O$6:$O$164,'Misc Data'!$C9) -> 0 | AD9: =SUMIFS('Network Projects Direct Costs'!$E$6:$E$164,'Network Projects Direct Costs'!$O$6:$O$164,'Misc Data'!$C9,'Network Projects Direct Costs'!$N$6:$N$164,'Misc Data'!AD$4)/SUMIFS('Network Projects Direct Costs'!$E$6:$E$164,'Network Projects Direct Costs'!$O$6:$O$164,'Misc Data'!$C9) -> 0 | AE9: =SUMIFS('Network Projects Direct Costs'!$E$6:$E$164,'Network Projects Direct Costs'!$O$6:$O$164,'Misc Data'!$C9,'Network Projects Direct Costs'!$N$6:$N$164,'Misc Data'!AE$4)/SUMIFS('Network Projects Direct Costs'!$E$6:$E$164,'Network Projects Direct Costs'!$O$6:$O$164,'Misc Data'!$C9) -> 0 | AF9: 0 | AH9: =SUMIFS('Network Projects Direct Costs'!$F$6:$F$164,'Network Projects Direct Costs'!$O$6:$O$164,'Misc Data'!$C9,'Network Projects Direct Costs'!$N$6:$N$164,'Misc Data'!AH$4)/SUMIFS('Network Projects Direct Costs'!$F$6:$F$164,'Network Projects Direct Costs'!$O$6:$O$164,'Misc Data'!$C9) -> 0 | AI9: =SUMIFS('Network Projects Direct Costs'!$F$6:$F$164,'Network Projects Direct Costs'!$O$6:$O$164,'Misc Data'!$C9,'Network Projects Direct Costs'!$N$6:$N$164,'Misc Data'!AI$4)/SUMIFS('Network Projects Direct Costs'!$F$6:$F$164,'Network Projects Direct Costs'!$O$6:$O$164,'Misc Data'!$C9) -> 0.9178025189 | AJ9: =SUMIFS('Network Projects Direct Costs'!$F$6:$F$164,'Network Projects Direct Costs'!$O$6:$O$164,'Misc Data'!$C9,'Network Projects Direct Costs'!$N$6:$N$164,'Misc Data'!AJ$4)/SUMIFS('Network Projects Direct Costs'!$F$6:$F$164,'Network Projects Direct Costs'!$O$6:$O$164,'Misc Data'!$C9) -> 0 | AK9: =SUMIFS('Network Projects Direct Costs'!$F$6:$F$164,'Network Projects Direct Costs'!$O$6:$O$164,'Misc Data'!$C9,'Network Projects Direct Costs'!$N$6:$N$164,'Misc Data'!AK$4)/SUMIFS('Network Projects Direct Costs'!$F$6:$F$164,'Network Projects Direct Costs'!$O$6:$O$164,'Misc Data'!$C9) -> 0 | AL9: =SUMIFS('Network Projects Direct Costs'!$F$6:$F$164,'Network Projects Direct Costs'!$O$6:$O$164,'Misc Data'!$C9,'Network Projects Direct Costs'!$N$6:$N$164,'Misc Data'!AL$4)/SUMIFS('Network Projects Direct Costs'!$F$6:$F$164,'Network Projects Direct Costs'!$O$6:$O$164,'Misc Data'!$C9) -> 0.08219748107 | AM9: =SUMIFS('Network Projects Direct Costs'!$F$6:$F$164,'Network Projects Direct Costs'!$O$6:$O$164,'Misc Data'!$C9,'Network Projects Direct Costs'!$N$6:$N$164,'Misc Data'!AM$4)/SUMIFS('Network Projects Direct Costs'!$F$6:$F$164,'Network Projects Direct Costs'!$O$6:$O$164,'Misc Data'!$C9) -> 0 | AN9: =SUMIFS('Network Projects Direct Costs'!$F$6:$F$164,'Network Projects Direct Costs'!$O$6:$O$164,'Misc Data'!$C9,'Network Projects Direct Costs'!$N$6:$N$164,'Misc Data'!AN$4)/SUMIFS('Network Projects Direct Costs'!$F$6:$F$164,'Network Projects Direct Costs'!$O$6:$O$164,'Misc Data'!$C9) -> 0 | AO9: =SUMIFS('Network Projects Direct Costs'!$F$6:$F$164,'Network Projects Direct Costs'!$O$6:$O$164,'Misc Data'!$C9,'Network Projects Direct Costs'!$N$6:$N$164,'Misc Data'!AO$4)/SUMIFS('Network Projects Direct Costs'!$F$6:$F$164,'Network Projects Direct Costs'!$O$6:$O$164,'Misc Data'!$C9) -> 0 | AP9: =SUMIFS('Network Projects Direct Costs'!$F$6:$F$164,'Network Projects Direct Costs'!$O$6:$O$164,'Misc Data'!$C9,'Network Projects Direct Costs'!$N$6:$N$164,'Misc Data'!AP$4)/SUMIFS('Network Projects Direct Costs'!$F$6:$F$164,'Network Projects Direct Costs'!$O$6:$O$164,'Misc Data'!$C9) -> 0 | AQ9: =SUMIFS('Network Projects Direct Costs'!$F$6:$F$164,'Network Projects Direct Costs'!$O$6:$O$164,'Misc Data'!$C9,'Network Projects Direct Costs'!$N$6:$N$164,'Misc Data'!AQ$4)/SUMIFS('Network Projects Direct Costs'!$F$6:$F$164,'Network Projects Direct Costs'!$O$6:$O$164,'Misc Data'!$C9) -> 0 | AR9: =SUMIFS('Network Projects Direct Costs'!$F$6:$F$164,'Network Projects Direct Costs'!$O$6:$O$164,'Misc Data'!$C9,'Network Projects Direct Costs'!$N$6:$N$164,'Misc Data'!AR$4)/SUMIFS('Network Projects Direct Costs'!$F$6:$F$164,'Network Projects Direct Costs'!$O$6:$O$164,'Misc Data'!$C9) -> 0 | AS9: =SUMIFS('Network Projects Direct Costs'!$F$6:$F$164,'Network Projects Direct Costs'!$O$6:$O$164,'Misc Data'!$C9,'Network Projects Direct Costs'!$N$6:$N$164,'Misc Data'!AS$4)/SUMIFS('Network Projects Direct Costs'!$F$6:$F$164,'Network Projects Direct Costs'!$O$6:$O$164,'Misc Data'!$C9) -> 0 | AT9: =SUMIFS('Network Projects Direct Costs'!$F$6:$F$164,'Network Projects Direct Costs'!$O$6:$O$164,'Misc Data'!$C9,'Network Projects Direct Costs'!$N$6:$N$164,'Misc Data'!AT$4)/SUMIFS('Network Projects Direct Costs'!$F$6:$F$164,'Network Projects Direct Costs'!$O$6:$O$164,'Misc Data'!$C9) -> 0 | AU9: =SUMIFS('Network Projects Direct Costs'!$F$6:$F$164,'Network Projects Direct Costs'!$O$6:$O$164,'Misc Data'!$C9,'Network Projects Direct Costs'!$N$6:$N$164,'Misc Data'!AU$4)/SUMIFS('Network Projects Direct Costs'!$F$6:$F$164,'Network Projects Direct Costs'!$O$6:$O$164,'Misc Data'!$C9) -> 0 | AV9: =SUMIFS('Network Projects Direct Costs'!$F$6:$F$164,'Network Projects Direct Costs'!$O$6:$O$164,'Misc Data'!$C9,'Network Projects Direct Costs'!$N$6:$N$164,'Misc Data'!AV$4)/SUMIFS('Network Projects Direct Costs'!$F$6:$F$164,'Network Projects Direct Costs'!$O$6:$O$164,'Misc Data'!$C9) -> 0 | AW9: =SUMIFS('Network Projects Direct Costs'!$F$6:$F$164,'Network Projects Direct Costs'!$O$6:$O$164,'Misc Data'!$C9,'Network Projects Direct Costs'!$N$6:$N$164,'Misc Data'!AW$4)/SUMIFS('Network Projects Direct Costs'!$F$6:$F$164,'Network Projects Direct Costs'!$O$6:$O$164,'Misc Data'!$C9) -> 0 | AX9: =SUMIFS('Network Projects Direct Costs'!$F$6:$F$164,'Network Projects Direct Costs'!$O$6:$O$164,'Misc Data'!$C9,'Network Projects Direct Costs'!$N$6:$N$164,'Misc Data'!AX$4)/SUMIFS('Network Projects Direct Costs'!$F$6:$F$164,'Network Projects Direct Costs'!$O$6:$O$164,'Misc Data'!$C9) -> 0 | AY9: =SUMIFS('Network Projects Direct Costs'!$F$6:$F$164,'Network Projects Direct Costs'!$O$6:$O$164,'Misc Data'!$C9,'Network Projects Direct Costs'!$N$6:$N$164,'Misc Data'!AY$4)/SUMIFS('Network Projects Direct Costs'!$F$6:$F$164,'Network Projects Direct Costs'!$O$6:$O$164,'Misc Data'!$C9) -> 0 | AZ9: =SUMIFS('Network Projects Direct Costs'!$F$6:$F$164,'Network Projects Direct Costs'!$O$6:$O$164,'Misc Data'!$C9,'Network Projects Direct Costs'!$N$6:$N$164,'Misc Data'!AZ$4)/SUMIFS('Network Projects Direct Costs'!$F$6:$F$164,'Network Projects Direct Costs'!$O$6:$O$164,'Misc Data'!$C9) -> 0 | BA9: =SUMIFS('Network Projects Direct Costs'!$F$6:$F$164,'Network Projects Direct Costs'!$O$6:$O$164,'Misc Data'!$C9,'Network Projects Direct Costs'!$N$6:$N$164,'Misc Data'!BA$4)/SUMIFS('Network Projects Direct Costs'!$F$6:$F$164,'Network Projects Direct Costs'!$O$6:$O$164,'Misc Data'!$C9) -> 0 | BB9: =SUMIFS('Network Projects Direct Costs'!$F$6:$F$164,'Network Projects Direct Costs'!$O$6:$O$164,'Misc Data'!$C9,'Network Projects Direct Costs'!$N$6:$N$164,'Misc Data'!BB$4)/SUMIFS('Network Projects Direct Costs'!$F$6:$F$164,'Network Projects Direct Costs'!$O$6:$O$164,'Misc Data'!$C9) -> 0 | BC9: 0 | BE9: =SUMIFS('Network Projects Direct Costs'!$G$6:$G$164,'Network Projects Direct Costs'!$O$6:$O$164,'Misc Data'!$C9,'Network Projects Direct Costs'!$N$6:$N$164,'Misc Data'!BE$4)/SUMIFS('Network Projects Direct Costs'!$G$6:$G$164,'Network Projects Direct Costs'!$O$6:$O$164,'Misc Data'!$C9) -> 0 | BF9: =SUMIFS('Network Projects Direct Costs'!$G$6:$G$164,'Network Projects Direct Costs'!$O$6:$O$164,'Misc Data'!$C9,'Network Projects Direct Costs'!$N$6:$N$164,'Misc Data'!BF$4)/SUMIFS('Network Projects Direct Costs'!$G$6:$G$164,'Network Projects Direct Costs'!$O$6:$O$164,'Misc Data'!$C9) -> 0.921207573 | BG9: =SUMIFS('Network Projects Direct Costs'!$G$6:$G$164,'Network Projects Direct Costs'!$O$6:$O$164,'Misc Data'!$C9,'Network Projects Direct Costs'!$N$6:$N$164,'Misc Data'!BG$4)/SUMIFS('Network Projects Direct Costs'!$G$6:$G$164,'Network Projects Direct Costs'!$O$6:$O$164,'Misc Data'!$C9) -> 0 | BH9: =SUMIFS('Network Projects Direct Costs'!$G$6:$G$164,'Network Projects Direct Costs'!$O$6:$O$164,'Misc Data'!$C9,'Network Projects Direct Costs'!$N$6:$N$164,'Misc Data'!BH$4)/SUMIFS('Network Projects Direct Costs'!$G$6:$G$164,'Network Projects Direct Costs'!$O$6:$O$164,'Misc Data'!$C9) -> 0 | BI9: =SUMIFS('Network Projects Direct Costs'!$G$6:$G$164,'Network Projects Direct Costs'!$O$6:$O$164,'Misc Data'!$C9,'Network Projects Direct Costs'!$N$6:$N$164,'Misc Data'!BI$4)/SUMIFS('Network Projects Direct Costs'!$G$6:$G$164,'Network Projects Direct Costs'!$O$6:$O$164,'Misc Data'!$C9) -> 0.07879242704 | BJ9: =SUMIFS('Network Projects Direct Costs'!$G$6:$G$164,'Network Projects Direct Costs'!$O$6:$O$164,'Misc Data'!$C9,'Network Projects Direct Costs'!$N$6:$N$164,'Misc Data'!BJ$4)/SUMIFS('Network Projects Direct Costs'!$G$6:$G$164,'Network Projects Direct Costs'!$O$6:$O$164,'Misc Data'!$C9) -> 0 | BK9: =SUMIFS('Network Projects Direct Costs'!$G$6:$G$164,'Network Projects Direct Costs'!$O$6:$O$164,'Misc Data'!$C9,'Network Projects Direct Costs'!$N$6:$N$164,'Misc Data'!BK$4)/SUMIFS('Network Projects Direct Costs'!$G$6:$G$164,'Network Projects Direct Costs'!$O$6:$O$164,'Misc Data'!$C9) -> 0 | BL9: =SUMIFS('Network Projects Direct Costs'!$G$6:$G$164,'Network Projects Direct Costs'!$O$6:$O$164,'Misc Data'!$C9,'Network Projects Direct Costs'!$N$6:$N$164,'Misc Data'!BL$4)/SUMIFS('Network Projects Direct Costs'!$G$6:$G$164,'Network Projects Direct Costs'!$O$6:$O$164,'Misc Data'!$C9) -> 0 | BM9: =SUMIFS('Network Projects Direct Costs'!$G$6:$G$164,'Network Projects Direct Costs'!$O$6:$O$164,'Misc Data'!$C9,'Network Projects Direct Costs'!$N$6:$N$164,'Misc Data'!BM$4)/SUMIFS('Network Projects Direct Costs'!$G$6:$G$164,'Network Projects Direct Costs'!$O$6:$O$164,'Misc Data'!$C9) -> 0 | BN9: =SUMIFS('Network Projects Direct Costs'!$G$6:$G$164,'Network Projects Direct Costs'!$O$6:$O$164,'Misc Data'!$C9,'Network Projects Direct Costs'!$N$6:$N$164,'Misc Data'!BN$4)/SUMIFS('Network Projects Direct Costs'!$G$6:$G$164,'Network Projects Direct Costs'!$O$6:$O$164,'Misc Data'!$C9) -> 0 | BO9: =SUMIFS('Network Projects Direct Costs'!$G$6:$G$164,'Network Projects Direct Costs'!$O$6:$O$164,'Misc Data'!$C9,'Network Projects Direct Costs'!$N$6:$N$164,'Misc Data'!BO$4)/SUMIFS('Network Projects Direct Costs'!$G$6:$G$164,'Network Projects Direct Costs'!$O$6:$O$164,'Misc Data'!$C9) -> 0 | BP9: =SUMIFS('Network Projects Direct Costs'!$G$6:$G$164,'Network Projects Direct Costs'!$O$6:$O$164,'Misc Data'!$C9,'Network Projects Direct Costs'!$N$6:$N$164,'Misc Data'!BP$4)/SUMIFS('Network Projects Direct Costs'!$G$6:$G$164,'Network Projects Direct Costs'!$O$6:$O$164,'Misc Data'!$C9) -> 0 | BQ9: =SUMIFS('Network Projects Direct Costs'!$G$6:$G$164,'Network Projects Direct Costs'!$O$6:$O$164,'Misc Data'!$C9,'Network Projects Direct Costs'!$N$6:$N$164,'Misc Data'!BQ$4)/SUMIFS('Network Projects Direct Costs'!$G$6:$G$164,'Network Projects Direct Costs'!$O$6:$O$164,'Misc Data'!$C9) -> 0 | BR9: =SUMIFS('Network Projects Direct Costs'!$G$6:$G$164,'Network Projects Direct Costs'!$O$6:$O$164,'Misc Data'!$C9,'Network Projects Direct Costs'!$N$6:$N$164,'Misc Data'!BR$4)/SUMIFS('Network Projects Direct Costs'!$G$6:$G$164,'Network Projects Direct Costs'!$O$6:$O$164,'Misc Data'!$C9) -> 0 | BS9: =SUMIFS('Network Projects Direct Costs'!$G$6:$G$164,'Network Projects Direct Costs'!$O$6:$O$164,'Misc Data'!$C9,'Network Projects Direct Costs'!$N$6:$N$164,'Misc Data'!BS$4)/SUMIFS('Network Projects Direct Costs'!$G$6:$G$164,'Network Projects Direct Costs'!$O$6:$O$164,'Misc Data'!$C9) -> 0 | BT9: =SUMIFS('Network Projects Direct Costs'!$G$6:$G$164,'Network Projects Direct Costs'!$O$6:$O$164,'Misc Data'!$C9,'Network Projects Direct Costs'!$N$6:$N$164,'Misc Data'!BT$4)/SUMIFS('Network Projects Direct Costs'!$G$6:$G$164,'Network Projects Direct Costs'!$O$6:$O$164,'Misc Data'!$C9) -> 0 | BU9: =SUMIFS('Network Projects Direct Costs'!$G$6:$G$164,'Network Projects Direct Costs'!$O$6:$O$164,'Misc Data'!$C9,'Network Projects Direct Costs'!$N$6:$N$164,'Misc Data'!BU$4)/SUMIFS('Network Projects Direct Costs'!$G$6:$G$164,'Network Projects Direct Costs'!$O$6:$O$164,'Misc Data'!$C9) -> 0 | BV9: =SUMIFS('Network Projects Direct Costs'!$G$6:$G$164,'Network Projects Direct Costs'!$O$6:$O$164,'Misc Data'!$C9,'Network Projects Direct Costs'!$N$6:$N$164,'Misc Data'!BV$4)/SUMIFS('Network Projects Direct Costs'!$G$6:$G$164,'Network Projects Direct Costs'!$O$6:$O$164,'Misc Data'!$C9) -> 0 | BW9: =SUMIFS('Network Projects Direct Costs'!$G$6:$G$164,'Network Projects Direct Costs'!$O$6:$O$164,'Misc Data'!$C9,'Network Projects Direct Costs'!$N$6:$N$164,'Misc Data'!BW$4)/SUMIFS('Network Projects Direct Costs'!$G$6:$G$164,'Network Projects Direct Costs'!$O$6:$O$164,'Misc Data'!$C9) -> 0 | BX9: =SUMIFS('Network Projects Direct Costs'!$G$6:$G$164,'Network Projects Direct Costs'!$O$6:$O$164,'Misc Data'!$C9,'Network Projects Direct Costs'!$N$6:$N$164,'Misc Data'!BX$4)/SUMIFS('Network Projects Direct Costs'!$G$6:$G$164,'Network Projects Direct Costs'!$O$6:$O$164,'Misc Data'!$C9) -> 0 | BY9: =SUMIFS('Network Projects Direct Costs'!$G$6:$G$164,'Network Projects Direct Costs'!$O$6:$O$164,'Misc Data'!$C9,'Network Projects Direct Costs'!$N$6:$N$164,'Misc Data'!BY$4)/SUMIFS('Network Projects Direct Costs'!$G$6:$G$164,'Network Projects Direct Costs'!$O$6:$O$164,'Misc Data'!$C9) -> 0 | BZ9: 2.220446049e-16 | CB9: =SUMIFS('Network Projects Direct Costs'!$H$6:$H$164,'Network Projects Direct Costs'!$O$6:$O$164,'Misc Data'!$C9,'Network Projects Direct Costs'!$N$6:$N$164,'Misc Data'!CB$4)/SUMIFS('Network Projects Direct Costs'!$H$6:$H$164,'Network Projects Direct Costs'!$O$6:$O$164,'Misc Data'!$C9) -> 0 | CC9: =SUMIFS('Network Projects Direct Costs'!$H$6:$H$164,'Network Projects Direct Costs'!$O$6:$O$164,'Misc Data'!$C9,'Network Projects Direct Costs'!$N$6:$N$164,'Misc Data'!CC$4)/SUMIFS('Network Projects Direct Costs'!$H$6:$H$164,'Network Projects Direct Costs'!$O$6:$O$164,'Misc Data'!$C9) -> 0.9205350944 | CD9: =SUMIFS('Network Projects Direct Costs'!$H$6:$H$164,'Network Projects Direct Costs'!$O$6:$O$164,'Misc Data'!$C9,'Network Projects Direct Costs'!$N$6:$N$164,'Misc Data'!CD$4)/SUMIFS('Network Projects Direct Costs'!$H$6:$H$164,'Network Projects Direct Costs'!$O$6:$O$164,'Misc Data'!$C9) -> 0 | CE9: =SUMIFS('Network Projects Direct Costs'!$H$6:$H$164,'Network Projects Direct Costs'!$O$6:$O$164,'Misc Data'!$C9,'Network Projects Direct Costs'!$N$6:$N$164,'Misc Data'!CE$4)/SUMIFS('Network Projects Direct Costs'!$H$6:$H$164,'Network Projects Direct Costs'!$O$6:$O$164,'Misc Data'!$C9) -> 0 | CF9: =SUMIFS('Network Projects Direct Costs'!$H$6:$H$164,'Network Projects Direct Costs'!$O$6:$O$164,'Misc Data'!$C9,'Network Projects Direct Costs'!$N$6:$N$164,'Misc Data'!CF$4)/SUMIFS('Network Projects Direct Costs'!$H$6:$H$164,'Network Projects Direct Costs'!$O$6:$O$164,'Misc Data'!$C9) -> 0.07946490556 | CG9: =SUMIFS('Network Projects Direct Costs'!$H$6:$H$164,'Network Projects Direct Costs'!$O$6:$O$164,'Misc Data'!$C9,'Network Projects Direct Costs'!$N$6:$N$164,'Misc Data'!CG$4)/SUMIFS('Network Projects Direct Costs'!$H$6:$H$164,'Network Projects Direct Costs'!$O$6:$O$164,'Misc Data'!$C9) -> 0 | CH9: =SUMIFS('Network Projects Direct Costs'!$H$6:$H$164,'Network Projects Direct Costs'!$O$6:$O$164,'Misc Data'!$C9,'Network Projects Direct Costs'!$N$6:$N$164,'Misc Data'!CH$4)/SUMIFS('Network Projects Direct Costs'!$H$6:$H$164,'Network Projects Direct Costs'!$O$6:$O$164,'Misc Data'!$C9) -> 0 | CI9: =SUMIFS('Network Projects Direct Costs'!$H$6:$H$164,'Network Projects Direct Costs'!$O$6:$O$164,'Misc Data'!$C9,'Network Projects Direct Costs'!$N$6:$N$164,'Misc Data'!CI$4)/SUMIFS('Network Projects Direct Costs'!$H$6:$H$164,'Network Projects Direct Costs'!$O$6:$O$164,'Misc Data'!$C9) -> 0 | CJ9: =SUMIFS('Network Projects Direct Costs'!$H$6:$H$164,'Network Projects Direct Costs'!$O$6:$O$164,'Misc Data'!$C9,'Network Projects Direct Costs'!$N$6:$N$164,'Misc Data'!CJ$4)/SUMIFS('Network Projects Direct Costs'!$H$6:$H$164,'Network Projects Direct Costs'!$O$6:$O$164,'Misc Data'!$C9) -> 0 | CK9: =SUMIFS('Network Projects Direct Costs'!$H$6:$H$164,'Network Projects Direct Costs'!$O$6:$O$164,'Misc Data'!$C9,'Network Projects Direct Costs'!$N$6:$N$164,'Misc Data'!CK$4)/SUMIFS('Network Projects Direct Costs'!$H$6:$H$164,'Network Projects Direct Costs'!$O$6:$O$164,'Misc Data'!$C9) -> 0 | CL9: =SUMIFS('Network Projects Direct Costs'!$H$6:$H$164,'Network Projects Direct Costs'!$O$6:$O$164,'Misc Data'!$C9,'Network Projects Direct Costs'!$N$6:$N$164,'Misc Data'!CL$4)/SUMIFS('Network Projects Direct Costs'!$H$6:$H$164,'Network Projects Direct Costs'!$O$6:$O$164,'Misc Data'!$C9) -> 0 | CM9: =SUMIFS('Network Projects Direct Costs'!$H$6:$H$164,'Network Projects Direct Costs'!$O$6:$O$164,'Misc Data'!$C9,'Network Projects Direct Costs'!$N$6:$N$164,'Misc Data'!CM$4)/SUMIFS('Network Projects Direct Costs'!$H$6:$H$164,'Network Projects Direct Costs'!$O$6:$O$164,'Misc Data'!$C9) -> 0 | CN9: =SUMIFS('Network Projects Direct Costs'!$H$6:$H$164,'Network Projects Direct Costs'!$O$6:$O$164,'Misc Data'!$C9,'Network Projects Direct Costs'!$N$6:$N$164,'Misc Data'!CN$4)/SUMIFS('Network Projects Direct Costs'!$H$6:$H$164,'Network Projects Direct Costs'!$O$6:$O$164,'Misc Data'!$C9) -> 0 | CO9: =SUMIFS('Network Projects Direct Costs'!$H$6:$H$164,'Network Projects Direct Costs'!$O$6:$O$164,'Misc Data'!$C9,'Network Projects Direct Costs'!$N$6:$N$164,'Misc Data'!CO$4)/SUMIFS('Network Projects Direct Costs'!$H$6:$H$164,'Network Projects Direct Costs'!$O$6:$O$164,'Misc Data'!$C9) -> 0 | CP9: =SUMIFS('Network Projects Direct Costs'!$H$6:$H$164,'Network Projects Direct Costs'!$O$6:$O$164,'Misc Data'!$C9,'Network Projects Direct Costs'!$N$6:$N$164,'Misc Data'!CP$4)/SUMIFS('Network Projects Direct Costs'!$H$6:$H$164,'Network Projects Direct Costs'!$O$6:$O$164,'Misc Data'!$C9) -> 0 | CQ9: =SUMIFS('Network Projects Direct Costs'!$H$6:$H$164,'Network Projects Direct Costs'!$O$6:$O$164,'Misc Data'!$C9,'Network Projects Direct Costs'!$N$6:$N$164,'Misc Data'!CQ$4)/SUMIFS('Network Projects Direct Costs'!$H$6:$H$164,'Network Projects Direct Costs'!$O$6:$O$164,'Misc Data'!$C9) -> 0 | CR9: =SUMIFS('Network Projects Direct Costs'!$H$6:$H$164,'Network Projects Direct Costs'!$O$6:$O$164,'Misc Data'!$C9,'Network Projects Direct Costs'!$N$6:$N$164,'Misc Data'!CR$4)/SUMIFS('Network Projects Direct Costs'!$H$6:$H$164,'Network Projects Direct Costs'!$O$6:$O$164,'Misc Data'!$C9) -> 0 | CS9: =SUMIFS('Network Projects Direct Costs'!$H$6:$H$164,'Network Projects Direct Costs'!$O$6:$O$164,'Misc Data'!$C9,'Network Projects Direct Costs'!$N$6:$N$164,'Misc Data'!CS$4)/SUMIFS('Network Projects Direct Costs'!$H$6:$H$164,'Network Projects Direct Costs'!$O$6:$O$164,'Misc Data'!$C9) -> 0 | CT9: =SUMIFS('Network Projects Direct Costs'!$H$6:$H$164,'Network Projects Direct Costs'!$O$6:$O$164,'Misc Data'!$C9,'Network Projects Direct Costs'!$N$6:$N$164,'Misc Data'!CT$4)/SUMIFS('Network Projects Direct Costs'!$H$6:$H$164,'Network Projects Direct Costs'!$O$6:$O$164,'Misc Data'!$C9) -> 0 | CU9: =SUMIFS('Network Projects Direct Costs'!$H$6:$H$164,'Network Projects Direct Costs'!$O$6:$O$164,'Misc Data'!$C9,'Network Projects Direct Costs'!$N$6:$N$164,'Misc Data'!CU$4)/SUMIFS('Network Projects Direct Costs'!$H$6:$H$164,'Network Projects Direct Costs'!$O$6:$O$164,'Misc Data'!$C9) -> 0 | CV9: =SUMIFS('Network Projects Direct Costs'!$H$6:$H$164,'Network Projects Direct Costs'!$O$6:$O$164,'Misc Data'!$C9,'Network Projects Direct Costs'!$N$6:$N$164,'Misc Data'!CV$4)/SUMIFS('Network Projects Direct Costs'!$H$6:$H$164,'Network Projects Direct Costs'!$O$6:$O$164,'Misc Data'!$C9) -> 0 | CW9: 1.110223025e-16 | CY9: =SUMIFS('Network Projects Direct Costs'!$I$6:$I$164,'Network Projects Direct Costs'!$O$6:$O$164,'Misc Data'!$C9,'Network Projects Direct Costs'!$N$6:$N$164,'Misc Data'!CY$4)/SUMIFS('Network Projects Direct Costs'!$I$6:$I$164,'Network Projects Direct Costs'!$O$6:$O$164,'Misc Data'!$C9) -> 0 | CZ9: =SUMIFS('Network Projects Direct Costs'!$I$6:$I$164,'Network Projects Direct Costs'!$O$6:$O$164,'Misc Data'!$C9,'Network Projects Direct Costs'!$N$6:$N$164,'Misc Data'!CZ$4)/SUMIFS('Network Projects Direct Costs'!$I$6:$I$164,'Network Projects Direct Costs'!$O$6:$O$164,'Misc Data'!$C9) -> 0.925377554 | DA9: =SUMIFS('Network Projects Direct Costs'!$I$6:$I$164,'Network Projects Direct Costs'!$O$6:$O$164,'Misc Data'!$C9,'Network Projects Direct Costs'!$N$6:$N$164,'Misc Data'!DA$4)/SUMIFS('Network Projects Direct Costs'!$I$6:$I$164,'Network Projects Direct Costs'!$O$6:$O$164,'Misc Data'!$C9) -> 0 | DB9: =SUMIFS('Network Projects Direct Costs'!$I$6:$I$164,'Network Projects Direct Costs'!$O$6:$O$164,'Misc Data'!$C9,'Network Projects Direct Costs'!$N$6:$N$164,'Misc Data'!DB$4)/SUMIFS('Network Projects Direct Costs'!$I$6:$I$164,'Network Projects Direct Costs'!$O$6:$O$164,'Misc Data'!$C9) -> 0 | DC9: =SUMIFS('Network Projects Direct Costs'!$I$6:$I$164,'Network Projects Direct Costs'!$O$6:$O$164,'Misc Data'!$C9,'Network Projects Direct Costs'!$N$6:$N$164,'Misc Data'!DC$4)/SUMIFS('Network Projects Direct Costs'!$I$6:$I$164,'Network Projects Direct Costs'!$O$6:$O$164,'Misc Data'!$C9) -> 0.07462244605 | DD9: =SUMIFS('Network Projects Direct Costs'!$I$6:$I$164,'Network Projects Direct Costs'!$O$6:$O$164,'Misc Data'!$C9,'Network Projects Direct Costs'!$N$6:$N$164,'Misc Data'!DD$4)/SUMIFS('Network Projects Direct Costs'!$I$6:$I$164,'Network Projects Direct Costs'!$O$6:$O$164,'Misc Data'!$C9) -> 0 | DE9: =SUMIFS('Network Projects Direct Costs'!$I$6:$I$164,'Network Projects Direct Costs'!$O$6:$O$164,'Misc Data'!$C9,'Network Projects Direct Costs'!$N$6:$N$164,'Misc Data'!DE$4)/SUMIFS('Network Projects Direct Costs'!$I$6:$I$164,'Network Projects Direct Costs'!$O$6:$O$164,'Misc Data'!$C9) -> 0 | DF9: =SUMIFS('Network Projects Direct Costs'!$I$6:$I$164,'Network Projects Direct Costs'!$O$6:$O$164,'Misc Data'!$C9,'Network Projects Direct Costs'!$N$6:$N$164,'Misc Data'!DF$4)/SUMIFS('Network Projects Direct Costs'!$I$6:$I$164,'Network Projects Direct Costs'!$O$6:$O$164,'Misc Data'!$C9) -> 0 | DG9: =SUMIFS('Network Projects Direct Costs'!$I$6:$I$164,'Network Projects Direct Costs'!$O$6:$O$164,'Misc Data'!$C9,'Network Projects Direct Costs'!$N$6:$N$164,'Misc Data'!DG$4)/SUMIFS('Network Projects Direct Costs'!$I$6:$I$164,'Network Projects Direct Costs'!$O$6:$O$164,'Misc Data'!$C9) -> 0 | DH9: =SUMIFS('Network Projects Direct Costs'!$I$6:$I$164,'Network Projects Direct Costs'!$O$6:$O$164,'Misc Data'!$C9,'Network Projects Direct Costs'!$N$6:$N$164,'Misc Data'!DH$4)/SUMIFS('Network Projects Direct Costs'!$I$6:$I$164,'Network Projects Direct Costs'!$O$6:$O$164,'Misc Data'!$C9) -> 0 | DI9: =SUMIFS('Network Projects Direct Costs'!$I$6:$I$164,'Network Projects Direct Costs'!$O$6:$O$164,'Misc Data'!$C9,'Network Projects Direct Costs'!$N$6:$N$164,'Misc Data'!DI$4)/SUMIFS('Network Projects Direct Costs'!$I$6:$I$164,'Network Projects Direct Costs'!$O$6:$O$164,'Misc Data'!$C9) -> 0 | DJ9: =SUMIFS('Network Projects Direct Costs'!$I$6:$I$164,'Network Projects Direct Costs'!$O$6:$O$164,'Misc Data'!$C9,'Network Projects Direct Costs'!$N$6:$N$164,'Misc Data'!DJ$4)/SUMIFS('Network Projects Direct Costs'!$I$6:$I$164,'Network Projects Direct Costs'!$O$6:$O$164,'Misc Data'!$C9) -> 0 | DK9: =SUMIFS('Network Projects Direct Costs'!$I$6:$I$164,'Network Projects Direct Costs'!$O$6:$O$164,'Misc Data'!$C9,'Network Projects Direct Costs'!$N$6:$N$164,'Misc Data'!DK$4)/SUMIFS('Network Projects Direct Costs'!$I$6:$I$164,'Network Projects Direct Costs'!$O$6:$O$164,'Misc Data'!$C9) -> 0 | DL9: =SUMIFS('Network Projects Direct Costs'!$I$6:$I$164,'Network Projects Direct Costs'!$O$6:$O$164,'Misc Data'!$C9,'Network Projects Direct Costs'!$N$6:$N$164,'Misc Data'!DL$4)/SUMIFS('Network Projects Direct Costs'!$I$6:$I$164,'Network Projects Direct Costs'!$O$6:$O$164,'Misc Data'!$C9) -> 0 | DM9: =SUMIFS('Network Projects Direct Costs'!$I$6:$I$164,'Network Projects Direct Costs'!$O$6:$O$164,'Misc Data'!$C9,'Network Projects Direct Costs'!$N$6:$N$164,'Misc Data'!DM$4)/SUMIFS('Network Projects Direct Costs'!$I$6:$I$164,'Network Projects Direct Costs'!$O$6:$O$164,'Misc Data'!$C9) -> 0 | DN9: =SUMIFS('Network Projects Direct Costs'!$I$6:$I$164,'Network Projects Direct Costs'!$O$6:$O$164,'Misc Data'!$C9,'Network Projects Direct Costs'!$N$6:$N$164,'Misc Data'!DN$4)/SUMIFS('Network Projects Direct Costs'!$I$6:$I$164,'Network Projects Direct Costs'!$O$6:$O$164,'Misc Data'!$C9) -> 0 | DO9: =SUMIFS('Network Projects Direct Costs'!$I$6:$I$164,'Network Projects Direct Costs'!$O$6:$O$164,'Misc Data'!$C9,'Network Projects Direct Costs'!$N$6:$N$164,'Misc Data'!DO$4)/SUMIFS('Network Projects Direct Costs'!$I$6:$I$164,'Network Projects Direct Costs'!$O$6:$O$164,'Misc Data'!$C9) -> 0 | DP9: =SUMIFS('Network Projects Direct Costs'!$I$6:$I$164,'Network Projects Direct Costs'!$O$6:$O$164,'Misc Data'!$C9,'Network Projects Direct Costs'!$N$6:$N$164,'Misc Data'!DP$4)/SUMIFS('Network Projects Direct Costs'!$I$6:$I$164,'Network Projects Direct Costs'!$O$6:$O$164,'Misc Data'!$C9) -> 0 | DQ9: =SUMIFS('Network Projects Direct Costs'!$I$6:$I$164,'Network Projects Direct Costs'!$O$6:$O$164,'Misc Data'!$C9,'Network Projects Direct Costs'!$N$6:$N$164,'Misc Data'!DQ$4)/SUMIFS('Network Projects Direct Costs'!$I$6:$I$164,'Network Projects Direct Costs'!$O$6:$O$164,'Misc Data'!$C9) -> 0 | DR9: =SUMIFS('Network Projects Direct Costs'!$I$6:$I$164,'Network Projects Direct Costs'!$O$6:$O$164,'Misc Data'!$C9,'Network Projects Direct Costs'!$N$6:$N$164,'Misc Data'!DR$4)/SUMIFS('Network Projects Direct Costs'!$I$6:$I$164,'Network Projects Direct Costs'!$O$6:$O$164,'Misc Data'!$C9) -> 0 | DS9: =SUMIFS('Network Projects Direct Costs'!$I$6:$I$164,'Network Projects Direct Costs'!$O$6:$O$164,'Misc Data'!$C9,'Network Projects Direct Costs'!$N$6:$N$164,'Misc Data'!DS$4)/SUMIFS('Network Projects Direct Costs'!$I$6:$I$164,'Network Projects Direct Costs'!$O$6:$O$164,'Misc Data'!$C9) -> 0 | DT9: 0
A10: C-5 | B10: Augex | C10: Reliability | D10: 0.46 | E10: 0.06 | F10: 0.1 | G10: 0.08 | H10: 0.3 | I10: 0 | J10: 0 | K10: =SUMIFS('Network Projects Direct Costs'!$E$6:$E$164,'Network Projects Direct Costs'!$O$6:$O$164,'Misc Data'!$C10,'Network Projects Direct Costs'!$N$6:$N$164,'Misc Data'!K$4)/SUMIFS('Network Projects Direct Costs'!$E$6:$E$164,'Network Projects Direct Costs'!$O$6:$O$164,'Misc Data'!$C10) -> 0.5164724968 | L10: =SUMIFS('Network Projects Direct Costs'!$E$6:$E$164,'Network Projects Direct Costs'!$O$6:$O$164,'Misc Data'!$C10,'Network Projects Direct Costs'!$N$6:$N$164,'Misc Data'!L$4)/SUMIFS('Network Projects Direct Costs'!$E$6:$E$164,'Network Projects Direct Costs'!$O$6:$O$164,'Misc Data'!$C10) -> 0.3113700043 | M10: =SUMIFS('Network Projects Direct Costs'!$E$6:$E$164,'Network Projects Direct Costs'!$O$6:$O$164,'Misc Data'!$C10,'Network Projects Direct Costs'!$N$6:$N$164,'Misc Data'!M$4)/SUMIFS('Network Projects Direct Costs'!$E$6:$E$164,'Network Projects Direct Costs'!$O$6:$O$164,'Misc Data'!$C10) -> 0 | N10: =SUMIFS('Network Projects Direct Costs'!$E$6:$E$164,'Network Projects Direct Costs'!$O$6:$O$164,'Misc Data'!$C10,'Network Projects Direct Costs'!$N$6:$N$164,'Misc Data'!N$4)/SUMIFS('Network Projects Direct Costs'!$E$6:$E$164,'Network Projects Direct Costs'!$O$6:$O$164,'Misc Data'!$C10) -> 0 | O10: =SUMIFS('Network Projects Direct Costs'!$E$6:$E$164,'Network Projects Direct Costs'!$O$6:$O$164,'Misc Data'!$C10,'Network Projects Direct Costs'!$N$6:$N$164,'Misc Data'!O$4)/SUMIFS('Network Projects Direct Costs'!$E$6:$E$164,'Network Projects Direct Costs'!$O$6:$O$164,'Misc Data'!$C10) -> 0 | P10: =SUMIFS('Network Projects Direct Costs'!$E$6:$E$164,'Network Projects Direct Costs'!$O$6:$O$164,'Misc Data'!$C10,'Network Projects Direct Costs'!$N$6:$N$164,'Misc Data'!P$4)/SUMIFS('Network Projects Direct Costs'!$E$6:$E$164,'Network Projects Direct Costs'!$O$6:$O$164,'Misc Data'!$C10) -> 0 | Q10: =SUMIFS('Network Projects Direct Costs'!$E$6:$E$164,'Network Projects Direct Costs'!$O$6:$O$164,'Misc Data'!$C10,'Network Projects Direct Costs'!$N$6:$N$164,'Misc Data'!Q$4)/SUMIFS('Network Projects Direct Costs'!$E$6:$E$164,'Network Projects Direct Costs'!$O$6:$O$164,'Misc Data'!$C10) -> 0 | R10: =SUMIFS('Network Projects Direct Costs'!$E$6:$E$164,'Network Projects Direct Costs'!$O$6:$O$164,'Misc Data'!$C10,'Network Projects Direct Costs'!$N$6:$N$164,'Misc Data'!R$4)/SUMIFS('Network Projects Direct Costs'!$E$6:$E$164,'Network Projects Direct Costs'!$O$6:$O$164,'Misc Data'!$C10) -> 0 | S10: =SUMIFS('Network Projects Direct Costs'!$E$6:$E$164,'Network Projects Direct Costs'!$O$6:$O$164,'Misc Data'!$C10,'Network Projects Direct Costs'!$N$6:$N$164,'Misc Data'!S$4)/SUMIFS('Network Projects Direct Costs'!$E$6:$E$164,'Network Projects Direct Costs'!$O$6:$O$164,'Misc Data'!$C10) -> 0 | T10: =SUMIFS('Network Projects Direct Costs'!$E$6:$E$164,'Network Projects Direct Costs'!$O$6:$O$164,'Misc Data'!$C10,'Network Projects Direct Costs'!$N$6:$N$164,'Misc Data'!T$4)/SUMIFS('Network Projects Direct Costs'!$E$6:$E$164,'Network Projects Direct Costs'!$O$6:$O$164,'Misc Data'!$C10) -> 0 | U10: =SUMIFS('Network Projects Direct Costs'!$E$6:$E$164,'Network Projects Direct Costs'!$O$6:$O$164,'Misc Data'!$C10,'Network Projects Direct Costs'!$N$6:$N$164,'Misc Data'!U$4)/SUMIFS('Network Projects Direct Costs'!$E$6:$E$164,'Network Projects Direct Costs'!$O$6:$O$164,'Misc Data'!$C10) -> 0 | V10: =SUMIFS('Network Projects Direct Costs'!$E$6:$E$164,'Network Projects Direct Costs'!$O$6:$O$164,'Misc Data'!$C10,'Network Projects Direct Costs'!$N$6:$N$164,'Misc Data'!V$4)/SUMIFS('Network Projects Direct Costs'!$E$6:$E$164,'Network Projects Direct Costs'!$O$6:$O$164,'Misc Data'!$C10) -> 0 | W10: =SUMIFS('Network Projects Direct Costs'!$E$6:$E$164,'Network Projects Direct Costs'!$O$6:$O$164,'Misc Data'!$C10,'Network Projects Direct Costs'!$N$6:$N$164,'Misc Data'!W$4)/SUMIFS('Network Projects Direct Costs'!$E$6:$E$164,'Network Projects Direct Costs'!$O$6:$O$164,'Misc Data'!$C10) -> 0 | X10: =SUMIFS('Network Projects Direct Costs'!$E$6:$E$164,'Network Projects Direct Costs'!$O$6:$O$164,'Misc Data'!$C10,'Network Projects Direct Costs'!$N$6:$N$164,'Misc Data'!X$4)/SUMIFS('Network Projects Direct Costs'!$E$6:$E$164,'Network Projects Direct Costs'!$O$6:$O$164,'Misc Data'!$C10) -> 0 | Y10: =SUMIFS('Network Projects Direct Costs'!$E$6:$E$164,'Network Projects Direct Costs'!$O$6:$O$164,'Misc Data'!$C10,'Network Projects Direct Costs'!$N$6:$N$164,'Misc Data'!Y$4)/SUMIFS('Network Projects Direct Costs'!$E$6:$E$164,'Network Projects Direct Costs'!$O$6:$O$164,'Misc Data'!$C10) -> 0 | Z10: =SUMIFS('Network Projects Direct Costs'!$E$6:$E$164,'Network Projects Direct Costs'!$O$6:$O$164,'Misc Data'!$C10,'Network Projects Direct Costs'!$N$6:$N$164,'Misc Data'!Z$4)/SUMIFS('Network Projects Direct Costs'!$E$6:$E$164,'Network Projects Direct Costs'!$O$6:$O$164,'Misc Data'!$C10) -> 0 | AA10: =SUMIFS('Network Projects Direct Costs'!$E$6:$E$164,'Network Projects Direct Costs'!$O$6:$O$164,'Misc Data'!$C10,'Network Projects Direct Costs'!$N$6:$N$164,'Misc Data'!AA$4)/SUMIFS('Network Projects Direct Costs'!$E$6:$E$164,'Network Projects Direct Costs'!$O$6:$O$164,'Misc Data'!$C10) -> 0.1530288879 | AB10: =SUMIFS('Network Projects Direct Costs'!$E$6:$E$164,'Network Projects Direct Costs'!$O$6:$O$164,'Misc Data'!$C10,'Network Projects Direct Costs'!$N$6:$N$164,'Misc Data'!AB$4)/SUMIFS('Network Projects Direct Costs'!$E$6:$E$164,'Network Projects Direct Costs'!$O$6:$O$164,'Misc Data'!$C10) -> 0 | AC10: =SUMIFS('Network Projects Direct Costs'!$E$6:$E$164,'Network Projects Direct Costs'!$O$6:$O$164,'Misc Data'!$C10,'Network Projects Direct Costs'!$N$6:$N$164,'Misc Data'!AC$4)/SUMIFS('Network Projects Direct Costs'!$E$6:$E$164,'Network Projects Direct Costs'!$O$6:$O$164,'Misc Data'!$C10) -> 0.01912861099 | AD10: =SUMIFS('Network Projects Direct Costs'!$E$6:$E$164,'Network Projects Direct Costs'!$O$6:$O$164,'Misc Data'!$C10,'Network Projects Direct Costs'!$N$6:$N$164,'Misc Data'!AD$4)/SUMIFS('Network Projects Direct Costs'!$E$6:$E$164,'Network Projects Direct Costs'!$O$6:$O$164,'Misc Data'!$C10) -> 0 | AE10: =SUMIFS('Network Projects Direct Costs'!$E$6:$E$164,'Network Projects Direct Costs'!$O$6:$O$164,'Misc Data'!$C10,'Network Projects Direct Costs'!$N$6:$N$164,'Misc Data'!AE$4)/SUMIFS('Network Projects Direct Costs'!$E$6:$E$164,'Network Projects Direct Costs'!$O$6:$O$164,'Misc Data'!$C10) -> 0 | AF10: 0 | AH10: =SUMIFS('Network Projects Direct Costs'!$F$6:$F$164,'Network Projects Direct Costs'!$O$6:$O$164,'Misc Data'!$C10,'Network Projects Direct Costs'!$N$6:$N$164,'Misc Data'!AH$4)/SUMIFS('Network Projects Direct Costs'!$F$6:$F$164,'Network Projects Direct Costs'!$O$6:$O$164,'Misc Data'!$C10) -> 0.5164724968 | AI10: =SUMIFS('Network Projects Direct Costs'!$F$6:$F$164,'Network Projects Direct Costs'!$O$6:$O$164,'Misc Data'!$C10,'Network Projects Direct Costs'!$N$6:$N$164,'Misc Data'!AI$4)/SUMIFS('Network Projects Direct Costs'!$F$6:$F$164,'Network Projects Direct Costs'!$O$6:$O$164,'Misc Data'!$C10) -> 0.3113700043 | AJ10: =SUMIFS('Network Projects Direct Costs'!$F$6:$F$164,'Network Projects Direct Costs'!$O$6:$O$164,'Misc Data'!$C10,'Network Projects Direct Costs'!$N$6:$N$164,'Misc Data'!AJ$4)/SUMIFS('Network Projects Direct Costs'!$F$6:$F$164,'Network Projects Direct Costs'!$O$6:$O$164,'Misc Data'!$C10) -> 0 | AK10: =SUMIFS('Network Projects Direct Costs'!$F$6:$F$164,'Network Projects Direct Costs'!$O$6:$O$164,'Misc Data'!$C10,'Network Projects Direct Costs'!$N$6:$N$164,'Misc Data'!AK$4)/SUMIFS('Network Projects Direct Costs'!$F$6:$F$164,'Network Projects Direct Costs'!$O$6:$O$164,'Misc Data'!$C10) -> 0 | AL10: =SUMIFS('Network Projects Direct Costs'!$F$6:$F$164,'Network Projects Direct Costs'!$O$6:$O$164,'Misc Data'!$C10,'Network Projects Direct Costs'!$N$6:$N$164,'Misc Data'!AL$4)/SUMIFS('Network Projects Direct Costs'!$F$6:$F$164,'Network Projects Direct Costs'!$O$6:$O$164,'Misc Data'!$C10) -> 0 | AM10: =SUMIFS('Network Projects Direct Costs'!$F$6:$F$164,'Network Projects Direct Costs'!$O$6:$O$164,'Misc Data'!$C10,'Network Projects Direct Costs'!$N$6:$N$164,'Misc Data'!AM$4)/SUMIFS('Network Projects Direct Costs'!$F$6:$F$164,'Network Projects Direct Costs'!$O$6:$O$164,'Misc Data'!$C10) -> 0 | AN10: =SUMIFS('Network Projects Direct Costs'!$F$6:$F$164,'Network Projects Direct Costs'!$O$6:$O$164,'Misc Data'!$C10,'Network Projects Direct Costs'!$N$6:$N$164,'Misc Data'!AN$4)/SUMIFS('Network Projects Direct Costs'!$F$6:$F$164,'Network Projects Direct Costs'!$O$6:$O$164,'Misc Data'!$C10) -> 0 | AO10: =SUMIFS('Network Projects Direct Costs'!$F$6:$F$164,'Network Projects Direct Costs'!$O$6:$O$164,'Misc Data'!$C10,'Network Projects Direct Costs'!$N$6:$N$164,'Misc Data'!AO$4)/SUMIFS('Network Projects Direct Costs'!$F$6:$F$164,'Network Projects Direct Costs'!$O$6:$O$164,'Misc Data'!$C10) -> 0 | AP10: =SUMIFS('Network Projects Direct Costs'!$F$6:$F$164,'Network Projects Direct Costs'!$O$6:$O$164,'Misc Data'!$C10,'Network Projects Direct Costs'!$N$6:$N$164,'Misc Data'!AP$4)/SUMIFS('Network Projects Direct Costs'!$F$6:$F$164,'Network Projects Direct Costs'!$O$6:$O$164,'Misc Data'!$C10) -> 0 | AQ10: =SUMIFS('Network Projects Direct Costs'!$F$6:$F$164,'Network Projects Direct Costs'!$O$6:$O$164,'Misc Data'!$C10,'Network Projects Direct Costs'!$N$6:$N$164,'Misc Data'!AQ$4)/SUMIFS('Network Projects Direct Costs'!$F$6:$F$164,'Network Projects Direct Costs'!$O$6:$O$164,'Misc Data'!$C10) -> 0 | AR10: =SUMIFS('Network Projects Direct Costs'!$F$6:$F$164,'Network Projects Direct Costs'!$O$6:$O$164,'Misc Data'!$C10,'Network Projects Direct Costs'!$N$6:$N$164,'Misc Data'!AR$4)/SUMIFS('Network Projects Direct Costs'!$F$6:$F$164,'Network Projects Direct Costs'!$O$6:$O$164,'Misc Data'!$C10) -> 0 | AS10: =SUMIFS('Network Projects Direct Costs'!$F$6:$F$164,'Network Projects Direct Costs'!$O$6:$O$164,'Misc Data'!$C10,'Network Projects Direct Costs'!$N$6:$N$164,'Misc Data'!AS$4)/SUMIFS('Network Projects Direct Costs'!$F$6:$F$164,'Network Projects Direct Costs'!$O$6:$O$164,'Misc Data'!$C10) -> 0 | AT10: =SUMIFS('Network Projects Direct Costs'!$F$6:$F$164,'Network Projects Direct Costs'!$O$6:$O$164,'Misc Data'!$C10,'Network Projects Direct Costs'!$N$6:$N$164,'Misc Data'!AT$4)/SUMIFS('Network Projects Direct Costs'!$F$6:$F$164,'Network Projects Direct Costs'!$O$6:$O$164,'Misc Data'!$C10) -> 0 | AU10: =SUMIFS('Network Projects Direct Costs'!$F$6:$F$164,'Network Projects Direct Costs'!$O$6:$O$164,'Misc Data'!$C10,'Network Projects Direct Costs'!$N$6:$N$164,'Misc Data'!AU$4)/SUMIFS('Network Projects Direct Costs'!$F$6:$F$164,'Network Projects Direct Costs'!$O$6:$O$164,'Misc Data'!$C10) -> 0 | AV10: =SUMIFS('Network Projects Direct Costs'!$F$6:$F$164,'Network Projects Direct Costs'!$O$6:$O$164,'Misc Data'!$C10,'Network Projects Direct Costs'!$N$6:$N$164,'Misc Data'!AV$4)/SUMIFS('Network Projects Direct Costs'!$F$6:$F$164,'Network Projects Direct Costs'!$O$6:$O$164,'Misc Data'!$C10) -> 0 | AW10: =SUMIFS('Network Projects Direct Costs'!$F$6:$F$164,'Network Projects Direct Costs'!$O$6:$O$164,'Misc Data'!$C10,'Network Projects Direct Costs'!$N$6:$N$164,'Misc Data'!AW$4)/SUMIFS('Network Projects Direct Costs'!$F$6:$F$164,'Network Projects Direct Costs'!$O$6:$O$164,'Misc Data'!$C10) -> 0 | AX10: =SUMIFS('Network Projects Direct Costs'!$F$6:$F$164,'Network Projects Direct Costs'!$O$6:$O$164,'Misc Data'!$C10,'Network Projects Direct Costs'!$N$6:$N$164,'Misc Data'!AX$4)/SUMIFS('Network Projects Direct Costs'!$F$6:$F$164,'Network Projects Direct Costs'!$O$6:$O$164,'Misc Data'!$C10) -> 0.1530288879 | AY10: =SUMIFS('Network Projects Direct Costs'!$F$6:$F$164,'Network Projects Direct Costs'!$O$6:$O$164,'Misc Data'!$C10,'Network Projects Direct Costs'!$N$6:$N$164,'Misc Data'!AY$4)/SUMIFS('Network Projects Direct Costs'!$F$6:$F$164,'Network Projects Direct Costs'!$O$6:$O$164,'Misc Data'!$C10) -> 0 | AZ10: =SUMIFS('Network Projects Direct Costs'!$F$6:$F$164,'Network Projects Direct Costs'!$O$6:$O$164,'Misc Data'!$C10,'Network Projects Direct Costs'!$N$6:$N$164,'Misc Data'!AZ$4)/SUMIFS('Network Projects Direct Costs'!$F$6:$F$164,'Network Projects Direct Costs'!$O$6:$O$164,'Misc Data'!$C10) -> 0.01912861099 | BA10: =SUMIFS('Network Projects Direct Costs'!$F$6:$F$164,'Network Projects Direct Costs'!$O$6:$O$164,'Misc Data'!$C10,'Network Projects Direct Costs'!$N$6:$N$164,'Misc Data'!BA$4)/SUMIFS('Network Projects Direct Costs'!$F$6:$F$164,'Network Projects Direct Costs'!$O$6:$O$164,'Misc Data'!$C10) -> 0 | BB10: =SUMIFS('Network Projects Direct Costs'!$F$6:$F$164,'Network Projects Direct Costs'!$O$6:$O$164,'Misc Data'!$C10,'Network Projects Direct Costs'!$N$6:$N$164,'Misc Data'!BB$4)/SUMIFS('Network Projects Direct Costs'!$F$6:$F$164,'Network Projects Direct Costs'!$O$6:$O$164,'Misc Data'!$C10) -> 0 | BC10: 0 | BE10: =SUMIFS('Network Projects Direct Costs'!$G$6:$G$164,'Network Projects Direct Costs'!$O$6:$O$164,'Misc Data'!$C10,'Network Projects Direct Costs'!$N$6:$N$164,'Misc Data'!BE$4)/SUMIFS('Network Projects Direct Costs'!$G$6:$G$164,'Network Projects Direct Costs'!$O$6:$O$164,'Misc Data'!$C10) -> 0.5164724968 | BF10: =SUMIFS('Network Projects Direct Costs'!$G$6:$G$164,'Network Projects Direct Costs'!$O$6:$O$164,'Misc Data'!$C10,'Network Projects Direct Costs'!$N$6:$N$164,'Misc Data'!BF$4)/SUMIFS('Network Projects Direct Costs'!$G$6:$G$164,'Network Projects Direct Costs'!$O$6:$O$164,'Misc Data'!$C10) -> 0.3113700043 | BG10: =SUMIFS('Network Projects Direct Costs'!$G$6:$G$164,'Network Projects Direct Costs'!$O$6:$O$164,'Misc Data'!$C10,'Network Projects Direct Costs'!$N$6:$N$164,'Misc Data'!BG$4)/SUMIFS('Network Projects Direct Costs'!$G$6:$G$164,'Network Projects Direct Costs'!$O$6:$O$164,'Misc Data'!$C10) -> 0 | BH10: =SUMIFS('Network Projects Direct Costs'!$G$6:$G$164,'Network Projects Direct Costs'!$O$6:$O$164,'Misc Data'!$C10,'Network Projects Direct Costs'!$N$6:$N$164,'Misc Data'!BH$4)/SUMIFS('Network Projects Direct Costs'!$G$6:$G$164,'Network Projects Direct Costs'!$O$6:$O$164,'Misc Data'!$C10) -> 0 | BI10: =SUMIFS('Network Projects Direct Costs'!$G$6:$G$164,'Network Projects Direct Costs'!$O$6:$O$164,'Misc Data'!$C10,'Network Projects Direct Costs'!$N$6:$N$164,'Misc Data'!BI$4)/SUMIFS('Network Projects Direct Costs'!$G$6:$G$164,'Network Projects Direct Costs'!$O$6:$O$164,'Misc Data'!$C10) -> 0 | BJ10: =SUMIFS('Network Projects Direct Costs'!$G$6:$G$164,'Network Projects Direct Costs'!$O$6:$O$164,'Misc Data'!$C10,'Network Projects Direct Costs'!$N$6:$N$164,'Misc Data'!BJ$4)/SUMIFS('Network Projects Direct Costs'!$G$6:$G$164,'Network Projects Direct Costs'!$O$6:$O$164,'Misc Data'!$C10) -> 0 | BK10: =SUMIFS('Network Projects Direct Costs'!$G$6:$G$164,'Network Projects Direct Costs'!$O$6:$O$164,'Misc Data'!$C10,'Network Projects Direct Costs'!$N$6:$N$164,'Misc Data'!BK$4)/SUMIFS('Network Projects Direct Costs'!$G$6:$G$164,'Network Projects Direct Costs'!$O$6:$O$164,'Misc Data'!$C10) -> 0 | BL10: =SUMIFS('Network Projects Direct Costs'!$G$6:$G$164,'Network Projects Direct Costs'!$O$6:$O$164,'Misc Data'!$C10,'Network Projects Direct Costs'!$N$6:$N$164,'Misc Data'!BL$4)/SUMIFS('Network Projects Direct Costs'!$G$6:$G$164,'Network Projects Direct Costs'!$O$6:$O$164,'Misc Data'!$C10) -> 0 | BM10: =SUMIFS('Network Projects Direct Costs'!$G$6:$G$164,'Network Projects Direct Costs'!$O$6:$O$164,'Misc Data'!$C10,'Network Projects Direct Costs'!$N$6:$N$164,'Misc Data'!BM$4)/SUMIFS('Network Projects Direct Costs'!$G$6:$G$164,'Network Projects Direct Costs'!$O$6:$O$164,'Misc Data'!$C10) -> 0 | BN10: =SUMIFS('Network Projects Direct Costs'!$G$6:$G$164,'Network Projects Direct Costs'!$O$6:$O$164,'Misc Data'!$C10,'Network Projects Direct Costs'!$N$6:$N$164,'Misc Data'!BN$4)/SUMIFS('Network Projects Direct Costs'!$G$6:$G$164,'Network Projects Direct Costs'!$O$6:$O$164,'Misc Data'!$C10) -> 0 | BO10: =SUMIFS('Network Projects Direct Costs'!$G$6:$G$164,'Network Projects Direct Costs'!$O$6:$O$164,'Misc Data'!$C10,'Network Projects Direct Costs'!$N$6:$N$164,'Misc Data'!BO$4)/SUMIFS('Network Projects Direct Costs'!$G$6:$G$164,'Network Projects Direct Costs'!$O$6:$O$164,'Misc Data'!$C10) -> 0 | BP10: =SUMIFS('Network Projects Direct Costs'!$G$6:$G$164,'Network Projects Direct Costs'!$O$6:$O$164,'Misc Data'!$C10,'Network Projects Direct Costs'!$N$6:$N$164,'Misc Data'!BP$4)/SUMIFS('Network Projects Direct Costs'!$G$6:$G$164,'Network Projects Direct Costs'!$O$6:$O$164,'Misc Data'!$C10) -> 0 | BQ10: =SUMIFS('Network Projects Direct Costs'!$G$6:$G$164,'Network Projects Direct Costs'!$O$6:$O$164,'Misc Data'!$C10,'Network Projects Direct Costs'!$N$6:$N$164,'Misc Data'!BQ$4)/SUMIFS('Network Projects Direct Costs'!$G$6:$G$164,'Network Projects Direct Costs'!$O$6:$O$164,'Misc Data'!$C10) -> 0 | BR10: =SUMIFS('Network Projects Direct Costs'!$G$6:$G$164,'Network Projects Direct Costs'!$O$6:$O$164,'Misc Data'!$C10,'Network Projects Direct Costs'!$N$6:$N$164,'Misc Data'!BR$4)/SUMIFS('Network Projects Direct Costs'!$G$6:$G$164,'Network Projects Direct Costs'!$O$6:$O$164,'Misc Data'!$C10) -> 0 | BS10: =SUMIFS('Network Projects Direct Costs'!$G$6:$G$164,'Network Projects Direct Costs'!$O$6:$O$164,'Misc Data'!$C10,'Network Projects Direct Costs'!$N$6:$N$164,'Misc Data'!BS$4)/SUMIFS('Network Projects Direct Costs'!$G$6:$G$164,'Network Projects Direct Costs'!$O$6:$O$164,'Misc Data'!$C10) -> 0 | BT10: =SUMIFS('Network Projects Direct Costs'!$G$6:$G$164,'Network Projects Direct Costs'!$O$6:$O$164,'Misc Data'!$C10,'Network Projects Direct Costs'!$N$6:$N$164,'Misc Data'!BT$4)/SUMIFS('Network Projects Direct Costs'!$G$6:$G$164,'Network Projects Direct Costs'!$O$6:$O$164,'Misc Data'!$C10) -> 0 | BU10: =SUMIFS('Network Projects Direct Costs'!$G$6:$G$164,'Network Projects Direct Costs'!$O$6:$O$164,'Misc Data'!$C10,'Network Projects Direct Costs'!$N$6:$N$164,'Misc Data'!BU$4)/SUMIFS('Network Projects Direct Costs'!$G$6:$G$164,'Network Projects Direct Costs'!$O$6:$O$164,'Misc Data'!$C10) -> 0.1530288879 | BV10: =SUMIFS('Network Projects Direct Costs'!$G$6:$G$164,'Network Projects Direct Costs'!$O$6:$O$164,'Misc Data'!$C10,'Network Projects Direct Costs'!$N$6:$N$164,'Misc Data'!BV$4)/SUMIFS('Network Projects Direct Costs'!$G$6:$G$164,'Network Projects Direct Costs'!$O$6:$O$164,'Misc Data'!$C10) -> 0 | BW10: =SUMIFS('Network Projects Direct Costs'!$G$6:$G$164,'Network Projects Direct Costs'!$O$6:$O$164,'Misc Data'!$C10,'Network Projects Direct Costs'!$N$6:$N$164,'Misc Data'!BW$4)/SUMIFS('Network Projects Direct Costs'!$G$6:$G$164,'Network Projects Direct Costs'!$O$6:$O$164,'Misc Data'!$C10) -> 0.01912861099 | BX10: =SUMIFS('Network Projects Direct Costs'!$G$6:$G$164,'Network Projects Direct Costs'!$O$6:$O$164,'Misc Data'!$C10,'Network Projects Direct Costs'!$N$6:$N$164,'Misc Data'!BX$4)/SUMIFS('Network Projects Direct Costs'!$G$6:$G$164,'Network Projects Direct Costs'!$O$6:$O$164,'Misc Data'!$C10) -> 0 | BY10: =SUMIFS('Network Projects Direct Costs'!$G$6:$G$164,'Network Projects Direct Costs'!$O$6:$O$164,'Misc Data'!$C10,'Network Projects Direct Costs'!$N$6:$N$164,'Misc Data'!BY$4)/SUMIFS('Network Projects Direct Costs'!$G$6:$G$164,'Network Projects Direct Costs'!$O$6:$O$164,'Misc Data'!$C10) -> 0 | BZ10: 0 | CB10: =SUMIFS('Network Projects Direct Costs'!$H$6:$H$164,'Network Projects Direct Costs'!$O$6:$O$164,'Misc Data'!$C10,'Network Projects Direct Costs'!$N$6:$N$164,'Misc Data'!CB$4)/SUMIFS('Network Projects Direct Costs'!$H$6:$H$164,'Network Projects Direct Costs'!$O$6:$O$164,'Misc Data'!$C10) -> 0.5164724968 | CC10: =SUMIFS('Network Projects Direct Costs'!$H$6:$H$164,'Network Projects Direct Costs'!$O$6:$O$164,'Misc Data'!$C10,'Network Projects Direct Costs'!$N$6:$N$164,'Misc Data'!CC$4)/SUMIFS('Network Projects Direct Costs'!$H$6:$H$164,'Network Projects Direct Costs'!$O$6:$O$164,'Misc Data'!$C10) -> 0.3113700043 | CD10: =SUMIFS('Network Projects Direct Costs'!$H$6:$H$164,'Network Projects Direct Costs'!$O$6:$O$164,'Misc Data'!$C10,'Network Projects Direct Costs'!$N$6:$N$164,'Misc Data'!CD$4)/SUMIFS('Network Projects Direct Costs'!$H$6:$H$164,'Network Projects Direct Costs'!$O$6:$O$164,'Misc Data'!$C10) -> 0 | CE10: =SUMIFS('Network Projects Direct Costs'!$H$6:$H$164,'Network Projects Direct Costs'!$O$6:$O$164,'Misc Data'!$C10,'Network Projects Direct Costs'!$N$6:$N$164,'Misc Data'!CE$4)/SUMIFS('Network Projects Direct Costs'!$H$6:$H$164,'Network Projects Direct Costs'!$O$6:$O$164,'Misc Data'!$C10) -> 0 | CF10: =SUMIFS('Network Projects Direct Costs'!$H$6:$H$164,'Network Projects Direct Costs'!$O$6:$O$164,'Misc Data'!$C10,'Network Projects Direct Costs'!$N$6:$N$164,'Misc Data'!CF$4)/SUMIFS('Network Projects Direct Costs'!$H$6:$H$164,'Network Projects Direct Costs'!$O$6:$O$164,'Misc Data'!$C10) -> 0 | CG10: =SUMIFS('Network Projects Direct Costs'!$H$6:$H$164,'Network Projects Direct Costs'!$O$6:$O$164,'Misc Data'!$C10,'Network Projects Direct Costs'!$N$6:$N$164,'Misc Data'!CG$4)/SUMIFS('Network Projects Direct Costs'!$H$6:$H$164,'Network Projects Direct Costs'!$O$6:$O$164,'Misc Data'!$C10) -> 0 | CH10: =SUMIFS('Network Projects Direct Costs'!$H$6:$H$164,'Network Projects Direct Costs'!$O$6:$O$164,'Misc Data'!$C10,'Network Projects Direct Costs'!$N$6:$N$164,'Misc Data'!CH$4)/SUMIFS('Network Projects Direct Costs'!$H$6:$H$164,'Network Projects Direct Costs'!$O$6:$O$164,'Misc Data'!$C10) -> 0 | CI10: =SUMIFS('Network Projects Direct Costs'!$H$6:$H$164,'Network Projects Direct Costs'!$O$6:$O$164,'Misc Data'!$C10,'Network Projects Direct Costs'!$N$6:$N$164,'Misc Data'!CI$4)/SUMIFS('Network Projects Direct Costs'!$H$6:$H$164,'Network Projects Direct Costs'!$O$6:$O$164,'Misc Data'!$C10) -> 0 | CJ10: =SUMIFS('Network Projects Direct Costs'!$H$6:$H$164,'Network Projects Direct Costs'!$O$6:$O$164,'Misc Data'!$C10,'Network Projects Direct Costs'!$N$6:$N$164,'Misc Data'!CJ$4)/SUMIFS('Network Projects Direct Costs'!$H$6:$H$164,'Network Projects Direct Costs'!$O$6:$O$164,'Misc Data'!$C10) -> 0 | CK10: =SUMIFS('Network Projects Direct Costs'!$H$6:$H$164,'Network Projects Direct Costs'!$O$6:$O$164,'Misc Data'!$C10,'Network Projects Direct Costs'!$N$6:$N$164,'Misc Data'!CK$4)/SUMIFS('Network Projects Direct Costs'!$H$6:$H$164,'Network Projects Direct Costs'!$O$6:$O$164,'Misc Data'!$C10) -> 0 | CL10: =SUMIFS('Network Projects Direct Costs'!$H$6:$H$164,'Network Projects Direct Costs'!$O$6:$O$164,'Misc Data'!$C10,'Network Projects Direct Costs'!$N$6:$N$164,'Misc Data'!CL$4)/SUMIFS('Network Projects Direct Costs'!$H$6:$H$164,'Network Projects Direct Costs'!$O$6:$O$164,'Misc Data'!$C10) -> 0 | CM10: =SUMIFS('Network Projects Direct Costs'!$H$6:$H$164,'Network Projects Direct Costs'!$O$6:$O$164,'Misc Data'!$C10,'Network Projects Direct Costs'!$N$6:$N$164,'Misc Data'!CM$4)/SUMIFS('Network Projects Direct Costs'!$H$6:$H$164,'Network Projects Direct Costs'!$O$6:$O$164,'Misc Data'!$C10) -> 0 | CN10: =SUMIFS('Network Projects Direct Costs'!$H$6:$H$164,'Network Projects Direct Costs'!$O$6:$O$164,'Misc Data'!$C10,'Network Projects Direct Costs'!$N$6:$N$164,'Misc Data'!CN$4)/SUMIFS('Network Projects Direct Costs'!$H$6:$H$164,'Network Projects Direct Costs'!$O$6:$O$164,'Misc Data'!$C10) -> 0 | CO10: =SUMIFS('Network Projects Direct Costs'!$H$6:$H$164,'Network Projects Direct Costs'!$O$6:$O$164,'Misc Data'!$C10,'Network Projects Direct Costs'!$N$6:$N$164,'Misc Data'!CO$4)/SUMIFS('Network Projects Direct Costs'!$H$6:$H$164,'Network Projects Direct Costs'!$O$6:$O$164,'Misc Data'!$C10) -> 0 | CP10: =SUMIFS('Network Projects Direct Costs'!$H$6:$H$164,'Network Projects Direct Costs'!$O$6:$O$164,'Misc Data'!$C10,'Network Projects Direct Costs'!$N$6:$N$164,'Misc Data'!CP$4)/SUMIFS('Network Projects Direct Costs'!$H$6:$H$164,'Network Projects Direct Costs'!$O$6:$O$164,'Misc Data'!$C10) -> 0 | CQ10: =SUMIFS('Network Projects Direct Costs'!$H$6:$H$164,'Network Projects Direct Costs'!$O$6:$O$164,'Misc Data'!$C10,'Network Projects Direct Costs'!$N$6:$N$164,'Misc Data'!CQ$4)/SUMIFS('Network Projects Direct Costs'!$H$6:$H$164,'Network Projects Direct Costs'!$O$6:$O$164,'Misc Data'!$C10) -> 0 | CR10: =SUMIFS('Network Projects Direct Costs'!$H$6:$H$164,'Network Projects Direct Costs'!$O$6:$O$164,'Misc Data'!$C10,'Network Projects Direct Costs'!$N$6:$N$164,'Misc Data'!CR$4)/SUMIFS('Network Projects Direct Costs'!$H$6:$H$164,'Network Projects Direct Costs'!$O$6:$O$164,'Misc Data'!$C10) -> 0.1530288879 | CS10: =SUMIFS('Network Projects Direct Costs'!$H$6:$H$164,'Network Projects Direct Costs'!$O$6:$O$164,'Misc Data'!$C10,'Network Projects Direct Costs'!$N$6:$N$164,'Misc Data'!CS$4)/SUMIFS('Network Projects Direct Costs'!$H$6:$H$164,'Network Projects Direct Costs'!$O$6:$O$164,'Misc Data'!$C10) -> 0 | CT10: =SUMIFS('Network Projects Direct Costs'!$H$6:$H$164,'Network Projects Direct Costs'!$O$6:$O$164,'Misc Data'!$C10,'Network Projects Direct Costs'!$N$6:$N$164,'Misc Data'!CT$4)/SUMIFS('Network Projects Direct Costs'!$H$6:$H$164,'Network Projects Direct Costs'!$O$6:$O$164,'Misc Data'!$C10) -> 0.01912861099 | CU10: =SUMIFS('Network Projects Direct Costs'!$H$6:$H$164,'Network Projects Direct Costs'!$O$6:$O$164,'Misc Data'!$C10,'Network Projects Direct Costs'!$N$6:$N$164,'Misc Data'!CU$4)/SUMIFS('Network Projects Direct Costs'!$H$6:$H$164,'Network Projects Direct Costs'!$O$6:$O$164,'Misc Data'!$C10) -> 0 | CV10: =SUMIFS('Network Projects Direct Costs'!$H$6:$H$164,'Network Projects Direct Costs'!$O$6:$O$164,'Misc Data'!$C10,'Network Projects Direct Costs'!$N$6:$N$164,'Misc Data'!CV$4)/SUMIFS('Network Projects Direct Costs'!$H$6:$H$164,'Network Projects Direct Costs'!$O$6:$O$164,'Misc Data'!$C10) -> 0 | CW10: 0 | CY10: =SUMIFS('Network Projects Direct Costs'!$I$6:$I$164,'Network Projects Direct Costs'!$O$6:$O$164,'Misc Data'!$C10,'Network Projects Direct Costs'!$N$6:$N$164,'Misc Data'!CY$4)/SUMIFS('Network Projects Direct Costs'!$I$6:$I$164,'Network Projects Direct Costs'!$O$6:$O$164,'Misc Data'!$C10) -> 0.5164724968 | CZ10: =SUMIFS('Network Projects Direct Costs'!$I$6:$I$164,'Network Projects Direct Costs'!$O$6:$O$164,'Misc Data'!$C10,'Network Projects Direct Costs'!$N$6:$N$164,'Misc Data'!CZ$4)/SUMIFS('Network Projects Direct Costs'!$I$6:$I$164,'Network Projects Direct Costs'!$O$6:$O$164,'Misc Data'!$C10) -> 0.3113700043 | DA10: =SUMIFS('Network Projects Direct Costs'!$I$6:$I$164,'Network Projects Direct Costs'!$O$6:$O$164,'Misc Data'!$C10,'Network Projects Direct Costs'!$N$6:$N$164,'Misc Data'!DA$4)/SUMIFS('Network Projects Direct Costs'!$I$6:$I$164,'Network Projects Direct Costs'!$O$6:$O$164,'Misc Data'!$C10) -> 0 | DB10: =SUMIFS('Network Projects Direct Costs'!$I$6:$I$164,'Network Projects Direct Costs'!$O$6:$O$164,'Misc Data'!$C10,'Network Projects Direct Costs'!$N$6:$N$164,'Misc Data'!DB$4)/SUMIFS('Network Projects Direct Costs'!$I$6:$I$164,'Network Projects Direct Costs'!$O$6:$O$164,'Misc Data'!$C10) -> 0 | DC10: =SUMIFS('Network Projects Direct Costs'!$I$6:$I$164,'Network Projects Direct Costs'!$O$6:$O$164,'Misc Data'!$C10,'Network Projects Direct Costs'!$N$6:$N$164,'Misc Data'!DC$4)/SUMIFS('Network Projects Direct Costs'!$I$6:$I$164,'Network Projects Direct Costs'!$O$6:$O$164,'Misc Data'!$C10) -> 0 | DD10: =SUMIFS('Network Projects Direct Costs'!$I$6:$I$164,'Network Projects Direct Costs'!$O$6:$O$164,'Misc Data'!$C10,'Network Projects Direct Costs'!$N$6:$N$164,'Misc Data'!DD$4)/SUMIFS('Network Projects Direct Costs'!$I$6:$I$164,'Network Projects Direct Costs'!$O$6:$O$164,'Misc Data'!$C10) -> 0 | DE10: =SUMIFS('Network Projects Direct Costs'!$I$6:$I$164,'Network Projects Direct Costs'!$O$6:$O$164,'Misc Data'!$C10,'Network Projects Direct Costs'!$N$6:$N$164,'Misc Data'!DE$4)/SUMIFS('Network Projects Direct Costs'!$I$6:$I$164,'Network Projects Direct Costs'!$O$6:$O$164,'Misc Data'!$C10) -> 0 | DF10: =SUMIFS('Network Projects Direct Costs'!$I$6:$I$164,'Network Projects Direct Costs'!$O$6:$O$164,'Misc Data'!$C10,'Network Projects Direct Costs'!$N$6:$N$164,'Misc Data'!DF$4)/SUMIFS('Network Projects Direct Costs'!$I$6:$I$164,'Network Projects Direct Costs'!$O$6:$O$164,'Misc Data'!$C10) -> 0 | DG10: =SUMIFS('Network Projects Direct Costs'!$I$6:$I$164,'Network Projects Direct Costs'!$O$6:$O$164,'Misc Data'!$C10,'Network Projects Direct Costs'!$N$6:$N$164,'Misc Data'!DG$4)/SUMIFS('Network Projects Direct Costs'!$I$6:$I$164,'Network Projects Direct Costs'!$O$6:$O$164,'Misc Data'!$C10) -> 0 | DH10: =SUMIFS('Network Projects Direct Costs'!$I$6:$I$164,'Network Projects Direct Costs'!$O$6:$O$164,'Misc Data'!$C10,'Network Projects Direct Costs'!$N$6:$N$164,'Misc Data'!DH$4)/SUMIFS('Network Projects Direct Costs'!$I$6:$I$164,'Network Projects Direct Costs'!$O$6:$O$164,'Misc Data'!$C10) -> 0 | DI10: =SUMIFS('Network Projects Direct Costs'!$I$6:$I$164,'Network Projects Direct Costs'!$O$6:$O$164,'Misc Data'!$C10,'Network Projects Direct Costs'!$N$6:$N$164,'Misc Data'!DI$4)/SUMIFS('Network Projects Direct Costs'!$I$6:$I$164,'Network Projects Direct Costs'!$O$6:$O$164,'Misc Data'!$C10) -> 0 | DJ10: =SUMIFS('Network Projects Direct Costs'!$I$6:$I$164,'Network Projects Direct Costs'!$O$6:$O$164,'Misc Data'!$C10,'Network Projects Direct Costs'!$N$6:$N$164,'Misc Data'!DJ$4)/SUMIFS('Network Projects Direct Costs'!$I$6:$I$164,'Network Projects Direct Costs'!$O$6:$O$164,'Misc Data'!$C10) -> 0 | DK10: =SUMIFS('Network Projects Direct Costs'!$I$6:$I$164,'Network Projects Direct Costs'!$O$6:$O$164,'Misc Data'!$C10,'Network Projects Direct Costs'!$N$6:$N$164,'Misc Data'!DK$4)/SUMIFS('Network Projects Direct Costs'!$I$6:$I$164,'Network Projects Direct Costs'!$O$6:$O$164,'Misc Data'!$C10) -> 0 | DL10: =SUMIFS('Network Projects Direct Costs'!$I$6:$I$164,'Network Projects Direct Costs'!$O$6:$O$164,'Misc Data'!$C10,'Network Projects Direct Costs'!$N$6:$N$164,'Misc Data'!DL$4)/SUMIFS('Network Projects Direct Costs'!$I$6:$I$164,'Network Projects Direct Costs'!$O$6:$O$164,'Misc Data'!$C10) -> 0 | DM10: =SUMIFS('Network Projects Direct Costs'!$I$6:$I$164,'Network Projects Direct Costs'!$O$6:$O$164,'Misc Data'!$C10,'Network Projects Direct Costs'!$N$6:$N$164,'Misc Data'!DM$4)/SUMIFS('Network Projects Direct Costs'!$I$6:$I$164,'Network Projects Direct Costs'!$O$6:$O$164,'Misc Data'!$C10) -> 0 | DN10: =SUMIFS('Network Projects Direct Costs'!$I$6:$I$164,'Network Projects Direct Costs'!$O$6:$O$164,'Misc Data'!$C10,'Network Projects Direct Costs'!$N$6:$N$164,'Misc Data'!DN$4)/SUMIFS('Network Projects Direct Costs'!$I$6:$I$164,'Network Projects Direct Costs'!$O$6:$O$164,'Misc Data'!$C10) -> 0 | DO10: =SUMIFS('Network Projects Direct Costs'!$I$6:$I$164,'Network Projects Direct Costs'!$O$6:$O$164,'Misc Data'!$C10,'Network Projects Direct Costs'!$N$6:$N$164,'Misc Data'!DO$4)/SUMIFS('Network Projects Direct Costs'!$I$6:$I$164,'Network Projects Direct Costs'!$O$6:$O$164,'Misc Data'!$C10) -> 0.1530288879 | DP10: =SUMIFS('Network Projects Direct Costs'!$I$6:$I$164,'Network Projects Direct Costs'!$O$6:$O$164,'Misc Data'!$C10,'Network Projects Direct Costs'!$N$6:$N$164,'Misc Data'!DP$4)/SUMIFS('Network Projects Direct Costs'!$I$6:$I$164,'Network Projects Direct Costs'!$O$6:$O$164,'Misc Data'!$C10) -> 0 | DQ10: =SUMIFS('Network Projects Direct Costs'!$I$6:$I$164,'Network Projects Direct Costs'!$O$6:$O$164,'Misc Data'!$C10,'Network Projects Direct Costs'!$N$6:$N$164,'Misc Data'!DQ$4)/SUMIFS('Network Projects Direct Costs'!$I$6:$I$164,'Network Projects Direct Costs'!$O$6:$O$164,'Misc Data'!$C10) -> 0.01912861099 | DR10: =SUMIFS('Network Projects Direct Costs'!$I$6:$I$164,'Network Projects Direct Costs'!$O$6:$O$164,'Misc Data'!$C10,'Network Projects Direct Costs'!$N$6:$N$164,'Misc Data'!DR$4)/SUMIFS('Network Projects Direct Costs'!$I$6:$I$164,'Network Projects Direct Costs'!$O$6:$O$164,'Misc Data'!$C10) -> 0 | DS10: =SUMIFS('Network Projects Direct Costs'!$I$6:$I$164,'Network Projects Direct Costs'!$O$6:$O$164,'Misc Data'!$C10,'Network Projects Direct Costs'!$N$6:$N$164,'Misc Data'!DS$4)/SUMIFS('Network Projects Direct Costs'!$I$6:$I$164,'Network Projects Direct Costs'!$O$6:$O$164,'Misc Data'!$C10) -> 0 | DT10: 0
